Workbook

Sheet Spis tablic
A1: SPIS ZAŁĄCZNIKÓW:
A3: WYKAZ WSKAŹNIKÓW
A4: WYKAZ ZMIENNYCH
A6: Tablica 1. WSKAŹNIKI BUDŻETOWE - zestawienie zbiorcze
A7: Tablica 2. WSKAŹNIKI NA MIESZKAŃCA - zestawienie zbiorcze
A8: Tablica 3. WSKAŹNIKI DLA ZOBOWIĄZAŃ WEDŁUG TYTUŁÓW DŁUŻNYCH - zestawienie zbiorcze
A9: Tablica 4. WSKAŹNIKI DLA GMIN MIEJSKICH
A10: Tablica 5. WSKAŹNIKI DLA GMIN WIEJSKICH
A11: Tablica 6. WSKAŹNIKI DLA GMIN MIEJSKO-WIEJSKICH
A12: Tablica 7. WSKAŹNIKI DLA MIAST NA PRAWACH POWIATU (BEZ METROPOLII)
A13: Tablica 8. WSKAŹNIKI DLA POWIATÓW
A14: Tablica 9. WSKAŹNIKI DLA METROPOLII
A15: Tablica 10. WSKAŹNIKI DLA WOJEWÓDZTW
A16: Tablica 11. WSKAŹNIKI DLA POSZCZEGÓLNYCH JEDNOSTEK W LATACH 2019-2023
A18: SŁOWNIKI (kody użyte w tabelach z danymi jednostkowymi)
A19: Wykaz metropolii

Sheet Tab_1 wskaźniki budżetowe
A1: Tablica 1: WSKAŹNIKI BUDŻETOWE | J1: powrót do spisu tablic
A3: 1. Wskaźnik WB1 – Udział dochodów bieżących w dochodach ogółem
J4: (%%)
A5: Wskaźnik WB1 | C5: gminy | F5: miasta na prawach powiatu | G5: powiaty | H5: metropolie | I5: województwa | J5: Ogółem JST
C6: miejskie | D6: wiejskie | E6: miejsko-wiejskie | L6: Etykiety wierszy | M6: Średnia z WB1[2019] | N6: Średnia z WB1[2020] | O6: Średnia z WB1[2021] | P6: Średnia z WB1[2022] | Q6: Minimum z WB1[2019] | R6: Minimum z WB1[2020] | S6: Minimum z WB1[2021] | T6: Minimum z WB1[2022] | U6: Maksimum z WB1[2019] | V6: Maksimum z WB1[2020] | W6: Maksimum z WB1[2021] | X6: Maksimum z WB1[2022]
A7: Średnia | B7: 2019 | C7: 90.43682203 | D7: 91.67738985 | E7: 91.8945938 | F7: 91.36388889 | G7: 88.32171975 | H7: 92.985 | I7: 77.72125 | J7: 91.17010688 | L7: GM | M7: 90.43682203 | N7: 88.19491525 | O7: 90.25169492 | P7: 90.07419492 | Q7: 47.19 | R7: 55.52 | S7: 68.89 | T7: 42.9 | U7: 99.24 | V7: 98.54 | W7: 99.32 | X7: 99.06
B8: 2020 | C8: 88.19491525 | D8: 89.39488652 | E8: 89.82446086 | F8: 88.81240741 | G8: 86.19503185 | H8: 91.40416667 | I8: 78.7 | J8: 88.97608123 | L8: GMW | M8: 91.88753776 | N8: 89.88725076 | O8: 88.84354985 | P8: 91.62854985 | Q8: 59.45 | R8: 64.63 | S8: 54 | T8: 54.68 | U8: 99.78 | V8: 98.75 | W8: 99.12 | X8: 99.79
B9: 2021 | C9: 90.25169492 | D9: 86.77358478 | E9: 88.78548006 | F9: 91.25203704 | G9: 89.87958599 | H9: 93.345 | I9: 83.360625 | J9: 87.99348415 | L9: GW | M9: 91.68263054 | N9: 89.37167217 | O9: 86.76812293 | P9: 90.89001983 | Q9: 60.33 | R9: 53.32 | S9: 59.63 | T9: 59.72 | U9: 100 | V9: 99.77 | W9: 99.93 | X9: 99.85
B10: 2022 | C10: 90.07419492 | D10: 90.88335781 | E10: 91.62692762 | F10: 92.54388889 | G10: 89.48366242 | H10: 92.5525 | I10: 86.07125 | J10: 90.84973994 | L10: M | M10: 91.36388889 | N10: 88.81240741 | O10: 91.25203704 | P10: 92.54388889 | Q10: 79.63 | R10: 53.49 | S10: 45.75 | T10: 74.67 | U10: 98.06 | V10: 97.67 | W10: 98.02 | X10: 97.57
B11: 2023 | C11: 83.58944915 | D11: 78.69380507 | E11: 82.66691285 | F11: 89.45611111 | G11: 81.98802548 | H11: 90.96083333 | I11: 82.945625 | J11: 80.7158746
A12: Minimum | B12: 2019 | C12: 47.19 | D12: 60.33 | E12: 59.45 | F12: 79.63 | G12: 53.85 | H12: 85.58 | I12: 50.75 | J12: 47.19 | L12: P | M12: 88.32171975 | N12: 86.19503185 | O12: 89.87958599 | P12: 89.48366242 | Q12: 53.85 | R12: 61.26 | S12: 64.78 | T12: 50.8 | U12: 99.66 | V12: 98.65 | W12: 99.93 | X12: 99.92
B13: 2020 | C13: 55.52 | D13: 53.32 | E13: 64.63 | F13: 53.49 | G13: 61.26 | H13: 86.52 | I13: 62.08 | J13: 53.32 | L13: W | M13: 77.72125 | N13: 78.7 | O13: 83.360625 | P13: 86.07125 | Q13: 50.75 | R13: 62.08 | S13: 70.17 | T13: 75.88 | U13: 93.35 | V13: 95.5 | W13: 93.17 | X13: 95.91
B14: 2021 | C14: 68.89 | D14: 59.63 | E14: 54 | F14: 45.75 | G14: 64.78 | H14: 90.93 | I14: 70.17 | J14: 45.75 | L14: MT | M14: 92.985 | N14: 91.40416667 | O14: 93.345 | P14: 92.5525 | Q14: 85.58 | R14: 86.52 | S14: 90.93 | T14: 88.4 | U14: 96.26 | V14: 95.68 | W14: 96.17 | X14: 96.4
B15: 2022 | C15: 42.9 | D15: 59.72 | E15: 54.68 | F15: 74.67 | G15: 50.8 | H15: 88.4 | I15: 75.88 | J15: 42.9 | L15: Suma końcowa | M15: 91.17010688 | N15: 88.97608123 | O15: 87.99348415 | P15: 90.84973994 | Q15: 47.19 | R15: 53.32 | S15: 45.75 | T15: 42.9 | U15: 100 | V15: 99.77 | W15: 99.93 | X15: 99.92
B16: 2023 | C16: 45.44 | D16: 38.13 | E16: 40.55 | F16: 62.17 | G16: 44.14 | H16: 81.64 | I16: 70.14 | J16: 38.13
A17: Maksimum | B17: 2019 | C17: 99.24 | D17: 100 | E17: 99.78 | F17: 98.06 | G17: 99.66 | H17: 96.26 | I17: 93.35 | J17: 100
B18: 2020 | C18: 98.54 | D18: 99.77 | E18: 98.75 | F18: 97.67 | G18: 98.65 | H18: 95.68 | I18: 95.5 | J18: 99.77
B19: 2021 | C19: 99.32 | D19: 99.93 | E19: 99.12 | F19: 98.02 | G19: 99.93 | H19: 96.17 | I19: 93.17 | J19: 99.93
B20: 2022 | C20: 99.06 | D20: 99.85 | E20: 99.79 | F20: 97.57 | G20: 99.92 | H20: 96.4 | I20: 95.91 | J20: 99.92
B21: 2023 | C21: 99.45 | D21: 99.98 | E21: 98.81 | F21: 97.59 | G21: 99.02 | H21: 95.04 | I21: 95.11 | J21: 99.98
A23: 2. Wskaźnik WB2 – udział transferów bieżących w dochodach bieżących
J24: (%%)
A25: Wskaźnik WB2 | C25: gminy | F25: miasta na prawach powiatu | G25: powiaty | H25: metropolie | I25: województwa | J25: Ogółem JST
C26: miejskie | D26: wiejskie | E26: miejsko-wiejskie | L26: Etykiety wierszy | M26: Średnia z WB2[2019] | N26: Średnia z WB2[2020] | O26: Średnia z WB2[2021] | P26: Średnia z WB2[2022] | Q26: Minimum z WB2[2019] | R26: Minimum z WB2[2020] | S26: Minimum z WB2[2021] | T26: Minimum z WB2[2022] | U26: Maksimum z WB2[2019] | V26: Maksimum z WB2[2020] | W26: Maksimum z WB2[2021] | X26: Maksimum z WB2[2022]
A27: Średnia | B27: 2019 | C27: 48.63427966 | D27: 65.39862483 | E27: 59.70333826 | F27: 49.6062963 | G27: 64.35050955 | H27: 37.94666667 | I27: 45.88875 | J27: 61.9659316 | L27: GM | M27: 48.63427966 | N27: 51.15771186 | O27: 50.45436441 | P27: 46.54186441 | Q27: 17.53 | R27: 18.45 | S27: 21.4 | T27: 23.93 | U27: 72.51 | V27: 72.23 | W27: 72.11 | X27: 64.22
B28: 2020 | C28: 51.15771186 | D28: 66.21449933 | E28: 61.20257016 | F28: 52.73407407 | G28: 67.09356688 | H28: 42.29833333 | I28: 49.881875 | J28: 63.38346633 | L28: GMW | M28: 59.56729607 | N28: 61.11019637 | O28: 59.9192145 | P28: 56.65069486 | Q28: 19.67 | R28: 22.1 | S28: 20.39 | T28: 23.02 | U28: 83.08 | V28: 83.13 | W28: 81.72 | X28: 76.42
B29: 2021 | C29: 50.45436441 | D29: 65.05148865 | E29: 60.0250517 | F29: 51.86648148 | G29: 66.3206051 | H29: 41.43916667 | I29: 44.53875 | J29: 62.28239045 | L29: GW | M29: 65.40168539 | N29: 66.20522802 | O29: 65.04796431 | P29: 59.45062789 | Q29: 9.51 | R29: 10.76 | S29: 11.34 | T29: 12.68 | U29: 86.92 | V29: 86.91 | W29: 84.95 | X29: 80.1
B30: 2022 | C30: 46.54186441 | D30: 59.44850467 | E30: 56.71742984 | F30: 48.45907407 | G30: 63.29216561 | H30: 37.2575 | I30: 45.854375 | J30: 57.75088351 | L30: M | M30: 49.6062963 | N30: 52.73407407 | O30: 51.86648148 | P30: 48.45907407 | Q30: 27.01 | R30: 32.55 | S30: 30.29 | T30: 29.86 | U30: 63.44 | V30: 66.65 | W30: 65.68 | X30: 62.79
B31: 2023 | C31: 44.22364407 | D31: 58.77610147 | E31: 53.41949778 | F31: 49.96388889 | G31: 70.52079618 | H31: 37.14 | I31: 46.606875 | J31: 57.24308871
A32: Minimum | B32: 2019 | C32: 17.53 | D32: 9.51 | E32: 19.67 | F32: 27.01 | G32: 30.8 | H32: 25.87 | I32: 10.05 | J32: 9.51 | L32: P | M32: 64.35050955 | N32: 67.09356688 | O32: 66.3206051 | P32: 63.29216561 | Q32: 30.8 | R32: 33.38 | S32: 36.39 | T32: 33.29 | U32: 85.57 | V32: 87.27 | W32: 85.76 | X32: 80.58
B33: 2020 | C33: 18.45 | D33: 10.76 | E33: 22.1 | F33: 32.55 | G33: 33.38 | H33: 30.56 | I33: 13.33 | J33: 10.76 | L33: W | M33: 45.88875 | N33: 49.881875 | O33: 44.53875 | P33: 45.854375 | Q33: 10.05 | R33: 13.33 | S33: 12.97 | T33: 10.49 | U33: 70.04 | V33: 68.6 | W33: 66.69 | X33: 65.05
B34: 2021 | C34: 21.4 | D34: 11.34 | E34: 20.39 | F34: 30.29 | G34: 36.39 | H34: 29.75 | I34: 12.97 | J34: 11.34 | L34: MT | M34: 37.94666667 | N34: 42.29833333 | O34: 41.43916667 | P34: 37.2575 | Q34: 25.87 | R34: 30.56 | S34: 29.75 | T34: 25.24 | U34: 49.04 | V34: 52.81 | W34: 51.95 | X34: 46.65
B35: 2022 | C35: 23.93 | D35: 12.68 | E35: 23.02 | F35: 29.86 | G35: 33.29 | H35: 25.24 | I35: 10.49 | J35: 10.49 | L35: Suma końcowa | M35: 61.9659316 | N35: 63.38346633 | O35: 62.28239045 | P35: 57.75088351 | Q35: 9.51 | R35: 10.76 | S35: 11.34 | T35: 10.49 | U35: 86.92 | V35: 87.27 | W35: 85.76 | X35: 80.58
B36: 2023 | C36: 21.19 | D36: 8.95 | E36: 16.21 | F36: 35.52 | G36: 38.5 | H36: 24.29 | I36: 10.05 | J36: 8.95
A37: Maksimum | B37: 2019 | C37: 72.51 | D37: 86.92 | E37: 83.23 | F37: 63.44 | G37: 85.57 | H37: 49.04 | I37: 70.04 | J37: 86.92
B38: 2020 | C38: 72.23 | D38: 86.91 | E38: 83.13 | F38: 66.65 | G38: 87.27 | H38: 52.81 | I38: 68.6 | J38: 87.27
B39: 2021 | C39: 72.11 | D39: 84.95 | E39: 81.72 | F39: 65.68 | G39: 85.76 | H39: 51.95 | I39: 66.69 | J39: 85.76
B40: 2022 | C40: 64.22 | D40: 80.1 | E40: 77.96 | F40: 62.79 | G40: 80.58 | H40: 46.65 | I40: 65.05 | J40: 80.58
B41: 2023 | C41: 67.91 | D41: 83.3 | E41: 77.92 | F41: 64.72 | G41: 87.64 | H41: 47.76 | I41: 69.17 | J41: 87.64
A43: 3. Wskaźnik WB3 – udział nadwyżki operacyjnej w dochodach bieżących
J44: (%%)
A45: Wskaźnik WB3 | C45: gminy | F45: miasta na prawach powiatu | G45: powiaty | H45: metropolie | I45: województwa | J45: Ogółem JST
C46: miejskie | D46: wiejskie | E46: miejsko-wiejskie | L46: Etykiety wierszy | M46: Średnia z WB3[2019] | N46: Średnia z WB3[2020] | O46: Średnia z WB3[2021] | P46: Średnia z WB3[2022] | Q46: Minimum z WB3[2019] | R46: Minimum z WB3[2020] | S46: Minimum z WB3[2021] | T46: Minimum z WB3[2022] | U46: Maksimum z WB3[2019] | V46: Maksimum z WB3[2020] | W46: Maksimum z WB3[2021] | X46: Maksimum z WB3[2022]
A47: Średnia | B47: 2019 | C47: 6.861991525 | D47: 9.522643525 | E47: 8.523441654 | F47: 6.275925926 | G47: 9.991146497 | H47: 8.25 | I47: 22.791875 | J47: 9.118101176 | L47: GM | M47: 6.861991525 | N47: 5.13440678 | O47: 9.686059322 | P47: 5.295974576 | Q47: -4.86 | R47: -6.96 | S47: -19.69 | T47: -5.35 | U47: 19.64 | V47: 25.16 | W47: 28.73 | X47: 22.27
B48: 2020 | C48: 5.13440678 | D48: 9.591455274 | E48: 8.150310192 | F48: 4.543703704 | G48: 9.122961783 | H48: 4.638333333 | I48: 25.101875 | J48: 8.786868543 | L48: GMW | M48: 8.511299094 | N48: 8.10081571 | O48: 10.31332326 | P48: 8.298610272 | Q48: -13.52 | R48: -2.01 | S48: -4.86 | T48: -9.93 | U48: 25.47 | V48: 28.43 | W48: 33.26 | X48: 26.99
B49: 2021 | C49: 9.686059322 | D49: 11.12369826 | E49: 10.32874446 | F49: 9.127777778 | G49: 11.09643312 | H49: 10.75916667 | I49: 30.405 | J49: 10.87799786 | L49: GW | M49: 9.518050231 | N49: 9.598823529 | O49: 11.12256444 | P49: 11.99486451 | Q49: -7.02 | R49: -4.15 | S49: -12.17 | T49: -5.79 | U49: 38.21 | V49: 47.35 | W49: 36.77 | X49: 57.67
B50: 2022 | C50: 5.295974576 | D50: 12.00423231 | E50: 8.359778434 | F50: 3.591296296 | G50: 8.401878981 | H50: 4.629166667 | I50: 26.283125 | J50: 10.04629854 | L50: M | M50: 6.275925926 | N50: 4.543703704 | O50: 9.127777778 | P50: 3.591296296 | Q50: -1.53 | R50: -2.5 | S50: 1.78 | T50: -3.8 | U50: 15.42 | V50: 13.71 | W50: 15.67 | X50: 13.87
B51: 2023 | C51: 2.74779661 | D51: 7.004873164 | E51: 4.456602659 | F51: 2.084074074 | G51: 4.051624204 | H51: 0.4908333333 | I51: 29.029375 | J51: 5.705026719
A52: Minimum | B52: 2019 | C52: -4.86 | D52: -7.02 | E52: -13.52 | F52: -1.53 | G52: -4.33 | H52: 4.32 | I52: 14.05 | J52: -13.52 | L52: P | M52: 9.991146497 | N52: 9.122961783 | O52: 11.09643312 | P52: 8.401878981 | Q52: -4.33 | R52: -2.37 | S52: 1.08 | T52: -3.36 | U52: 32.91 | V52: 36.6 | W52: 29.57 | X52: 26.87
B53: 2020 | C53: -6.96 | D53: -4.15 | E53: -2.01 | F53: -2.5 | G53: -2.37 | H53: -1.04 | I53: 16.36 | J53: -6.96 | L53: W | M53: 22.791875 | N53: 25.101875 | O53: 30.405 | P53: 26.283125 | Q53: 14.05 | R53: 16.36 | S53: 22.02 | T53: 17.51 | U53: 29.19 | V53: 35.3 | W53: 37.71 | X53: 36.61
B54: 2021 | C54: -19.69 | D54: -12.17 | E54: -4.86 | F54: 1.78 | G54: 1.08 | H54: 6.18 | I54: 22.02 | J54: -19.69 | L54: MT | M54: 8.25 | N54: 4.638333333 | O54: 10.75916667 | P54: 4.629166667 | Q54: 4.32 | R54: -1.04 | S54: 6.18 | T54: -0.01 | U54: 13.6 | V54: 9.99 | W54: 14.29 | X54: 9.38
B55: 2022 | C55: -5.35 | D55: -5.79 | E55: -9.93 | F55: -3.8 | G55: -3.36 | H55: -0.01 | I55: 17.51 | J55: -9.93 | L55: Suma końcowa | M55: 9.118101176 | N55: 8.786868543 | O55: 10.87799786 | P55: 10.04629854 | Q55: -13.52 | R55: -6.96 | S55: -19.69 | T55: -9.93 | U55: 38.21 | V55: 47.35 | W55: 37.71 | X55: 57.67
B56: 2023 | C56: -12.02 | D56: -17.22 | E56: -17.79 | F56: -6.56 | G56: -7.57 | H56: -10.92 | I56: 16.87 | J56: -17.79
A57: Maksimum | B57: 2019 | C57: 19.64 | D57: 38.21 | E57: 25.47 | F57: 15.42 | G57: 32.91 | H57: 13.6 | I57: 29.19 | J57: 38.21
B58: 2020 | C58: 25.16 | D58: 47.35 | E58: 28.43 | F58: 13.71 | G58: 36.6 | H58: 9.99 | I58: 35.3 | J58: 47.35
B59: 2021 | C59: 28.73 | D59: 36.77 | E59: 33.26 | F59: 15.67 | G59: 29.57 | H59: 14.29 | I59: 37.71 | J59: 37.71
B60: 2022 | C60: 22.27 | D60: 57.67 | E60: 26.99 | F60: 13.87 | G60: 26.87 | H60: 9.38 | I60: 36.61 | J60: 57.67
B61: 2023 | C61: 18.47 | D61: 41.3 | E61: 27.29 | F61: 15.75 | G61: 25.76 | H61: 6.52 | I61: 40.04 | J61: 41.3
A63: 4. Wskaźnik WB4 – udział wydatków majątkowych w wydatkach ogółem
J64: (%%)
A65: Wskaźnik WB4 | C65: gminy | F65: miasta na prawach powiatu | G65: powiaty | H65: metropolie | I65: województwa | J65: Ogółem JST
C66: miejskie | D66: wiejskie | E66: miejsko-wiejskie | L66: Etykiety wierszy | M66: Średnia z WB4[2019] | N66: Średnia z WB4[2020] | O66: Średnia z WB4[2021] | P66: Średnia z WB4[2022] | Q66: Minimum z WB4[2019] | R66: Minimum z WB4[2020] | S66: Minimum z WB4[2021] | T66: Minimum z WB4[2022] | U66: Maksimum z WB4[2019] | V66: Maksimum z WB4[2020] | W66: Maksimum z WB4[2021] | X66: Maksimum z WB4[2022]
A67: Średnia | B67: 2019 | C67: 15.92169492 | D67: 16.19351802 | E67: 15.60153619 | F67: 15.92666667 | G67: 17.36334395 | H67: 18.015 | I67: 38.915625 | J67: 16.29091913 | L67: GM | M67: 15.92169492 | N67: 14.33792373 | O67: 14.03427966 | P67: 16.44699153 | Q67: 2.03 | R67: 0.83 | S67: 1.27 | T67: 3.64 | U67: 40.11 | V67: 43.16 | W67: 36.35 | X67: 40.2
B68: 2020 | C68: 14.33792373 | D68: 14.30664219 | E68: 13.67413589 | F68: 14.87240741 | G68: 16.07579618 | H68: 15.87333333 | I68: 36.959375 | J68: 14.50132882 | L68: GMW | M68: 15.49163142 | N68: 13.59175227 | O68: 14.84338369 | P68: 17.47883686 | Q68: 0.86 | R68: 0.26 | S68: 1.3 | T68: 1.7 | U68: 56.8 | V68: 47.49 | W68: 60.61 | X68: 49.21
B69: 2021 | C69: 14.03427966 | D69: 15.34711615 | E69: 14.88125554 | F69: 14.37 | G69: 15.69226115 | H69: 15.41333333 | I69: 35.76125 | J69: 15.26083719 | L69: GW | M69: 16.23573695 | N69: 14.33641771 | O69: 15.35906808 | P69: 19.62104428 | Q69: 0.24 | R69: 0.22 | S69: 0.59 | T69: 1.36 | U69: 48.13 | V69: 55.19 | W69: 47.69 | X69: 51.05
B70: 2022 | C70: 16.44699153 | D70: 19.63393858 | E70: 17.49776957 | F70: 15.40722222 | G70: 19.09289809 | H70: 15.50666667 | I70: 33.866875 | J70: 18.77243677 | L70: M | M70: 15.92666667 | N70: 14.87240741 | O70: 14.37 | P70: 15.40722222 | Q70: 4.38 | R70: 3.14 | S70: 4.04 | T70: 7.45 | U70: 45.29 | V70: 56.42 | W70: 62.69 | X70: 42.42
B71: 2023 | C71: 22.61432203 | D71: 31.13048064 | E71: 25.56223043 | F71: 17.11407407 | G71: 23.69812102 | H71: 18.43083333 | I71: 39.445 | J71: 27.96356608
A72: Minimum | B72: 2019 | C72: 2.03 | D72: 0.24 | E72: 0.86 | F72: 4.38 | G72: 1.38 | H72: 12.69 | I72: 26.85 | J72: 0.24 | L72: P | M72: 17.36334395 | N72: 16.07579618 | O72: 15.69226115 | P72: 19.09289809 | Q72: 1.38 | R72: 2.05 | S72: 2.08 | T72: 2.03 | U72: 44.8 | V72: 53.14 | W72: 43.32 | X72: 55.09
B73: 2020 | C73: 0.83 | D73: 0.22 | E73: 0.26 | F73: 3.14 | G73: 2.05 | H73: 11.25 | I73: 22.77 | J73: 0.22 | L73: W | M73: 38.915625 | N73: 36.959375 | O73: 35.76125 | P73: 33.866875 | Q73: 26.85 | R73: 22.77 | S73: 23.4 | T73: 25.18 | U73: 63.72 | V73: 50.49 | W73: 46.43 | X73: 47.01
B74: 2021 | C74: 1.27 | D74: 0.59 | E74: 1.3 | F74: 4.04 | G74: 2.08 | H74: 8.92 | I74: 23.4 | J74: 0.59 | L74: MT | M74: 18.015 | N74: 15.87333333 | O74: 15.41333333 | P74: 15.50666667 | Q74: 12.69 | R74: 11.25 | S74: 8.92 | T74: 9.7 | U74: 24.19 | V74: 26.46 | W74: 26.08 | X74: 23.36
B75: 2022 | C75: 3.64 | D75: 1.36 | E75: 1.7 | F75: 7.45 | G75: 2.03 | H75: 9.7 | I75: 25.18 | J75: 1.36 | L75: Suma końcowa | M75: 16.29091913 | N75: 14.50132882 | O75: 15.26083719 | P75: 18.77243677 | Q75: 0.24 | R75: 0.22 | S75: 0.59 | T75: 1.36 | U75: 63.72 | V75: 56.42 | W75: 62.69 | X75: 55.09
B76: 2023 | C76: 4.23 | D76: 4.3 | E76: 0.77 | F76: 6.34 | G76: 4.32 | H76: 12.69 | I76: 27.93 | J76: 0.77
A77: Maksimum | B77: 2019 | C77: 40.11 | D77: 48.13 | E77: 56.8 | F77: 45.29 | G77: 44.8 | H77: 24.19 | I77: 63.72 | J77: 63.72
B78: 2020 | C78: 43.16 | D78: 55.19 | E78: 47.49 | F78: 56.42 | G78: 53.14 | H78: 26.46 | I78: 50.49 | J78: 56.42
B79: 2021 | C79: 36.35 | D79: 47.69 | E79: 60.61 | F79: 62.69 | G79: 43.32 | H79: 26.08 | I79: 46.43 | J79: 62.69
B80: 2022 | C80: 40.2 | D80: 51.05 | E80: 49.21 | F80: 42.42 | G80: 55.09 | H80: 23.36 | I80: 47.01 | J80: 55.09
B81: 2023 | C81: 59.31 | D81: 69.06 | E81: 68.1 | F81: 37.21 | G81: 58.92 | H81: 28.03 | I81: 59.07 | J81: 69.06
A83: 5. Wskaźnik WB5 – Obciążenie wydatków bieżących wydatkami na wynagrodzenia i pochodne od wynagrodzeń
J84: (%%)
A85: Wskaźnik WB5 | C85: gminy | F85: miasta na prawach powiatu | G85: powiaty | H85: metropolie | I85: województwa | J85: Ogółem JST
C86: miejskie | D86: wiejskie | E86: miejsko-wiejskie | L86: Etykiety wierszy | M86: Średnia z WB5[2019] | N86: Średnia z WB5[2020] | O86: Średnia z WB5[2021] | P86: Średnia z WB5[2022] | Q86: Minimum z WB5[2019] | R86: Minimum z WB5[2020] | S86: Minimum z WB5[2021] | T86: Minimum z WB5[2022] | U86: Maksimum z WB5[2019] | V86: Maksimum z WB5[2020] | W86: Maksimum z WB5[2021] | X86: Maksimum z WB5[2022]
A87: Średnia | B87: 2019 | C87: 37.51885593 | D87: 37.74725634 | E87: 37.04555391 | F87: 41.55962963 | G87: 61.78394904 | H87: 35.935 | I87: 20.268125 | J87: 40.21359815 | L87: GM | M87: 37.51885593 | N87: 36.31961864 | O87: 37.26699153 | P87: 37.7225 | Q87: 25.13 | R87: 23.93 | S87: 21.75 | T87: 25.77 | U87: 48.61 | V87: 46.7 | W87: 48.04 | X87: 50.81
B88: 2020 | C88: 36.31961864 | D88: 36.46948598 | E88: 35.95289513 | F88: 41.145 | G88: 62.5033758 | H88: 35.75583333 | I88: 19.441875 | J88: 39.23436409 | L88: GMW | M88: 37.00848943 | N88: 35.92557402 | O88: 36.91412387 | P88: 35.52651057 | Q88: 20.35 | R88: 20.13 | S88: 20.61 | T88: 20.62 | U88: 46.42 | V88: 46.7 | W88: 46.61 | X88: 49.67
B89: 2021 | C89: 37.26699153 | D89: 37.70298398 | E89: 36.96042836 | F89: 41.88277778 | G89: 63.1793949 | H89: 36.08916667 | I89: 20.063125 | J89: 40.31007125 | L89: GW | M89: 37.75651685 | N89: 36.47631857 | O89: 37.71588235 | P89: 35.90742895 | Q89: 16.14 | R89: 15.03 | S89: 15.14 | T89: 15.49 | U89: 48.39 | V89: 48.12 | W89: 49.5 | X89: 51.54
B90: 2022 | C90: 37.7225 | D90: 35.89542724 | E90: 35.56150665 | F90: 42.79740741 | G90: 61.57165605 | H90: 37.10583333 | I90: 19.466875 | J90: 38.88503741 | L90: M | M90: 41.55962963 | N90: 41.145 | O90: 41.88277778 | P90: 42.79740741 | Q90: 30.24 | R90: 31.94 | S90: 33.58 | T90: 32.82 | U90: 51.58 | V90: 50.29 | W90: 50.2 | X90: 52.23
B91: 2023 | C91: 44.23860169 | D91: 45.15051402 | E91: 43.68463811 | F91: 46.86407407 | G91: 63.8506051 | H91: 40.04416667 | I91: 19.121875 | J91: 46.67492341
A92: Minimum | B92: 2019 | C92: 25.13 | D92: 16.14 | E92: 20.35 | F92: 30.24 | G92: 37.96 | H92: 31.86 | I92: 15.75 | J92: 15.75 | L92: P | M92: 61.78394904 | N92: 62.5033758 | O92: 63.1793949 | P92: 61.57165605 | Q92: 37.96 | R92: 36.64 | S92: 37.19 | T92: 34.67 | U92: 74.75 | V92: 74.86 | W92: 74.27 | X92: 72.98
B93: 2020 | C93: 23.93 | D93: 15.03 | E93: 20.13 | F93: 31.94 | G93: 36.64 | H93: 31.04 | I93: 14.78 | J93: 14.78 | L93: W | M93: 20.268125 | N93: 19.441875 | O93: 20.063125 | P93: 19.466875 | Q93: 15.75 | R93: 14.78 | S93: 15.61 | T93: 14.55 | U93: 24.94 | V93: 23.77 | W93: 24.48 | X93: 24.69
B94: 2021 | C94: 21.75 | D94: 15.14 | E94: 20.61 | F94: 33.58 | G94: 37.19 | H94: 31.75 | I94: 15.61 | J94: 15.14 | L94: MT | M94: 35.935 | N94: 35.75583333 | O94: 36.08916667 | P94: 37.10583333 | Q94: 31.86 | R94: 31.04 | S94: 31.75 | T94: 33.43 | U94: 42.01 | V94: 41.38 | W94: 41.91 | X94: 43.51
B95: 2022 | C95: 25.77 | D95: 15.49 | E95: 20.62 | F95: 32.82 | G95: 34.67 | H95: 33.43 | I95: 14.55 | J95: 14.55 | L95: Suma końcowa | M95: 40.21359815 | N95: 39.23436409 | O95: 40.31007125 | P95: 38.88503741 | Q95: 15.75 | R95: 14.78 | S95: 15.14 | T95: 14.55 | U95: 74.75 | V95: 74.86 | W95: 74.27 | X95: 72.98
B96: 2023 | C96: 29.29 | D96: 17.47 | E96: 23.84 | F96: 35.08 | G96: 33.25 | H96: 35.26 | I96: 13.85 | J96: 13.85
A97: Maksimum | B97: 2019 | C97: 48.61 | D97: 48.39 | E97: 46.42 | F97: 51.58 | G97: 74.75 | H97: 42.01 | I97: 24.94 | J97: 74.75
B98: 2020 | C98: 46.7 | D98: 48.12 | E98: 46.7 | F98: 50.29 | G98: 74.86 | H98: 41.38 | I98: 23.77 | J98: 74.86
B99: 2021 | C99: 48.04 | D99: 49.5 | E99: 46.61 | F99: 50.2 | G99: 74.27 | H99: 41.91 | I99: 24.48 | J99: 74.27
B100: 2022 | C100: 50.81 | D100: 51.54 | E100: 49.67 | F100: 52.23 | G100: 72.98 | H100: 43.51 | I100: 24.69 | J100: 72.98
B101: 2023 | C101: 60.67 | D101: 58.46 | E101: 58.29 | F101: 53.76 | G101: 76.41 | H101: 46.97 | I101: 24.21 | J101: 76.41
A103: 6. Wskaźnik WB6 – Udział nadwyżki operacyjnej i dochodów ze sprzedaży majątku w dochodach ogółem
J104: (%%)
A105: Wskaźnik WB6 | C105: gminy | F105: miasta na prawach powiatu | G105: powiaty | H105: metropolie | I105: województwa | J105: Ogółem JST
C106: miejskie | D106: wiejskie | E106: miejsko-wiejskie | L106: Etykiety wierszy | M106: Średnia z WB6[2019] | N106: Średnia z WB6[2020] | O106: Średnia z WB6[2021] | P106: Średnia z WB6[2022] | Q106: Minimum z WB6[2019] | R106: Minimum z WB6[2020] | S106: Minimum z WB6[2021] | T106: Minimum z WB6[2022] | U106: Maksimum z WB6[2019] | V106: Maksimum z WB6[2020] | W106: Maksimum z WB6[2021] | X106: Maksimum z WB6[2022]
A107: Średnia | B107: 2019 | C107: 8.581313559 | D107: 9.2488251 | E107: 8.872348597 | F107: 7.667037037 | G107: 9.073757962 | H107: 9.24 | I107: 18.144375 | J107: 9.102557891 | L107: GM | M107: 8.581313559 | N107: 6.640466102 | O107: 11.48254237 | P107: 7.599237288 | Q107: -1.61 | R107: -1.94 | S107: -5.75 | T107: -2.91 | U107: 46.01 | V107: 35.75 | W107: 28.4 | X107: 55.91
B108: 2020 | C108: 6.640466102 | D108: 9.183591455 | E108: 8.475007386 | F108: 5.969444444 | G108: 8.375636943 | H108: 5.738333333 | I108: 20.351875 | J108: 8.695596722 | L108: GMW | M108: 8.874244713 | N108: 8.448519637 | O108: 10.81676737 | P108: 9.085619335 | Q108: -11.37 | R108: -0.52 | S108: -1.81 | T108: -9.07 | U108: 28.44 | V108: 26.48 | W108: 32.21 | X108: 45.46
B109: 2021 | C109: 11.48254237 | D109: 10.57681575 | E109: 10.81150665 | F109: 10.86444444 | G109: 10.49535032 | H109: 12.28333333 | I109: 25.8775 | J109: 10.80049875 | L109: GW | M109: 9.244263054 | N109: 9.188155981 | O109: 10.57684071 | P109: 11.61155981 | Q109: -3.93 | R109: -2.1 | S109: -9.42 | T109: -2.35 | U109: 37.71 | V109: 46.16 | W109: 38.91 | X109: 53.61
B110: 2022 | C110: 7.599237288 | D110: 11.62354473 | E110: 9.11506647 | F110: 5.104444444 | G110: 8.003407643 | H110: 6.7375 | I110: 22.839375 | J110: 10.19286783 | L110: M | M110: 7.667037037 | N110: 5.969444444 | O110: 10.86444444 | P110: 5.104444444 | Q110: 1.01 | R110: 0.25 | S110: 6.06 | T110: -3.14 | U110: 20.83 | V110: 15 | W110: 18.32 | X110: 15.09
B111: 2023 | C111: 4.424279661 | D111: 6.090901202 | E111: 4.979734121 | F111: 3.829259259 | G111: 3.591719745 | H111: 2.399166667 | I111: 24.2975 | J111: 5.447705736
A112: Minimum | B112: 2019 | C112: -1.61 | D112: -3.93 | E112: -11.37 | F112: 1.01 | G112: -2.92 | H112: 5.27 | I112: 10.43 | J112: -11.37 | L112: P | M112: 9.073757962 | N112: 8.375636943 | O112: 10.49535032 | P112: 8.003407643 | Q112: -2.92 | R112: -2.07 | S112: 1.64 | T112: -3.2 | U112: 28.69 | V112: 35.3 | W112: 27.65 | X112: 36.21
B113: 2020 | C113: -1.94 | D113: -2.1 | E113: -0.52 | F113: 0.25 | G113: -2.07 | H113: -0.73 | I113: 12.58 | J113: -2.1 | L113: W | M113: 18.144375 | N113: 20.351875 | O113: 25.8775 | P113: 22.839375 | Q113: 10.43 | R113: 12.58 | S113: 17.63 | T113: 14.55 | U113: 27.62 | V113: 28.3 | W113: 32.2 | X113: 32.46
B114: 2021 | C114: -5.75 | D114: -9.42 | E114: -1.81 | F114: 6.06 | G114: 1.64 | H114: 6.42 | I114: 17.63 | J114: -9.42 | L114: MT | M114: 9.24 | N114: 5.738333333 | O114: 12.28333333 | P114: 6.7375 | Q114: 5.27 | R114: -0.73 | S114: 6.42 | T114: 1.13 | U114: 13.66 | V114: 11.38 | W114: 16.03 | X114: 11.47
B115: 2022 | C115: -2.91 | D115: -2.35 | E115: -9.07 | F115: -3.14 | G115: -3.2 | H115: 1.13 | I115: 14.55 | J115: -9.07 | L115: Suma końcowa | M115: 9.102557891 | N115: 8.695596722 | O115: 10.80049875 | P115: 10.19286783 | Q115: -11.37 | R115: -2.1 | S115: -9.42 | T115: -9.07 | U115: 46.01 | V115: 46.16 | W115: 38.91 | X115: 55.91
B116: 2023 | C116: -7.44 | D116: -11.02 | E116: -8.55 | F116: -4.79 | G116: -5.51 | H116: -9.36 | I116: 12.92 | J116: -11.02
A117: Maksimum | B117: 2019 | C117: 46.01 | D117: 37.71 | E117: 28.44 | F117: 20.83 | G117: 28.69 | H117: 13.66 | I117: 27.62 | J117: 46.01
B118: 2020 | C118: 35.75 | D118: 46.16 | E118: 26.48 | F118: 15 | G118: 35.3 | H118: 11.38 | I118: 28.3 | J118: 46.16
B119: 2021 | C119: 28.4 | D119: 38.91 | E119: 32.21 | F119: 18.32 | G119: 27.65 | H119: 16.03 | I119: 32.2 | J119: 38.91
B120: 2022 | C120: 55.91 | D120: 53.61 | E120: 45.46 | F120: 15.09 | G120: 36.21 | H120: 11.47 | I120: 32.46 | J120: 55.91
B121: 2023 | C121: 16.56 | D121: 39.12 | E121: 38.94 | F121: 16.83 | G121: 18.12 | H121: 8.57 | I121: 36.2 | J121: 39.12
A123: 7. Wskaźnik WB7 – Udział nadwyżki operacyjnej i dochodów majątkowych w wydatkach majątkowych (wskaźnik samofinansowania)
J124: (%%)
A125: Wskaźnik WB7 | C125: gminy | F125: miasta na prawach powiatu | G125: powiaty | H125: metropolie | I125: województwa | J125: Ogółem JST
C126: miejskie | D126: wiejskie | E126: miejsko-wiejskie | M126: Średnia z WB7[2019] | N126: Średnia z WB7[2020] | O126: Średnia z WB7[2021] | P126: Średnia z WB7[2022] | Q126: Minimum z WB7[2019] | R126: Minimum z WB7[2020] | S126: Minimum z WB7[2021] | T126: Minimum z WB7[2022] | U126: Maksimum z WB7[2019] | V126: Maksimum z WB7[2020] | W126: Maksimum z WB7[2021] | X126: Maksimum z WB7[2022]
A127: Średnia | B127: 2019 | C127: 110.3640254 | D127: 136.6524032 | E127: 122.3773412 | F127: 95.34018519 | G127: 142.1666561 | H127: 78.59 | I127: 106.448125 | J127: 130.4010046 | L127: GM | M127: 110.3640254 | N127: 145.0056356 | O127: 165.1883475 | P127: 97.90690678 | Q127: 26.51 | R127: -9.63 | S127: -15.55 | T127: -6.25 | U127: 455.21 | V127: 2076.87 | W127: 889.82 | X127: 1343.31
B128: 2020 | C128: 145.0056356 | D128: 204.0248598 | E128: 176.0882718 | F128: 110.5377778 | G128: 170.2524522 | H128: 76.41583333 | I128: 122.6875 | J128: 185.7394478 | L128: GMW | M128: 123.2580211 | N128: 176.5701964 | O128: 173.9525378 | P128: 99.9852568 | Q128: -129.52 | R128: 32.59 | S128: 35.59 | T128: -8.55 | U128: 1521.95 | V128: 11822.74 | W128: 1014.9 | X128: 579.8
B129: 2021 | C129: 165.1883475 | D129: 215.9516422 | E129: 174.5228656 | F129: 133.2790741 | G129: 155.0448408 | H129: 117.595 | I129: 133.458125 | J129: 192.3974385 | L129: GW | M129: 136.1255453 | N129: 203.5370324 | O129: 215.790456 | P129: 115.3706808 | Q129: -91.9 | R129: 21.96 | S129: 35.96 | T129: 6.12 | U129: 2583.12 | V129: 9624.57 | W129: 6437.84 | X129: 1279.15
B130: 2022 | C130: 97.90690678 | D130: 115.5126569 | E130: 100.0119941 | F130: 66.23759259 | G130: 100.8534076 | H130: 76.97583333 | I130: 114.275625 | J130: 107.534389 | L130: M | M130: 95.34018519 | N130: 110.5377778 | O130: 133.2790741 | P130: 66.23759259 | Q130: 28.75 | R130: 62.54 | S130: 62 | T130: -9.6 | U130: 182.51 | V130: 282.22 | W130: 256.27 | X130: 138.01
B131: 2023 | C131: 81.26419492 | D131: 81.35576769 | E131: 79.41474151 | F131: 68.8662963 | G131: 87.73773885 | H131: 45.70916667 | I131: 109.229375 | J131: 81.360057
A132: Minimum | B132: 2019 | C132: 26.51 | D132: -91.9 | E132: -129.52 | F132: 28.75 | G132: -9.98 | H132: 58.52 | I132: 82 | J132: -129.52 | L132: P | M132: 142.1666561 | N132: 170.2524522 | O132: 155.0448408 | P132: 100.8534076 | Q132: -9.98 | R132: 40.35 | S132: 46.02 | T132: -26.05 | U132: 1147.74 | V132: 785.48 | W132: 654.83 | X132: 590.52
B133: 2020 | C133: -9.63 | D133: 21.96 | E133: 32.59 | F133: 62.54 | G133: 40.35 | H133: 26.99 | I133: 90.8 | J133: -9.63 | L133: W | M133: 106.448125 | N133: 122.6875 | O133: 133.458125 | P133: 114.275625 | Q133: 82 | R133: 90.8 | S133: 100.15 | T133: 87.5 | U133: 142.36 | V133: 189.36 | W133: 170.62 | X133: 177.81
B134: 2021 | C134: -15.55 | D134: 35.96 | E134: 35.59 | F134: 62 | G134: 46.02 | H134: 71.85 | I134: 100.15 | J134: -15.55 | L134: MT | M134: 78.59 | N134: 76.41583333 | O134: 117.595 | P134: 76.97583333 | Q134: 58.52 | R134: 26.99 | S134: 71.85 | T134: 26.64 | U134: 94.92 | V134: 103.55 | W134: 168.21 | X134: 144.77
B135: 2022 | C135: -6.25 | D135: 6.12 | E135: -8.55 | F135: -9.6 | G135: -26.05 | H135: 26.64 | I135: 87.5 | J135: -26.05 | L135: Suma końcowa | M135: 130.4010046 | N135: 185.7394478 | O135: 192.3974385 | P135: 107.534389 | Q135: -129.52 | R135: -9.63 | S135: -15.55 | T135: -26.05 | U135: 2583.12 | V135: 11822.74 | W135: 6437.84 | X135: 1343.31
B136: 2023 | C136: 4.27 | D136: -42.1 | E136: -54.25 | F136: -1.73 | G136: -9.98 | H136: -12.79 | I136: 70.68 | J136: -54.25
A137: Maksimum | B137: 2019 | C137: 455.21 | D137: 2583.12 | E137: 1521.95 | F137: 182.51 | G137: 1147.74 | H137: 94.92 | I137: 142.36 | J137: 2583.12
B138: 2020 | C138: 2076.87 | D138: 9624.57 | E138: 11822.74 | F138: 282.22 | G138: 785.48 | H138: 103.55 | I138: 189.36 | J138: 11822.74
B139: 2021 | C139: 889.82 | D139: 6437.84 | E139: 1014.9 | F139: 256.27 | G139: 654.83 | H139: 168.21 | I139: 170.62 | J139: 6437.84
B140: 2022 | C140: 1343.31 | D140: 1279.15 | E140: 579.8 | F140: 138.01 | G140: 590.52 | H140: 144.77 | I140: 177.81 | J140: 1343.31
B141: 2023 | C141: 263.6 | D141: 226.88 | E141: 1053.66 | F141: 153.41 | G141: 293.66 | H141: 72.74 | I141: 147.23 | J141: 1053.66
A143: 8. Wskaźnik WB8 - Odsetek dochodów ogółem pozostający po zakończeniu roku budżetowego
J144: (%%)
A145: Wskaźnik WB8 | C145: gminy | F145: miasta na prawach powiatu | G145: powiaty | H145: metropolie | I145: województwa | J145: Ogółem JST
C146: miejskie | D146: wiejskie | E146: miejsko-wiejskie | L146: Etykiety wierszy | M146: Średnia z WB8[2019] | N146: Średnia z WB8[2020] | O146: Średnia z WB8[2021] | P146: Średnia z WB8[2022] | Q146: Minimum z WB8[2019] | R146: Minimum z WB8[2020] | S146: Minimum z WB8[2021] | T146: Minimum z WB8[2022] | U146: Maksimum z WB8[2019] | V146: Maksimum z WB8[2020] | W146: Maksimum z WB8[2021] | X146: Maksimum z WB8[2022]
A147: Średnia | B147: 2019 | C147: 6.71690678 | D147: 7.230500668 | E147: 6.562186115 | F147: 5.785925926 | G147: 9.83366242 | H147: 6.015833333 | I147: 8.9125 | J147: 7.293936587 | L147: GM | M147: 6.71690678 | N147: 10.22699153 | O147: 14.24792373 | P147: 10.93745763 | Q147: 0 | R147: -0.54 | S147: 0.2 | T147: -2.39 | U147: 53.53 | V147: 68.11 | W147: 62.31 | X147: 60.57
B148: 2020 | C148: 10.22699153 | D148: 11.91072764 | E148: 10.62153619 | F148: 8.142222222 | G148: 14.5794586 | H148: 7.9525 | I148: 14.573125 | J148: 11.68252583 | L148: GMW | M148: 6.529743202 | N148: 10.59962236 | O148: 15.59990937 | P148: 12.57238671 | Q148: -1.18 | R148: -0.2 | S148: 0.46 | T148: -2.53 | U148: 74.27 | V148: 47.87 | W148: 67.99 | X148: 48.24
B149: 2021 | C149: 14.24792373 | D149: 18.19016021 | E149: 15.65305761 | F149: 11.4662963 | G149: 18.02117834 | H149: 10.97083333 | I149: 20.635 | J149: 17.08162807 | L149: GW | M149: 7.238070059 | N149: 11.9075347 | O149: 18.18826173 | P149: 16.3093655 | Q149: -1.65 | R149: -3.6 | S149: 0 | T149: 0 | U149: 85.26 | V149: 95.81 | W149: 91.47 | X149: 88.28
B150: 2022 | C150: 10.93745763 | D150: 16.28552069 | E150: 12.70794682 | F150: 6.887592593 | G150: 14.42044586 | H150: 6.539166667 | I150: 19.63875 | J150: 14.56105094 | L150: M | M150: 5.785925926 | N150: 8.142222222 | O150: 11.4662963 | P150: 6.887592593 | Q150: -0.59 | R150: 1.07 | S150: 5.23 | T150: -0.19 | U150: 22.63 | V150: 18.92 | W150: 22.21 | X150: 17.31
B151: 2023 | C151: 8.899110169 | D151: 12.32315087 | E151: 9.304032496 | F151: 5.47537037 | G151: 10.86920382 | H151: 3.12 | I151: 16.20375 | J151: 10.99551122
A152: Minimum | B152: 2019 | C152: 0 | D152: -1.65 | E152: -1.18 | F152: -0.59 | G152: 0.49 | H152: 1.58 | I152: 1.72 | J152: -1.65 | L152: P | M152: 9.83366242 | N152: 14.5794586 | O152: 18.02117834 | P152: 14.42044586 | Q152: 0.49 | R152: 0 | S152: -2.26 | T152: 0 | U152: 32.08 | V152: 43.64 | W152: 65.52 | X152: 64.43
B153: 2020 | C153: -0.54 | D153: -3.6 | E153: -0.2 | F153: 1.07 | G153: 0 | H153: 0.49 | I153: 6 | J153: -3.6 | L153: W | M153: 8.9125 | N153: 14.573125 | O153: 20.635 | P153: 19.63875 | Q153: 1.72 | R153: 6 | S153: 8.49 | T153: 6.72 | U153: 22.23 | V153: 30.92 | W153: 36.23 | X153: 46.27
B154: 2021 | C154: 0.2 | D154: 0 | E154: 0.46 | F154: 5.23 | G154: -2.26 | H154: 4.71 | I154: 8.49 | J154: -2.26 | L154: MT | M154: 6.015833333 | N154: 7.9525 | O154: 10.97083333 | P154: 6.539166667 | Q154: 1.58 | R154: 0.49 | S154: 4.71 | T154: 1.49 | U154: 20.22 | V154: 19.09 | W154: 22.37 | X154: 15.02
B155: 2022 | C155: -2.39 | D155: 0 | E155: -2.53 | F155: -0.19 | G155: 0 | H155: 1.49 | I155: 6.72 | J155: -2.53 | L155: Suma końcowa | M155: 7.293936587 | N155: 11.68252583 | O155: 17.08162807 | P155: 14.56105094 | Q155: -1.65 | R155: -3.6 | S155: -2.26 | T155: -2.53 | U155: 85.26 | V155: 95.81 | W155: 91.47 | X155: 88.28
B156: 2023 | C156: -2.14 | D156: -5.3 | E156: -1.86 | F156: -0.71 | G156: -2.68 | H156: 0.13 | I156: 2.01 | J156: -5.3
A157: Maksimum | B157: 2019 | C157: 53.53 | D157: 85.26 | E157: 74.27 | F157: 22.63 | G157: 32.08 | H157: 20.22 | I157: 22.23 | J157: 85.26
B158: 2020 | C158: 68.11 | D158: 95.81 | E158: 47.87 | F158: 18.92 | G158: 43.64 | H158: 19.09 | I158: 30.92 | J158: 95.81
B159: 2021 | C159: 62.31 | D159: 91.47 | E159: 67.99 | F159: 22.21 | G159: 65.52 | H159: 22.37 | I159: 36.23 | J159: 91.47
B160: 2022 | C160: 60.57 | D160: 88.28 | E160: 48.24 | F160: 17.31 | G160: 64.43 | H160: 15.02 | I160: 46.27 | J160: 88.28
B161: 2023 | C161: 64 | D161: 97.46 | E161: 57.58 | F161: 14.22 | G161: 55.49 | H161: 8.09 | I161: 31.63 | J161: 97.46
A163: 9. Wskaźnik WB9 - potencjał rozwojowy w relacji do wydatków majątkowych i spłat kapitału
J164: (%%)
A165: Wskaźnik WB9 | C165: gminy | F165: miasta na prawach powiatu | G165: powiaty | H165: metropolie | I165: województwa | J165: Ogółem JST
C166: miejskie | D166: wiejskie | E166: miejsko-wiejskie | M166: Średnia z WB9[2019] | N166: Średnia z WB9[2020] | O166: Średnia z WB9[2021] | P166: Średnia z WB9[2022] | Q166: Minimum z WB9[2019] | R166: Minimum z WB9[2020] | S166: Minimum z WB9[2021] | T166: Minimum z WB9[2022] | U166: Maksimum z WB9[2019] | V166: Maksimum z WB9[2020] | W166: Maksimum z WB9[2021] | X166: Maksimum z WB9[2022]
A167: Średnia | B167: 2019 | C167: 122.0083898 | D167: 133.013251 | E167: 122.3067356 | F167: 104.3140741 | G167: 151.0115924 | H167: 97.3175 | I167: 113.673125 | J167: 130.7041931 | L167: GM | M167: 122.0083898 | N167: 153.2792373 | O167: 193.5858475 | P167: 163.4838136 | Q167: 25.23 | R167: 57.96 | S167: 56.97 | T167: 50.99 | U167: 521.94 | V167: 1107.21 | W167: 848.64 | X167: 746.27
B168: 2020 | C168: 153.2792373 | D168: 192.0707477 | E168: 160.4028951 | F168: 120.9881481 | G168: 201.4857325 | H168: 93.16916667 | I168: 128.763125 | J168: 180.0736587 | L168: GMW | M168: 122.9571299 | N168: 160.5489426 | O168: 204.7012538 | P168: 168.2642447 | Q168: -104.93 | R168: 30.98 | S168: 24.52 | T168: 36.82 | U168: 1070 | V168: 882.38 | W168: 814.18 | X168: 1040
B169: 2021 | C169: 193.5858475 | D169: 244.6834846 | E169: 204.7875628 | F169: 154.9162963 | G169: 224.7784076 | H169: 141.4291667 | I169: 159.41625 | J169: 225.8842216 | L169: GW | M169: 132.6225314 | N169: 191.6928883 | O169: 244.3257171 | P169: 194.27577 | Q169: 1.55 | R169: 15.67 | S169: 40.66 | T169: 30.65 | U169: 1204.39 | V169: 2959.89 | W169: 2035.84 | X169: 1378.38
B170: 2022 | C170: 163.4838136 | D170: 194.2800067 | E170: 168.8311965 | F170: 121.7424074 | G170: 179.173758 | H170: 124.9175 | I170: 161.45875 | J170: 181.9840933 | L170: M | M170: 104.3140741 | N170: 120.9881481 | O170: 154.9162963 | P170: 121.7424074 | Q170: 54.55 | R170: 52.56 | S170: 64.94 | T170: 45.86 | U170: 274.65 | V170: 249.06 | W170: 279.68 | X170: 200.63
B171: 2023 | C171: 125.8233898 | D171: 133.9726168 | E171: 131.6273412 | F171: 96.39833333 | G171: 139.5142994 | H171: 71.745 | I171: 138.04125 | J171: 132.3760634
A172: Minimum | B172: 2019 | C172: 25.23 | D172: 1.55 | E172: -104.93 | F172: 54.55 | G172: -0.06 | H172: 72.61 | I172: 87.42 | J172: -104.93 | L172: MT | M172: 97.3175 | N172: 93.16916667 | O172: 141.4291667 | P172: 124.9175 | Q172: 72.61 | R172: 53.67 | S172: 73.09 | T172: 70.56 | U172: 180.74 | V172: 166.77 | W172: 244.5 | X172: 239.78
B173: 2020 | C173: 57.96 | D173: 15.67 | E173: 30.98 | F173: 52.56 | G173: 32 | H173: 53.67 | I173: 103.73 | J173: 15.67 | L173: P | M173: 151.0115924 | N173: 201.4857325 | O173: 224.7784076 | P173: 179.173758 | Q173: -0.06 | R173: 32 | S173: 58.11 | T173: 49.9 | U173: 586.55 | V173: 783.7 | W173: 774.06 | X173: 704.14
B174: 2021 | C174: 56.97 | D174: 40.66 | E174: 24.52 | F174: 64.94 | G174: 58.11 | H174: 73.09 | I174: 113.6 | J174: 24.52 | L174: W | M174: 113.673125 | N174: 128.763125 | O174: 159.41625 | P174: 161.45875 | Q174: 87.42 | R174: 103.73 | S174: 113.6 | T174: 106.05 | U174: 145.87 | V174: 177.26 | W174: 250.68 | X174: 282.26
B175: 2022 | C175: 50.99 | D175: 30.65 | E175: 36.82 | F175: 45.86 | G175: 49.9 | H175: 70.56 | I175: 106.05 | J175: 30.65 | L175: Suma końcowa | M175: 130.7041931 | N175: 180.0736587 | O175: 225.8842216 | P175: 181.9840933 | Q175: -104.93 | R175: 15.67 | S175: 24.52 | T175: 30.65 | U175: 1204.39 | V175: 2959.89 | W175: 2035.84 | X175: 1378.38
B176: 2023 | C176: 22.27 | D176: 16.28 | E176: 27.76 | F176: 34.03 | G176: 29.4 | H176: 9.74 | I176: 86.17 | J176: 9.74
A177: Maksimum | B177: 2019 | C177: 521.94 | D177: 1204.39 | E177: 1070 | F177: 274.65 | G177: 586.55 | H177: 180.74 | I177: 145.87 | J177: 1204.39
B178: 2020 | C178: 1107.21 | D178: 2959.89 | E178: 882.38 | F178: 249.06 | G178: 783.7 | H178: 166.77 | I178: 177.26 | J178: 2959.89
B179: 2021 | C179: 848.64 | D179: 2035.84 | E179: 814.18 | F179: 279.68 | G179: 774.06 | H179: 244.5 | I179: 250.68 | J179: 2035.84
B180: 2022 | C180: 746.27 | D180: 1378.38 | E180: 1040 | F180: 200.63 | G180: 704.14 | H180: 239.78 | I180: 282.26 | J180: 1378.38
B181: 2023 | C181: 638.92 | D181: 944.37 | E181: 5991.12 | F181: 208.9 | G181: 530.37 | H181: 134.24 | I181: 170.82 | J181: 5991.12
A183: 10. Wskaźnik WB10 - potencjał inwestycyjny w relacji do wydatków majątkowych
J184: (%%)
A185: Wskaźnik WB10 | C185: gminy | F185: miasta na prawach powiatu | G185: powiaty | H185: metropolie | I185: województwa | J185: Ogółem JST
C186: miejskie | D186: wiejskie | E186: miejsko-wiejskie | M186: Średnia z WB10[2019] | N186: Średnia z WB10[2020] | O186: Średnia z WB10[2021] | P186: Średnia z WB10[2022] | Q186: Minimum z WB10[2019] | R186: Minimum z WB10[2020] | S186: Minimum z WB10[2021] | T186: Minimum z WB10[2022] | U186: Maksimum z WB10[2019] | V186: Maksimum z WB10[2020] | W186: Maksimum z WB10[2021] | X186: Maksimum z WB10[2022]
A187: Średnia | B187: 2019 | C187: 127.1972881 | D187: 148.0635781 | E187: 121.2604874 | F187: 102.0683333 | G187: 161.8383121 | H187: 96.27166667 | I187: 115.81375 | J187: 140.0956003 | L187: GM | M187: 127.1972881 | N187: 174.9355932 | O187: 224.0158475 | P187: 178.1472034 | Q187: -54.59 | R187: 18.22 | S187: -61.91 | T187: 14.03 | U187: 733.2 | V187: 2120.71 | W187: 1171.79 | X187: 1201.21
B188: 2020 | C188: 174.9355932 | D188: 240.8058812 | E188: 193.4033383 | F188: 124.9477778 | G188: 222.6696497 | H188: 89.79583333 | I188: 132.4475 | J188: 218.3142964 | L188: GMW | M188: 121.9269335 | N188: 193.8936103 | O188: 235.5441692 | P188: 182.8816465 | Q188: -5507.75 | R188: -1962.59 | S188: -224.46 | T188: -116.57 | U188: 1302.46 | V188: 12687.79 | W188: 2139.34 | X188: 1746.12
B189: 2021 | C189: 224.0158475 | D189: 292.0603738 | E189: 235.9370015 | F189: 165.797037 | G189: 252.7117197 | H189: 148.72 | I189: 167.031875 | J189: 264.6473815 | L189: GW | M189: 147.5062525 | N189: 240.1214144 | O189: 291.6758427 | P189: 210.3147918 | Q189: -389.14 | R189: -2234.42 | S189: -504.46 | T189: -12.67 | U189: 1810.06 | V189: 14908.09 | W189: 7509.27 | X189: 1882.61
B190: 2022 | C190: 178.1472034 | D190: 210.3097864 | E190: 183.5005465 | F190: 124.4516667 | G190: 192.9335987 | H190: 129.7441667 | I190: 167.275 | J190: 196.9545921 | L190: M | M190: 102.0683333 | N190: 124.9477778 | O190: 165.797037 | P190: 124.4516667 | Q190: -51.46 | R190: 39.07 | S190: -6.96 | T190: -5.23 | U190: 274.74 | V190: 266.1 | W190: 311.1 | X190: 225.07
B191: 2023 | C191: 128.7587288 | D191: 136.2693391 | E191: 134.4565879 | F191: 95.12333333 | G191: 143.1545223 | H191: 66.7325 | I191: 142.408125 | J191: 134.9170431
A192: Minimum | B192: 2019 | C192: -54.59 | D192: -389.14 | E192: -5507.75 | F192: -51.46 | G192: -279.7 | H192: 64.73 | I192: 84.69 | J192: -5507.75 | L192: MT | M192: 96.27166667 | N192: 89.79583333 | O192: 148.72 | P192: 129.7441667 | Q192: 64.73 | R192: 43.98 | S192: 65.49 | T192: 63.32 | U192: 203.65 | V192: 173.15 | W192: 273.36 | X192: 273.55
B193: 2020 | C193: 18.22 | D193: -2234.42 | E193: -1962.59 | F193: 39.07 | G193: -409.02 | H193: 43.98 | I193: 104.29 | J193: -2234.42 | L193: P | M193: 161.8383121 | N193: 222.6696497 | O193: 252.7117197 | P193: 192.9335987 | Q193: -279.7 | R193: -409.02 | S193: 0.94 | T193: -49.51 | U193: 1157.27 | V193: 997.66 | W193: 1127.03 | X193: 1367.8
B194: 2021 | C194: -61.91 | D194: -504.46 | E194: -224.46 | F194: -6.96 | G194: 0.94 | H194: 65.49 | I194: 115.9 | J194: -504.46 | L194: W | M194: 115.81375 | N194: 132.4475 | O194: 167.031875 | P194: 167.275 | Q194: 84.69 | R194: 104.29 | S194: 115.9 | T194: 107.38 | U194: 159.37 | V194: 186.3 | W194: 263.95 | X194: 298.15
B195: 2022 | C195: 14.03 | D195: -12.67 | E195: -116.57 | F195: -5.23 | G195: -49.51 | H195: 63.32 | I195: 107.38 | J195: -116.57 | L195: Suma końcowa | M195: 140.0956003 | N195: 218.3142964 | O195: 264.6473815 | P195: 196.9545921 | Q195: -5507.75 | R195: -2234.42 | S195: -504.46 | T195: -116.57 | U195: 1810.06 | V195: 14908.09 | W195: 7509.27 | X195: 1882.61
B196: 2023 | C196: 16.88 | D196: -101.7 | E196: -36.46 | F196: -21.45 | G196: -2.96 | H196: -2.03 | I196: 85.54 | J196: -101.7
A197: Maksimum | B197: 2019 | C197: 733.2 | D197: 1810.06 | E197: 1302.46 | F197: 274.74 | G197: 1157.27 | H197: 203.65 | I197: 159.37 | J197: 1810.06
B198: 2020 | C198: 2120.71 | D198: 14908.09 | E198: 12687.79 | F198: 266.1 | G198: 997.66 | H198: 173.15 | I198: 186.3 | J198: 14908.09
B199: 2021 | C199: 1171.79 | D199: 7509.27 | E199: 2139.34 | F199: 311.1 | G199: 1127.03 | H199: 273.36 | I199: 263.95 | J199: 7509.27
B200: 2022 | C200: 1201.21 | D200: 1882.61 | E200: 1746.12 | F200: 225.07 | G200: 1367.8 | H200: 273.55 | I200: 298.15 | J200: 1882.61
B201: 2023 | C201: 706.18 | D201: 944.37 | E201: 5991.12 | F201: 224.86 | G201: 530.37 | H201: 136.31 | I201: 190.62 | J201: 5991.12
A203: 11. Wskaźnik WB11 - wykorzystanie potencjału inwestycyjnego
J204: (%%)
A205: Wskaźnik WB11 | C205: gminy | F205: miasta na prawach powiatu | G205: powiaty | H205: metropolie | I205: województwa | J205: Ogółem JST
C206: miejskie | D206: wiejskie | E206: miejsko-wiejskie | M206: Średnia z WB11[2019] | N206: Średnia z WB11[2020] | O206: Średnia z WB11[2021] | P206: Średnia z WB11[2022] | Q206: Minimum z WB11[2019] | R206: Minimum z WB11[2020] | S206: Minimum z WB11[2021] | T206: Minimum z WB11[2022] | U206: Maksimum z WB11[2019] | V206: Maksimum z WB11[2020] | W206: Maksimum z WB11[2021] | X206: Maksimum z WB11[2022]
A207: Średnia | B207: 2019 | C207: 93.14665254 | D207: 101.7202603 | E207: 97.55966027 | F207: 106.7824074 | G207: 68.72949045 | H207: 118.0625 | I207: 88.784375 | J207: 96.39902387 | L207: GM | M207: 93.14665254 | N207: 81.08949153 | O207: 53.88330508 | P207: 74.46351695 | Q207: -238.73 | R207: 4.72 | S207: -161.52 | T207: 8.32 | U207: 308.45 | V207: 548.91 | W207: 166.42 | X207: 712.57
B208: 2020 | C208: 81.08949153 | D208: 70.13895194 | E208: 65.82886263 | F208: 94.84055556 | G208: 52.38073248 | H208: 130.9691667 | I208: 77.8925 | J208: 68.81306021 | L208: GMW | M208: 95.62796073 | N208: 65.70098187 | O208: 50.22348943 | P208: 69.29826284 | Q208: -497.05 | R208: -3369.57 | S208: -2046.28 | T208: -862.26 | U208: 1209.86 | V208: 764.7 | W208: 477.7 | X208: 1734.37
B209: 2021 | C209: 53.88330508 | D209: 43.91132844 | E209: 50.25454948 | F209: 38.71462963 | G209: 82.08933121 | H209: 79.655 | I209: 63.9 | J209: 50.71708586 | L209: GW | M209: 102.5242102 | N209: 70.15217449 | O209: 43.98780568 | P209: 57.44223397 | Q209: -744.34 | R209: -110.63 | S209: -4444.59 | T209: -2472.21 | U209: 6937.64 | V209: 8776.53 | W209: 242.18 | X209: 1029.69
B210: 2022 | C210: 74.46351695 | D210: 57.47156876 | E210: 68.9706647 | F210: 52.42740741 | G210: 58.90506369 | H210: 92.89916667 | I210: 63.7575 | J210: 61.92416103 | L210: M | M210: 106.7824074 | N210: 94.84055556 | O210: 38.71462963 | P210: 52.42740741 | Q210: -194.33 | R210: 37.58 | S210: -1437.68 | T210: -1910.53 | U210: 277.2 | V210: 255.95 | W210: 193.91 | X210: 272.36
B211: 2023 | C211: 97.80220339 | D211: 87.37012016 | E211: 96.39418021 | F211: 111.7294444 | G211: 113.3388535 | H211: -253.5091667 | I211: 74.259375 | J211: 92.26521197
... 29 more rows

Sheet Tab_2 wskaźniki na mieszkańca
A1: Tablica 2: WSKAŹNIKI NA MIESZKAŃCA | J1: powrót do spisu tablic
A3: 13. Wskaźnik WL1 – Transfery bieżące na mieszkańca
J4: (zł)
A5: Wskaźnik WL1 | C5: gminy | F5: miasta na prawach powiatu | G5: powiaty | H5: metropolie | I5: województwa | J5: Ogółem JST
C6: miejskie | D6: wiejskie | E6: miejsko-wiejskie | L6: Etykiety wierszy | M6: Średnia z WL1[2019] | N6: Średnia z WL1[2020] | O6: Średnia z WL1[2021] | P6: Średnia z WL1[2022] | Q6: Minimum z WL1[2019] | R6: Minimum z WL1[2020] | S6: Minimum z WL1[2021] | T6: Minimum z WL1[2022] | U6: Maksimum z WL1[2019] | V6: Maksimum z WL1[2020] | W6: Maksimum z WL1[2021] | X6: Maksimum z WL1[2022]
A7: Średnia | B7: 2019 | C7: 2251.340593 | D7: 3151.175654 | E7: 2787.330414 | F7: 3068.002407 | G7: 713.2403185 | H7: 2607.205 | I7: 173.8625 | J7: 2694.156769 | L7: GM | M7: 2251.340593 | N7: 2537.964025 | O7: 2803.303263 | P7: 2744.236949 | Q7: 1536.32 | R7: 1725.16 | S7: 1919.89 | T7: 1801.77 | U7: 3855.4 | V7: 3875.47 | W7: 5055.59 | X7: 4735.58
B8: 2020 | C8: 2537.964025 | D8: 3453.914039 | E8: 3086.378567 | F8: 3504.423148 | G8: 819.9185987 | H8: 3044.435 | I8: 218.954375 | J8: 2974.396441 | L8: GMW | M8: 2779.010408 | N8: 3078.600483 | O8: 3276.544305 | P8: 3554.606269 | Q8: 1648.35 | R8: 1729.62 | S8: 1998.91 | T8: 1881.54 | U8: 4775.53 | V8: 4914.98 | W8: 4967.72 | X8: 5284.58
B9: 2021 | C9: 2803.303263 | D9: 3658.91514 | E9: 3284.695569 | F9: 3839.035 | G9: 880.7100318 | H9: 3384.994167 | I9: 220.8225 | J9: 3168.64171 | L9: GW | M9: 3151.20881 | N9: 3453.673496 | O9: 3658.771613 | P9: 3989.636219 | Q9: 1612.21 | R9: 1986.66 | S9: 2069.6 | T9: 1890.22 | U9: 4954.62 | V9: 5433.82 | W9: 5738.51 | X9: 6172.64
B10: 2022 | C10: 2744.236949 | D10: 3989.869139 | E10: 3563.72966 | F10: 3681.513148 | G10: 938.9806688 | H10: 2994.155 | I10: 257.828125 | J10: 3409.620812 | L10: M | M10: 3068.002407 | N10: 3504.423148 | O10: 3839.035 | P10: 3681.513148 | Q10: 2212.37 | R10: 2560.2 | S10: 2904.64 | T10: 2672.49 | U10: 4247.91 | V10: 4829.05 | W10: 5206.16 | X10: 5190.63
B11: 2023 | C11: 2437.364619 | D11: 3350.318672 | E11: 2936.301581 | F11: 3925.218519 | G11: 1116.226656 | H11: 3048.7175 | I11: 330.685 | J11: 2916.353449
A12: Minimum | B12: 2019 | C12: 1536.32 | D12: 1612.21 | E12: 1648.35 | F12: 2212.37 | G12: 250.89 | H12: 2252.99 | I12: 57.54 | J12: 57.54 | L12: P | M12: 713.2403185 | N12: 819.9185987 | O12: 880.7100318 | P12: 938.9806688 | Q12: 250.89 | R12: 285.41 | S12: 319.14 | T12: 267.8 | U12: 1575.4 | V12: 1712.73 | W12: 1762.29 | X12: 1936.51
B13: 2020 | C13: 1725.16 | D13: 1986.66 | E13: 1729.62 | F13: 2560.2 | G13: 285.41 | H13: 2691.34 | I13: 82.66 | J13: 82.66 | L13: W | M13: 173.8625 | N13: 218.954375 | O13: 220.8225 | P13: 257.828125 | Q13: 57.54 | R13: 82.66 | S13: 86.17 | T13: 82.03 | U13: 266.97 | V13: 351.91 | W13: 346.4 | X13: 377.57
B14: 2021 | C14: 1919.89 | D14: 2069.6 | E14: 1998.91 | F14: 2904.64 | G14: 319.14 | H14: 3012.93 | I14: 86.17 | J14: 86.17 | L14: MT | M14: 2607.205 | N14: 3044.435 | O14: 3384.994167 | P14: 2994.155 | Q14: 2252.99 | R14: 2691.34 | S14: 3012.93 | T14: 2639.12 | U14: 3230.54 | V14: 3755.09 | W14: 4040 | X14: 3687.12
B15: 2022 | C15: 1801.77 | D15: 1890.22 | E15: 1881.54 | F15: 2672.49 | G15: 267.8 | H15: 2639.12 | I15: 82.03 | J15: 82.03 | L15: Suma końcowa | M15: 2694.156769 | N15: 2974.396441 | O15: 3168.64171 | P15: 3409.620812 | Q15: 57.54 | R15: 82.66 | S15: 86.17 | T15: 82.03 | U15: 4954.62 | V15: 5433.82 | W15: 5738.51 | X15: 6172.64
B16: 2023 | C16: 1574.12 | D16: 1222.32 | E16: 1568.04 | F16: 2665.13 | G16: 362.69 | H16: 2609.91 | I16: 102.18 | J16: 102.18
A17: Maksimum | B17: 2019 | C17: 3855.4 | D17: 4954.62 | E17: 4775.53 | F17: 4247.91 | G17: 1575.4 | H17: 3230.54 | I17: 266.97 | J17: 4954.62
B18: 2020 | C18: 3875.47 | D18: 5433.82 | E18: 4914.98 | F18: 4829.05 | G18: 1712.73 | H18: 3755.09 | I18: 351.91 | J18: 5433.82
B19: 2021 | C19: 5055.59 | D19: 5738.51 | E19: 4967.72 | F19: 5206.16 | G19: 1762.29 | H19: 4040 | I19: 346.4 | J19: 5738.51
B20: 2022 | C20: 4735.58 | D20: 6172.64 | E20: 5284.58 | F20: 5190.63 | G20: 1936.51 | H20: 3687.12 | I20: 377.57 | J20: 6172.64
B21: 2023 | C21: 4242.77 | D21: 6193.51 | E21: 4751.53 | F21: 5789.64 | G21: 2234.13 | H21: 3771.57 | I21: 493.25 | J21: 6193.51
A23: 14. Wskaźnik WL2 – Nadwyżka operacyjna na mieszkańca
J24: (zł)
A25: Wskaźnik WL2 | C25: gminy | F25: miasta na prawach powiatu | G25: powiaty | H25: metropolie | I25: województwa | J25: Ogółem JST
C26: miejskie | D26: wiejskie | E26: miejsko-wiejskie | L26: Etykiety wierszy | M26: Średnia z WL2[2019] | N26: Średnia z WL2[2020] | O26: Średnia z WL2[2021] | P26: Średnia z WL2[2022] | Q26: Minimum z WL2[2019] | R26: Minimum z WL2[2020] | S26: Minimum z WL2[2021] | T26: Minimum z WL2[2022] | U26: Maksimum z WL2[2019] | V26: Maksimum z WL2[2020] | W26: Maksimum z WL2[2021] | X26: Maksimum z WL2[2022]
A27: Średnia | B27: 2019 | C27: 330.4266949 | D27: 486.5519559 | E27: 410.596514 | F27: 398.4405556 | G27: 105.4356369 | H27: 572.9675 | I27: 88.2725 | J27: 408.877777 | L27: GM | M27: 330.4266949 | N27: 263.2336864 | O27: 558.0640254 | P27: 346.7955085 | Q27: -235.94 | R27: -350.32 | S27: -1331.7 | T27: -360.85 | U27: 1727.21 | V27: 2003.94 | W27: 3198.44 | X27: 2589.59
B28: 2020 | C28: 263.2336864 | D28: 520.5898865 | E28: 423.0254653 | F28: 311.8264815 | G28: 106.5458917 | H28: 325.08 | I28: 110.19 | J28: 421.9141717 | L28: GMW | M28: 409.8723716 | N28: 420.046858 | O28: 582.558716 | P28: 543.7759668 | Q28: -639.66 | R28: -103.09 | S28: -286.88 | T28: -575.67 | U28: 1753.16 | V28: 1928.05 | W28: 3028.47 | X28: 3827.48
B29: 2021 | C29: 558.0640254 | D29: 657.1239786 | E29: 583.5969276 | F29: 691.0948148 | G29: 140.2416561 | H29: 898.4358333 | I29: 150.935 | J29: 572.0417314 | L29: GW | M29: 486.11577 | N29: 520.925889 | O29: 656.8492862 | P29: 839.086345 | Q29: -368.58 | R29: -206.83 | S29: -570.91 | T29: -365.63 | U29: 15812.3 | V29: 8049.21 | W29: 12389.34 | X29: 9185.76
B30: 2022 | C30: 346.7955085 | D30: 839.5858945 | E30: 549.213678 | F30: 288.737037 | G30: 120.8924522 | H30: 390.7983333 | I30: 147.070625 | J30: 631.2632027 | L30: M | M30: 398.4405556 | N30: 311.8264815 | O30: 691.0948148 | P30: 288.737037 | Q30: -80.68 | R30: -143.35 | S30: 112.52 | T30: -283 | U30: 1302.14 | V30: 1140.84 | W30: 1389.62 | X30: 1411.06
B31: 2023 | C31: 166.8565254 | D31: 414.2404473 | E31: 256.2711965 | F31: 180.7042593 | G31: 57.72990446 | H31: 35.44083333 | I31: 205.655 | J31: 308.1606413
A32: Minimum | B32: 2019 | C32: -235.94 | D32: -368.58 | E32: -639.66 | F32: -80.68 | G32: -51.08 | H32: 278.1 | I32: 52.5 | J32: -639.66 | L32: P | M32: 105.4356369 | N32: 106.5458917 | O32: 140.2416561 | P32: 120.8924522 | Q32: -51.08 | R32: -31.42 | S32: 13.65 | T32: -46.1 | U32: 253.12 | V32: 632.66 | W32: 314.02 | X32: 452.21
B33: 2020 | C33: -350.32 | D33: -206.83 | E33: -103.09 | F33: -143.35 | G33: -31.42 | H33: -103.26 | I33: 64.86 | J33: -350.32 | L33: W | M33: 88.2725 | N33: 110.19 | O33: 150.935 | P33: 147.070625 | Q33: 52.5 | R33: 64.86 | S33: 102.92 | T33: 95.55 | U33: 167.13 | V33: 158.62 | W33: 191.88 | X33: 202.65
B34: 2021 | C34: -1331.7 | D34: -570.91 | E34: -286.88 | F34: 112.52 | G34: 13.65 | H34: 460.21 | I34: 102.92 | J34: -1331.7 | L34: MT | M34: 572.9675 | N34: 325.08 | O34: 898.4358333 | P34: 390.7983333 | Q34: 278.1 | R34: -103.26 | S34: 460.21 | T34: -0.98 | U34: 918.51 | V34: 767.51 | W34: 1277.61 | X34: 972.01
B35: 2022 | C35: -360.85 | D35: -365.63 | E35: -575.67 | F35: -283 | G35: -46.1 | H35: -0.98 | I35: 95.55 | J35: -575.67 | L35: Suma końcowa | M35: 408.877777 | N35: 421.9141717 | O35: 572.0417314 | P35: 631.2632027 | Q35: -639.66 | R35: -350.32 | S35: -1331.7 | T35: -575.67 | U35: 15812.3 | V35: 8049.21 | W35: 12389.34 | X35: 9185.76
B36: 2023 | C36: -699.67 | D36: -1279.88 | E36: -979.7 | F36: -455.73 | G36: -106.75 | H36: -920.23 | I36: 122.2 | J36: -1279.88
A37: Maksimum | B37: 2019 | C37: 1727.21 | D37: 15812.3 | E37: 1753.16 | F37: 1302.14 | G37: 253.12 | H37: 918.51 | I37: 167.13 | J37: 15812.3
B38: 2020 | C38: 2003.94 | D38: 8049.21 | E38: 1928.05 | F38: 1140.84 | G38: 632.66 | H38: 767.51 | I38: 158.62 | J38: 8049.21
B39: 2021 | C39: 3198.44 | D39: 12389.34 | E39: 3028.47 | F39: 1389.62 | G39: 314.02 | H39: 1277.61 | I39: 191.88 | J39: 12389.34
B40: 2022 | C40: 2589.59 | D40: 9185.76 | E40: 3827.48 | F40: 1411.06 | G40: 452.21 | H40: 972.01 | I40: 202.65 | J40: 9185.76
B41: 2023 | C41: 2090.79 | D41: 4718.01 | E41: 1840.95 | F41: 1684.28 | G41: 321.25 | H41: 483.37 | I41: 287.22 | J41: 4718.01
A43: 15. Wskaźnik WL3 – Zobowiązania ogółem na mieszkańca
J44: (zł)
A45: Wskaźnik WL3 | C45: gminy | F45: miasta na prawach powiatu | G45: powiaty | H45: metropolie | I45: województwa | J45: Ogółem JST
C46: miejskie | D46: wiejskie | E46: miejsko-wiejskie | L46: Etykiety wierszy | M46: Średnia z WL3[2019] | N46: Średnia z WL3[2020] | O46: Średnia z WL3[2021] | P46: Średnia z WL3[2022] | Q46: Minimum z WL3[2019] | R46: Minimum z WL3[2020] | S46: Minimum z WL3[2021] | T46: Minimum z WL3[2022] | U46: Maksimum z WL3[2019] | V46: Maksimum z WL3[2020] | W46: Maksimum z WL3[2021] | X46: Maksimum z WL3[2022]
A47: Średnia | B47: 2019 | C47: 1240.393178 | D47: 1123.657303 | E47: 1360.633191 | F47: 2555.464259 | G47: 272.8525478 | H47: 3447.091667 | I47: 163.13875 | J47: 1127.455002 | L47: GM | M47: 1240.393178 | N47: 1361.481525 | O47: 1372.854703 | P47: 1361.765424 | Q47: 0 | R47: 0 | S47: 0 | T47: 0 | U47: 5630.58 | V47: 5744.94 | W47: 5479.75 | X47: 4824.17
B48: 2020 | C48: 1361.481525 | D48: 1142.60012 | E48: 1406.576204 | F48: 2808.747778 | G48: 270.4506369 | H48: 3975.311667 | I48: 166.84375 | J48: 1165.708525 | L48: GMW | M48: 1356.376828 | N48: 1404.173459 | O48: 1414.398852 | P48: 1456.34864 | Q48: 0 | R48: 0 | S48: 0 | T48: 0 | U48: 7070.7 | V48: 7444.52 | W48: 9192.28 | X48: 10324.98
B49: 2021 | C49: 1372.854703 | D49: 1114.444893 | E49: 1419.071315 | F49: 2865.808889 | G49: 259.1451911 | H49: 4230.275833 | I49: 156.805625 | J49: 1155.518671 | L49: GW | M49: 1127.869035 | N49: 1146.2685 | O49: 1119.509379 | P49: 1091.420126 | Q49: 0 | R49: 0 | S49: 0 | T49: 0 | U49: 9609.71 | V49: 9929.82 | W49: 9872.89 | X49: 13029.19
B50: 2022 | C50: 1361.765424 | D50: 1085.559933 | E50: 1461.229941 | F50: 3028.412037 | G50: 256.5332484 | H50: 4282.25 | I50: 143.089375 | J50: 1152.319277 | L50: M | M50: 2555.464259 | N50: 2808.747778 | O50: 2865.808889 | P50: 3028.412037 | Q50: 339.42 | R50: 271.49 | S50: 206.13 | T50: 269.02 | U50: 5385.23 | V50: 5697.56 | W50: 6934.78 | X50: 7922.58
B51: 2023 | C51: 1565.724873 | D51: 1219.176255 | E51: 1637.821817 | F51: 3457.690556 | G51: 292.4438535 | H51: 4897.4725 | I51: 132.51375 | J51: 1298.20984
A52: Minimum | B52: 2019 | C52: 0 | D52: 0 | E52: 0 | F52: 339.42 | G52: 0 | H52: 1985.13 | I52: 99.82 | J52: 0 | L52: P | M52: 272.8525478 | N52: 270.4506369 | O52: 259.1451911 | P52: 256.5332484 | Q52: 0 | R52: 0 | S52: 0 | T52: 0 | U52: 1503.44 | V52: 1457.75 | W52: 1419.71 | X52: 1332.52
B53: 2020 | C53: 0 | D53: 0 | E53: 0 | F53: 271.49 | G53: 0 | H53: 2363.7 | I53: 81.57 | J53: 0 | L53: W | M53: 163.13875 | N53: 166.84375 | O53: 156.805625 | P53: 143.089375 | Q53: 99.82 | R53: 81.57 | S53: 62.83 | T53: 44.59 | U53: 333.89 | V53: 328.86 | W53: 290.13 | X53: 255.27
B54: 2021 | C54: 0 | D54: 0 | E54: 0 | F54: 206.13 | G54: 0 | H54: 2266.09 | I54: 62.83 | J54: 0 | L54: MT | M54: 3447.091667 | N54: 3975.311667 | O54: 4230.275833 | P54: 4282.25 | Q54: 1985.13 | R54: 2363.7 | S54: 2266.09 | T54: 2107.7 | U54: 5136.56 | V54: 5984.65 | W54: 6355.84 | X54: 6383.17
B55: 2022 | C55: 0 | D55: 0 | E55: 0 | F55: 269.02 | G55: 0 | H55: 2107.7 | I55: 44.59 | J55: 0 | L55: Suma końcowa | M55: 1127.455002 | N55: 1165.708525 | O55: 1155.518671 | P55: 1152.319277 | Q55: 0 | R55: 0 | S55: 0 | T55: 0 | U55: 9609.71 | V55: 9929.82 | W55: 9872.89 | X55: 13029.19
B56: 2023 | C56: 0 | D56: 0 | E56: 0 | F56: 372.04 | G56: 0 | H56: 2206.41 | I56: 17.05 | J56: 0
A57: Maksimum | B57: 2019 | C57: 5630.58 | D57: 9609.71 | E57: 7070.7 | F57: 5385.23 | G57: 1503.44 | H57: 5136.56 | I57: 333.89 | J57: 9609.71
B58: 2020 | C58: 5744.94 | D58: 9929.82 | E58: 7444.52 | F58: 5697.56 | G58: 1457.75 | H58: 5984.65 | I58: 328.86 | J58: 9929.82
B59: 2021 | C59: 5479.75 | D59: 9872.89 | E59: 9192.28 | F59: 6934.78 | G59: 1419.71 | H59: 6355.84 | I59: 290.13 | J59: 9872.89
B60: 2022 | C60: 4824.17 | D60: 13029.19 | E60: 10324.98 | F60: 7922.58 | G60: 1332.52 | H60: 6383.17 | I60: 255.27 | J60: 13029.19
B61: 2023 | C61: 5897.5 | D61: 13494.08 | E61: 11102.7 | F61: 7537.28 | G61: 1334.68 | H61: 7556.7 | I61: 293.59 | J61: 13494.08
A63: 16. Wskaźnik WL4 - Potencjał rozwojowy na mieszkańca
J64: (zł)
A65: Wskaźnik WL4 | C65: gminy | F65: miasta na prawach powiatu | G65: powiaty | H65: metropolie | I65: województwa | J65: Ogółem JST
C66: miejskie | D66: wiejskie | E66: miejsko-wiejskie | M66: Średnia z WL4[2019] | N66: Średnia z WL4[2020] | O66: Średnia z WL4[2021] | P66: Średnia z WL4[2022] | Q66: Minimum z WL4[2019] | R66: Minimum z WL4[2020] | S66: Minimum z WL4[2021] | T66: Minimum z WL4[2022] | U66: Maksimum z WL4[2019] | V66: Maksimum z WL4[2020] | W66: Maksimum z WL4[2021] | X66: Maksimum z WL4[2022]
A67: Średnia | B67: 2019 | C67: 1194.303686 | D67: 1318.265781 | E67: 1119.901285 | F67: 1359.655556 | G67: 331.286879 | H67: 1625.8575 | I67: 251.241875 | J67: 1145.624019 | L67: GM | M67: 1194.303686 | N67: 1388.111695 | O67: 1843.633686 | P67: 2151.635975 | Q67: 74.62 | R67: 242.03 | S67: 458.04 | T67: 398.81 | U67: 13886.18 | V67: 10148.38 | W67: 10847.75 | X67: 20593.85
B68: 2020 | C68: 1388.111695 | D68: 1639.93731 | E68: 1384.238139 | F68: 1638.948148 | G68: 430.0744268 | H68: 1479.754167 | I68: 279.01375 | J68: 1413.294446 | L68: GMW | M68: 1118.321465 | N68: 1373.804592 | O68: 1951.438187 | P68: 2230.466405 | Q68: -524.47 | R68: 325.71 | S68: 427.6 | T68: 447.68 | U68: 5304.64 | V68: 6484.18 | W68: 9313.97 | X68: 10760.77
B69: 2021 | C69: 1843.633686 | D69: 2348.019072 | E69: 1957.080768 | F69: 2204.401296 | G69: 501.7587261 | H69: 2155.246667 | I69: 337.86875 | J69: 1989.751539 | L69: GW | M69: 1316.990416 | N69: 1641.967396 | O69: 2346.612141 | P69: 2932.144547 | Q69: 4.89 | R69: 253.77 | S69: 414.5 | T69: 336.49 | U69: 101624.84 | V69: 96820.13 | W69: 95386.1 | X69: 93255.84
B70: 2022 | C70: 2151.635975 | D70: 2933.231555 | E70: 2243.607962 | F70: 1980.921111 | G70: 572.7719108 | H70: 2040.268333 | I70: 372.855 | J70: 2400.412743 | L70: M | M70: 1359.655556 | N70: 1638.948148 | O70: 2204.401296 | P70: 1980.921111 | Q70: 389.38 | R70: 292.79 | S70: 880.17 | T70: 514.97 | U70: 3803.62 | V70: 8908.33 | W70: 13688.93 | X70: 6582.66
B71: 2023 | C71: 2261.347246 | D71: 3525.950254 | E71: 2502.669926 | F71: 1830.431296 | G71: 670.4807643 | H71: 1571.446667 | I71: 494.83625 | J71: 2795.157805
A72: Minimum | B72: 2019 | C72: 74.62 | D72: 4.89 | E72: -524.47 | F72: 389.38 | G72: -0.58 | H72: 885.04 | I72: 153.69 | J72: -524.47 | L72: MT | M72: 1625.8575 | N72: 1479.754167 | O72: 2155.246667 | P72: 2040.268333 | Q72: 885.04 | R72: 686.55 | S72: 1246.7 | T72: 1047.69 | U72: 3090.03 | V72: 2977.79 | W72: 3261.17 | X72: 3648.28
B73: 2020 | C73: 242.03 | D73: 253.77 | E73: 325.71 | F73: 292.79 | G73: 59.46 | H73: 686.55 | I73: 180.47 | J73: 59.46 | L73: P | M73: 331.286879 | N73: 430.0744268 | O73: 501.7587261 | P73: 572.7719108 | Q73: -0.58 | R73: 59.46 | S73: 133.1 | T73: 151.26 | U73: 1333.96 | V73: 1140.24 | W73: 1244.75 | X73: 1973.47
B74: 2021 | C74: 458.04 | D74: 414.5 | E74: 427.6 | F74: 880.17 | G74: 133.1 | H74: 1246.7 | I74: 192.08 | J74: 133.1 | L74: W | M74: 251.241875 | N74: 279.01375 | O74: 337.86875 | P74: 372.855 | Q74: 153.69 | R74: 180.47 | S74: 192.08 | T74: 208.6 | U74: 548.61 | V74: 444.57 | W74: 505.41 | X74: 657.92
B75: 2022 | C75: 398.81 | D75: 336.49 | E75: 447.68 | F75: 514.97 | G75: 151.26 | H75: 1047.69 | I75: 208.6 | J75: 151.26 | L75: Suma końcowa | M75: 1145.624019 | N75: 1413.294446 | O75: 1989.751539 | P75: 2400.412743 | Q75: -524.47 | R75: 59.46 | S75: 133.1 | T75: 151.26 | U75: 101624.84 | V75: 96820.13 | W75: 95386.1 | X75: 93255.84
B76: 2023 | C76: 223.56 | D76: 337.18 | E76: 253.45 | F76: 594.63 | G76: 52.73 | H76: 200.42 | I76: 271.03 | J76: 52.73
A77: Maksimum | B77: 2019 | C77: 13886.18 | D77: 101624.84 | E77: 5304.64 | F77: 3803.62 | G77: 1333.96 | H77: 3090.03 | I77: 548.61 | J77: 101624.84
B78: 2020 | C78: 10148.38 | D78: 96820.13 | E78: 6484.18 | F78: 8908.33 | G78: 1140.24 | H78: 2977.79 | I78: 444.57 | J78: 96820.13
B79: 2021 | C79: 10847.75 | D79: 95386.1 | E79: 9313.97 | F79: 13688.93 | G79: 1244.75 | H79: 3261.17 | I79: 505.41 | J79: 95386.1
B80: 2022 | C80: 20593.85 | D80: 93255.84 | E80: 10760.77 | F80: 6582.66 | G80: 1973.47 | H80: 3648.28 | I80: 657.92 | J80: 93255.84
B81: 2023 | C81: 22533.3 | D81: 84842.84 | E81: 13414.6 | F81: 7625.87 | G81: 2979.9 | H81: 3407.45 | I81: 934.91 | J81: 84842.84
A83: 17. Wskaźnik WL5 - potencjał inwestycyjny na mieszkańca
J84: (zł)
A85: Wskaźnik WL5 | C85: gminy | F85: miasta na prawach powiatu | G85: powiaty | H85: metropolie | I85: województwa | J85: Ogółem JST
C86: miejskie | D86: wiejskie | E86: miejsko-wiejskie | M86: Średnia z WL5[2019] | N86: Średnia z WL5[2020] | O86: Średnia z WL5[2021] | P86: Średnia z WL5[2022] | Q86: Minimum z WL5[2019] | R86: Minimum z WL5[2020] | S86: Minimum z WL5[2021] | T86: Minimum z WL5[2022] | U86: Maksimum z WL5[2019] | V86: Maksimum z WL5[2020] | W86: Maksimum z WL5[2021] | X86: Maksimum z WL5[2022]
A87: Średnia | B87: 2019 | C87: 1028.725085 | D87: 1118.171288 | E87: 919.5969129 | F87: 1132.083519 | G87: 289.5886306 | H87: 1363.044167 | I87: 228.309375 | J87: 966.3126612 | L87: GM | M87: 1028.725085 | N87: 1216.025975 | O87: 1672.458602 | P87: 1971.468517 | Q87: -162.67 | R87: 79.46 | S87: -498.95 | T87: 50 | U87: 13886.18 | V87: 10148.38 | W87: 10847.75 | X87: 20194.61
B88: 2020 | C88: 1216.025975 | D88: 1459.920227 | E88: 1192.335436 | F88: 1414.950185 | G88: 395.9169427 | H88: 1217.2725 | I88: 256.95125 | J88: 1247.095632 | L88: GMW | M88: 918.4201057 | N88: 1182.573474 | O88: 1763.444577 | P88: 2043.839335 | Q88: -1971.41 | R88: -1867.23 | S88: -1830.42 | T88: -548.61 | U88: 5304.64 | V88: 6484.18 | W88: 9176.23 | X88: 10760.77
B89: 2021 | C89: 1672.458602 | D89: 2171.129132 | E89: 1769.387814 | F89: 1937.912037 | G89: 468.2528344 | H89: 1896.0125 | I89: 312.299375 | J89: 1825.562807 | L89: GW | M89: 1116.717508 | N89: 1461.538632 | O89: 2169.746649 | P89: 2750.605182 | Q89: -1992.24 | R89: -3052.26 | S89: -2245.95 | T89: -280.4 | U89: 101624.84 | V89: 96820.13 | W89: 95386.1 | X89: 93255.84
B90: 2022 | C90: 1971.468517 | D90: 2752.02779 | E90: 2056.351034 | F90: 1688.242963 | G90: 534.5186306 | H90: 1774.194167 | I90: 353.67 | J90: 2232.243274 | L90: M | M90: 1132.083519 | N90: 1414.950185 | O90: 1937.912037 | P90: 1688.242963 | Q90: -170.19 | R90: 169.49 | S90: -44.99 | T90: -59.98 | U90: 3352.38 | V90: 8630.57 | W90: 13688.93 | X90: 6582.66
B91: 2023 | C91: 2101.04911 | D91: 3356.819186 | E91: 2322.042777 | F91: 1580.477037 | G91: 636.0500637 | H91: 1299.015833 | I91: 470.57 | J91: 2637.894008
A92: Minimum | B92: 2019 | C92: -162.67 | D92: -1992.24 | E92: -1971.41 | F92: -170.19 | G92: -694.25 | H92: 653.97 | I92: 126.29 | J92: -1992.24 | L92: MT | M92: 1363.044167 | N92: 1217.2725 | O92: 1896.0125 | P92: 1774.194167 | Q92: 653.97 | R92: 422.7 | S92: 871.25 | T92: 754.62 | U92: 2741.26 | V92: 2822.03 | W92: 3039.14 | X92: 3352.27
B93: 2020 | C93: 79.46 | D93: -3052.26 | E93: -1867.23 | F93: 169.49 | G93: -313.25 | H93: 422.7 | I93: 159.73 | J93: -3052.26 | L93: P | M93: 289.5886306 | N93: 395.9169427 | O93: 468.2528344 | P93: 534.5186306 | Q93: -694.25 | R93: -313.25 | S93: 1.52 | T93: -88.63 | U93: 1333.96 | V93: 1092.76 | W93: 1232.72 | X93: 1945.55
B94: 2021 | C94: -498.95 | D94: -2245.95 | E94: -1830.42 | F94: -44.99 | G94: 1.52 | H94: 871.25 | I94: 175.79 | J94: -2245.95 | L94: W | M94: 228.309375 | N94: 256.95125 | O94: 312.299375 | P94: 353.67 | Q94: 126.29 | R94: 159.73 | S94: 175.79 | T94: 192.61 | U94: 540 | V94: 437.44 | W94: 489.55 | X94: 647.56
B95: 2022 | C95: 50 | D95: -280.4 | E95: -548.61 | F95: -59.98 | G95: -88.63 | H95: 754.62 | I95: 192.61 | J95: -548.61 | L95: Suma końcowa | M95: 966.3126612 | N95: 1247.095632 | O95: 1825.562807 | P95: 2232.243274 | Q95: -1992.24 | R95: -3052.26 | S95: -2245.95 | T95: -548.61 | U95: 101624.84 | V95: 96820.13 | W95: 95386.1 | X95: 93255.84
B96: 2023 | C96: 157.17 | D96: -1740.51 | E96: -334.69 | F96: -326.15 | G96: -16.54 | H96: -37.01 | I96: 254.94 | J96: -1740.51
A97: Maksimum | B97: 2019 | C97: 13886.18 | D97: 101624.84 | E97: 5304.64 | F97: 3352.38 | G97: 1333.96 | H97: 2741.26 | I97: 540 | J97: 101624.84
B98: 2020 | C98: 10148.38 | D98: 96820.13 | E98: 6484.18 | F98: 8630.57 | G98: 1092.76 | H98: 2822.03 | I98: 437.44 | J98: 96820.13
B99: 2021 | C99: 10847.75 | D99: 95386.1 | E99: 9176.23 | F99: 13688.93 | G99: 1232.72 | H99: 3039.14 | I99: 489.55 | J99: 95386.1
B100: 2022 | C100: 20194.61 | D100: 93255.84 | E100: 10760.77 | F100: 6582.66 | G100: 1945.55 | H100: 3352.27 | I100: 647.56 | J100: 93255.84
B101: 2023 | C101: 22125.34 | D101: 84842.84 | E101: 13058.56 | F101: 7115.52 | G101: 2967.35 | H101: 3221.03 | I101: 919.22 | J101: 84842.84

Sheet Tab_3 wskaźniki zadłużenia
A1: Tablica 3: WSKAŹNIKI WEDŁUG TYTUŁÓW ZADŁUŻENIA | J1: powrót do spisu tablic
A3: 18. Wskaźnik WZ1 – Udział zobowiązań ogółem w dochodach ogółem
J4: (%%)
A5: Wskaźnik WZ1 | C5: gminy | F5: miasta na prawach powiatu | G5: powiaty | H5: metropolie | I5: województwa | J5: Ogółem JST
C6: miejskie | D6: wiejskie | E6: miejsko-wiejskie | M6: Średnia z WZ1[2019] | N6: Średnia z WZ1[2020] | O6: Średnia z WZ1[2021] | P6: Średnia z WZ1[2022] | Q6: Minimum z WZ1[2019] | R6: Minimum z WZ1[2020] | S6: Minimum z WZ1[2021] | T6: Minimum z WZ1[2022] | U6: Maksimum z WZ1[2019] | V6: Maksimum z WZ1[2020] | W6: Maksimum z WZ1[2021] | X6: Maksimum z WZ1[2022]
A7: Średnia | B7: 2019 | C7: 23.65686441 | D7: 20.71256342 | E7: 26.1729099 | F7: 37.40759259 | G7: 21.83089172 | H7: 47.37916667 | I7: 33.414375 | J7: 22.90972212 | L7: GM | M7: 23.65686441 | N7: 23.60377119 | O7: 21.74775424 | P7: 21.02529661 | Q7: 0 | R7: 0 | S7: 0 | T7: 0 | U7: 68.9 | V7: 68.34 | W7: 61.65 | X7: 66.85
B8: 2020 | C8: 23.60377119 | D8: 18.99871162 | E8: 24.46231905 | F8: 37.07333333 | G8: 19.12691083 | H8: 50.875 | I8: 30.17875 | J8: 21.26566441 | L8: GMW | M8: 26.10534743 | N8: 24.46797583 | O8: 22.32694864 | P8: 20.98483384 | Q8: 0 | R8: 0 | S8: 0 | T8: 0 | U8: 106.41 | V8: 114.97 | W8: 92.07 | X8: 94.63
B9: 2021 | C9: 21.74775424 | D9: 16.5984713 | E9: 22.36824225 | F9: 34.82814815 | G9: 17.4256051 | H9: 48.56166667 | I9: 25.953125 | J9: 19.05615604 | L9: GW | M9: 20.79625909 | N9: 19.05040317 | O9: 16.67374091 | P9: 14.59643754 | Q9: 0 | R9: 0 | S9: 0 | T9: 0 | U9: 101.05 | V9: 91.45 | W9: 70.87 | X9: 73.51
B10: 2022 | C10: 21.02529661 | D10: 14.52058745 | E10: 21.0111226 | F10: 36.61925926 | G10: 15.49767516 | H10: 49.62083333 | I10: 21.81625 | J10: 17.35894549 | L10: M | M10: 37.40759259 | N10: 37.07333333 | O10: 34.82814815 | P10: 36.61925926 | Q10: 5.87 | R10: 4.08 | S10: 2.93 | T10: 3.8 | U10: 85.94 | V10: 81.48 | W10: 86.94 | X10: 79.53
B11: 2023 | C11: 23.54135593 | D11: 16.55484646 | E11: 24.01868538 | F11: 39.43759259 | G11: 15.25171975 | H11: 54.55 | I11: 15.0775 | J11: 19.39083719
A12: Minimum | B12: 2019 | C12: 0 | D12: 0 | E12: 0 | F12: 5.87 | G12: 0 | H12: 21.51 | I12: 17.95 | J12: 0 | L12: P | M12: 21.83089172 | N12: 19.12691083 | O12: 17.4256051 | P12: 15.49767516 | Q12: 0 | R12: 0 | S12: 0 | T12: 0 | U12: 127.6 | V12: 111.56 | W12: 99.06 | X12: 82.17
B13: 2020 | C13: 0 | D13: 0 | E13: 0 | F13: 4.08 | G13: 0 | H13: 28.37 | I13: 12.67 | J13: 0 | L13: W | M13: 33.414375 | N13: 30.17875 | O13: 25.953125 | P13: 21.81625 | Q13: 17.95 | R13: 12.67 | S13: 9.73 | T13: 6.24 | U13: 63.47 | V13: 66.04 | W13: 44.35 | X13: 39.03
B14: 2021 | C14: 0 | D14: 0 | E14: 0 | F14: 2.93 | G14: 0 | H14: 24.77 | I14: 9.73 | J14: 0 | L14: MT | M14: 47.37916667 | N14: 50.875 | O14: 48.56166667 | P14: 49.62083333 | Q14: 21.51 | R14: 28.37 | S14: 24.77 | T14: 23.36 | U14: 77.82 | V14: 78.33 | W14: 77.64 | X14: 76.83
B15: 2022 | C15: 0 | D15: 0 | E15: 0 | F15: 3.8 | G15: 0 | H15: 23.36 | I15: 6.24 | J15: 0 | L15: Suma końcowa | M15: 22.90972212 | N15: 21.26566441 | O15: 19.05615604 | P15: 17.35894549 | Q15: 0 | R15: 0 | S15: 0 | T15: 0 | U15: 127.6 | V15: 114.97 | W15: 99.06 | X15: 94.63
B16: 2023 | C16: 0 | D16: 0 | E16: 0 | F16: 4.81 | G16: 0 | H16: 24.57 | I16: 1.96 | J16: 0
A17: Maksimum | B17: 2019 | C17: 68.9 | D17: 101.05 | E17: 106.41 | F17: 85.94 | G17: 127.6 | H17: 77.82 | I17: 63.47 | J17: 127.6
B18: 2020 | C18: 68.34 | D18: 91.45 | E18: 114.97 | F18: 81.48 | G18: 111.56 | H18: 78.33 | I18: 66.04 | J18: 114.97
B19: 2021 | C19: 61.65 | D19: 70.87 | E19: 92.07 | F19: 86.94 | G19: 99.06 | H19: 77.64 | I19: 44.35 | J19: 99.06
B20: 2022 | C20: 66.85 | D20: 73.51 | E20: 94.63 | F20: 79.53 | G20: 82.17 | H20: 76.83 | I20: 39.03 | J20: 94.63
B21: 2023 | C21: 69.47 | D21: 97.35 | E21: 94.82 | F21: 91.3 | G21: 72.42 | H21: 85.31 | I21: 30.07 | J21: 97.35
A23: 19. Wskaźnik WZ2 – Relacja zadłużenia do nadwyżki operacyjnej
J24: (%%)
A25: Wskaźnik WZ2 | C25: gminy | F25: miasta na prawach powiatu | G25: powiaty | H25: metropolie | I25: województwa | J25: Ogółem JST
C26: miejskie | D26: wiejskie | E26: miejsko-wiejskie | M26: Średnia z WZ3[2019] | N26: Średnia z WZ3[2020] | O26: Średnia z WZ3[2021] | P26: Średnia z WZ3[2022] | Q26: Minimum z WZ3[2019] | R26: Minimum z WZ3[2020] | S26: Minimum z WZ3[2021] | T26: Minimum z WZ3[2022] | U26: Maksimum z WZ3[2019] | V26: Maksimum z WZ3[2020] | W26: Maksimum z WZ3[2021] | X26: Maksimum z WZ3[2022]
A27: Średnia | B27: 2019 | C27: 4.466779661 | D27: 4.562536716 | E27: 4.43028065 | F27: 8.491111111 | G27: 3.253726115 | H27: 7.130833333 | I27: 2.093125 | J27: 4.448660492 | L27: GM | M27: 3.757669492 | N27: 3.431016949 | O27: 3.013135593 | P27: 3.684745763 | Q27: 0 | R27: 0 | S27: 0 | T27: 0 | U27: 21.92 | V27: 14.5 | W27: 35.22 | X27: 13.78
B28: 2020 | C28: 8.637457627 | D28: 4.287009346 | E28: 4.055465288 | F28: 43.77333333 | G28: 3.397197452 | H28: 15.49166667 | I28: 1.641875 | J28: 5.289839686 | L28: GMW | M28: 4.566329305 | N28: 3.85826284 | O28: 3.323353474 | P28: 3.829848943 | Q28: 0 | R28: 0 | S28: 0 | T28: 0 | U28: 66.02 | V28: 55.23 | W28: 48.04 | X28: 31.42
B29: 2021 | C29: 9.666101695 | D29: 2.25206275 | E29: 3.899187592 | F29: 4.942222222 | G29: 2.435477707 | H29: 5.24 | I29: 1.105625 | J29: 3.351168507 | L29: GW | M29: 4.241810972 | N29: 3.398327826 | O29: 2.903245208 | P29: 3.216946464 | Q29: 0 | R29: 0 | S29: 0 | T29: 0 | U29: 63.1 | V29: 63.02 | W29: 59.43 | X29: 42.32
B30: 2022 | C30: -4.696101695 | D30: 1.951562083 | E30: 4.443574594 | F30: -24.71888889 | G30: 1.449745223 | H30: -454.3875 | I30: 1.070625 | J30: -0.5314071963 | L30: M | M30: 4.177037037 | N30: 3.623888889 | O30: 3.739074074 | P30: 5.272407407 | Q30: 0.14 | R30: 0.48 | S30: 0.32 | T30: 0.92 | U30: 13.17 | V30: 10.41 | W30: 17.33 | X30: 21.18
B31: 2023 | C31: -10.13851695 | D31: 10.02033378 | E31: 19.26276219 | F31: 2.246111111 | G31: 23.40146497 | H31: 8.825 | I31: 0.736875 | J31: 11.84385465
A32: Minimum | B32: 2019 | C32: -175.58 | D32: -310.12 | E32: -94.79 | F32: -14.7 | G32: -39.21 | H32: 2.34 | I32: 0.89 | J32: -310.12 | L32: MT | M32: 4.3975 | N32: 4.025 | O32: 3.466666667 | P32: 5.050833333 | Q32: 2.49 | R32: 1.97 | S32: 1.41 | T32: 2.02 | U32: 8.61 | V32: 7.91 | W32: 8.14 | X32: 8.53
B33: 2020 | C33: -221.76 | D33: -201.75 | E33: -1080.7 | F33: -89.67 | G33: -17.84 | H33: -30.52 | I33: 0.61 | J33: -1080.7 | L33: P | M33: 3.935796178 | N33: 2.858535032 | O33: 2.568407643 | P33: 3.22 | Q33: 0 | R33: 0 | S33: 0 | T33: 0 | U33: 62.11 | V33: 34.59 | W33: 20.48 | X33: 30.88
B34: 2021 | C34: -12.54 | D34: -144.9 | E34: -18.82 | F34: 0.23 | G34: 0 | H34: 2.18 | I34: 0.36 | J34: -144.9 | L34: W | M34: 5.49625 | N34: 4.644375 | O34: 4.594375 | P34: 4.118125 | Q34: 1.51 | R34: 1.5 | S34: 1.6 | T34: 2.08 | U34: 12.62 | V34: 12.18 | W34: 12.73 | X34: 9.14
B35: 2022 | C35: -4035.69 | D35: -222.87 | E35: -731.55 | F35: -542.03 | G35: -560.97 | H35: -5952.46 | I35: 0.29 | J35: -5952.46 | L35: Suma końcowa | M35: 4.249978625 | N35: 3.463284646 | O35: 3.002233701 | P35: 3.453683648 | Q35: 0 | R35: 0 | S35: 0 | T35: 0 | U35: 66.02 | V35: 63.02 | W35: 59.43 | X35: 42.32
B36: 2023 | C36: -2225.12 | D36: -2368.14 | E36: -835.4 | F36: -149.48 | G36: -119.59 | H36: -67.91 | I36: 0.06 | J36: -2368.14
A37: Maksimum | B37: 2019 | C37: 125.79 | D37: 1678.72 | E37: 72.65 | F37: 58.11 | G37: 98.23 | H37: 16.38 | I37: 4.3 | J37: 1678.72
B38: 2020 | C38: 521.56 | D38: 1257.52 | E38: 802.71 | F38: 1273.69 | G38: 53.95 | H38: 59.47 | I38: 3.44 | J38: 1273.69
B39: 2021 | C39: 1489.29 | D39: 185.13 | E39: 219.72 | F39: 14.49 | G39: 21.98 | H39: 11.61 | I39: 2.2 | J39: 1489.29
B40: 2022 | C40: 1263.87 | D40: 137.68 | E40: 353.69 | F40: 116.99 | G40: 49.25 | H40: 315.85 | I40: 2.37 | J40: 1263.87
B41: 2023 | C41: 160.4 | D41: 6171.46 | E41: 8199.79 | F41: 158.92 | G41: 4527.98 | H41: 170.58 | I41: 2.4 | J41: 8199.79
A43: 20. Wskaźnik WZ3 – Obciążenie dochodów ogółem obsługą zadłużenia
J44: (%%)
A45: Wskaźnik WZ3 | C45: gminy | F45: miasta na prawach powiatu | G45: powiaty | H45: metropolie | I45: województwa | J45: Ogółem JST
C46: miejskie | D46: wiejskie | E46: miejsko-wiejskie | M46: Średnia z WZ3[2019] | N46: Średnia z WZ3[2020] | O46: Średnia z WZ3[2021] | P46: Średnia z WZ3[2022] | Q46: Minimum z WZ3[2019] | R46: Minimum z WZ3[2020] | S46: Minimum z WZ3[2021] | T46: Minimum z WZ3[2022] | U46: Maksimum z WZ3[2019] | V46: Maksimum z WZ3[2020] | W46: Maksimum z WZ3[2021] | X46: Maksimum z WZ3[2022]
A47: Średnia | B47: 2019 | C47: 3.757669492 | D47: 4.236074766 | E47: 4.57183161 | F47: 4.177037037 | G47: 3.935796178 | H47: 4.3975 | I47: 5.49625 | J47: 4.249978625 | L47: GM | M47: 3.757669492 | N47: 3.431016949 | O47: 3.013135593 | P47: 3.684745763 | Q47: 0 | R47: 0 | S47: 0 | T47: 0 | U47: 21.92 | V47: 14.5 | W47: 35.22 | X47: 13.78
B48: 2020 | C48: 3.431016949 | D48: 3.390927904 | E48: 3.864446086 | F48: 3.623888889 | G48: 2.858535032 | H48: 4.025 | I48: 4.644375 | J48: 3.463284646 | L48: GMW | M48: 4.566329305 | N48: 3.85826284 | O48: 3.323353474 | P48: 3.829848943 | Q48: 0 | R48: 0 | S48: 0 | T48: 0 | U48: 66.02 | V48: 55.23 | W48: 48.04 | X48: 31.42
B49: 2021 | C49: 3.013135593 | D49: 2.902663551 | E49: 3.315332349 | F49: 3.739074074 | G49: 2.568407643 | H49: 3.466666667 | I49: 4.594375 | J49: 3.002233701 | L49: GW | M49: 4.241810972 | N49: 3.398327826 | O49: 2.903245208 | P49: 3.216946464 | Q49: 0 | R49: 0 | S49: 0 | T49: 0 | U49: 63.1 | V49: 63.02 | W49: 59.43 | X49: 42.32
B50: 2022 | C50: 3.684745763 | D50: 3.209499332 | E50: 3.832747415 | F50: 5.272407407 | G50: 3.22 | H50: 5.050833333 | I50: 4.118125 | J50: 3.453683648 | L50: M | M50: 4.177037037 | N50: 3.623888889 | O50: 3.739074074 | P50: 5.272407407 | Q50: 0.14 | R50: 0.48 | S50: 0.32 | T50: 0.92 | U50: 13.17 | V50: 10.41 | W50: 17.33 | X50: 21.18
B51: 2023 | C51: 3.924449153 | D51: 3.346628838 | E51: 4.27717873 | F51: 5.405740741 | G51: 2.778821656 | H51: 5.895833333 | I51: 3.990625 | J51: 3.610306377
A52: Minimum | B52: 2019 | C52: 0 | D52: 0 | E52: 0 | F52: 0.14 | G52: 0 | H52: 2.49 | I52: 1.51 | J52: 0 | L52: MT | M52: 4.3975 | N52: 4.025 | O52: 3.466666667 | P52: 5.050833333 | Q52: 2.49 | R52: 1.97 | S52: 1.41 | T52: 2.02 | U52: 8.61 | V52: 7.91 | W52: 8.14 | X52: 8.53
B53: 2020 | C53: 0 | D53: 0 | E53: 0 | F53: 0.48 | G53: 0 | H53: 1.97 | I53: 1.5 | J53: 0 | L53: P | M53: 3.935796178 | N53: 2.858535032 | O53: 2.568407643 | P53: 3.22 | Q53: 0 | R53: 0 | S53: 0 | T53: 0 | U53: 62.11 | V53: 34.59 | W53: 20.48 | X53: 30.88
B54: 2021 | C54: 0 | D54: 0 | E54: 0 | F54: 0.32 | G54: 0 | H54: 1.41 | I54: 1.6 | J54: 0 | L54: W | M54: 5.49625 | N54: 4.644375 | O54: 4.594375 | P54: 4.118125 | Q54: 1.51 | R54: 1.5 | S54: 1.6 | T54: 2.08 | U54: 12.62 | V54: 12.18 | W54: 12.73 | X54: 9.14
B55: 2022 | C55: 0 | D55: 0 | E55: 0 | F55: 0.92 | G55: 0 | H55: 2.02 | I55: 2.08 | J55: 0 | L55: Suma końcowa | M55: 4.249978625 | N55: 3.463284646 | O55: 3.002233701 | P55: 3.453683648 | Q55: 0 | R55: 0 | S55: 0 | T55: 0 | U55: 66.02 | V55: 63.02 | W55: 59.43 | X55: 42.32
B56: 2023 | C56: 0 | D56: 0 | E56: 0 | F56: 1.06 | G56: 0 | H56: 1.85 | I56: 1.57 | J56: 0
A57: Maksimum | B57: 2019 | C57: 21.92 | D57: 63.1 | E57: 66.02 | F57: 13.17 | G57: 62.11 | H57: 8.61 | I57: 12.62 | J57: 66.02
B58: 2020 | C58: 14.5 | D58: 63.02 | E58: 55.23 | F58: 10.41 | G58: 34.59 | H58: 7.91 | I58: 12.18 | J58: 63.02
B59: 2021 | C59: 35.22 | D59: 59.43 | E59: 48.04 | F59: 17.33 | G59: 20.48 | H59: 8.14 | I59: 12.73 | J59: 59.43
B60: 2022 | C60: 13.78 | D60: 42.32 | E60: 31.42 | F60: 21.18 | G60: 30.88 | H60: 8.53 | I60: 9.14 | J60: 42.32
B61: 2023 | C61: 23.16 | D61: 53.96 | E61: 33.52 | F61: 19.47 | G61: 28.41 | H61: 10.89 | I61: 13.78 | J61: 53.96
A63: 21. Wskaźnik WZ4 – Relacja wydatków na obsługę długu do kwoty długu
J64: (%%)
A65: Wskaźnik WZ4 | C65: gminy | F65: miasta na prawach powiatu | G65: powiaty | H65: metropolie | I65: województwa | J65: Ogółem JST
C66: miejskie | D66: wiejskie | E66: miejsko-wiejskie | M66: Średnia z WZ3[2019] | N66: Średnia z WZ3[2020] | O66: Średnia z WZ3[2021] | P66: Średnia z WZ3[2022] | Q66: Minimum z WZ3[2019] | R66: Minimum z WZ3[2020] | S66: Minimum z WZ3[2021] | T66: Minimum z WZ3[2022] | U66: Maksimum z WZ3[2019] | V66: Maksimum z WZ3[2020] | W66: Maksimum z WZ3[2021] | X66: Maksimum z WZ3[2022]
A67: Średnia | B67: 2019 | C67: 2.588008475 | D67: 9.378344459 | E67: 34.91265879 | F67: 2.421666667 | G67: 2.644426752 | H67: 2.111666667 | I67: 2.378125 | J67: 14.00780549 | L67: GM | M67: 3.757669492 | N67: 3.431016949 | O67: 3.013135593 | P67: 3.684745763 | Q67: 0 | R67: 0 | S67: 0 | T67: 0 | U67: 21.92 | V67: 14.5 | W67: 35.22 | X67: 13.78
B68: 2020 | C68: 2.031737288 | D68: 23.9587717 | E68: 2.036868538 | F68: 1.855740741 | G68: 2.007738854 | H68: 1.4425 | I68: 1.7475 | J68: 13.72447453 | L68: GMW | M68: 4.566329305 | N68: 3.85826284 | O68: 3.323353474 | P68: 3.829848943 | Q68: 0 | R68: 0 | S68: 0 | T68: 0 | U68: 66.02 | V68: 55.23 | W68: 48.04 | X68: 31.42
B69: 2021 | C69: 1.446779661 | D69: 5.516955941 | E69: 1.490797637 | F69: 1.250185185 | G69: 1.367038217 | H69: 1.0225 | I69: 1.25125 | J69: 3.613879587 | L69: GW | M69: 4.241810972 | N69: 3.398327826 | O69: 2.903245208 | P69: 3.216946464 | Q69: 0 | R69: 0 | S69: 0 | T69: 0 | U69: 63.1 | V69: 63.02 | W69: 59.43 | X69: 42.32
B70: 2022 | C70: 6.844872881 | D70: 99.16655541 | E70: 11.61485968 | F70: 4.860925926 | G70: 6.581687898 | H70: 4.07 | I70: 5.353125 | J70: 57.17626648 | L70: M | M70: 4.177037037 | N70: 3.623888889 | O70: 3.739074074 | P70: 5.272407407 | Q70: 0.14 | R70: 0.48 | S70: 0.32 | T70: 0.92 | U70: 13.17 | V70: 10.41 | W70: 17.33 | X70: 21.18
B71: 2023 | C71: 6.794237288 | D71: 6.365634179 | E71: 6.75366322 | F71: 6.426481481 | G71: 6.720796178 | H71: 5.094166667 | I71: 8.414375 | J71: 6.542397577
A72: Minimum | B72: 2019 | C72: 0 | D72: 0 | E72: 0 | F72: 0.72 | G72: 0 | H72: 1.44 | I72: 1.27 | J72: 0 | L72: MT | M72: 4.3975 | N72: 4.025 | O72: 3.466666667 | P72: 5.050833333 | Q72: 2.49 | R72: 1.97 | S72: 1.41 | T72: 2.02 | U72: 8.61 | V72: 7.91 | W72: 8.14 | X72: 8.53
B73: 2020 | C73: 0 | D73: 0 | E73: 0 | F73: 1.08 | G73: 0 | H73: 1.04 | I73: 0.69 | J73: 0 | L73: P | M73: 3.935796178 | N73: 2.858535032 | O73: 2.568407643 | P73: 3.22 | Q73: 0 | R73: 0 | S73: 0 | T73: 0 | U73: 62.11 | V73: 34.59 | W73: 20.48 | X73: 30.88
B74: 2021 | C74: 0 | D74: 0 | E74: 0 | F74: 0.53 | G74: 0 | H74: 0.64 | I74: 0.48 | J74: 0 | L74: W | M74: 5.49625 | N74: 4.644375 | O74: 4.594375 | P74: 4.118125 | Q74: 1.51 | R74: 1.5 | S74: 1.6 | T74: 2.08 | U74: 12.62 | V74: 12.18 | W74: 12.73 | X74: 9.14
B75: 2022 | C75: 0 | D75: 0 | E75: 0 | F75: 2.47 | G75: 0 | H75: 1.77 | I75: 2.66 | J75: 0 | L75: Suma końcowa | M75: 4.249978625 | N75: 3.463284646 | O75: 3.002233701 | P75: 3.453683648 | Q75: 0 | R75: 0 | S75: 0 | T75: 0 | U75: 66.02 | V75: 63.02 | W75: 59.43 | X75: 42.32
B76: 2023 | C76: 0 | D76: 0 | E76: 0 | F76: 2.62 | G76: 0 | H76: 2.37 | I76: 4.05 | J76: 0
A77: Maksimum | B77: 2019 | C77: 5.27 | D77: 10156.25 | E77: 21820.81 | F77: 3.89 | G77: 4.9 | H77: 4.64 | I77: 3.65 | J77: 21820.81
B78: 2020 | C78: 10.07 | D78: 32908.36 | E78: 24.96 | F78: 3.74 | G78: 6.9 | H78: 2.63 | I78: 2.96 | J78: 32908.36
B79: 2021 | C79: 5.81 | D79: 3329.12 | E79: 21.75 | F79: 2.31 | G79: 7.41 | H79: 2.18 | I79: 2.16 | J79: 3329.12
B80: 2022 | C80: 306.72 | D80: 140174.84 | E80: 4127.06 | F80: 6.96 | G80: 328.72 | H80: 4.92 | I80: 8.65 | J80: 140174.84
B81: 2023 | C81: 17.74 | D81: 75.95 | E81: 66.9 | F81: 9.58 | G81: 66.58 | H81: 6.98 | I81: 20.9 | J81: 75.95
A83: 22. Wskaźnik WZ5 – Obciążenie dochodów bieżących obsługą zadłużenia
J84: (%%)
A85: Wskaźnik WZ5 | C85: gminy | F85: miasta na prawach powiatu | G85: powiaty | H85: metropolie | I85: województwa | J85: Ogółem JST
C86: miejskie | D86: wiejskie | E86: miejsko-wiejskie | M86: Średnia z WZ5[2019] | N86: Średnia z WZ5[2020] | O86: Średnia z WZ5[2021] | P86: Średnia z WZ5[2022] | Q86: Minimum z WZ5[2019] | R86: Minimum z WZ5[2020] | S86: Minimum z WZ5[2021] | T86: Minimum z WZ5[2022] | U86: Maksimum z WZ5[2019] | V86: Maksimum z WZ5[2020] | W86: Maksimum z WZ5[2021] | X86: Maksimum z WZ5[2022]
A87: Średnia | B87: 2019 | C87: 5.933601695 | D87: 7.183551402 | E87: 7.575716396 | F87: 6.126666667 | G87: 5.651050955 | H87: 5.83 | I87: 9.25625 | J87: 6.987310296 | L87: GM | M87: 5.933601695 | N87: 5.876610169 | O87: 4.820677966 | P87: 5.828432203 | Q87: 0 | R87: 0 | S87: 0 | T87: 0 | U87: 32.76 | V87: 31.51 | W87: 58.98 | X87: 49.08
B88: 2020 | C88: 5.876610169 | D88: 6.018077437 | E88: 6.758862629 | F88: 5.627037037 | G88: 4.254968153 | H88: 5.685 | I88: 7.849375 | J88: 5.989112932 | L88: GMW | M88: 7.567024169 | N88: 6.741993958 | O88: 5.632039275 | P88: 6.369652568 | Q88: 0 | R88: 0 | S88: 0 | T88: 0 | U88: 141.54 | V88: 92.5 | W88: 80.86 | X88: 53.27
B89: 2021 | C89: 4.820677966 | D89: 5.135680908 | E89: 5.622082718 | F89: 5.384814815 | G89: 3.596178344 | H89: 4.689166667 | I89: 6.99625 | J89: 5.067784111 | L89: GW | M89: 7.191242564 | N89: 6.032802379 | O89: 5.136146728 | P89: 5.402352941 | Q89: 0 | R89: 0 | S89: 0 | T89: 0 | U89: 105.59 | V89: 105.25 | W89: 103.95 | X89: 72.19
B90: 2022 | C90: 5.828432203 | D90: 5.390267023 | E90: 6.374963072 | F90: 7.405555556 | G90: 4.599808917 | H90: 6.665 | I90: 5.9675 | J90: 5.623683648 | L90: M | M90: 6.126666667 | N90: 5.627037037 | O90: 5.384814815 | P90: 7.405555556 | Q90: 0.19 | R90: 0.75 | S90: 0.8 | T90: 1.35 | U90: 19.22 | V90: 15.5 | W90: 24.43 | X90: 33.48
B91: 2023 | C91: 5.671355932 | D91: 5.267656876 | E91: 6.417090103 | F91: 7.118703704 | G91: 4.312038217 | H91: 7.361666667 | I91: 5.80875 | J91: 5.519568935
A92: Minimum | B92: 2019 | C92: 0 | D92: 0 | E92: 0 | F92: 0.19 | G92: 0 | H92: 3.23 | I92: 3.98 | J92: 0 | L92: MT | M92: 5.83 | N92: 5.685 | O92: 4.689166667 | P92: 6.665 | Q92: 3.23 | R92: 2.81 | S92: 1.85 | T92: 2.57 | U92: 11.05 | V92: 10.74 | W92: 11.12 | X92: 11.6
B93: 2020 | C93: 0 | D93: 0 | E93: 0 | F93: 0.75 | G93: 0 | H93: 2.81 | I93: 3.13 | J93: 0 | L93: P | M93: 5.651050955 | N93: 4.254968153 | O93: 3.596178344 | P93: 4.599808917 | Q93: 0 | R93: 0 | S93: 0 | T93: 0 | U93: 78.08 | V93: 47.93 | W93: 26.97 | X93: 46.02
B94: 2021 | C94: 0 | D94: 0 | E94: 0 | F94: 0.8 | G94: 0 | H94: 1.85 | I94: 2.59 | J94: 0 | L94: W | M94: 9.25625 | N94: 7.849375 | O94: 6.99625 | P94: 5.9675 | Q94: 3.98 | R94: 3.13 | S94: 2.59 | T94: 2.9 | U94: 26.12 | V94: 19.62 | W94: 17.38 | X94: 13.7
B95: 2022 | C95: 0 | D95: 0 | E95: 0 | F95: 1.35 | G95: 0 | H95: 2.57 | I95: 2.9 | J95: 0 | L95: Suma końcowa | M95: 6.987310296 | N95: 5.989112932 | O95: 5.067784111 | P95: 5.623683648 | Q95: 0 | R95: 0 | S95: 0 | T95: 0 | U95: 141.54 | V95: 105.25 | W95: 103.95 | X95: 72.19
B96: 2023 | C96: 0 | D96: 0 | E96: 0 | F96: 1.27 | G96: 0 | H96: 2.09 | I96: 2.55 | J96: 0
A97: Maksimum | B97: 2019 | C97: 32.76 | D97: 105.59 | E97: 141.54 | F97: 19.22 | G97: 78.08 | H97: 11.05 | I97: 26.12 | J97: 141.54
B98: 2020 | C98: 31.51 | D98: 105.25 | E98: 92.5 | F98: 15.5 | G98: 47.93 | H98: 10.74 | I98: 19.62 | J98: 105.25
B99: 2021 | C99: 58.98 | D99: 103.95 | E99: 80.86 | F99: 24.43 | G99: 26.97 | H99: 11.12 | I99: 17.38 | J99: 103.95
B100: 2022 | C100: 49.08 | D100: 72.19 | E100: 53.27 | F100: 33.48 | G100: 46.02 | H100: 11.6 | I100: 13.7 | J100: 72.19
B101: 2023 | C101: 46.39 | D101: 89.17 | E101: 49.57 | F101: 23.91 | G101: 37.34 | H101: 13.78 | I101: 19.47 | J101: 89.17
A103: 23. Wskaźnik WZ6 – Relacja wydatków na obsługę długu do rozchodów na spłatę długu
J104: (%%)
A105: Wskaźnik WZ6 | C105: gminy | F105: miasta na prawach powiatu | G105: powiaty | H105: metropolie | I105: województwa | J105: Ogółem JST
C106: miejskie | D106: wiejskie | E106: miejsko-wiejskie | M106: Średnia z WZ5[2019] | N106: Średnia z WZ5[2020] | O106: Średnia z WZ5[2021] | P106: Średnia z WZ5[2022] | Q106: Minimum z WZ5[2019] | R106: Minimum z WZ5[2020] | S106: Minimum z WZ5[2021] | T106: Minimum z WZ5[2022] | U106: Maksimum z WZ5[2019] | V106: Maksimum z WZ5[2020] | W106: Maksimum z WZ5[2021] | X106: Maksimum z WZ5[2022]
A107: Średnia | B107: 2019 | C107: 33.58148305 | D107: 20.80289052 | E107: 25.38751846 | F107: 85.83740741 | G107: 32.58671975 | H107: 31.06333333 | I107: 18.95875 | J107: 25.58562879 | L107: GM | M107: 5.933601695 | N107: 5.876610169 | O107: 4.820677966 | P107: 5.828432203 | Q107: 0 | R107: 0 | S107: 0 | T107: 0 | U107: 32.76 | V107: 31.51 | W107: 58.98 | X107: 49.08
B108: 2020 | C108: 23.01885593 | D108: 20.05799733 | E108: 22.61986706 | F108: 36.12 | G108: 25.77019108 | H108: 26.61083333 | I108: 16.1725 | J108: 21.87865693 | L108: GMW | M108: 7.567024169 | N108: 6.741993958 | O108: 5.632039275 | P108: 6.369652568 | Q108: 0 | R108: 0 | S108: 0 | T108: 0 | U108: 141.54 | V108: 92.5 | W108: 80.86 | X108: 53.27
B109: 2021 | C109: 16.50669492 | D109: 15.25556742 | E109: 16.32335303 | F109: 19.12537037 | G109: 13.18229299 | H109: 20.15333333 | I109: 9.784375 | J109: 15.45056288 | L109: GW | M109: 7.191242564 | N109: 6.032802379 | O109: 5.136146728 | P109: 5.402352941 | Q109: 0 | R109: 0 | S109: 0 | T109: 0 | U109: 105.59 | V109: 105.25 | W109: 103.95 | X109: 72.19
B110: 2022 | C110: 55.73419492 | D110: 46.47062083 | E110: 50.70642541 | F110: 235.7261111 | G110: 57.37490446 | H110: 73.82 | I110: 37.316875 | J110: 53.19641967 | L110: M | M110: 6.126666667 | N110: 5.627037037 | O110: 5.384814815 | P110: 7.405555556 | Q110: 0.19 | R110: 0.75 | S110: 0.8 | T110: 1.35 | U110: 19.22 | V110: 15.5 | W110: 24.43 | X110: 33.48
B111: 2023 | C111: 94.16605932 | D111: 70.02028705 | E111: 79.00007386 | F111: 140.9755556 | G111: 72.99732484 | H111: 103.495 | I111: 44.955 | J111: 75.91438903
A112: Minimum | B112: 2019 | C112: 0 | D112: 0 | E112: 0 | F112: 4.63 | G112: 0 | H112: 6.67 | I112: 6.67 | J112: 0 | L112: MT | M112: 5.83 | N112: 5.685 | O112: 4.689166667 | P112: 6.665 | Q112: 3.23 | R112: 2.81 | S112: 1.85 | T112: 2.57 | U112: 11.05 | V112: 10.74 | W112: 11.12 | X112: 11.6
B113: 2020 | C113: 0 | D113: 0 | E113: 0 | F113: 0 | G113: 0 | H113: 4.68 | I113: 4.84 | J113: 0 | L113: P | M113: 5.651050955 | N113: 4.254968153 | O113: 3.596178344 | P113: 4.599808917 | Q113: 0 | R113: 0 | S113: 0 | T113: 0 | U113: 78.08 | V113: 47.93 | W113: 26.97 | X113: 46.02
B114: 2021 | C114: 0 | D114: 0 | E114: 0 | F114: 0 | G114: 0 | H114: 7.69 | I114: 1.89 | J114: 0 | L114: W | M114: 9.25625 | N114: 7.849375 | O114: 6.99625 | P114: 5.9675 | Q114: 3.98 | R114: 3.13 | S114: 2.59 | T114: 2.9 | U114: 26.12 | V114: 19.62 | W114: 17.38 | X114: 13.7
B115: 2022 | C115: 0 | D115: 0 | E115: 0 | F115: 0 | G115: 0 | H115: 30.05 | I115: 0 | J115: 0 | L115: Suma końcowa | M115: 6.987310296 | N115: 5.989112932 | O115: 5.067784111 | P115: 5.623683648 | Q115: 0 | R115: 0 | S115: 0 | T115: 0 | U115: 141.54 | V115: 105.25 | W115: 103.95 | X115: 72.19
B116: 2023 | C116: 0 | D116: 0 | E116: 0 | F116: 13.47 | G116: 0 | H116: 24.07 | I116: 0 | J116: 0
A117: Maksimum | B117: 2019 | C117: 1924.92 | D117: 1130.55 | E117: 486.78 | F117: 2191.19 | G117: 1715.43 | H117: 53.11 | I117: 36.31 | J117: 2191.19
B118: 2020 | C118: 760.66 | D118: 5304.65 | E118: 1006.72 | F118: 353.14 | G118: 923.69 | H118: 70.17 | I118: 49.63 | J118: 5304.65
B119: 2021 | C119: 466.09 | D119: 4380.65 | E119: 2182.78 | F119: 90.18 | G119: 335.17 | H119: 62.47 | I119: 35.07 | J119: 4380.65
B120: 2022 | C120: 899.82 | D120: 11375.21 | E120: 887.79 | F120: 9238.64 | G120: 2008.86 | H120: 144.1 | I120: 87.89 | J120: 11375.21
B121: 2023 | C121: 1238.39 | D121: 15389.21 | E121: 1925.55 | F121: 869.15 | G121: 1758.99 | H121: 193.46 | I121: 125.95 | J121: 15389.21
A123: 24. Wskaźnik WZ7 – Udział zobowiązań wymagalnych w zobowiązaniach ogółem
J124: (%%)
A125: Wskaźnik WZ7 | C125: gminy | F125: miasta na prawach powiatu | G125: powiaty | H125: metropolie | I125: województwa | J125: Ogółem JST
C126: miejskie | D126: wiejskie | E126: miejsko-wiejskie | M126: Średnia z WZ7[2019] | N126: Średnia z WZ7[2020] | O126: Średnia z WZ7[2021] | P126: Średnia z WZ7[2022] | Q126: Minimum z WZ7[2019] | R126: Minimum z WZ7[2020] | S126: Minimum z WZ7[2021] | T126: Minimum z WZ7[2022] | U126: Maksimum z WZ7[2019] | V126: Maksimum z WZ7[2020] | W126: Maksimum z WZ7[2021] | X126: Maksimum z WZ7[2022]
A127: Średnia | B127: 2019 | C127: 0.3211864407 | D127: 0.5526168224 | E127: 0.7408862629 | F127: 0.11 | G127: 0.6808917197 | H127: 0.009166666667 | I127: 0.020625 | J127: 0.579045244 | L127: GM | M127: 0.3211864407 | N127: 0.1715677966 | O127: 0.6844915254 | P127: 1.156016949 | Q127: 0 | R127: 0 | S127: 0 | T127: 0 | U127: 21.28 | V127: 21.54 | W127: 76.79 | X127: 100
B128: 2020 | C128: 0.1715677966 | D128: 0.5103938585 | E128: 0.4125553914 | F128: 0.1118518519 | G128: 0.4224522293 | H128: 0.01 | I128: 0.021875 | J128: 0.4358817243 | L128: GMW | M128: 0.757673716 | N128: 0.4219033233 | O128: 0.2342749245 | P128: 0.2752265861 | Q128: 0 | R128: 0 | S128: 0 | T128: 0 | U128: 100 | V128: 100 | W128: 84.4 | X128: 100
B129: 2021 | C129: 0.6844915254 | D129: 0.5870360481 | E129: 0.2291285081 | F129: 0.09518518519 | G129: 0.6879299363 | H129: 0.0175 | I129: 0.02375 | J129: 0.5050872818 | L129: GW | M129: 0.5471381362 | N129: 0.505333774 | O129: 0.5812359551 | P129: 0.3425974884 | Q129: 0 | R129: 0 | S129: 0 | T129: 0 | U129: 100 | V129: 100 | W129: 100 | X129: 100
B130: 2022 | C130: 1.156016949 | D130: 0.3460280374 | E130: 0.2691285081 | F130: 0.105 | G130: 0.4584394904 | H130: 0.009166666667 | I130: 0.01625 | J130: 0.4001995012 | L130: M | M130: 0.11 | N130: 0.1118518519 | O130: 0.09518518519 | P130: 0.105 | Q130: 0 | R130: 0 | S130: 0 | T130: 0 | U130: 2.01 | V130: 2 | W130: 1.37 | X130: 2.48
B131: 2023 | C131: 1.003601695 | D131: 0.5795861148 | E131: 0.4074593796 | F131: 0.1401851852 | G131: 0.1676751592 | H131: 0.0125 | I131: 0.018125 | J131: 0.5135660848
A132: Minimum | B132: 2019 | C132: 0 | D132: 0 | E132: 0 | F132: 0 | G132: 0 | H132: 0 | I132: 0 | J132: 0 | L132: P | M132: 0.6808917197 | N132: 0.4224522293 | O132: 0.6879299363 | P132: 0.4584394904 | Q132: 0 | R132: 0 | S132: 0 | T132: 0 | U132: 100 | V132: 100 | W132: 100 | X132: 100
B133: 2020 | C133: 0 | D133: 0 | E133: 0 | F133: 0 | G133: 0 | H133: 0 | I133: 0 | J133: 0 | L133: W | M133: 0.020625 | N133: 0.021875 | O133: 0.02375 | P133: 0.01625 | Q133: 0 | R133: 0 | S133: 0 | T133: 0 | U133: 0.19 | V133: 0.21 | W133: 0.24 | X133: 0.25
B134: 2021 | C134: 0 | D134: 0 | E134: 0 | F134: 0 | G134: 0 | H134: 0 | I134: 0 | J134: 0 | L134: MT | M134: 0.009166666667 | N134: 0.01 | O134: 0.0175 | P134: 0.009166666667 | Q134: 0 | R134: 0 | S134: 0 | T134: 0 | U134: 0.06 | V134: 0.05 | W134: 0.13 | X134: 0.1
B135: 2022 | C135: 0 | D135: 0 | E135: 0 | F135: 0 | G135: 0 | H135: 0 | I135: 0 | J135: 0 | L135: Suma końcowa | M135: 0.579045244 | N135: 0.4358817243 | O135: 0.5050872818 | P135: 0.4001995012 | Q135: 0 | R135: 0 | S135: 0 | T135: 0 | U135: 100 | V135: 100 | W135: 100 | X135: 100
B136: 2023 | C136: 0 | D136: 0 | E136: 0 | F136: 0 | G136: 0 | H136: 0 | I136: 0 | J136: 0
A137: Maksimum | B137: 2019 | C137: 21.28 | D137: 100 | E137: 100 | F137: 2.01 | G137: 100 | H137: 0.06 | I137: 0.19 | J137: 100
B138: 2020 | C138: 21.54 | D138: 100 | E138: 100 | F138: 2 | G138: 100 | H138: 0.05 | I138: 0.21 | J138: 100
B139: 2021 | C139: 76.79 | D139: 100 | E139: 84.4 | F139: 1.37 | G139: 100 | H139: 0.13 | I139: 0.24 | J139: 100
B140: 2022 | C140: 100 | D140: 100 | E140: 100 | F140: 2.48 | G140: 100 | H140: 0.1 | I140: 0.25 | J140: 100
B141: 2023 | C141: 100 | D141: 100 | E141: 100 | F141: 1.91 | G141: 19.89 | H141: 0.12 | I141: 0.16 | J141: 100

Sheet Tab_4 gminy miejskie
U1: powrót do spisu tablic
A2: GMINY MIEJSKIE
A4: Tablica 1. WSKAŹNIKI BUDŻETOWE - zestawienie zbiorcze
A5: Wskaźnik | B5: średnia arytmetyczna | L5: wartości minimalne | V5: wartości maksymalne
B6: 2019 | C6: 2020 | D6: 2021 | E6: 2022 | F6: 2023 | G6: (3-2) | H6: (4-3) | I6: (5-4) | J6: (6-5) | K6: (6-2) | L6: 2019 | M6: 2020 | N6: 2021 | O6: 2022 | P6: 2023 | Q6: (13-12) | R6: (14-13) | S6: (15-14) | T6: (16-15) | U6: (16-12) | V6: 2019 | W6: 2020 | X6: 2021 | Y6: 2022 | Z6: 2023 | AA6: (23-22) | AB6: (24-23) | AC6: (25-24) | AD6: (26-25) | AE6: (26-22)
A7: 1 | B7: 2 | C7: 3 | D7: 4 | E7: 5 | F7: 6 | G7: 7 | H7: 8 | I7: 9 | J7: 10 | K7: 11 | L7: 12 | M7: 13 | N7: 14 | O7: 15 | P7: 16 | Q7: 17 | R7: 18 | S7: 19 | T7: 20 | U7: 21 | V7: 22 | W7: 23 | X7: 24 | Y7: 25 | Z7: 26 | AA7: 27 | AB7: 28 | AC7: 29 | AD7: 30 | AE7: 31
B8: %% | G8: pkt. proc. | L8: %% | Q8: pkt. proc. | V8: %% | AA8: pkt. proc.
A9: WB1 | B9: 90.4 | C9: 88.19491525 | D9: 90.25169492 | E9: 90.07419492 | F9: 83.58944915 | G9: =C9-B9 -> -2.205084746 | H9: =D9-C9 -> 2.056779661 | I9: =E9-D9 -> -0.1775 | J9: =F9-E9 -> -6.484745763 | K9: =F9-B9 -> -6.810550847 | L9: 47.19 | M9: 55.52 | N9: 68.89 | O9: 42.9 | P9: 45.44 | Q9: =M9-L9 -> 8.33 | R9: =N9-M9 -> 13.37 | S9: =O9-N9 -> -25.99 | T9: =P9-O9 -> 2.54 | U9: =P9-L9 -> -1.75 | V9: 99.24 | W9: 98.54 | X9: 99.32 | Y9: 99.06 | Z9: 99.45 | AA9: =W9-V9 -> -0.7 | AB9: =X9-W9 -> 0.78 | AC9: =Y9-X9 -> -0.26 | AD9: =Z9-Y9 -> 0.39 | AE9: =Z9-V9 -> 0.21
A10: WB2 | B10: 48.63427966 | C10: 51.15771186 | D10: 50.45436441 | E10: 46.54186441 | F10: 44.22364407 | G10: 2.523432203 | H10: -0.7033474576 | I10: -3.9125 | J10: =F10-E10 -> -2.318220339 | K10: =F10-B10 -> -4.410635593 | L10: 17.53 | M10: 18.45 | N10: 21.4 | O10: 23.93 | P10: 21.19 | Q10: 0.92 | R10: 2.95 | S10: 2.53 | T10: =P10-O10 -> -2.74 | U10: =P10-L10 -> 3.66 | V10: 72.51 | W10: 72.23 | X10: 72.11 | Y10: 64.22 | Z10: 67.91 | AA10: -0.28 | AB10: -0.12 | AC10: -7.89 | AD10: =Z10-Y10 -> 3.69 | AE10: =Z10-V10 -> -4.6
A11: WB3 | B11: 6.861991525 | C11: 5.13440678 | D11: 9.686059322 | E11: 5.295974576 | F11: 2.74779661 | G11: -1.727584746 | H11: 4.551652542 | I11: -4.390084746 | J11: -2.548177966 | K11: -4.114194915 | L11: -4.86 | M11: -6.96 | N11: -19.69 | O11: -5.35 | P11: -12.02 | Q11: -2.1 | R11: -12.73 | S11: 14.34 | T11: -6.67 | U11: -7.16 | V11: 19.64 | W11: 25.16 | X11: 28.73 | Y11: 22.27 | Z11: 18.47 | AA11: 5.52 | AB11: 3.57 | AC11: -6.46 | AD11: -3.8 | AE11: -1.17
A12: WB4 | B12: 15.92169492 | C12: 14.33792373 | D12: 14.03427966 | E12: 16.44699153 | F12: 22.61432203 | G12: -1.583771186 | H12: -0.3036440678 | I12: 2.412711864 | J12: 6.167330508 | K12: 6.692627119 | L12: 2.03 | M12: 0.83 | N12: 1.27 | O12: 3.64 | P12: 4.23 | Q12: -1.2 | R12: 0.44 | S12: 2.37 | T12: 0.59 | U12: 2.2 | V12: 40.11 | W12: 43.16 | X12: 36.35 | Y12: 40.2 | Z12: 59.31 | AA12: 3.05 | AB12: -6.81 | AC12: 3.85 | AD12: 19.11 | AE12: 19.2
A13: WB5 | B13: 37.51885593 | C13: 36.31961864 | D13: 37.26699153 | E13: 37.7225 | F13: 44.23860169 | G13: -1.199237288 | H13: 0.9473728814 | I13: 0.4555084746 | J13: 6.516101695 | K13: 6.719745763 | L13: 25.13 | M13: 23.93 | N13: 21.75 | O13: 25.77 | P13: 29.29 | Q13: -1.2 | R13: -2.18 | S13: 4.02 | T13: 3.52 | U13: 4.16 | V13: 48.61 | W13: 46.7 | X13: 48.04 | Y13: 50.81 | Z13: 60.67 | AA13: -1.91 | AB13: 1.34 | AC13: 2.77 | AD13: 9.86 | AE13: 12.06
A14: WB6 | B14: 8.581313559 | C14: 6.640466102 | D14: 11.48254237 | E14: 7.599237288 | F14: 4.424279661 | G14: -1.940847458 | H14: 4.842076271 | I14: -3.883305085 | J14: -3.174957627 | K14: -4.157033898 | L14: -1.61 | M14: -1.94 | N14: -5.75 | O14: -2.91 | P14: -7.44 | Q14: -0.33 | R14: -3.81 | S14: 2.84 | T14: -4.53 | U14: -5.83 | V14: 46.01 | W14: 35.75 | X14: 28.4 | Y14: 55.91 | Z14: 16.56 | AA14: -10.26 | AB14: -7.35 | AC14: 27.51 | AD14: -39.35 | AE14: -29.45
A15: WB7 | B15: 110.3640254 | C15: 145.0056356 | D15: 165.1883475 | E15: 97.90690678 | F15: 81.26419492 | G15: 34.64161017 | H15: 20.18271186 | I15: -67.28144068 | J15: -16.64271186 | K15: -29.09983051 | L15: 26.51 | M15: -9.63 | N15: -15.55 | O15: -6.25 | P15: 4.27 | Q15: -36.14 | R15: -5.92 | S15: 9.3 | T15: 10.52 | U15: -22.24 | V15: 455.21 | W15: 2076.87 | X15: 889.82 | Y15: 1343.31 | Z15: 263.6 | AA15: 1621.66 | AB15: -1187.05 | AC15: 453.49 | AD15: -1079.71 | AE15: -191.61
A16: WB8 | B16: 6.71690678 | C16: 10.22699153 | D16: 14.24792373 | E16: 10.93745763 | F16: 8.899110169 | G16: 3.510084746 | H16: 4.020932203 | I16: -3.310466102 | J16: -2.038347458 | K16: 2.18220339 | L16: 0 | M16: -0.54 | N16: 0.2 | O16: -2.39 | P16: -2.14 | Q16: -0.54 | R16: 0.74 | S16: -2.59 | T16: 0.25 | U16: -2.14 | V16: 53.53 | W16: 68.11 | X16: 62.31 | Y16: 60.57 | Z16: 64 | AA16: 14.58 | AB16: -5.8 | AC16: -1.74 | AD16: 3.43 | AE16: 10.47
A17: WB9 | B17: 122.0083898 | C17: 153.2792373 | D17: 193.5858475 | E17: 163.4838136 | F17: 125.8233898 | G17: 31.27084746 | H17: 40.30661017 | I17: -30.1020339 | J17: -37.66042373 | K17: 3.815 | L17: 25.23 | M17: 57.96 | N17: 56.97 | O17: 50.99 | P17: 22.27 | Q17: 32.73 | R17: -0.99 | S17: -5.98 | T17: -28.72 | U17: -2.96 | V17: 521.94 | W17: 1107.21 | X17: 848.64 | Y17: 746.27 | Z17: 638.92 | AA17: 585.27 | AB17: -258.57 | AC17: -102.37 | AD17: -107.35 | AE17: 116.98
A18: WB10 | B18: 127.1972881 | C18: 174.9355932 | D18: 224.0158475 | E18: 178.1472034 | F18: 128.7587288 | G18: 47.73830508 | H18: 49.08025424 | I18: -45.86864407 | J18: -49.38847458 | K18: 1.561440678 | L18: -54.59 | M18: 18.22 | N18: -61.91 | O18: 14.03 | P18: 16.88 | Q18: 72.81 | R18: -80.13 | S18: 75.94 | T18: 2.85 | U18: 71.47 | V18: 733.2 | W18: 2120.71 | X18: 1171.79 | Y18: 1201.21 | Z18: 706.18 | AA18: 1387.51 | AB18: -948.92 | AC18: 29.42 | AD18: -495.03 | AE18: -27.02
A19: WB11 | B19: 93.14665254 | C19: 81.08949153 | D19: 53.88330508 | E19: 74.46351695 | F19: 97.80220339 | G19: -12.05716102 | H19: -27.20618644 | I19: 20.58021186 | J19: 23.33868644 | K19: 4.655550847 | L19: -238.73 | M19: 4.72 | N19: -161.52 | O19: 8.32 | P19: 14.16 | Q19: 243.45 | R19: -166.24 | S19: 169.84 | T19: 5.84 | U19: 252.89 | V19: 308.45 | W19: 548.91 | X19: 166.42 | Y19: 712.57 | Z19: 592.52 | AA19: 240.46 | AB19: -382.49 | AC19: 546.15 | AD19: -120.05 | AE19: 284.07
A20: WB12 | B20: 13.72152542 | C20: 11.25394068 | D20: 18.23838983 | E20: 12.74580508 | F20: 6.669533898 | G20: -2.467584746 | H20: 6.984449153 | I20: -5.492584746 | J20: -6.076271186 | K20: -7.051991525 | L20: -4.15 | M20: -2.93 | N20: -8.88 | O20: -3.62 | P20: -9.4 | Q20: 1.22 | R20: -5.95 | S20: 5.26 | T20: -5.78 | U20: -5.25 | V20: 109.95 | W20: 65.87 | X20: 43.03 | Y20: 186.05 | Z20: 27.44 | AA20: -44.08 | AB20: -22.84 | AC20: 143.02 | AD20: -158.61 | AE20: -82.51
A22: Tablica 2. WSKAŹNIKI NA MIESZKAŃCA - zestawienie zbiorcze
A23: Wskaźnik | B23: średnia arytmetyczna | L23: wartości minimalne | V23: wartości maksymalne
B24: 2019 | C24: 2020 | D24: 2021 | E24: 2022 | F24: 2023 | G24: (3-2) | H24: (4-3) | I24: (5-4) | J24: (6-5) | K24: (6-2) | L24: 2019 | M24: 2020 | N24: 2021 | O24: 2022 | P24: 2023 | Q24: (13-12) | R24: (14-13) | S24: (15-14) | T24: (16-15) | U24: (16-12) | V24: 2019 | W24: 2020 | X24: 2021 | Y24: 2022 | Z24: 2023 | AA24: (23-22) | AB24: (24-23) | AC24: (25-24) | AD24: (26-25) | AE24: (26-22)
A25: 1 | B25: 2 | C25: 3 | D25: 4 | E25: 5 | F25: 6 | G25: 7 | H25: 8 | I25: 9 | J25: 10 | K25: 11 | L25: 12 | M25: 13 | N25: 14 | O25: 15 | P25: 16 | Q25: 17 | R25: 18 | S25: 19 | T25: 20 | U25: 21 | V25: 22 | W25: 23 | X25: 24 | Y25: 25 | Z25: 26 | AA25: 27 | AB25: 28 | AC25: 29 | AD25: 30 | AE25: 31
B26: zł | G26: %% | L26: zł | Q26: %% | V26: zł | AA26: %%
A27: WL1 | B27: 2251.340593 | C27: 2537.964025 | D27: 2803.303263 | E27: 2744.236949 | F27: 2437.364619 | G27: =C27/B27*100 -> 112.7312337 | H27: 110.4548069 | I27: 97.89297454 | J27: =F27/E27*100 -> 88.81757165 | K27: =F27/B27*100 -> 108.2628113 | L27: 1536.32 | M27: 1725.16 | N27: 1919.89 | O27: 1801.77 | P27: 1574.12 | Q27: =M27/L27*100 -> 112.2917101 | R27: 111.2876487 | S27: 93.84756418 | T27: =P27/O27*100 -> 87.365202 | U27: =P27/L27*100 -> 102.4604249 | V27: 3855.4 | W27: 3875.47 | X27: 5055.59 | Y27: 4735.58 | Z27: 4242.77 | AA27: =W27/V27*100 -> 100.5205686 | AB27: 130.4510163 | AC27: 93.67017499 | AD27: =Z27/Y27*100 -> 89.59346057 | AE27: =Z27/V27*100 -> 110.0474659
A28: WL2 | B28: 330.4266949 | C28: 263.2336864 | D28: 558.0640254 | E28: 346.7955085 | F28: 166.8565254 | G28: 79.66477603 | H28: 212.0032709 | I28: 62.1426024 | J28: =F28/E28*100 -> 48.11380809 | K28: =F28/B28*100 -> 50.49728971 | L28: -235.94 | M28: -350.32 | N28: -1331.7 | O28: -360.85 | P28: -699.67 | Q28: 148.4784267 | R28: 380.1381594 | S28: 27.09694376 | T28: =P28/O28*100 -> 193.8949702 | U28: =P28/L28*100 -> 296.545732 | V28: 1727.21 | W28: 2003.94 | X28: 3198.44 | Y28: 2589.59 | Z28: 2090.79 | AA28: 116.0217924 | AB28: 159.6075731 | AC28: 80.96415753 | AD28: =Z28/Y28*100 -> 80.73826359 | AE28: =Z28/V28*100 -> 121.0501329
A29: WL3 | B29: 1240.393178 | C29: 1361.481525 | D29: 1372.854703 | E29: 1361.765424 | F29: 1565.724873 | G29: 109.762094 | H29: 100.8353531 | I29: 99.19224666 | J29: 114.9775758 | K29: 126.2281106 | L29: 0 | M29: 0 | N29: 0 | O29: 0 | P29: 0 | Q29: 0 | R29: 0 | S29: 0 | T29: 0 | U29: 0 | V29: 5630.58 | W29: 5744.94 | X29: 5479.75 | Y29: 4824.17 | Z29: 5897.5 | AA29: 102.0310519 | AB29: 95.38393787 | AC29: 88.03631553 | AD29: 122.2490086 | AE29: 104.7405418
A30: WL4 | B30: 1194.303686 | C30: 1388.111695 | D30: 1843.633686 | E30: 2151.635975 | F30: 2261.347246 | G30: 116.2276991 | H30: 132.8159465 | I30: 116.7062628 | J30: 105.0989699 | K30: 189.3444081 | L30: 74.62 | M30: 242.03 | N30: 458.04 | O30: 398.81 | P30: 223.56 | Q30: =M30/L30*100 -> 324.3500402 | R30: 189.2492666 | S30: 87.06881495 | T30: 56.05676889 | U30: 299.597963 | V30: 13886.18 | W30: 10148.38 | X30: 10847.75 | Y30: 20593.85 | Z30: 22533.3 | AA30: 73.08259003 | AB30: 106.8914447 | AC30: 189.8444378 | AD30: 109.4176174 | AE30: 162.2714094
A31: WL5 | B31: 1028.725085 | C31: 1216.025975 | D31: 1672.458602 | E31: 1971.468517 | F31: 2101.04911 | G31: 118.2070888 | H31: 137.5347761 | I31: 117.8784644 | J31: 106.5727955 | K31: 204.2381528 | L31: -162.67 | M31: 79.46 | N31: -498.95 | O31: 50 | P31: 157.17 | Q31: -48.84735969 | R31: -627.9260005 | S31: -10.02104419 | T31: 314.34 | U31: -96.61892174 | V31: 13886.18 | W31: 10148.38 | X31: 10847.75 | Y31: 20194.61 | Z31: 22125.34 | AA31: 73.08259003 | AB31: 106.8914447 | AC31: 186.1640432 | AD31: 109.5606204 | AE31: 159.3335244
A33: Tablica 3. WSKAŹNIKI DLA ZOBOWIĄZAŃ WG TYTUŁÓW DŁUŻNYCH - zestawienie zbiorcze
A34: Wskaźnik | B34: średnia arytmetyczna | L34: wartości minimalne | V34: wartości maksymalne
B35: 2019 | C35: 2020 | D35: 2021 | E35: 2022 | F35: 2023 | G35: (3-2) | H35: (4-3) | I35: (5-4) | J35: (6-5) | K35: (6-2) | L35: 2019 | M35: 2020 | N35: 2021 | O35: 2022 | P35: 2023 | Q35: (13-12) | R35: (14-13) | S35: (15-14) | T35: (16-15) | U35: (16-12) | V35: 2019 | W35: 2020 | X35: 2021 | Y35: 2022 | Z35: 2023 | AA35: (23-22) | AB35: (24-23) | AC35: (25-24) | AD35: (26-25) | AE35: (26-22)
A36: 1 | B36: 2 | C36: 3 | D36: 4 | E36: 5 | F36: 6 | G36: 7 | H36: 8 | I36: 9 | J36: 10 | K36: 11 | L36: 12 | M36: 13 | N36: 14 | O36: 15 | P36: 16 | Q36: 17 | R36: 18 | S36: 19 | T36: 20 | U36: 21 | V36: 22 | W36: 23 | X36: 24 | Y36: 25 | Z36: 26 | AA36: 27 | AB36: 28 | AC36: 29 | AD36: 30 | AE36: 31
B37: %% | G37: pkt. proc. | L37: %% | Q37: pkt. proc. | V37: %% | AA37: pkt. proc.
A38: WZ1 | B38: 23.65686441 | C38: 23.60377119 | D38: 21.74775424 | E38: 21.02529661 | F38: 23.54135593 | G38: =C38-B38 -> -0.05309322034 | H38: -1.856016949 | I38: -0.7224576271 | J38: =F38-E38 -> 2.516059322 | K38: =F38-B38 -> -0.1155084746 | L38: 0 | M38: 0 | N38: 0 | O38: 0 | P38: 0 | Q38: =M38-L38 -> 0 | R38: 0 | S38: 0 | T38: 0 | U38: =P38-L38 -> 0 | V38: 68.9 | W38: 68.34 | X38: 61.65 | Y38: 66.85 | Z38: 69.47 | AA38: =W38-V38 -> -0.56 | AB38: -6.69 | AC38: 5.2 | AD38: =Z38-Y38 -> 2.62 | AE38: =Z38-V38 -> 0.57
A39: WZ2 | B39: 4.466779661 | C39: 8.637457627 | D39: 9.666101695 | E39: -4.696101695 | F39: -10.13851695 | G39: 4.170677966 | H39: 1.028644068 | I39: -14.36220339 | J39: =F39-E39 -> -5.442415254 | K39: =F39-B39 -> -14.60529661 | L39: -175.58 | M39: -221.76 | N39: -12.54 | O39: -4035.69 | P39: -2225.12 | Q39: -46.18 | R39: 209.22 | S39: -4023.15 | T39: 1810.57 | U39: =P39-L39 -> -2049.54 | V39: 125.79 | W39: 521.56 | X39: 1489.29 | Y39: 1263.87 | Z39: 160.4 | AA39: 395.77 | AB39: 967.73 | AC39: -225.42 | AD39: =Z39-Y39 -> -1103.47 | AE39: =Z39-V39 -> 34.61
A40: WZ3 | B40: 3.757669492 | C40: 3.431016949 | D40: 3.013135593 | E40: 3.684745763 | F40: 3.924449153 | G40: -0.3266525424 | H40: -0.4178813559 | I40: 0.6716101695 | J40: 0.2397033898 | K40: 0.166779661 | L40: 0 | M40: 0 | N40: 0 | O40: 0 | P40: 0 | Q40: =M40-L40 -> 0 | R40: =N40-M40 -> 0 | S40: =O40-N40 -> 0 | T40: =P40-O40 -> 0 | U40: =P40-L40 -> 0 | V40: 21.92 | W40: 14.5 | X40: 35.22 | Y40: 13.78 | Z40: 23.16 | AA40: -7.42 | AB40: 20.72 | AC40: -21.44 | AD40: 9.38 | AE40: 1.24
A41: WZ4 | B41: 2.588008475 | C41: 2.031737288 | D41: 1.446779661 | E41: 6.844872881 | F41: 6.794237288 | G41: -0.5562711864 | H41: -0.5849576271 | I41: 5.39809322 | J41: -0.05063559322 | K41: 4.206228814 | L41: 0 | M41: 0 | N41: 0 | O41: 0 | P41: 0 | Q41: 0 | R41: 0 | S41: 0 | T41: 0 | U41: 0 | V41: 5.27 | W41: 10.07 | X41: 5.81 | Y41: 306.72 | Z41: 17.74 | AA41: 4.8 | AB41: -4.26 | AC41: 300.91 | AD41: -288.98 | AE41: 12.47
A42: WZ5 | B42: 5.933601695 | C42: 5.876610169 | D42: 4.820677966 | E42: 5.828432203 | F42: 5.671355932 | G42: -0.05699152542 | H42: -1.055932203 | I42: 1.007754237 | J42: -0.1570762712 | K42: -0.2622457627 | L42: 0 | M42: 0 | N42: 0 | O42: 0 | P42: 0 | Q42: 0 | R42: 0 | S42: 0 | T42: 0 | U42: 0 | V42: 32.76 | W42: 31.51 | X42: 58.98 | Y42: 49.08 | Z42: 46.39 | AA42: -1.25 | AB42: 27.47 | AC42: -9.9 | AD42: -2.69 | AE42: 13.63
A43: WZ6 | B43: 33.58148305 | C43: 23.01885593 | D43: 16.50669492 | E43: 55.73419492 | F43: 94.16605932 | G43: -10.56262712 | H43: -6.512161017 | I43: 39.2275 | J43: 38.43186441 | K43: 60.58457627 | L43: 0 | M43: 0 | N43: 0 | O43: 0 | P43: 0 | Q43: 0 | R43: 0 | S43: 0 | T43: 0 | U43: 0 | V43: 1924.92 | W43: 760.66 | X43: 466.09 | Y43: 899.82 | Z43: 1238.39 | AA43: -1164.26 | AB43: -294.57 | AC43: 433.73 | AD43: 338.57 | AE43: -686.53
A44: WZ7 | B44: 0.3211864407 | C44: 0.1715677966 | D44: 0.6844915254 | E44: 1.156016949 | F44: 1.003601695 | G44: -0.1496186441 | H44: 0.5129237288 | I44: 0.4715254237 | J44: -0.1524152542 | K44: 0.6824152542 | L44: 0 | M44: 0 | N44: 0 | O44: 0 | P44: 0 | Q44: 0 | R44: 0 | S44: 0 | T44: 0 | U44: 0 | V44: 21.28 | W44: 21.54 | X44: 76.79 | Y44: 100 | Z44: 100 | AA44: 0.26 | AB44: 55.25 | AC44: 23.21 | AD44: 0 | AE44: 78.72

Sheet Tab_5 gminy wiejskie
U1: powrót do spisu tablic
A2: GMINY WIEJSKIE
A4: Tablica 1. WSKAŹNIKI BUDŻETOWE - zestawienie zbiorcze
A5: Wskaźnik | B5: średnia arytmetyczna | L5: wartości minimalne | V5: wartości maksymalne
B6: 2019 | C6: 2020 | D6: 2021 | E6: 2022 | F6: 2023 | G6: (3-2) | H6: (4-3) | I6: (5-4) | J6: (6-5) | K6: (6-2) | L6: 2019 | M6: 2020 | N6: 2021 | O6: 2022 | P6: 2023 | Q6: (13-12) | R6: (14-13) | S6: (15-14) | T6: (16-15) | U6: (16-12) | V6: 2019 | W6: 2020 | X6: 2021 | Y6: 2022 | Z6: 2023 | AA6: (23-22) | AB6: (24-23) | AC6: (25-24) | AD6: (26-25) | AE6: (26-22)
A7: 1 | B7: 2 | C7: 3 | D7: 4 | E7: 5 | F7: 6 | G7: 7 | H7: 8 | I7: 9 | J7: 10 | K7: 11 | L7: 12 | M7: 13 | N7: 14 | O7: 15 | P7: 16 | Q7: 17 | R7: 18 | S7: 19 | T7: 20 | U7: 21 | V7: 22 | W7: 23 | X7: 24 | Y7: 25 | Z7: 26 | AA7: 27 | AB7: 28 | AC7: 29 | AD7: 30 | AE7: 31
B8: %% | G8: pkt. proc. | L8: %% | Q8: pkt. proc. | V8: %% | AA8: pkt. proc.
A9: WB1 | B9: 91.68263054 | C9: 89.37167217 | D9: 86.76812293 | E9: 90.89001983 | F9: 78.69380507 | G9: =C9-B9 -> -2.310958361 | H9: =D9-C9 -> -2.60354924 | I9: =E9-D9 -> 4.121896894 | J9: =F9-E9 -> -12.19621475 | K9: =F9-B9 -> -12.98882546 | L9: 60.33 | M9: 53.32 | N9: 59.63 | O9: 59.72 | P9: 38.13 | Q9: =M9-L9 -> -7.01 | R9: =N9-M9 -> 6.31 | S9: =O9-N9 -> 0.09 | T9: =P9-O9 -> -21.59 | U9: =P9-L9 -> -22.2 | V9: 100 | W9: 99.77 | X9: 99.93 | Y9: 99.85 | Z9: 99.98 | AA9: =W9-V9 -> -0.23 | AB9: =X9-W9 -> 0.16 | AC9: =Y9-X9 -> -0.08 | AD9: =Z9-Y9 -> 0.13 | AE9: =Z9-V9 -> -0.02
A10: WB2 | B10: 65.40168539 | C10: 66.20522802 | D10: 65.05148865 | E10: 59.44850467 | F10: 58.77610147 | G10: 0.8035426305 | H10: -1.153739372 | I10: -5.602983979 | J10: =F10-E10 -> -0.6724032043 | K10: =F10-B10 -> -6.625583925 | L10: 9.51 | M10: 10.76 | N10: 11.34 | O10: 12.68 | P10: 8.95 | Q10: 1.25 | R10: 0.58 | S10: 1.34 | T10: =P10-O10 -> -3.73 | U10: =P10-L10 -> -0.56 | V10: 86.92 | W10: 86.91 | X10: 84.95 | Y10: 80.1 | Z10: 83.3 | AA10: -0.01 | AB10: -1.96 | AC10: -4.85 | AD10: =Z10-Y10 -> 3.2 | AE10: =Z10-V10 -> -3.62
A11: WB3 | B11: 9.518050231 | C11: 9.598823529 | D11: 11.12256444 | E11: 11.99486451 | F11: 7.004873164 | G11: 0.08077329808 | H11: 1.523740912 | I11: 0.8723000661 | J11: -4.989991343 | K11: -2.513177067 | L11: -7.02 | M11: -4.15 | N11: -12.17 | O11: -5.79 | P11: -17.22 | Q11: 2.87 | R11: -8.02 | S11: 6.38 | T11: -11.43 | U11: -10.2 | V11: 38.21 | W11: 47.35 | X11: 36.77 | Y11: 57.67 | Z11: 41.3 | AA11: 9.14 | AB11: -10.58 | AC11: 20.9 | AD11: -16.37 | AE11: 3.09
A12: WB4 | B12: 16.23573695 | C12: 14.33641771 | D12: 15.34711615 | E12: 19.62104428 | F12: 31.13048064 | G12: -1.899319233 | H12: 1.010698442 | I12: 4.273928128 | J12: 11.50943636 | K12: 14.89474369 | L12: 0.24 | M12: 0.22 | N12: 0.59 | O12: 1.36 | P12: 4.3 | Q12: -0.02 | R12: 0.37 | S12: 0.77 | T12: 2.94 | U12: 4.06 | V12: 48.13 | W12: 55.19 | X12: 47.69 | Y12: 51.05 | Z12: 69.06 | AA12: 7.06 | AB12: -7.5 | AC12: 3.36 | AD12: 18.01 | AE12: 20.93
A13: WB5 | B13: 37.75651685 | C13: 36.47631857 | D13: 37.71588235 | E13: 35.90742895 | F13: 45.15051402 | G13: -1.280198282 | H13: 1.239563781 | I13: -1.808453404 | J13: 9.24308507 | K13: 7.393997165 | L13: 16.14 | M13: 15.03 | N13: 15.14 | O13: 15.49 | P13: 17.47 | Q13: -1.11 | R13: 0.11 | S13: 0.35 | T13: 1.98 | U13: 1.33 | V13: 48.39 | W13: 48.12 | X13: 49.5 | Y13: 51.54 | Z13: 58.46 | AA13: -0.27 | AB13: 1.38 | AC13: 2.04 | AD13: 6.92 | AE13: 10.07
A14: WB6 | B14: 9.244263054 | C14: 9.188155981 | D14: 10.57684071 | E14: 11.61155981 | F14: 6.090901202 | G14: -0.05610707204 | H14: 1.388684732 | I14: 1.034719101 | J14: -5.520658613 | K14: -3.153361852 | L14: -3.93 | M14: -2.1 | N14: -9.42 | O14: -2.35 | P14: -11.02 | Q14: 1.83 | R14: -7.32 | S14: 7.07 | T14: -8.67 | U14: -7.09 | V14: 37.71 | W14: 46.16 | X14: 38.91 | Y14: 53.61 | Z14: 39.12 | AA14: 8.45 | AB14: -7.25 | AC14: 14.7 | AD14: -14.49 | AE14: 1.41
A15: WB7 | B15: 136.6524032 | C15: 204.0248598 | D15: 215.9516422 | E15: 115.5126569 | F15: 81.35576769 | G15: 67.37245661 | H15: 11.92678238 | I15: -100.4389853 | J15: -34.15688919 | K15: -55.29663551 | L15: -91.9 | M15: 21.96 | N15: 35.96 | O15: 6.12 | P15: -42.1 | Q15: 113.86 | R15: 14 | S15: -29.84 | T15: -48.22 | U15: 49.8 | V15: 2583.12 | W15: 9624.57 | X15: 6437.84 | Y15: 1279.15 | Z15: 226.88 | AA15: 7041.45 | AB15: -3186.73 | AC15: -5158.69 | AD15: -1052.27 | AE15: -2356.24
A16: WB8 | B16: 7.238070059 | C16: 11.9075347 | D16: 18.18826173 | E16: 16.3093655 | F16: 12.32315087 | G16: 4.66946464 | H16: 6.280727032 | I16: -1.878896233 | J16: -3.986214631 | K16: 5.085080808 | L16: -1.65 | M16: -3.6 | N16: 0 | O16: 0 | P16: -5.3 | Q16: -1.95 | R16: 3.6 | S16: 0 | T16: -5.3 | U16: -3.65 | V16: 85.26 | W16: 95.81 | X16: 91.47 | Y16: 88.28 | Z16: 97.46 | AA16: 10.55 | AB16: -4.34 | AC16: -3.19 | AD16: 9.18 | AE16: 12.2
A17: WB9 | B17: 133.013251 | C17: 192.0707477 | D17: 244.6834846 | E17: 194.27577 | F17: 133.9726168 | G17: 59.05749666 | H17: 52.61273698 | I17: -50.40771465 | J17: -60.30315317 | K17: 0.9593658211 | L17: 1.55 | M17: 15.67 | N17: 40.66 | O17: 30.65 | P17: 16.28 | Q17: 14.12 | R17: 24.99 | S17: -10.01 | T17: -14.37 | U17: 14.73 | V17: 1204.39 | W17: 2959.89 | X17: 2035.84 | Y17: 1378.38 | Z17: 944.37 | AA17: 1755.5 | AB17: -924.05 | AC17: -657.46 | AD17: -434.01 | AE17: -260.02
A18: WB10 | B18: 148.0635781 | C18: 240.8058812 | D18: 292.0603738 | E18: 210.3147918 | F18: 136.2693391 | G18: 92.74230307 | H18: 51.25449266 | I18: -81.74558203 | J18: -74.04545269 | K18: -11.79423899 | L18: -389.14 | M18: -2234.42 | N18: -504.46 | O18: -12.67 | P18: -101.7 | Q18: -1845.28 | R18: 1729.96 | S18: 491.79 | T18: -89.03 | U18: 287.44 | V18: 1810.06 | W18: 14908.09 | X18: 7509.27 | Y18: 1882.61 | Z18: 944.37 | AA18: 13098.03 | AB18: -7398.82 | AC18: -5626.66 | AD18: -938.24 | AE18: -865.69
A19: WB11 | B19: 101.7202603 | C19: 70.13895194 | D19: 43.91132844 | E19: 57.47156876 | F19: 87.37012016 | G19: -31.58130841 | H19: -26.2276235 | I19: 13.56024032 | J19: 29.8985514 | K19: -14.35014019 | L19: -744.34 | M19: -110.63 | N19: -4444.59 | O19: -2472.21 | P19: -353.6 | Q19: 633.71 | R19: -4333.96 | S19: 1972.38 | T19: 2118.61 | U19: 390.74 | V19: 6937.64 | W19: 8776.53 | X19: 242.18 | Y19: 1029.69 | Z19: 2933.63 | AA19: 1838.89 | AB19: -8534.35 | AC19: 787.51 | AD19: 1903.94 | AE19: -4004.01
A20: WB12 | B20: 15.24434237 | C20: 16.08849967 | D20: 18.40180436 | E20: 19.2924653 | F20: 9.990447263 | G20: 0.8441573034 | H20: 2.313304693 | I20: 0.8906609385 | J20: -9.302018038 | K20: -5.253895103 | L20: -7.27 | M20: -4.4 | N20: -19.36 | O20: -3.95 | P20: -15.25 | Q20: 2.87 | R20: -14.96 | S20: 15.41 | T20: -11.3 | U20: -7.98 | V20: 67.24 | W20: 63.53 | X20: 72.58 | Y20: 93.17 | Z20: 43.93 | AA20: -3.71 | AB20: 9.05 | AC20: 20.59 | AD20: -49.24 | AE20: -23.31
A22: Tablica 2. WSKAŹNIKI NA MIESZKAŃCA - zestawienie zbiorcze
A23: Wskaźnik | B23: średnia arytmetyczna | L23: wartości minimalne | V23: wartości maksymalne
B24: 2019 | C24: 2020 | D24: 2021 | E24: 2022 | F24: 2023 | G24: (3-2) | H24: (4-3) | I24: (5-4) | J24: (6-5) | K24: (6-2) | L24: 2019 | M24: 2020 | N24: 2021 | O24: 2022 | P24: 2023 | Q24: (13-12) | R24: (14-13) | S24: (15-14) | T24: (16-15) | U24: (16-12) | V24: 2019 | W24: 2020 | X24: 2021 | Y24: 2022 | Z24: 2023 | AA24: (23-22) | AB24: (24-23) | AC24: (25-24) | AD24: (26-25) | AE24: (26-22)
A25: 1 | B25: 2 | C25: 3 | D25: 4 | E25: 5 | F25: 6 | G25: 7 | H25: 8 | I25: 9 | J25: 10 | K25: 11 | L25: 12 | M25: 13 | N25: 14 | O25: 15 | P25: 16 | Q25: 17 | R25: 18 | S25: 19 | T25: 20 | U25: 21 | V25: 22 | W25: 23 | X25: 24 | Y25: 25 | Z25: 26 | AA25: 27 | AB25: 28 | AC25: 29 | AD25: 30 | AE25: 31
B26: zł | G26: %% | L26: zł | Q26: %% | V26: zł | AA26: %%
A27: WL1 | B27: 3151.20881 | C27: 3453.914039 | D27: 3658.91514 | E27: 3989.869139 | F27: 3350.318672 | G27: =C27/B27*100 -> 109.6060035 | H27: 105.9353273 | I27: 109.04514 | J27: =F27/E27*100 -> 83.97064051 | K27: =F27/B27*100 -> 106.3185232 | L27: 1612.21 | M27: 1986.66 | N27: 2069.6 | O27: 1890.22 | P27: 1222.32 | Q27: =M27/L27*100 -> 123.2258825 | R27: =N27/M27*100 -> 104.1748462 | S27: =O27/N27*100 -> 91.33262466 | T27: =P27/O27*100 -> 64.66548867 | U27: =P27/L27*100 -> 75.8164259 | V27: 4954.62 | W27: 5433.82 | X27: 5738.51 | Y27: 6172.64 | Z27: 6193.51 | AA27: =W27/V27*100 -> 109.6717811 | AB27: =X27/W27*100 -> 105.6072892 | AC27: =Y27/X27*100 -> 107.5652042 | AD27: =Z27/Y27*100 -> 100.3381049 | AE27: =Z27/V27*100 -> 125.004743
A28: WL2 | B28: 486.5519559 | C28: 520.5898865 | D28: 657.1239786 | E28: 839.086345 | F28: 414.2404473 | G28: 106.9957443 | H28: 126.2268046 | I28: 127.6907208 | J28: =F28/E28*100 -> 49.36803581 | K28: =F28/B28*100 -> 85.13796773 | L28: -368.58 | M28: -206.83 | N28: -570.91 | O28: -365.63 | P28: -1279.88 | Q28: =M28/L28*100 -> 56.11536166 | R28: =N28/M28*100 -> 276.0286225 | S28: =O28/N28*100 -> 64.04336936 | T28: =P28/O28*100 -> 350.0478626 | U28: =P28/L28*100 -> 347.2461881 | V28: 15812.3 | W28: 8049.21 | X28: 12389.34 | Y28: 9185.76 | Z28: 4718.01 | AA28: 50.90473872 | AB28: =X28/W28*100 -> 153.9199499 | AC28: =Y28/X28*100 -> 74.14244827 | AD28: =Z28/Y28*100 -> 51.36221717 | AE28: =Z28/V28*100 -> 29.83759478
A29: WL3 | B29: 1123.657303 | C29: 1142.60012 | D29: 1114.444893 | E29: 1085.559933 | F29: 1219.176255 | G29: 101.685818 | H29: 97.53586347 | I29: 97.40813026 | J29: 112.3085163 | K29: 108.5007192 | L29: 0 | M29: 0 | N29: 0 | O29: 0 | P29: 0 | Q29: 0 | R29: 0 | S29: 0 | T29: 0 | U29: 0 | V29: 9609.71 | W29: 9929.82 | X29: 9872.89 | Y29: 13029.19 | Z29: 13494.08 | AA29: 103.3311099 | AB29: =X29/W29*100 -> 99.42667642 | AC29: 131.9693626 | AD29: 103.5680652 | AE29: 140.421303
A30: WL4 | B30: 1316.990416 | C30: 1641.967396 | D30: 2346.612141 | E30: 2932.144547 | F30: 3525.950254 | G30: 124.6757285 | H30: 142.9146612 | I30: 124.9522448 | J30: 120.2515837 | K30: 267.7278597 | L30: 4.89 | M30: 253.77 | N30: 414.5 | O30: 336.49 | P30: 337.18 | Q30: =M30/L30*100 -> 5189.570552 | R30: =N30/M30*100 -> 163.3368799 | S30: 81.17973462 | T30: 100.2050581 | U30: 6895.296524 | V30: 101624.84 | W30: 96820.13 | X30: 95386.1 | Y30: 93255.84 | Z30: 84842.84 | AA30: 95.27211064 | AB30: =X30/W30*100 -> 98.51887206 | AC30: 97.76669766 | AD30: 90.97858107 | AE30: 83.48632086
A31: WL5 | B31: 1116.717508 | C31: 1461.538632 | D31: 2169.746649 | E31: 2750.605182 | F31: 3356.819186 | G31: 130.8780977 | H31: 148.4563324 | I31: 126.7707999 | J31: 122.0392955 | K31: 300.5969872 | L31: -1992.24 | M31: -3052.26 | N31: -2245.95 | O31: -280.4 | P31: -1740.51 | Q31: =M31/L31*100 -> 153.2074449 | R31: =N31/M31*100 -> 73.58318099 | S31: 12.48469467 | T31: 620.7239658 | U31: 87.36447416 | V31: 101624.84 | W31: 96820.13 | X31: 95386.1 | Y31: 93255.84 | Z31: 84842.84 | AA31: 95.27211064 | AB31: =X31/W31*100 -> 98.51887206 | AC31: 97.76669766 | AD31: 90.97858107 | AE31: 83.48632086
A33: Tablica 3. WSKAŹNIKI DLA ZOBOWIĄZAŃ WG TYTUŁÓW DŁUŻNYCH - zestawienie zbiorcze
A34: Wskaźnik | B34: średnia arytmetyczna | L34: wartości minimalne | V34: wartości maksymalne
B35: 2019 | C35: 2020 | D35: 2021 | E35: 2022 | F35: 2023 | G35: (3-2) | H35: (4-3) | I35: (5-4) | J35: (6-5) | K35: (6-2) | L35: 2019 | M35: 2020 | N35: 2021 | O35: 2022 | P35: 2023 | Q35: (13-12) | R35: (14-13) | S35: (15-14) | T35: (16-15) | U35: (16-12) | V35: 2019 | W35: 2020 | X35: 2021 | Y35: 2022 | Z35: 2023 | AA35: (23-22) | AB35: (24-23) | AC35: (25-24) | AD35: (26-25) | AE35: (26-22)
A36: 1 | B36: 2 | C36: 3 | D36: 4 | E36: 5 | F36: 6 | G36: 7 | H36: 8 | I36: 9 | J36: 10 | K36: 11 | L36: 12 | M36: 13 | N36: 14 | O36: 15 | P36: 16 | Q36: 17 | R36: 18 | S36: 19 | T36: 20 | U36: 21 | V36: 22 | W36: 23 | X36: 24 | Y36: 25 | Z36: 26 | AA36: 27 | AB36: 28 | AC36: 29 | AD36: 30 | AE36: 31
B37: %% | G37: pkt. proc. | L37: %% | Q37: pkt. proc. | V37: %% | AA37: pkt. proc.
A38: WZ1 | B38: 20.71256342 | C38: 19.05040317 | D38: 16.67374091 | E38: 14.52058745 | F38: 16.55484646 | G38: =C38-B38 -> -1.662160245 | H38: -2.37666226 | I38: -2.153153462 | J38: =F38-E38 -> 2.034259012 | K38: =F38-B38 -> -4.157716956 | L38: 0 | M38: 0 | N38: 0 | O38: 0 | P38: 0 | Q38: =M38-L38 -> 0 | R38: 0 | S38: 0 | T38: 0 | U38: =P38-L38 -> 0 | V38: 101.05 | W38: 91.45 | X38: 70.87 | Y38: 73.51 | Z38: 97.35 | AA38: =W38-V38 -> -9.6 | AB38: =X38-W38 -> -20.58 | AC38: =Y38-X38 -> 2.64 | AD38: =Z38-Y38 -> 23.84 | AE38: =Z38-V38 -> -3.7
A39: WZ2 | B39: 4.562536716 | C39: 4.287009346 | D39: 2.25206275 | E39: 1.951562083 | F39: 10.02033378 | G39: -0.2755273698 | H39: -2.034946595 | I39: -0.3005006676 | J39: =F39-E39 -> 8.068771696 | K39: =F39-B39 -> 5.457797063 | L39: -310.12 | M39: -201.75 | N39: -144.9 | O39: -222.87 | P39: -2368.14 | Q39: 108.37 | R39: 56.85 | S39: -77.97 | T39: -2145.27 | U39: =P39-L39 -> -2058.02 | V39: 1678.72 | W39: 1257.52 | X39: 185.13 | Y39: 137.68 | Z39: 6171.46 | AA39: -421.2 | AB39: =X39-W39 -> -1072.39 | AC39: =Y39-X39 -> -47.45 | AD39: =Z39-Y39 -> 6033.78 | AE39: =Z39-V39 -> 4492.74
A40: WZ3 | B40: 4.236074766 | C40: 3.398327826 | D40: 2.903245208 | E40: 3.216946464 | F40: 3.346628838 | G40: -0.8377469408 | H40: -0.4950826173 | I40: 0.3137012558 | J40: 0.1296823745 | K40: -0.8894459279 | L40: 0 | M40: 0 | N40: 0 | O40: 0 | P40: 0 | Q40: =M40-L40 -> 0 | R40: =N40-M40 -> 0 | S40: =O40-N40 -> 0 | T40: =P40-O40 -> 0 | U40: =P40-L40 -> 0 | V40: 63.1 | W40: 63.02 | X40: 59.43 | Y40: 42.32 | Z40: 53.96 | AA40: -0.08 | AB40: -3.59 | AC40: -17.11 | AD40: 11.64 | AE40: -9.14
A41: WZ4 | B41: 9.378344459 | C41: 23.9587717 | D41: 5.516955941 | E41: 99.16655541 | F41: 6.365634179 | G41: 14.58042724 | H41: -18.44181575 | I41: 93.64959947 | J41: -92.80092123 | K41: -3.01271028 | L41: 0 | M41: 0 | N41: 0 | O41: 0 | P41: 0 | Q41: 0 | R41: 0 | S41: 0 | T41: 0 | U41: 0 | V41: 10156.25 | W41: 32908.36 | X41: 3329.12 | Y41: 140174.84 | Z41: 75.95 | AA41: 22752.11 | AB41: -29579.24 | AC41: 136845.72 | AD41: -140098.89 | AE41: -10080.3
A42: WZ5 | B42: 7.183551402 | C42: 6.032802379 | D42: 5.136146728 | E42: 5.402352941 | F42: 5.267656876 | G42: -1.150749022 | H42: -0.896655651 | I42: 0.2662062128 | J42: -0.1346960653 | K42: -1.915894526 | L42: 0 | M42: 0 | N42: 0 | O42: 0 | P42: 0 | Q42: 0 | R42: 0 | S42: 0 | T42: 0 | U42: 0 | V42: 105.59 | W42: 105.25 | X42: 103.95 | Y42: 72.19 | Z42: 89.17 | AA42: -0.34 | AB42: -1.3 | AC42: -31.76 | AD42: 16.98 | AE42: -16.42
A43: WZ6 | B43: 20.80289052 | C43: 20.05799733 | D43: 15.25556742 | E43: 46.47062083 | F43: 70.02028705 | G43: -0.7448931909 | H43: -4.802429907 | I43: 31.2150534 | J43: 23.54966622 | K43: 49.21739653 | L43: 0 | M43: 0 | N43: 0 | O43: 0 | P43: 0 | Q43: 0 | R43: 0 | S43: 0 | T43: 0 | U43: 0 | V43: 1130.55 | W43: 5304.65 | X43: 4380.65 | Y43: 11375.21 | Z43: 15389.21 | AA43: 4174.1 | AB43: -924 | AC43: 6994.56 | AD43: 4014 | AE43: 14258.66
A44: WZ7 | B44: 0.5526168224 | C44: 0.505333774 | D44: 0.5812359551 | E44: 0.3425974884 | F44: 0.5795861148 | G44: -0.04728304847 | H44: 0.0759021811 | I44: -0.2386384666 | J44: 0.2369886264 | K44: 0.02696929239 | L44: 0 | M44: 0 | N44: 0 | O44: 0 | P44: 0 | Q44: 0 | R44: 0 | S44: 0 | T44: 0 | U44: 0 | V44: 100 | W44: 100 | X44: 100 | Y44: 100 | Z44: 100 | AA44: 0 | AB44: 0 | AC44: 0 | AD44: 0 | AE44: 0

Sheet Tab_6 gminy miejsko-wiejskie
U1: powrót do spisu tablic
A2: GMINY MIEJSKO-WIEJSKIE
A4: Tablica 1. WSKAŹNIKI BUDŻETOWE - zestawienie zbiorcze
A5: Wskaźnik | B5: średnia arytmetyczna | L5: wartości minimalne | V5: wartości maksymalne
B6: 2019 | C6: 2020 | D6: 2021 | E6: 2022 | F6: 2023 | G6: (3-2) | H6: (4-3) | I6: (5-4) | J6: (6-5) | K6: (6-2) | L6: 2019 | M6: 2020 | N6: 2021 | O6: 2022 | P6: 2023 | Q6: (13-12) | R6: (14-13) | S6: (15-14) | T6: (16-15) | U6: (16-12) | V6: 2019 | W6: 2020 | X6: 2021 | Y6: 2022 | Z6: 2023 | AA6: (23-22) | AB6: (24-23) | AC6: (25-24) | AD6: (26-25) | AE6: (26-22)
A7: 1 | B7: 2 | C7: 3 | D7: 4 | E7: 5 | F7: 6 | G7: 7 | H7: 8 | I7: 9 | J7: 10 | K7: 11 | L7: 12 | M7: 13 | N7: 14 | O7: 15 | P7: 16 | Q7: 17 | R7: 18 | S7: 19 | T7: 20 | U7: 21 | V7: 22 | W7: 23 | X7: 24 | Y7: 25 | Z7: 26 | AA7: 27 | AB7: 28 | AC7: 29 | AD7: 30 | AE7: 31
B8: %% | G8: pkt. proc. | L8: %% | Q8: pkt. proc. | V8: %% | AA8: pkt. proc.
A9: WB1 | B9: 91.88753776 | C9: 89.82446086 | D9: 88.84354985 | E9: 91.62854985 | F9: 82.66691285 | G9: =C9-B9 -> -2.063076908 | H9: =D9-C9 -> -0.9809110078 | I9: =E9-D9 -> 2.785 | J9: =F9-E9 -> -8.961636998 | K9: =F9-B9 -> -9.220624914 | L9: 59.45 | M9: 64.63 | N9: 54 | O9: 54.68 | P9: 40.55 | Q9: =M9-L9 -> 5.18 | R9: =N9-M9 -> -10.63 | S9: =O9-N9 -> 0.68 | T9: =P9-O9 -> -14.13 | U9: =P9-L9 -> -18.9 | V9: 99.78 | W9: 98.75 | X9: 99.12 | Y9: 99.79 | Z9: 98.81 | AA9: =W9-V9 -> -1.03 | AB9: =X9-W9 -> 0.37 | AC9: =Y9-X9 -> 0.67 | AD9: =Z9-Y9 -> -0.98 | AE9: =Z9-V9 -> -0.97
A10: WB2 | B10: 59.70333826 | C10: 61.20257016 | D10: 60.0250517 | E10: 56.65069486 | F10: 53.41949778 | G10: 1.499231905 | H10: -1.177518464 | I10: -3.374356835 | J10: =F10-E10 -> -3.23119708 | K10: =F10-B10 -> -6.283840473 | L10: 19.67 | M10: 22.1 | N10: 20.39 | O10: 23.02 | P10: 16.21 | Q10: 2.43 | R10: -1.71 | S10: 2.63 | T10: =P10-O10 -> -6.81 | U10: =P10-L10 -> -3.46 | V10: 83.23 | W10: 83.13 | X10: 81.72 | Y10: 76.42 | Z10: 77.96 | AA10: -0.1 | AB10: -1.41 | AC10: -5.3 | AD10: =Z10-Y10 -> 1.54 | AE10: =Z10-V10 -> -5.27
A11: WB3 | B11: 8.511299094 | C11: 8.150310192 | D11: 10.31332326 | E11: 8.359778434 | F11: 4.456602659 | G11: -0.3609889016 | H11: 2.163013071 | I11: -1.953544829 | J11: -3.903175775 | K11: -4.054696435 | L11: -13.52 | M11: -2.01 | N11: -4.86 | O11: -9.93 | P11: -17.79 | Q11: 11.51 | R11: -2.85 | S11: -5.07 | T11: -7.86 | U11: -4.27 | V11: 25.47 | W11: 28.43 | X11: 33.26 | Y11: 26.99 | Z11: 27.29 | AA11: 2.96 | AB11: 4.83 | AC11: -6.27 | AD11: 0.3 | AE11: 1.82
A12: WB4 | B12: 15.60153619 | C12: 13.67413589 | D12: 14.88125554 | E12: 17.47883686 | F12: 25.56223043 | G12: -1.927400295 | H12: 1.207119645 | I12: 2.597581319 | J12: 8.08339357 | K12: 9.960694239 | L12: 0.86 | M12: 0.26 | N12: 1.3 | O12: 1.7 | P12: 0.77 | Q12: -0.6 | R12: 1.04 | S12: 0.4 | T12: -0.93 | U12: -0.09 | V12: 56.8 | W12: 47.49 | X12: 60.61 | Y12: 49.21 | Z12: 68.1 | AA12: -9.31 | AB12: 13.12 | AC12: -11.4 | AD12: 18.89 | AE12: 11.3
A13: WB5 | B13: 37.00848943 | C13: 35.95289513 | D13: 36.96042836 | E13: 35.56150665 | F13: 43.68463811 | G13: -1.0555943 | H13: 1.007533235 | I13: -1.398921713 | J13: 8.123131462 | K13: 6.676148683 | L13: 20.35 | M13: 20.13 | N13: 20.61 | O13: 20.62 | P13: 23.84 | Q13: -0.22 | R13: 0.48 | S13: 0.01 | T13: 3.22 | U13: 3.49 | V13: 46.42 | W13: 46.7 | X13: 46.61 | Y13: 49.67 | Z13: 58.29 | AA13: 0.28 | AB13: -0.09 | AC13: 3.06 | AD13: 8.62 | AE13: 11.87
A14: WB6 | B14: 8.874244713 | C14: 8.448519637 | D14: 10.81676737 | E14: 9.085619335 | F14: 4.979734121 | G14: -0.4257250755 | H14: 2.368247734 | I14: -1.731148036 | J14: -4.105885214 | K14: -3.894510592 | L14: -11.37 | M14: -0.52 | N14: -1.81 | O14: -9.07 | P14: -8.55 | Q14: 10.85 | R14: -1.29 | S14: -7.26 | T14: 0.52 | U14: 2.82 | V14: 28.44 | W14: 26.48 | X14: 32.21 | Y14: 45.46 | Z14: 38.94 | AA14: -1.96 | AB14: 5.73 | AC14: 13.25 | AD14: -6.52 | AE14: 10.5
A15: WB7 | B15: 122.3773412 | C15: 176.0882718 | D15: 174.5228656 | E15: 99.9852568 | F15: 79.41474151 | G15: 53.71093058 | H15: -1.565406204 | I15: -74.53760879 | J15: -20.57051529 | K15: -42.9625997 | L15: -129.52 | M15: 32.59 | N15: 35.59 | O15: -8.55 | P15: -54.25 | Q15: 162.11 | R15: 3 | S15: -44.14 | T15: -45.7 | U15: 75.27 | V15: 1521.95 | W15: 11822.74 | X15: 1014.9 | Y15: 579.8 | Z15: 1053.66 | AA15: 10300.79 | AB15: -10807.84 | AC15: -435.1 | AD15: 473.86 | AE15: -468.29
A16: WB8 | B16: 6.562186115 | C16: 10.62153619 | D16: 15.65305761 | E16: 12.70794682 | F16: 9.304032496 | G16: 4.059350074 | H16: 5.031521418 | I16: -2.945110783 | J16: -3.403914328 | K16: 2.741846381 | L16: -1.18 | M16: -0.2 | N16: 0.46 | O16: -2.53 | P16: -1.86 | Q16: 0.98 | R16: 0.66 | S16: -2.99 | T16: 0.67 | U16: -0.68 | V16: 74.27 | W16: 47.87 | X16: 67.99 | Y16: 48.24 | Z16: 57.58 | AA16: -26.4 | AB16: 20.12 | AC16: -19.75 | AD16: 9.34 | AE16: -16.69
A17: WB9 | B17: 122.3067356 | C17: 160.4028951 | D17: 204.7875628 | E17: 168.8311965 | F17: 131.6273412 | G17: 38.09615953 | H17: 44.38466765 | I17: -35.95636632 | J17: -37.20385524 | K17: 9.320605613 | L17: -104.93 | M17: 30.98 | N17: 24.52 | O17: 36.82 | P17: 27.76 | Q17: 135.91 | R17: -6.46 | S17: 12.3 | T17: -9.06 | U17: 132.69 | V17: 1070 | W17: 882.38 | X17: 814.18 | Y17: 1040 | Z17: 5991.12 | AA17: -187.62 | AB17: -68.2 | AC17: 225.82 | AD17: 4951.12 | AE17: 4921.12
A18: WB10 | B18: 121.2604874 | C18: 193.4033383 | D18: 235.9370015 | E18: 183.5005465 | F18: 134.4565879 | G18: 72.14285081 | H18: 42.53366322 | I18: -52.43645495 | J18: -49.04395864 | K18: 13.19610044 | L18: -5507.75 | M18: -1962.59 | N18: -224.46 | O18: -116.57 | P18: -36.46 | Q18: 3545.16 | R18: 1738.13 | S18: 107.89 | T18: 80.11 | U18: 5471.29 | V18: 1302.46 | W18: 12687.79 | X18: 2139.34 | Y18: 1746.12 | Z18: 5991.12 | AA18: 11385.33 | AB18: -10548.45 | AC18: -393.22 | AD18: 4245 | AE18: 4688.66
A19: WB11 | B19: 97.55966027 | C19: 65.82886263 | D19: 50.25454948 | E19: 68.9706647 | F19: 96.39418021 | G19: -31.73079764 | H19: -15.57431315 | I19: 18.71611521 | J19: 27.42351551 | K19: -1.165480059 | L19: -497.05 | M19: -3369.57 | N19: -2046.28 | O19: -862.26 | P19: -363.06 | Q19: -2872.52 | R19: 1323.29 | S19: 1184.02 | T19: 499.2 | U19: 133.99 | V19: 1209.86 | W19: 764.7 | X19: 477.7 | Y19: 1734.37 | Z19: 1275.36 | AA19: -445.16 | AB19: -287 | AC19: 1256.67 | AD19: -459.01 | AE19: 65.5
A20: WB12 | B20: 14.42554381 | C20: 14.56457903 | D20: 18.11129909 | E20: 14.88915408 | F20: 7.825997046 | G20: 0.1390352185 | H20: 3.546720069 | I20: -3.222145015 | J20: -7.063157033 | K20: -6.599546761 | L20: -18.92 | M20: -0.48 | N20: -4.66 | O20: -17.22 | P20: -24.68 | Q20: 18.44 | R20: -4.18 | S20: -12.56 | T20: -7.46 | U20: -5.76 | V20: 57.84 | W20: 52.14 | X20: 61.76 | Y20: 114.26 | Z20: 68.89 | AA20: -5.7 | AB20: 9.62 | AC20: 52.5 | AD20: -45.37 | AE20: 11.05
A22: Tablica 2. WSKAŹNIKI NA MIESZKAŃCA - zestawienie zbiorcze
A23: Wskaźnik | B23: średnia arytmetyczna | L23: wartości minimalne | V23: wartości maksymalne
B24: 2019 | C24: 2020 | D24: 2021 | E24: 2022 | F24: 2023 | G24: (3-2) | H24: (4-3) | I24: (5-4) | J24: (6-5) | K24: (6-2) | L24: 2019 | M24: 2020 | N24: 2021 | O24: 2022 | P24: 2023 | Q24: (13-12) | R24: (14-13) | S24: (15-14) | T24: (16-15) | U24: (16-12) | V24: 2019 | W24: 2020 | X24: 2021 | Y24: 2022 | Z24: 2023 | AA24: (23-22) | AB24: (24-23) | AC24: (25-24) | AD24: (26-25) | AE24: (26-22)
A25: 1 | B25: 2 | C25: 3 | D25: 4 | E25: 5 | F25: 6 | G25: 7 | H25: 8 | I25: 9 | J25: 10 | K25: 11 | L25: 12 | M25: 13 | N25: 14 | O25: 15 | P25: 16 | Q25: 17 | R25: 18 | S25: 19 | T25: 20 | U25: 21 | V25: 22 | W25: 23 | X25: 24 | Y25: 25 | Z25: 26 | AA25: 27 | AB25: 28 | AC25: 29 | AD25: 30 | AE25: 31
B26: zł | G26: %% | L26: zł | Q26: %% | V26: zł | AA26: %%
A27: WL1 | B27: 2787.330414 | C27: 3086.378567 | D27: 3284.695569 | E27: 3563.72966 | F27: 2936.301581 | G27: =C27/B27*100 -> 110.7288376 | H27: 106.4255566 | I27: 108.4949757 | J27: =F27/E27*100 -> 82.39406073 | K27: =F27/B27*100 -> 105.3445823 | L27: 1648.35 | M27: 1729.62 | N27: 1998.91 | O27: 1881.54 | P27: 1568.04 | Q27: =M27/L27*100 -> 104.9303849 | R27: =N27/M27*100 -> 115.5693158 | S27: =O27/N27*100 -> 94.12829992 | T27: =P27/O27*100 -> 83.33811665 | U27: =P27/L27*100 -> 95.12785513 | V27: 4775.53 | W27: 4914.98 | X27: 4967.72 | Y27: 5284.58 | Z27: 4751.53 | AA27: =W27/V27*100 -> 102.9200947 | AB27: =X27/W27*100 -> 101.0730461 | AC27: =Y27/X27*100 -> 106.3783788 | AD27: =Z27/Y27*100 -> 89.91310568 | AE27: =Z27/V27*100 -> 99.49743798
A28: WL2 | B28: 410.596514 | C28: 423.0254653 | D28: 583.5969276 | E28: 549.213678 | F28: 256.2711965 | G28: 103.0270474 | H28: 137.9578715 | I28: 94.10839091 | J28: =F28/E28*100 -> 46.6614738 | K28: =F28/B28*100 -> 62.41436245 | L28: -639.66 | M28: -103.09 | N28: -286.88 | O28: -575.67 | P28: -979.7 | Q28: =M28/L28*100 -> 16.11637432 | R28: =N28/M28*100 -> 278.2811136 | S28: =O28/N28*100 -> 200.6657836 | T28: =P28/O28*100 -> 170.184307 | U28: =P28/L28*100 -> 153.159491 | V28: 1753.16 | W28: 1928.05 | X28: 3028.47 | Y28: 3827.48 | Z28: 1840.95 | AA28: 109.975701 | AB28: =X28/W28*100 -> 157.074246 | AC28: =Y28/X28*100 -> 126.3832893 | AD28: =Z28/Y28*100 -> 48.09822651 | AE28: =Z28/V28*100 -> 105.0075293
A29: WL3 | B29: 1360.633191 | C29: 1406.576204 | D29: 1419.071315 | E29: 1461.229941 | F29: 1637.821817 | G29: 103.3765907 | H29: 100.8883351 | I29: 102.9708603 | J29: 112.0851531 | K29: 120.3720318 | L29: 0 | M29: 0 | N29: 0 | O29: 0 | P29: 0 | Q29: 0 | R29: 0 | S29: 0 | T29: 0 | U29: 0 | V29: 7070.7 | W29: 7444.52 | X29: 9192.28 | Y29: 10324.98 | Z29: 11102.7 | AA29: 105.2868881 | AB29: =X29/W29*100 -> 123.4771349 | AC29: 112.3222965 | AD29: 107.5324117 | AE29: 157.024057
A30: WL4 | B30: 1119.901285 | C30: 1384.238139 | D30: 1957.080768 | E30: 2243.607962 | F30: 2502.669926 | G30: 123.6035852 | H30: 141.3832428 | I30: 114.64054 | J30: 111.5466681 | K30: 223.4723685 | L30: -524.47 | M30: 325.71 | N30: 427.6 | O30: 447.68 | P30: 253.45 | Q30: =M30/L30*100 -> -62.10269415 | R30: =N30/M30*100 -> 131.2824292 | S30: 104.6959775 | T30: 56.61409936 | U30: -48.32497569 | V30: 5304.64 | W30: 6484.18 | X30: 9313.97 | Y30: 10760.77 | Z30: 13414.6 | AA30: 122.2360047 | AB30: =X30/W30*100 -> 143.6414473 | AC30: 115.5336554 | AD30: 124.6620827 | AE30: 252.8842674
A31: WL5 | B31: 919.5969129 | C31: 1192.335436 | D31: 1769.387814 | E31: 2056.351034 | F31: 2322.042777 | G31: 129.6584861 | H31: 148.3968153 | I31: 116.2182207 | J31: 112.9205441 | K31: 252.5065868 | L31: -1971.41 | M31: -1867.23 | N31: -1830.42 | O31: -548.61 | P31: -334.69 | Q31: =M31/L31*100 -> 94.71545746 | R31: =N31/M31*100 -> 98.02863065 | S31: 29.97180975 | T31: 61.00690837 | U31: 16.97718892 | V31: 5304.64 | W31: 6484.18 | X31: 9176.23 | Y31: 10760.77 | Z31: 13058.56 | AA31: 122.2360047 | AB31: =X31/W31*100 -> 141.5172003 | AC31: 117.2678758 | AD31: 121.3533976 | AE31: 246.1724076
A33: Tablica 3. WSKAŹNIKI DLA ZOBOWIĄZAŃ WG TYTUŁÓW DŁUŻNYCH - zestawienie zbiorcze
A34: Wskaźnik | B34: średnia arytmetyczna | L34: wartości minimalne | V34: wartości maksymalne
B35: 2019 | C35: 2020 | D35: 2021 | E35: 2022 | F35: 2023 | G35: (3-2) | H35: (4-3) | I35: (5-4) | J35: (6-5) | K35: (6-2) | L35: 2019 | M35: 2020 | N35: 2021 | O35: 2022 | P35: 2023 | Q35: (13-12) | R35: (14-13) | S35: (15-14) | T35: (16-15) | U35: (16-12) | V35: 2019 | W35: 2020 | X35: 2021 | Y35: 2022 | Z35: 2023 | AA35: (23-22) | AB35: (24-23) | AC35: (25-24) | AD35: (26-25) | AE35: (26-22)
A36: 1 | B36: 2 | C36: 3 | D36: 4 | E36: 5 | F36: 6 | G36: 7 | H36: 8 | I36: 9 | J36: 10 | K36: 11 | L36: 12 | M36: 13 | N36: 14 | O36: 15 | P36: 16 | Q36: 17 | R36: 18 | S36: 19 | T36: 20 | U36: 21 | V36: 22 | W36: 23 | X36: 24 | Y36: 25 | Z36: 26 | AA36: 27 | AB36: 28 | AC36: 29 | AD36: 30 | AE36: 31
B37: %% | G37: pkt. proc. | L37: %% | Q37: pkt. proc. | V37: %% | AA37: pkt. proc.
A38: WZ1 | B38: 26.1729099 | C38: 24.46797583 | D38: 22.36824225 | E38: 20.98483384 | F38: 24.01868538 | G38: =C38-B38 -> -1.704934066 | H38: -2.099733586 | I38: -1.383408408 | J38: =F38-E38 -> 3.03385154 | K38: =F38-B38 -> -2.15422452 | L38: 0 | M38: 0 | N38: 0 | O38: 0 | P38: 0 | Q38: =M38-L38 -> 0 | R38: 0 | S38: 0 | T38: 0 | U38: =P38-L38 -> 0 | V38: 106.41 | W38: 114.97 | X38: 92.07 | Y38: 94.63 | Z38: 94.82 | AA38: =W38-V38 -> 8.56 | AB38: =X38-W38 -> -22.9 | AC38: =Y38-X38 -> 2.56 | AD38: =Z38-Y38 -> 0.19 | AE38: =Z38-V38 -> -11.59
A39: WZ2 | B39: 4.43028065 | C39: 4.055465288 | D39: 3.899187592 | E39: 4.443574594 | F39: 19.26276219 | G39: -0.3748153619 | H39: -0.1562776957 | I39: 0.5443870015 | J39: =F39-E39 -> 14.81918759 | K39: =F39-B39 -> 14.83248154 | L39: -94.79 | M39: -1080.7 | N39: -18.82 | O39: -731.55 | P39: -835.4 | Q39: -985.91 | R39: 1061.88 | S39: -712.73 | T39: -103.85 | U39: =P39-L39 -> -740.61 | V39: 72.65 | W39: 802.71 | X39: 219.72 | Y39: 353.69 | Z39: 8199.79 | AA39: 730.06 | AB39: =X39-W39 -> -582.99 | AC39: =Y39-X39 -> 133.97 | AD39: =Z39-Y39 -> 7846.1 | AE39: =Z39-V39 -> 8127.14
A40: WZ3 | B40: 4.57183161 | C40: 3.85826284 | D40: 3.323353474 | E40: 3.829848943 | F40: 4.27717873 | G40: -0.7135687702 | H40: -0.5349093656 | I40: 0.5064954683 | J40: 0.4473297871 | K40: -0.2946528804 | L40: 0 | M40: 0 | N40: 0 | O40: 0 | P40: 0 | Q40: =M40-L40 -> 0 | R40: =N40-M40 -> 0 | S40: =O40-N40 -> 0 | T40: =P40-O40 -> 0 | U40: =P40-L40 -> 0 | V40: 66.02 | W40: 55.23 | X40: 48.04 | Y40: 31.42 | Z40: 33.52 | AA40: -10.79 | AB40: -7.19 | AC40: -16.62 | AD40: 2.1 | AE40: -32.5
A41: WZ4 | B41: 34.91265879 | C41: 2.036868538 | D41: 1.490797637 | E41: 11.61485968 | F41: 6.75366322 | G41: -32.87579025 | H41: -0.546070901 | I41: 10.12406204 | J41: -4.861196455 | K41: -28.15899557 | L41: 0 | M41: 0 | N41: 0 | O41: 0 | P41: 0 | Q41: 0 | R41: 0 | S41: 0 | T41: 0 | U41: 0 | V41: 21820.81 | W41: 24.96 | X41: 21.75 | Y41: 4127.06 | Z41: 66.9 | AA41: -21795.85 | AB41: -3.21 | AC41: 4105.31 | AD41: -4060.16 | AE41: -21753.91
A42: WZ5 | B42: 7.575716396 | C42: 6.741993958 | D42: 5.632039275 | E42: 6.369652568 | F42: 6.417090103 | G42: -0.8337224382 | H42: -1.109954683 | I42: 0.7376132931 | J42: 0.04743753542 | K42: -1.158626292 | L42: 0 | M42: 0 | N42: 0 | O42: 0 | P42: 0 | Q42: 0 | R42: 0 | S42: 0 | T42: 0 | U42: 0 | V42: 141.54 | W42: 92.5 | X42: 80.86 | Y42: 53.27 | Z42: 49.57 | AA42: -49.04 | AB42: -11.64 | AC42: -27.59 | AD42: -3.7 | AE42: -91.97
A43: WZ6 | B43: 25.38751846 | C43: 22.61986706 | D43: 16.32335303 | E43: 50.70642541 | F43: 79.00007386 | G43: -2.767651403 | H43: -6.296514032 | I43: 34.38307238 | J43: 28.29364845 | K43: 53.61255539 | L43: 0 | M43: 0 | N43: 0 | O43: 0 | P43: 0 | Q43: 0 | R43: 0 | S43: 0 | T43: 0 | U43: 0 | V43: 486.78 | W43: 1006.72 | X43: 2182.78 | Y43: 887.79 | Z43: 1925.55 | AA43: 519.94 | AB43: 1176.06 | AC43: -1294.99 | AD43: 1037.76 | AE43: 1438.77
A44: WZ7 | B44: 0.7408862629 | C44: 0.4219033233 | D44: 0.2342749245 | E44: 0.2752265861 | F44: 0.4074593796 | G44: -0.3189829397 | H44: -0.1876283988 | I44: 0.04095166163 | J44: 0.1322327935 | K44: -0.3334268833 | L44: 0 | M44: 0 | N44: 0 | O44: 0 | P44: 0 | Q44: 0 | R44: 0 | S44: 0 | T44: 0 | U44: 0 | V44: 100 | W44: 100 | X44: 84.4 | Y44: 100 | Z44: 100 | AA44: 0 | AB44: -15.6 | AC44: 15.6 | AD44: 0 | AE44: 0

Sheet Tab_7 miasta na p. powiatu
U1: powrót do spisu tablic
A2: MIASTA NA PRAWACH POWIATU
A4: Tablica 1. WSKAŹNIKI BUDŻETOWE - zestawienie zbiorcze
A5: Wskaźnik | B5: średnia arytmetyczna | L5: wartości minimalne | V5: wartości maksymalne
B6: 2019 | C6: 2020 | D6: 2021 | E6: 2022 | F6: 2023 | G6: (3-2) | H6: (4-3) | I6: (5-4) | J6: (6-5) | K6: (6-2) | L6: 2019 | M6: 2020 | N6: 2021 | O6: 2022 | P6: 2023 | Q6: (13-12) | R6: (14-13) | S6: (15-14) | T6: (16-15) | U6: (16-12) | V6: 2019 | W6: 2020 | X6: 2021 | Y6: 2022 | Z6: 2023 | AA6: (23-22) | AB6: (24-23) | AC6: (25-24) | AD6: (26-25) | AE6: (26-22)
A7: 1 | B7: 2 | C7: 3 | D7: 4 | E7: 5 | F7: 6 | G7: 7 | H7: 8 | I7: 9 | J7: 10 | K7: 11 | L7: 12 | M7: 13 | N7: 14 | O7: 15 | P7: 16 | Q7: 17 | R7: 18 | S7: 19 | T7: 20 | U7: 21 | V7: 22 | W7: 23 | X7: 24 | Y7: 25 | Z7: 26 | AA7: 27 | AB7: 28 | AC7: 29 | AD7: 30 | AE7: 31
B8: %% | G8: pkt. proc. | L8: %% | Q8: pkt. proc. | V8: %% | AA8: pkt. proc.
A9: WB1 | B9: 91.36388889 | C9: 88.81240741 | D9: 91.25203704 | E9: 92.54388889 | F9: 89.45611111 | G9: =C9-B9 -> -2.551481481 | H9: =D9-C9 -> 2.43962963 | I9: =E9-D9 -> 1.291851852 | J9: =F9-E9 -> -3.087777778 | K9: =F9-B9 -> -1.907777778 | L9: 79.63 | M9: 53.49 | N9: 45.75 | O9: 74.67 | P9: 62.17 | Q9: =M9-L9 -> -26.14 | R9: =N9-M9 -> -7.74 | S9: =O9-N9 -> 28.92 | T9: =P9-O9 -> -12.5 | U9: =P9-L9 -> -17.46 | V9: 98.06 | W9: 97.67 | X9: 98.02 | Y9: 97.57 | Z9: 97.59 | AA9: =W9-V9 -> -0.39 | AB9: =X9-W9 -> 0.35 | AC9: =Y9-X9 -> -0.45 | AD9: =Z9-Y9 -> 0.02 | AE9: =Z9-V9 -> -0.47
A10: WB2 | B10: 49.6062963 | C10: 52.73407407 | D10: 51.86648148 | E10: 48.45907407 | F10: 49.96388889 | G10: 3.127777778 | H10: -0.8675925926 | I10: -3.407407407 | J10: =F10-E10 -> 1.504814815 | K10: =F10-B10 -> 0.3575925926 | L10: 27.01 | M10: 32.55 | N10: 30.29 | O10: 29.86 | P10: 35.52 | Q10: 5.54 | R10: -2.26 | S10: -0.43 | T10: =P10-O10 -> 5.66 | U10: =P10-L10 -> 8.51 | V10: 63.44 | W10: 66.65 | X10: 65.68 | Y10: 62.79 | Z10: 64.72 | AA10: 3.21 | AB10: -0.97 | AC10: -2.89 | AD10: =Z10-Y10 -> 1.93 | AE10: =Z10-V10 -> 1.28
A11: WB3 | B11: 6.275925926 | C11: 4.543703704 | D11: 9.127777778 | E11: 3.591296296 | F11: 2.084074074 | G11: -1.732222222 | H11: 4.584074074 | I11: -5.536481481 | J11: -1.507222222 | K11: -4.191851852 | L11: -1.53 | M11: -2.5 | N11: 1.78 | O11: -3.8 | P11: -6.56 | Q11: -0.97 | R11: 4.28 | S11: -5.58 | T11: -2.76 | U11: -5.03 | V11: 15.42 | W11: 13.71 | X11: 15.67 | Y11: 13.87 | Z11: 15.75 | AA11: -1.71 | AB11: 1.96 | AC11: -1.8 | AD11: 1.88 | AE11: 0.33
A12: WB4 | B12: 15.92666667 | C12: 14.87240741 | D12: 14.37 | E12: 15.40722222 | F12: 17.11407407 | G12: -1.054259259 | H12: -0.5024074074 | I12: 1.037222222 | J12: 1.706851852 | K12: 1.187407407 | L12: 4.38 | M12: 3.14 | N12: 4.04 | O12: 7.45 | P12: 6.34 | Q12: -1.24 | R12: 0.9 | S12: 3.41 | T12: -1.11 | U12: 1.96 | V12: 45.29 | W12: 56.42 | X12: 62.69 | Y12: 42.42 | Z12: 37.21 | AA12: 11.13 | AB12: 6.27 | AC12: -20.27 | AD12: -5.21 | AE12: -8.08
A13: WB5 | B13: 41.55962963 | C13: 41.145 | D13: 41.88277778 | E13: 42.79740741 | F13: 46.86407407 | G13: -0.4146296296 | H13: 0.7377777778 | I13: 0.9146296296 | J13: 4.066666667 | K13: 5.304444444 | L13: 30.24 | M13: 31.94 | N13: 33.58 | O13: 32.82 | P13: 35.08 | Q13: 1.7 | R13: 1.64 | S13: -0.76 | T13: 2.26 | U13: 4.84 | V13: 51.58 | W13: 50.29 | X13: 50.2 | Y13: 52.23 | Z13: 53.76 | AA13: -1.29 | AB13: -0.09 | AC13: 2.03 | AD13: 1.53 | AE13: 2.18
A14: WB6 | B14: 7.667037037 | C14: 5.969444444 | D14: 10.86444444 | E14: 5.104444444 | F14: 3.829259259 | G14: -1.697592593 | H14: 4.895 | I14: -5.76 | J14: -1.275185185 | K14: -3.837777778 | L14: 1.01 | M14: 0.25 | N14: 6.06 | O14: -3.14 | P14: -4.79 | Q14: -0.76 | R14: 5.81 | S14: -9.2 | T14: -1.65 | U14: -5.8 | V14: 20.83 | W14: 15 | X14: 18.32 | Y14: 15.09 | Z14: 16.83 | AA14: -5.83 | AB14: 3.32 | AC14: -3.23 | AD14: 1.74 | AE14: -4
A15: WB7 | B15: 95.34018519 | C15: 110.5377778 | D15: 133.2790741 | E15: 66.23759259 | F15: 68.8662963 | G15: 15.19759259 | H15: 22.7412963 | I15: -67.04148148 | J15: 2.628703704 | K15: -26.47388889 | L15: 28.75 | M15: 62.54 | N15: 62 | O15: -9.6 | P15: -1.73 | Q15: 33.79 | R15: -0.54 | S15: -71.6 | T15: 7.87 | U15: -30.48 | V15: 182.51 | W15: 282.22 | X15: 256.27 | Y15: 138.01 | Z15: 153.41 | AA15: 99.71 | AB15: -25.95 | AC15: -118.26 | AD15: 15.4 | AE15: -29.1
A16: WB8 | B16: 5.785925926 | C16: 8.142222222 | D16: 11.4662963 | E16: 6.887592593 | F16: 5.47537037 | G16: 2.356296296 | H16: 3.324074074 | I16: -4.578703704 | J16: -1.412222222 | K16: -0.3105555556 | L16: -0.59 | M16: 1.07 | N16: 5.23 | O16: -0.19 | P16: -0.71 | Q16: 1.66 | R16: 4.16 | S16: -5.42 | T16: -0.52 | U16: -0.12 | V16: 22.63 | W16: 18.92 | X16: 22.21 | Y16: 17.31 | Z16: 14.22 | AA16: -3.71 | AB16: 3.29 | AC16: -4.9 | AD16: -3.09 | AE16: -8.41
A17: WB9 | B17: 104.3140741 | C17: 120.9881481 | D17: 154.9162963 | E17: 121.7424074 | F17: 96.39833333 | G17: 16.67407407 | H17: 33.92814815 | I17: -33.17388889 | J17: -25.34407407 | K17: -7.915740741 | L17: 54.55 | M17: 52.56 | N17: 64.94 | O17: 45.86 | P17: 34.03 | Q17: -1.99 | R17: 12.38 | S17: -19.08 | T17: -11.83 | U17: -20.52 | V17: 274.65 | W17: 249.06 | X17: 279.68 | Y17: 200.63 | Z17: 208.9 | AA17: -25.59 | AB17: 30.62 | AC17: -79.05 | AD17: 8.27 | AE17: -65.75
A18: WB10 | B18: 102.0683333 | C18: 124.9477778 | D18: 165.797037 | E18: 124.4516667 | F18: 95.12333333 | G18: 22.87944444 | H18: 40.84925926 | I18: -41.34537037 | J18: -29.32833333 | K18: -6.945 | L18: -51.46 | M18: 39.07 | N18: -6.96 | O18: -5.23 | P18: -21.45 | Q18: 90.53 | R18: -46.03 | S18: 1.73 | T18: -16.22 | U18: 30.01 | V18: 274.74 | W18: 266.1 | X18: 311.1 | Y18: 225.07 | Z18: 224.86 | AA18: -8.64 | AB18: 45 | AC18: -86.03 | AD18: -0.21 | AE18: -49.88
A19: WB11 | B19: 106.7824074 | C19: 94.84055556 | D19: 38.71462963 | E19: 52.42740741 | F19: 111.7294444 | G19: -11.94185185 | H19: -56.12592593 | I19: 13.71277778 | J19: 59.30203704 | K19: 4.947037037 | L19: -194.33 | M19: 37.58 | N19: -1437.68 | O19: -1910.53 | P19: -466.19 | Q19: 231.91 | R19: -1475.26 | S19: -472.85 | T19: 1444.34 | U19: -271.86 | V19: 277.2 | W19: 255.95 | X19: 193.91 | Y19: 272.36 | Z19: 371.13 | AA19: -21.25 | AB19: -62.04 | AC19: 78.45 | AD19: 98.77 | AE19: 93.93
A20: WB12 | B20: 11.10148148 | C20: 9.219259259 | D20: 15.96407407 | E20: 7.253148148 | F20: 5.313148148 | G20: -1.882222222 | H20: 6.744814815 | I20: -8.710925926 | J20: -1.94 | K20: -5.788333333 | L20: 2.01 | M20: 0.49 | N20: 8.6 | O20: -4.3 | P20: -5.61 | Q20: -1.52 | R20: 8.11 | S20: -12.9 | T20: -1.31 | U20: -7.62 | V20: 29.37 | W20: 21.52 | X20: 26.2 | Y20: 18.95 | Z20: 25.18 | AA20: -7.85 | AB20: 4.68 | AC20: -7.25 | AD20: 6.23 | AE20: -4.19
A22: Tablica 2. WSKAŹNIKI NA MIESZKAŃCA - zestawienie zbiorcze
A23: Wskaźnik | B23: średnia arytmetyczna | L23: wartości minimalne | V23: wartości maksymalne
B24: 2019 | C24: 2020 | D24: 2021 | E24: 2022 | F24: 2023 | G24: (3-2) | H24: (4-3) | I24: (5-4) | J24: (6-5) | K24: (6-2) | L24: 2019 | M24: 2020 | N24: 2021 | O24: 2022 | P24: 2023 | Q24: (13-12) | R24: (14-13) | S24: (15-14) | T24: (16-15) | U24: (16-12) | V24: 2019 | W24: 2020 | X24: 2021 | Y24: 2022 | Z24: 2023 | AA24: (23-22) | AB24: (24-23) | AC24: (25-24) | AD24: (26-25) | AE24: (26-22)
A25: 1 | B25: 2 | C25: 3 | D25: 4 | E25: 5 | F25: 6 | G25: 7 | H25: 8 | I25: 9 | J25: 10 | K25: 11 | L25: 12 | M25: 13 | N25: 14 | O25: 15 | P25: 16 | Q25: 17 | R25: 18 | S25: 19 | T25: 20 | U25: 21 | V25: 22 | W25: 23 | X25: 24 | Y25: 25 | Z25: 26 | AA25: 27 | AB25: 28 | AC25: 29 | AD25: 30 | AE25: 31
B26: zł | G26: %% | L26: zł | Q26: %% | V26: zł | AA26: %%
A27: WL1 | B27: 3068.002407 | C27: 3504.423148 | D27: 3839.035 | E27: 3681.513148 | F27: 3925.218519 | G27: =C27/B27*100 -> 114.2249152 | H27: 109.5482719 | I27: 95.89683731 | J27: =F27/E27*100 -> 106.6197066 | K27: =F27/B27*100 -> 127.9405293 | L27: 2212.37 | M27: 2560.2 | N27: 2904.64 | O27: 2672.49 | P27: 2665.13 | Q27: =M27/L27*100 -> 115.7220537 | R27: 113.4536364 | S27: 92.0076154 | T27: =P27/O27*100 -> 99.7246014 | U27: =P27/L27*100 -> 120.4649313 | V27: 4247.91 | W27: 4829.05 | X27: 5206.16 | Y27: 5190.63 | Z27: 5789.64 | AA27: =W27/V27*100 -> 113.68061 | AB27: =X27/W27*100 -> 107.8091964 | AC27: =Y27/X27*100 -> 99.70169953 | AD27: =Z27/Y27*100 -> 111.5402177 | AE27: =Z27/V27*100 -> 136.293848
A28: WL2 | B28: 398.4405556 | C28: 311.8264815 | D28: 691.0948148 | E28: 288.737037 | F28: 180.7042593 | G28: 78.26173243 | H28: 221.6280066 | I28: 41.77965611 | J28: =F28/E28*100 -> 62.58437127 | K28: =F28/B28*100 -> 45.35287805 | L28: -80.68 | M28: -143.35 | N28: 112.52 | O28: -283 | P28: -455.73 | Q28: 177.6772434 | R28: -78.49319847 | S28: -251.5108425 | T28: =P28/O28*100 -> 161.0353357 | U28: =P28/L28*100 -> 564.86118 | V28: 1302.14 | W28: 1140.84 | X28: 1389.62 | Y28: 1411.06 | Z28: 1684.28 | AA28: 87.6126991 | AB28: =X28/W28*100 -> 121.8067389 | AC28: =Y28/X28*100 -> 101.5428678 | AD28: =Z28/Y28*100 -> 119.3627486 | AE28: =Z28/V28*100 -> 129.3470748
A29: WL3 | B29: 2555.464259 | C29: 2808.747778 | D29: 2865.808889 | E29: 3028.412037 | F29: 3457.690556 | G29: 109.9114483 | H29: 102.0315498 | I29: 105.6739006 | J29: 114.1750367 | K29: 135.3057685 | L29: 339.42 | M29: 271.49 | N29: 206.13 | O29: 269.02 | P29: 372.04 | Q29: 79.98644747 | R29: 75.92544845 | S29: 130.5098724 | T29: 138.2945506 | U29: 109.610512 | V29: 5385.23 | W29: 5697.56 | X29: 6934.78 | Y29: 7922.58 | Z29: 7537.28 | AA29: 105.7997523 | AB29: =X29/W29*100 -> 121.7149095 | AC29: 114.2441433 | AD29: 95.13668527 | AE29: 139.9620815
A30: WL4 | B30: 1359.655556 | C30: 1638.948148 | D30: 2204.401296 | E30: 1980.921111 | F30: 1830.431296 | G30: 120.5414225 | H30: 134.5009785 | I30: 89.86209155 | J30: 92.40303847 | K30: 134.6246326 | L30: 389.38 | M30: 292.79 | N30: 880.17 | O30: 514.97 | P30: 594.63 | Q30: 75.19389799 | R30: 300.6147751 | S30: 58.5080155 | T30: 115.4688623 | U30: 152.7120037 | V30: 3803.62 | W30: 8908.33 | X30: 13688.93 | Y30: 6582.66 | Z30: 7625.87 | AA30: 234.2066242 | AB30: =X30/W30*100 -> 153.6643793 | AC30: 48.08746922 | AD30: 115.8478487 | AE30: 200.4897966
A31: WL5 | B31: 1132.083519 | C31: 1414.950185 | D31: 1937.912037 | E31: 1688.242963 | F31: 1580.477037 | G31: 124.986378 | H31: 136.9597359 | I31: 87.11659408 | J31: 93.61668147 | K31: 139.6078126 | L31: -170.19 | M31: 169.49 | N31: -44.99 | O31: -59.98 | P31: -326.15 | Q31: -99.58869499 | R31: -26.5443389 | S31: 133.3185152 | T31: 543.7645882 | U31: 191.6387567 | V31: 3352.38 | W31: 8630.57 | X31: 13688.93 | Y31: 6582.66 | Z31: 7115.52 | AA31: 257.4460533 | AB31: =X31/W31*100 -> 158.6098021 | AC31: 48.08746922 | AD31: 108.0949039 | AE31: 212.2527876
A33: Tablica 3. WSKAŹNIKI DLA ZOBOWIĄZAŃ WG TYTUŁÓW DŁUŻNYCH - zestawienie zbiorcze
A34: Wskaźnik | B34: średnia arytmetyczna | L34: wartości minimalne | V34: wartości maksymalne
B35: 2019 | C35: 2020 | D35: 2021 | E35: 2022 | F35: 2023 | G35: (3-2) | H35: (4-3) | I35: (5-4) | J35: (6-5) | K35: (6-2) | L35: 2019 | M35: 2020 | N35: 2021 | O35: 2022 | P35: 2023 | Q35: (13-12) | R35: (14-13) | S35: (15-14) | T35: (16-15) | U35: (16-12) | V35: 2019 | W35: 2020 | X35: 2021 | Y35: 2022 | Z35: 2023 | AA35: (23-22) | AB35: (24-23) | AC35: (25-24) | AD35: (26-25) | AE35: (26-22)
A36: 1 | B36: 2 | C36: 3 | D36: 4 | E36: 5 | F36: 6 | G36: 7 | H36: 8 | I36: 9 | J36: 10 | K36: 11 | L36: 12 | M36: 13 | N36: 14 | O36: 15 | P36: 16 | Q36: 17 | R36: 18 | S36: 19 | T36: 20 | U36: 21 | V36: 22 | W36: 23 | X36: 24 | Y36: 25 | Z36: 26 | AA36: 27 | AB36: 28 | AC36: 29 | AD36: 30 | AE36: 31
B37: %% | G37: pkt. proc. | L37: %% | Q37: pkt. proc. | V37: %% | AA37: pkt. proc.
A38: WZ1 | B38: 37.40759259 | C38: 37.07333333 | D38: 34.82814815 | E38: 36.61925926 | F38: 39.43759259 | G38: =C38-B38 -> -0.3342592593 | H38: -2.245185185 | I38: 1.791111111 | J38: =F38-E38 -> 2.818333333 | K38: =F38-B38 -> 2.03 | L38: 5.87 | M38: 4.08 | N38: 2.93 | O38: 3.8 | P38: 4.81 | Q38: =M38-L38 -> -1.79 | R38: -1.15 | S38: 0.87 | T38: 1.01 | U38: =P38-L38 -> -1.06 | V38: 85.94 | W38: 81.48 | X38: 86.94 | Y38: 79.53 | Z38: 91.3 | AA38: =W38-V38 -> -4.46 | AB38: =X38-W38 -> 5.46 | AC38: =Y38-X38 -> -7.41 | AD38: =Z38-Y38 -> 11.77 | AE38: =Z38-V38 -> 5.36
A39: WZ2 | B39: 8.491111111 | C39: 43.77333333 | D39: 4.942222222 | E39: -24.71888889 | F39: 2.246111111 | G39: 35.28222222 | H39: -38.83111111 | I39: -29.66111111 | J39: =F39-E39 -> 26.965 | K39: =F39-B39 -> -6.245 | L39: -14.7 | M39: -89.67 | N39: 0.23 | O39: -542.03 | P39: -149.48 | Q39: -74.97 | R39: 89.9 | S39: -542.26 | T39: 392.55 | U39: =P39-L39 -> -134.78 | V39: 58.11 | W39: 1273.69 | X39: 14.49 | Y39: 116.99 | Z39: 158.92 | AA39: 1215.58 | AB39: =X39-W39 -> -1259.2 | AC39: =Y39-X39 -> 102.5 | AD39: =Z39-Y39 -> 41.93 | AE39: =Z39-V39 -> 100.81
A40: WZ3 | B40: 4.177037037 | C40: 3.623888889 | D40: 3.739074074 | E40: 5.272407407 | F40: 5.405740741 | G40: -0.5531481481 | H40: 0.1151851852 | I40: 1.533333333 | J40: 0.1333333333 | K40: 1.228703704 | L40: 0.14 | M40: 0.48 | N40: 0.32 | O40: 0.92 | P40: 1.06 | Q40: =M40-L40 -> 0.34 | R40: =N40-M40 -> -0.16 | S40: =O40-N40 -> 0.6 | T40: =P40-O40 -> 0.14 | U40: =P40-L40 -> 0.92 | V40: 13.17 | W40: 10.41 | X40: 17.33 | Y40: 21.18 | Z40: 19.47 | AA40: -2.76 | AB40: 6.92 | AC40: 3.85 | AD40: -1.71 | AE40: 6.3
A41: WZ4 | B41: 2.421666667 | C41: 1.855740741 | D41: 1.250185185 | E41: 4.860925926 | F41: 6.426481481 | G41: -0.5659259259 | H41: -0.6055555556 | I41: 3.610740741 | J41: 1.565555556 | K41: 4.004814815 | L41: 0.72 | M41: 1.08 | N41: 0.53 | O41: 2.47 | P41: 2.62 | Q41: 0.36 | R41: -0.55 | S41: 1.94 | T41: 0.15 | U41: 1.9 | V41: 3.89 | W41: 3.74 | X41: 2.31 | Y41: 6.96 | Z41: 9.58 | AA41: -0.15 | AB41: -1.43 | AC41: 4.65 | AD41: 2.62 | AE41: 5.69
A42: WZ5 | B42: 6.126666667 | C42: 5.627037037 | D42: 5.384814815 | E42: 7.405555556 | F42: 7.118703704 | G42: -0.4996296296 | H42: -0.2422222222 | I42: 2.020740741 | J42: -0.2868518519 | K42: 0.992037037 | L42: 0.19 | M42: 0.75 | N42: 0.8 | O42: 1.35 | P42: 1.27 | Q42: 0.56 | R42: 0.05 | S42: 0.55 | T42: -0.08 | U42: 1.08 | V42: 19.22 | W42: 15.5 | X42: 24.43 | Y42: 33.48 | Z42: 23.91 | AA42: -3.72 | AB42: 8.93 | AC42: 9.05 | AD42: -9.57 | AE42: 4.69
A43: WZ6 | B43: 85.83740741 | C43: 36.12 | D43: 19.12537037 | E43: 235.7261111 | F43: 140.9755556 | G43: -49.71740741 | H43: -16.99462963 | I43: 216.6007407 | J43: -94.75055556 | K43: 55.13814815 | L43: 4.63 | M43: 0 | N43: 0 | O43: 0 | P43: 13.47 | Q43: -4.63 | R43: 0 | S43: 0 | T43: 13.47 | U43: 8.84 | V43: 2191.19 | W43: 353.14 | X43: 90.18 | Y43: 9238.64 | Z43: 869.15 | AA43: -1838.05 | AB43: -262.96 | AC43: 9148.46 | AD43: -8369.49 | AE43: -1322.04
A44: WZ7 | B44: 0.11 | C44: 0.1118518519 | D44: 0.09518518519 | E44: 0.105 | F44: 0.1401851852 | G44: 0.001851851852 | H44: -0.01666666667 | I44: 0.009814814815 | J44: 0.03518518519 | K44: 0.03018518519 | L44: 0 | M44: 0 | N44: 0 | O44: 0 | P44: 0 | Q44: 0 | R44: 0 | S44: 0 | T44: 0 | U44: 0 | V44: 2.01 | W44: 2 | X44: 1.37 | Y44: 2.48 | Z44: 1.91 | AA44: -0.01 | AB44: -0.63 | AC44: 1.11 | AD44: -0.57 | AE44: -0.1

Sheet Tab_8 powiaty
U1: powrót do spisu tablic
A2: POWIATY
A4: Tablica 1. WSKAŹNIKI BUDŻETOWE - zestawienie zbiorcze
A5: Wskaźnik | B5: średnia arytmetyczna | L5: wartości minimalne | V5: wartości maksymalne
B6: 2019 | C6: 2020 | D6: 2021 | E6: 2022 | F6: 2023 | G6: (3-2) | H6: (4-3) | I6: (5-4) | J6: (6-5) | K6: (6-2) | L6: 2019 | M6: 2020 | N6: 2021 | O6: 2022 | P6: 2023 | Q6: (13-12) | R6: (14-13) | S6: (15-14) | T6: (16-15) | U6: (16-12) | V6: 2019 | W6: 2020 | X6: 2021 | Y6: 2022 | Z6: 2023 | AA6: (23-22) | AB6: (24-23) | AC6: (25-24) | AD6: (26-25) | AE6: (26-22)
A7: 1 | B7: 2 | C7: 3 | D7: 4 | E7: 5 | F7: 6 | G7: 7 | H7: 8 | I7: 9 | J7: 10 | K7: 11 | L7: 12 | M7: 13 | N7: 14 | O7: 15 | P7: 16 | Q7: 17 | R7: 18 | S7: 19 | T7: 20 | U7: 21 | V7: 22 | W7: 23 | X7: 24 | Y7: 25 | Z7: 26 | AA7: 27 | AB7: 28 | AC7: 29 | AD7: 30 | AE7: 31
B8: %% | G8: pkt. proc. | L8: %% | Q8: pkt. proc. | V8: %% | AA8: pkt. proc.
A9: WB1 | B9: 88.32171975 | C9: 86.19503185 | D9: 89.87958599 | E9: 89.48366242 | F9: 81.98802548 | G9: =C9-B9 -> -2.126687898 | H9: =D9-C9 -> 3.68455414 | I9: =E9-D9 -> -0.3959235669 | J9: =F9-E9 -> -7.495636943 | K9: =F9-B9 -> -6.333694268 | L9: 53.85 | M9: 61.26 | N9: 64.78 | O9: 50.8 | P9: 44.14 | Q9: =M9-L9 -> 7.41 | R9: =N9-M9 -> 3.52 | S9: =O9-N9 -> -13.98 | T9: =P9-O9 -> -6.66 | U9: =P9-L9 -> -9.71 | V9: 99.66 | W9: 98.65 | X9: 99.93 | Y9: 99.92 | Z9: 99.02 | AA9: =W9-V9 -> -1.01 | AB9: =X9-W9 -> 1.28 | AC9: =Y9-X9 -> -0.01 | AD9: =Z9-Y9 -> -0.9 | AE9: =Z9-V9 -> -0.64
A10: WB2 | B10: 64.35050955 | C10: 67.09356688 | D10: 66.3206051 | E10: 63.29216561 | F10: 70.52079618 | G10: 2.743057325 | H10: -0.7729617834 | I10: -3.02843949 | J10: =F10-E10 -> 7.228630573 | K10: =F10-B10 -> 6.170286624 | L10: 30.8 | M10: 33.38 | N10: 36.39 | O10: 33.29 | P10: 38.5 | Q10: 2.58 | R10: 3.01 | S10: -3.1 | T10: =P10-O10 -> 5.21 | U10: =P10-L10 -> 7.7 | V10: 85.57 | W10: 87.27 | X10: 85.76 | Y10: 80.58 | Z10: 87.64 | AA10: 1.7 | AB10: -1.51 | AC10: -5.18 | AD10: =Z10-Y10 -> 7.06 | AE10: =Z10-V10 -> 2.07
A11: WB3 | B11: 9.991146497 | C11: 9.122961783 | D11: 11.09643312 | E11: 8.401878981 | F11: 4.051624204 | G11: -0.8681847134 | H11: 1.973471338 | I11: -2.69455414 | J11: -4.350254777 | K11: -5.939522293 | L11: -4.33 | M11: -2.37 | N11: 1.08 | O11: -3.36 | P11: -7.57 | Q11: 1.96 | R11: 3.45 | S11: -4.44 | T11: -4.21 | U11: -3.24 | V11: 32.91 | W11: 36.6 | X11: 29.57 | Y11: 26.87 | Z11: 25.76 | AA11: 3.69 | AB11: -7.03 | AC11: -2.7 | AD11: -1.11 | AE11: -7.15
A12: WB4 | B12: 17.36334395 | C12: 16.07579618 | D12: 15.69226115 | E12: 19.09289809 | F12: 23.69812102 | G12: -1.287547771 | H12: -0.3835350318 | I12: 3.400636943 | J12: 4.60522293 | K12: 6.33477707 | L12: 1.38 | M12: 2.05 | N12: 2.08 | O12: 2.03 | P12: 4.32 | Q12: 0.67 | R12: 0.03 | S12: -0.05 | T12: 2.29 | U12: 2.94 | V12: 44.8 | W12: 53.14 | X12: 43.32 | Y12: 55.09 | Z12: 58.92 | AA12: 8.34 | AB12: -9.82 | AC12: 11.77 | AD12: 3.83 | AE12: 14.12
A13: WB5 | B13: 61.78394904 | C13: 62.5033758 | D13: 63.1793949 | E13: 61.57165605 | F13: 63.8506051 | G13: 0.7194267516 | H13: 0.6760191083 | I13: -1.607738854 | J13: 2.278949045 | K13: 2.066656051 | L13: 37.96 | M13: 36.64 | N13: 37.19 | O13: 34.67 | P13: 33.25 | Q13: -1.32 | R13: 0.55 | S13: -2.52 | T13: -1.42 | U13: -4.71 | V13: 74.75 | W13: 74.86 | X13: 74.27 | Y13: 72.98 | Z13: 76.41 | AA13: 0.11 | AB13: -0.59 | AC13: -1.29 | AD13: 3.43 | AE13: 1.66
A14: WB6 | B14: 9.073757962 | C14: 8.375636943 | D14: 10.49535032 | E14: 8.003407643 | F14: 3.591719745 | G14: -0.6981210191 | H14: 2.119713376 | I14: -2.491942675 | J14: -4.411687898 | K14: -5.482038217 | L14: -2.92 | M14: -2.07 | N14: 1.64 | O14: -3.2 | P14: -5.51 | Q14: 0.85 | R14: 3.71 | S14: -4.84 | T14: -2.31 | U14: -2.59 | V14: 28.69 | W14: 35.3 | X14: 27.65 | Y14: 36.21 | Z14: 18.12 | AA14: 6.61 | AB14: -7.65 | AC14: 8.56 | AD14: -18.09 | AE14: -10.57
A15: WB7 | B15: 142.1666561 | C15: 170.2524522 | D15: 155.0448408 | E15: 100.8534076 | F15: 87.73773885 | G15: 28.08579618 | H15: -15.20761146 | I15: -54.19143312 | J15: -13.11566879 | K15: -54.4289172 | L15: -9.98 | M15: 40.35 | N15: 46.02 | O15: -26.05 | P15: -9.98 | Q15: 50.33 | R15: 5.67 | S15: -72.07 | T15: 16.07 | U15: 0 | V15: 1147.74 | W15: 785.48 | X15: 654.83 | Y15: 590.52 | Z15: 293.66 | AA15: -362.26 | AB15: -130.65 | AC15: -64.31 | AD15: -296.86 | AE15: -854.08
A16: WB8 | B16: 9.83366242 | C16: 14.5794586 | D16: 18.02117834 | E16: 14.42044586 | F16: 10.86920382 | G16: 4.745796178 | H16: 3.441719745 | I16: -3.600732484 | J16: -3.551242038 | K16: 1.035541401 | L16: 0.49 | M16: 0 | N16: -2.26 | O16: 0 | P16: -2.68 | Q16: -0.49 | R16: -2.26 | S16: 2.26 | T16: -2.68 | U16: -3.17 | V16: 32.08 | W16: 43.64 | X16: 65.52 | Y16: 64.43 | Z16: 55.49 | AA16: 11.56 | AB16: 21.88 | AC16: -1.09 | AD16: -8.94 | AE16: 23.41
A17: WB9 | B17: 151.0115924 | C17: 201.4857325 | D17: 224.7784076 | E17: 179.173758 | F17: 139.5142994 | G17: 50.47414013 | H17: 23.29267516 | I17: -45.60464968 | J17: -39.6594586 | K17: -11.49729299 | L17: -0.06 | M17: 32 | N17: 58.11 | O17: 49.9 | P17: 29.4 | Q17: 32.06 | R17: 26.11 | S17: -8.21 | T17: -20.5 | U17: 29.46 | V17: 586.55 | W17: 783.7 | X17: 774.06 | Y17: 704.14 | Z17: 530.37 | AA17: 197.15 | AB17: -9.64 | AC17: -69.92 | AD17: -173.77 | AE17: -56.18
A18: WB10 | B18: 161.8383121 | C18: 222.6696497 | D18: 252.7117197 | E18: 192.9335987 | F18: 143.1545223 | G18: 60.83133758 | H18: 30.04207006 | I18: -59.77812102 | J18: -49.77907643 | K18: -18.68378981 | L18: -279.7 | M18: -409.02 | N18: 0.94 | O18: -49.51 | P18: -2.96 | Q18: -129.32 | R18: 409.96 | S18: -50.45 | T18: 46.55 | U18: 276.74 | V18: 1157.27 | W18: 997.66 | X18: 1127.03 | Y18: 1367.8 | Z18: 530.37 | AA18: -159.61 | AB18: 129.37 | AC18: 240.77 | AD18: -837.43 | AE18: -626.9
A19: WB11 | B19: 68.72949045 | C19: 52.38073248 | D19: 82.08933121 | E19: 58.90506369 | F19: 113.3388535 | G19: -16.34875796 | H19: 29.70859873 | I19: -23.18426752 | J19: 54.43378981 | K19: 44.60936306 | L19: -337.15 | M19: -501.02 | N19: 8.87 | O19: -326.44 | P19: -3375.09 | Q19: -163.87 | R19: 509.89 | S19: -335.31 | T19: -3048.65 | U19: -3037.94 | V19: 259.73 | W19: 164.34 | X19: 10595.1 | Y19: 143.93 | Z19: 13806.3 | AA19: -95.39 | AB19: 10430.76 | AC19: -10451.17 | AD19: 13662.37 | AE19: 13546.57
A20: WB12 | B20: 13.08038217 | C20: 12.28894904 | D20: 15.0961465 | E20: 11.86579618 | F20: 6.211624204 | G20: -0.791433121 | H20: 2.807197452 | I20: -3.230350318 | J20: -5.654171975 | K20: -6.868757962 | L20: -0.6 | M20: -3.92 | N20: 3.49 | O20: -3.32 | P20: -6.9 | Q20: -3.32 | R20: 7.41 | S20: -6.81 | T20: -3.58 | U20: -6.3 | V20: 40.33 | W20: 59.79 | X20: 36.71 | Y20: 59.03 | Z20: 37.35 | AA20: 19.46 | AB20: -23.08 | AC20: 22.32 | AD20: -21.68 | AE20: -2.98
A22: Tablica 2. WSKAŹNIKI NA MIESZKAŃCA - zestawienie zbiorcze
A23: Wskaźnik | B23: średnia arytmetyczna | L23: wartości minimalne | V23: wartości maksymalne
B24: 2019 | C24: 2020 | D24: 2021 | E24: 2022 | F24: 2023 | G24: (3-2) | H24: (4-3) | I24: (5-4) | J24: (6-5) | K24: (6-2) | L24: 2019 | M24: 2020 | N24: 2021 | O24: 2022 | P24: 2023 | Q24: (13-12) | R24: (14-13) | S24: (15-14) | T24: (16-15) | U24: (16-12) | V24: 2019 | W24: 2020 | X24: 2021 | Y24: 2022 | Z24: 2023 | AA24: (23-22) | AB24: (24-23) | AC24: (25-24) | AD24: (26-25) | AE24: (26-22)
A25: 1 | B25: 2 | C25: 3 | D25: 4 | E25: 5 | F25: 6 | G25: 7 | H25: 8 | I25: 9 | J25: 10 | K25: 11 | L25: 12 | M25: 13 | N25: 14 | O25: 15 | P25: 16 | Q25: 17 | R25: 18 | S25: 19 | T25: 20 | U25: 21 | V25: 22 | W25: 23 | X25: 24 | Y25: 25 | Z25: 26 | AA25: 27 | AB25: 28 | AC25: 29 | AD25: 30 | AE25: 31
B26: zł | G26: %% | L26: zł | Q26: %% | V26: zł | AA26: %%
A27: WL1 | B27: 713.2403185 | C27: 819.9185987 | D27: 880.7100318 | E27: 938.9806688 | F27: 1116.226656 | G27: =C27/B27*100 -> 114.9568494 | H27: 107.4143254 | I27: 106.6163249 | J27: =F27/E27*100 -> 118.8764256 | K27: =F27/B27*100 -> 156.5007792 | L27: 250.89 | M27: 285.41 | N27: 319.14 | O27: 267.8 | P27: 362.69 | Q27: =M27/L27*100 -> 113.7590179 | R27: =N27/M27*100 -> 111.8180863 | S27: =O27/N27*100 -> 83.91301623 | T27: =P27/O27*100 -> 135.4331591 | U27: =P27/L27*100 -> 144.5613616 | V27: 1575.4 | W27: 1712.73 | X27: 1762.29 | Y27: 1936.51 | Z27: 2234.13 | AA27: =W27/V27*100 -> 108.7171512 | AB27: =X27/W27*100 -> 102.893626 | AC27: =Y27/X27*100 -> 109.8860006 | AD27: =Z27/Y27*100 -> 115.3688853 | AE27: =Z27/V27*100 -> 141.8135077
A28: WL2 | B28: 105.4356369 | C28: 106.5458917 | D28: 140.2416561 | E28: 120.8924522 | F28: 57.72990446 | G28: 101.0530166 | H28: 131.6255876 | I28: 86.20295541 | J28: =F28/E28*100 -> 47.75310898 | K28: =F28/B28*100 -> 54.75369252 | L28: -51.08 | M28: -31.42 | N28: 13.65 | O28: -46.1 | P28: -106.75 | Q28: =M28/L28*100 -> 61.51135474 | R28: =N28/M28*100 -> -43.44366645 | S28: =O28/N28*100 -> -337.7289377 | T28: =P28/O28*100 -> 231.5618221 | U28: =P28/L28*100 -> 208.9859045 | V28: 253.12 | W28: 632.66 | X28: 314.02 | Y28: 452.21 | Z28: 321.25 | AA28: 249.9446903 | AB28: =X28/W28*100 -> 49.63487497 | AC28: =Y28/X28*100 -> 144.0067512 | AD28: =Z28/Y28*100 -> 71.04000354 | AE28: =Z28/V28*100 -> 126.9160872
A29: WL3 | B29: 272.8525478 | C29: 270.4506369 | D29: 259.1451911 | E29: 256.5332484 | F29: 292.4438535 | G29: 99.11970372 | H29: 95.81977473 | I29: 98.99209294 | J29: 113.9984214 | K29: 107.1801806 | L29: 0 | M29: 0 | N29: 0 | O29: 0 | P29: 0 | Q29: 0 | R29: 0 | S29: 0 | T29: 0 | U29: 0 | V29: 1503.44 | W29: 1457.75 | X29: 1419.71 | Y29: 1332.52 | Z29: 1334.68 | AA29: 96.96096951 | AB29: =X29/W29*100 -> 97.39049906 | AC29: 93.85860493 | AD29: 100.1620989 | AE29: 88.77507583
A30: WL4 | B30: 331.286879 | C30: 430.0744268 | D30: 501.7587261 | E30: 572.7719108 | F30: 670.4807643 | G30: 129.8193361 | H30: 116.6678823 | I30: 114.152855 | J30: 117.0589464 | K30: 202.3867551 | L30: -0.58 | M30: 59.46 | N30: 133.1 | O30: 151.26 | P30: 52.73 | Q30: =M30/L30*100 -> -10251.72414 | R30: =N30/M30*100 -> 223.847965 | S30: 113.6438768 | T30: 34.86050509 | U30: -9091.37931 | V30: 1333.96 | W30: 1140.24 | X30: 1244.75 | Y30: 1973.47 | Z30: 2979.9 | AA30: 85.47782542 | AB30: =X30/W30*100 -> 109.1656143 | AC30: 158.5434826 | AD30: 150.9979883 | AE30: 223.3875079
A31: WL5 | B31: 289.5886306 | C31: 395.9169427 | D31: 468.2528344 | E31: 534.5186306 | F31: 636.0500637 | G31: 136.7170189 | H31: 118.2704714 | I31: 114.1517128 | J31: 118.9949288 | K31: 219.6391697 | L31: -694.25 | M31: -313.25 | N31: 1.52 | O31: -88.63 | P31: -16.54 | Q31: =M31/L31*100 -> 45.12063378 | R31: =N31/M31*100 -> -0.485235435 | S31: -5830.921053 | T31: 18.66185265 | U31: 2.38242708 | V31: 1333.96 | W31: 1092.76 | X31: 1232.72 | Y31: 1945.55 | Z31: 2967.35 | AA31: 81.91849831 | AB31: =X31/W31*100 -> 112.8079359 | AC31: 157.8257836 | AD31: 152.519853 | AE31: 222.4467001
A33: Tablica 3. WSKAŹNIKI DLA ZOBOWIĄZAŃ WG TYTUŁÓW DŁUŻNYCH - zestawienie zbiorcze
A34: Wskaźnik | B34: średnia arytmetyczna | L34: wartości minimalne | V34: wartości maksymalne
B35: 2019 | C35: 2020 | D35: 2021 | E35: 2022 | F35: 2023 | G35: (3-2) | H35: (4-3) | I35: (5-4) | J35: (6-5) | K35: (6-2) | L35: 2019 | M35: 2020 | N35: 2021 | O35: 2022 | P35: 2023 | Q35: (13-12) | R35: (14-13) | S35: (15-14) | T35: (16-15) | U35: (16-12) | V35: 2019 | W35: 2020 | X35: 2021 | Y35: 2022 | Z35: 2023 | AA35: (23-22) | AB35: (24-23) | AC35: (25-24) | AD35: (26-25) | AE35: (26-22)
A36: 1 | B36: 2 | C36: 3 | D36: 4 | E36: 5 | F36: 6 | G36: 7 | H36: 8 | I36: 9 | J36: 10 | K36: 11 | L36: 12 | M36: 13 | N36: 14 | O36: 15 | P36: 16 | Q36: 17 | R36: 18 | S36: 19 | T36: 20 | U36: 21 | V36: 22 | W36: 23 | X36: 24 | Y36: 25 | Z36: 26 | AA36: 27 | AB36: 28 | AC36: 29 | AD36: 30 | AE36: 31
B37: %% | G37: pkt. proc. | L37: %% | Q37: pkt. proc. | V37: %% | AA37: pkt. proc.
A38: WZ1 | B38: 21.83089172 | C38: 19.12691083 | D38: 17.4256051 | E38: 15.49767516 | F38: 15.25171975 | G38: =C38-B38 -> -2.703980892 | H38: -1.701305732 | I38: -1.927929936 | J38: =F38-E38 -> -0.245955414 | K38: =F38-B38 -> -6.579171975 | L38: 0 | M38: 0 | N38: 0 | O38: 0 | P38: 0 | Q38: =M38-L38 -> 0 | R38: 0 | S38: 0 | T38: 0 | U38: =P38-L38 -> 0 | V38: 127.6 | W38: 111.56 | X38: 99.06 | Y38: 82.17 | Z38: 72.42 | AA38: =W38-V38 -> -16.04 | AB38: =X38-W38 -> -12.5 | AC38: =Y38-X38 -> -16.89 | AD38: =Z38-Y38 -> -9.75 | AE38: =Z38-V38 -> -55.18
A39: WZ2 | B39: 3.253726115 | C39: 3.397197452 | D39: 2.435477707 | E39: 1.449745223 | F39: 23.40146497 | G39: 0.1434713376 | H39: -0.9617197452 | I39: -0.9857324841 | J39: =F39-E39 -> 21.95171975 | K39: =F39-B39 -> 20.14773885 | L39: -39.21 | M39: -17.84 | N39: 0 | O39: -560.97 | P39: -119.59 | Q39: 21.37 | R39: 17.84 | S39: -560.97 | T39: 441.38 | U39: =P39-L39 -> -80.38 | V39: 98.23 | W39: 53.95 | X39: 21.98 | Y39: 49.25 | Z39: 4527.98 | AA39: -44.28 | AB39: =X39-W39 -> -31.97 | AC39: =Y39-X39 -> 27.27 | AD39: =Z39-Y39 -> 4478.73 | AE39: =Z39-V39 -> 4429.75
A40: WZ3 | B40: 3.935796178 | C40: 2.858535032 | D40: 2.568407643 | E40: 3.22 | F40: 2.778821656 | G40: -1.077261146 | H40: -0.2901273885 | I40: 0.6515923567 | J40: -0.4411783439 | K40: -1.156974522 | L40: 0 | M40: 0 | N40: 0 | O40: 0 | P40: 0 | Q40: =M40-L40 -> 0 | R40: =N40-M40 -> 0 | S40: =O40-N40 -> 0 | T40: =P40-O40 -> 0 | U40: =P40-L40 -> 0 | V40: 62.11 | W40: 34.59 | X40: 20.48 | Y40: 30.88 | Z40: 28.41 | AA40: -27.52 | AB40: -14.11 | AC40: 10.4 | AD40: -2.47 | AE40: -33.7
A41: WZ4 | B41: 2.644426752 | C41: 2.007738854 | D41: 1.367038217 | E41: 6.581687898 | F41: 6.720796178 | G41: -0.6366878981 | H41: -0.6407006369 | I41: 5.214649682 | J41: 0.1391082803 | K41: 4.076369427 | L41: 0 | M41: 0 | N41: 0 | O41: 0 | P41: 0 | Q41: 0 | R41: 0 | S41: 0 | T41: 0 | U41: 0 | V41: 4.9 | W41: 6.9 | X41: 7.41 | Y41: 328.72 | Z41: 66.58 | AA41: 2 | AB41: 0.51 | AC41: 321.31 | AD41: -262.14 | AE41: 61.68
A42: WZ5 | B42: 5.651050955 | C42: 4.254968153 | D42: 3.596178344 | E42: 4.599808917 | F42: 4.312038217 | G42: -1.396082803 | H42: -0.6587898089 | I42: 1.003630573 | J42: -0.2877707006 | K42: -1.339012739 | L42: 0 | M42: 0 | N42: 0 | O42: 0 | P42: 0 | Q42: 0 | R42: 0 | S42: 0 | T42: 0 | U42: 0 | V42: 78.08 | W42: 47.93 | X42: 26.97 | Y42: 46.02 | Z42: 37.34 | AA42: -30.15 | AB42: -20.96 | AC42: 19.05 | AD42: -8.68 | AE42: -40.74
A43: WZ6 | B43: 32.58671975 | C43: 25.77019108 | D43: 13.18229299 | E43: 57.37490446 | F43: 72.99732484 | G43: -6.816528662 | H43: -12.58789809 | I43: 44.19261146 | J43: 15.62242038 | K43: 40.4106051 | L43: 0 | M43: 0 | N43: 0 | O43: 0 | P43: 0 | Q43: 0 | R43: 0 | S43: 0 | T43: 0 | U43: 0 | V43: 1715.43 | W43: 923.69 | X43: 335.17 | Y43: 2008.86 | Z43: 1758.99 | AA43: -791.74 | AB43: -588.52 | AC43: 1673.69 | AD43: -249.87 | AE43: 43.56
A44: WZ7 | B44: 0.6808917197 | C44: 0.4224522293 | D44: 0.6879299363 | E44: 0.4584394904 | F44: 0.1676751592 | G44: -0.2584394904 | H44: 0.265477707 | I44: -0.2294904459 | J44: -0.2907643312 | K44: -0.5132165605 | L44: 0 | M44: 0 | N44: 0 | O44: 0 | P44: 0 | Q44: 0 | R44: 0 | S44: 0 | T44: 0 | U44: 0 | V44: 100 | W44: 100 | X44: 100 | Y44: 100 | Z44: 19.89 | AA44: 0 | AB44: 0 | AC44: 0 | AD44: -80.11 | AE44: -80.11

Sheet Tab_9 metropolie
U1: powrót do spisu tablic
A2: METROPOLIE
A4: Tablica 1. WSKAŹNIKI BUDŻETOWE - zestawienie zbiorcze
A5: Wskaźnik | B5: średnia arytmetyczna | L5: wartości minimalne | V5: wartości maksymalne
B6: 2019 | C6: 2020 | D6: 2021 | E6: 2022 | F6: 2023 | G6: (3-2) | H6: (4-3) | I6: (5-4) | J6: (6-5) | K6: (6-2) | L6: 2019 | M6: 2020 | N6: 2021 | O6: 2022 | P6: 2023 | Q6: (13-12) | R6: (14-13) | S6: (15-14) | T6: (16-15) | U6: (16-12) | V6: 2019 | W6: 2020 | X6: 2021 | Y6: 2022 | Z6: 2023 | AA6: (23-22) | AB6: (24-23) | AC6: (25-24) | AD6: (26-25) | AE6: (26-22)
A7: 1 | B7: 2 | C7: 3 | D7: 4 | E7: 5 | F7: 6 | G7: 7 | H7: 8 | I7: 9 | J7: 10 | K7: 11 | L7: 12 | M7: 13 | N7: 14 | O7: 15 | P7: 16 | Q7: 17 | R7: 18 | S7: 19 | T7: 20 | U7: 21 | V7: 22 | W7: 23 | X7: 24 | Y7: 25 | Z7: 26 | AA7: 27 | AB7: 28 | AC7: 29 | AD7: 30 | AE7: 31
B8: %% | G8: pkt. proc. | L8: %% | Q8: pkt. proc. | V8: %% | AA8: pkt. proc.
A9: WB1 | B9: 92.985 | C9: 91.40416667 | D9: 93.345 | E9: 92.5525 | F9: 90.96083333 | G9: =C9-B9 -> -1.580833333 | H9: =D9-C9 -> 1.940833333 | I9: =E9-D9 -> -0.7925 | J9: =F9-E9 -> -1.591666667 | K9: =F9-B9 -> -2.024166667 | L9: 85.58 | M9: 86.52 | N9: 90.93 | O9: 88.4 | P9: 81.64 | Q9: =M9-L9 -> 0.94 | R9: =N9-M9 -> 4.41 | S9: =O9-N9 -> -2.53 | T9: =P9-O9 -> -6.76 | U9: =P9-L9 -> -3.94 | V9: 96.26 | W9: 95.68 | X9: 96.17 | Y9: 96.4 | Z9: 95.04 | AA9: =W9-V9 -> -0.58 | AB9: =X9-W9 -> 0.49 | AC9: =Y9-X9 -> 0.23 | AD9: =Z9-Y9 -> -1.36 | AE9: =Z9-V9 -> -1.22
A10: WB2 | B10: 37.94666667 | C10: 42.29833333 | D10: 41.43916667 | E10: 37.2575 | F10: 37.14 | G10: 4.351666667 | H10: -0.8591666667 | I10: -4.181666667 | J10: =F10-E10 -> -0.1175 | K10: =F10-B10 -> -0.8066666667 | L10: 25.87 | M10: 30.56 | N10: 29.75 | O10: 25.24 | P10: 24.29 | Q10: 4.69 | R10: -0.81 | S10: -4.51 | T10: =P10-O10 -> -0.95 | U10: =P10-L10 -> -1.58 | V10: 49.04 | W10: 52.81 | X10: 51.95 | Y10: 46.65 | Z10: 47.76 | AA10: 3.77 | AB10: -0.86 | AC10: -5.3 | AD10: =Z10-Y10 -> 1.11 | AE10: =Z10-V10 -> -1.28
A11: WB3 | B11: 8.25 | C11: 4.638333333 | D11: 10.75916667 | E11: 4.629166667 | F11: 0.4908333333 | G11: -3.611666667 | H11: 6.120833333 | I11: -6.13 | J11: -4.138333333 | K11: -7.759166667 | L11: 4.32 | M11: -1.04 | N11: 6.18 | O11: -0.01 | P11: -10.92 | Q11: -5.36 | R11: 7.22 | S11: -6.19 | T11: -10.91 | U11: -15.24 | V11: 13.6 | W11: 9.99 | X11: 14.29 | Y11: 9.38 | Z11: 6.52 | AA11: -3.61 | AB11: 4.3 | AC11: -4.91 | AD11: -2.86 | AE11: -7.08
A12: WB4 | B12: 18.015 | C12: 15.87333333 | D12: 15.41333333 | E12: 15.50666667 | F12: 18.43083333 | G12: -2.141666667 | H12: -0.46 | I12: 0.09333333333 | J12: 2.924166667 | K12: 0.4158333333 | L12: 12.69 | M12: 11.25 | N12: 8.92 | O12: 9.7 | P12: 12.69 | Q12: -1.44 | R12: -2.33 | S12: 0.78 | T12: 2.99 | U12: 0 | V12: 24.19 | W12: 26.46 | X12: 26.08 | Y12: 23.36 | Z12: 28.03 | AA12: 2.27 | AB12: -0.38 | AC12: -2.72 | AD12: 4.67 | AE12: 3.84
A13: WB5 | B13: 35.935 | C13: 35.75583333 | D13: 36.08916667 | E13: 37.10583333 | F13: 40.04416667 | G13: -0.1791666667 | H13: 0.3333333333 | I13: 1.016666667 | J13: 2.938333333 | K13: 4.109166667 | L13: 31.86 | M13: 31.04 | N13: 31.75 | O13: 33.43 | P13: 35.26 | Q13: -0.82 | R13: 0.71 | S13: 1.68 | T13: 1.83 | U13: 3.4 | V13: 42.01 | W13: 41.38 | X13: 41.91 | Y13: 43.51 | Z13: 46.97 | AA13: -0.63 | AB13: 0.53 | AC13: 1.6 | AD13: 3.46 | AE13: 4.96
A14: WB6 | B14: 9.24 | C14: 5.738333333 | D14: 12.28333333 | E14: 6.7375 | F14: 2.399166667 | G14: -3.501666667 | H14: 6.545 | I14: -5.545833333 | J14: -4.338333333 | K14: -6.840833333 | L14: 5.27 | M14: -0.73 | N14: 6.42 | O14: 1.13 | P14: -9.36 | Q14: -6 | R14: 7.15 | S14: -5.29 | T14: -10.49 | U14: -14.63 | V14: 13.66 | W14: 11.38 | X14: 16.03 | Y14: 11.47 | Z14: 8.57 | AA14: -2.28 | AB14: 4.65 | AC14: -4.56 | AD14: -2.9 | AE14: -5.09
A15: WB7 | B15: 78.59 | C15: 76.41583333 | D15: 117.595 | E15: 76.97583333 | F15: 45.70916667 | G15: -2.174166667 | H15: 41.17916667 | I15: -40.61916667 | J15: -31.26666667 | K15: -32.88083333 | L15: 58.52 | M15: 26.99 | N15: 71.85 | O15: 26.64 | P15: -12.79 | Q15: -31.53 | R15: 44.86 | S15: -45.21 | T15: -39.43 | U15: -71.31 | V15: 94.92 | W15: 103.55 | X15: 168.21 | Y15: 144.77 | Z15: 72.74 | AA15: 8.63 | AB15: 64.66 | AC15: -23.44 | AD15: -72.03 | AE15: -22.18
A16: WB8 | B16: 6.015833333 | C16: 7.9525 | D16: 10.97083333 | E16: 6.539166667 | F16: 3.12 | G16: 1.936666667 | H16: 3.018333333 | I16: -4.431666667 | J16: -3.419166667 | K16: -2.895833333 | L16: 1.58 | M16: 0.49 | N16: 4.71 | O16: 1.49 | P16: 0.13 | Q16: -1.09 | R16: 4.22 | S16: -3.22 | T16: -1.36 | U16: -1.45 | V16: 20.22 | W16: 19.09 | X16: 22.37 | Y16: 15.02 | Z16: 8.09 | AA16: -1.13 | AB16: 3.28 | AC16: -7.35 | AD16: -6.93 | AE16: -12.13
A17: WB9 | B17: 97.3175 | C17: 93.16916667 | D17: 141.4291667 | E17: 124.9175 | F17: 71.745 | G17: -4.148333333 | H17: 48.26 | I17: -16.51166667 | J17: -53.1725 | K17: -25.5725 | L17: 72.61 | M17: 53.67 | N17: 73.09 | O17: 70.56 | P17: 9.74 | Q17: -18.94 | R17: 19.42 | S17: -2.53 | T17: -60.82 | U17: -62.87 | V17: 180.74 | W17: 166.77 | X17: 244.5 | Y17: 239.78 | Z17: 134.24 | AA17: -13.97 | AB17: 77.73 | AC17: -4.72 | AD17: -105.54 | AE17: -46.5
A18: WB10 | B18: 96.27166667 | C18: 89.79583333 | D18: 148.72 | E18: 129.7441667 | F18: 66.7325 | G18: -6.475833333 | H18: 58.92416667 | I18: -18.97583333 | J18: -63.01166667 | K18: -29.53916667 | L18: 64.73 | M18: 43.98 | N18: 65.49 | O18: 63.32 | P18: -2.03 | Q18: -20.75 | R18: 21.51 | S18: -2.17 | T18: -65.35 | U18: -66.76 | V18: 203.65 | W18: 173.15 | X18: 273.36 | Y18: 273.55 | Z18: 136.31 | AA18: -30.5 | AB18: 100.21 | AC18: 0.19 | AD18: -137.24 | AE18: -67.34
A19: WB11 | B19: 118.0625 | C19: 130.9691667 | D19: 79.655 | E19: 92.89916667 | F19: -253.5091667 | G19: 12.90666667 | H19: -51.31416667 | I19: 13.24416667 | J19: -346.4083333 | K19: -371.5716667 | L19: 49.1 | M19: 57.75 | N19: 36.58 | O19: 36.56 | P19: -4920.99 | Q19: 8.65 | R19: -21.17 | S19: -0.02 | T19: -4957.55 | U19: -4970.09 | V19: 154.49 | W19: 227.38 | X19: 152.69 | Y19: 157.94 | Z19: 408.41 | AA19: 72.89 | AB19: -74.69 | AC19: 5.25 | AD19: 250.47 | AE19: 253.92
A20: WB12 | B20: 12.33666667 | C20: 8.071666667 | D20: 16.54916667 | E20: 8.971666667 | F20: 3.1025 | G20: -4.265 | H20: 8.4775 | I20: -7.5775 | J20: -5.869166667 | K20: -9.234166667 | L20: 7.43 | M20: -0.96 | N20: 9.51 | O20: 1.41 | P20: -11.19 | Q20: -8.39 | R20: 10.47 | S20: -8.1 | T20: -12.6 | U20: -18.62 | V20: 18.76 | W20: 15.56 | X20: 21.45 | Y20: 16.03 | Z20: 11.13 | AA20: -3.2 | AB20: 5.89 | AC20: -5.42 | AD20: -4.9 | AE20: -7.63
A22: Tablica 2. WSKAŹNIKI NA MIESZKAŃCA - zestawienie zbiorcze
A23: Wskaźnik | B23: średnia arytmetyczna | L23: wartości minimalne | V23: wartości maksymalne
B24: 2019 | C24: 2020 | D24: 2021 | E24: 2022 | F24: 2023 | G24: (3-2) | H24: (4-3) | I24: (5-4) | J24: (6-5) | K24: (6-2) | L24: 2019 | M24: 2020 | N24: 2021 | O24: 2022 | P24: 2023 | Q24: (13-12) | R24: (14-13) | S24: (15-14) | T24: (16-15) | U24: (16-12) | V24: 2019 | W24: 2020 | X24: 2021 | Y24: 2022 | Z24: 2023 | AA24: (23-22) | AB24: (24-23) | AC24: (25-24) | AD24: (26-25) | AE24: (26-22)
A25: 1 | B25: 2 | C25: 3 | D25: 4 | E25: 5 | F25: 6 | G25: 7 | H25: 8 | I25: 9 | J25: 10 | K25: 11 | L25: 12 | M25: 13 | N25: 14 | O25: 15 | P25: 16 | Q25: 17 | R25: 18 | S25: 19 | T25: 20 | U25: 21 | V25: 22 | W25: 23 | X25: 24 | Y25: 25 | Z25: 26 | AA25: 27 | AB25: 28 | AC25: 29 | AD25: 30 | AE25: 31
B26: zł | G26: %% | L26: zł | Q26: %% | V26: zł | AA26: %%
A27: WL1 | B27: 2607.205 | C27: 3044.435 | D27: 3384.994167 | E27: 2994.155 | F27: 3048.7175 | G27: =C27/B27*100 -> 116.770066 | H27: 111.1862847 | I27: 88.45377134 | J27: =F27/E27*100 -> 101.8223004 | K27: =F27/B27*100 -> 116.9343224 | L27: 2252.99 | M27: 2691.34 | N27: 3012.93 | O27: 2639.12 | P27: 2609.91 | Q27: =M27/L27*100 -> 119.4563669 | R27: 111.9490663 | S27: 87.59314023 | T27: =P27/O27*100 -> 98.89319167 | U27: =P27/L27*100 -> 115.8420588 | V27: 3230.54 | W27: 3755.09 | X27: 4040 | Y27: 3687.12 | Z27: 3771.57 | AA27: =W27/V27*100 -> 116.2372235 | AB27: 107.5873015 | AC27: 91.26534653 | AD27: =Z27/Y27*100 -> 102.2904055 | AE27: =Z27/V27*100 -> 116.7473549
A28: WL2 | B28: 572.9675 | C28: 325.08 | D28: 898.4358333 | E28: 390.7983333 | F28: 35.44083333 | G28: 56.73620232 | H28: 276.3737644 | I28: 43.49763431 | J28: =F28/E28*100 -> 9.068829192 | K28: =F28/B28*100 -> 6.185487542 | L28: 278.1 | M28: -103.26 | N28: 460.21 | O28: -0.98 | P28: -920.23 | Q28: -37.13052859 | R28: -445.6808057 | S28: -0.2129462637 | T28: =P28/O28*100 -> 93901.02041 | U28: =P28/L28*100 -> -330.8989572 | V28: 918.51 | W28: 767.51 | X28: 1277.61 | Y28: 972.01 | Z28: 483.37 | AA28: 83.56033141 | AB28: 166.4616748 | AC28: 76.08033751 | AD28: =Z28/Y28*100 -> 49.72891225 | AE28: =Z28/V28*100 -> 52.62544774
A29: WL3 | B29: 3447.091667 | C29: 3975.311667 | D29: 4230.275833 | E29: 4282.25 | F29: 4897.4725 | G29: 115.3236424 | H29: 106.41369 | I29: 101.2286236 | J29: 114.3668048 | K29: 142.0754936 | L29: 1985.13 | M29: 2363.7 | N29: 2266.09 | O29: 2107.7 | P29: 2206.41 | Q29: 119.0702876 | R29: 95.87045733 | S29: 93.01042765 | T29: 104.6833041 | U29: 111.146877 | V29: 5136.56 | W29: 5984.65 | X29: 6355.84 | Y29: 6383.17 | Z29: 7556.7 | AA29: 116.5108555 | AB29: 106.2023677 | AC29: 100.4299982 | AD29: 118.3847524 | AE29: 147.1159687
A30: WL4 | B30: 1625.8575 | C30: 1479.754167 | D30: 2155.246667 | E30: 2040.268333 | F30: 1571.446667 | G30: 91.01376761 | H30: 145.6489676 | I30: 94.66518914 | J30: 77.02156824 | K30: 96.653407 | L30: 885.04 | M30: 686.55 | N30: 1246.7 | O30: 1047.69 | P30: 200.42 | Q30: 77.57276507 | R30: 181.5891049 | S30: 84.03705783 | T30: 19.1297044 | U30: 22.64530417 | V30: 3090.03 | W30: 2977.79 | X30: 3261.17 | Y30: 3648.28 | Z30: 3407.45 | AA30: 96.36767281 | AB30: 109.5164535 | AC30: 111.8702797 | AD30: 93.39880711 | AE30: 110.2723922
A31: WL5 | B31: 1363.044167 | C31: 1217.2725 | D31: 1896.0125 | E31: 1774.194167 | F31: 1299.015833 | G31: 89.30543337 | H31: 155.7590843 | I31: 93.57502478 | J31: 73.21723055 | K31: 95.30254889 | L31: 653.97 | M31: 422.7 | N31: 871.25 | O31: 754.62 | P31: -37.01 | Q31: 64.63599248 | R31: 206.1154483 | S31: 86.61348637 | T31: -4.904455222 | U31: -5.659281007 | V31: 2741.26 | W31: 2822.03 | X31: 3039.14 | Y31: 3352.27 | Z31: 3221.03 | AA31: 102.9464553 | AB31: 107.693398 | AC31: 110.3032437 | AD31: 96.08504088 | AE31: 117.5018057
A33: Tablica 3. WSKAŹNIKI DLA ZOBOWIĄZAŃ WG TYTUŁÓW DŁUŻNYCH - zestawienie zbiorcze
A34: Wskaźnik | B34: średnia arytmetyczna | L34: wartości minimalne | V34: wartości maksymalne
B35: 2019 | C35: 2020 | D35: 2021 | E35: 2022 | F35: 2023 | G35: (3-2) | H35: (4-3) | I35: (5-4) | J35: (6-5) | K35: (6-2) | L35: 2019 | M35: 2020 | N35: 2021 | O35: 2022 | P35: 2023 | Q35: (13-12) | R35: (14-13) | S35: (15-14) | T35: (16-15) | U35: (16-12) | V35: 2019 | W35: 2020 | X35: 2021 | Y35: 2022 | Z35: 2023 | AA35: (23-22) | AB35: (24-23) | AC35: (25-24) | AD35: (26-25) | AE35: (26-22)
A36: 1 | B36: 2 | C36: 3 | D36: 4 | E36: 5 | F36: 6 | G36: 7 | H36: 8 | I36: 9 | J36: 10 | K36: 11 | L36: 12 | M36: 13 | N36: 14 | O36: 15 | P36: 16 | Q36: 17 | R36: 18 | S36: 19 | T36: 20 | U36: 21 | V36: 22 | W36: 23 | X36: 24 | Y36: 25 | Z36: 26 | AA36: 27 | AB36: 28 | AC36: 29 | AD36: 30 | AE36: 31
B37: %% | G37: pkt. proc. | L37: %% | Q37: pkt. proc. | V37: %% | AA37: pkt. proc.
A38: WZ1 | B38: 47.37916667 | C38: 50.875 | D38: 48.56166667 | E38: 49.62083333 | F38: 54.55 | G38: =C38-B38 -> 3.495833333 | H38: -2.313333333 | I38: 1.059166667 | J38: =F38-E38 -> 4.929166667 | K38: =F38-B38 -> 7.170833333 | L38: 21.51 | M38: 28.37 | N38: 24.77 | O38: 23.36 | P38: 24.57 | Q38: =M38-L38 -> 6.86 | R38: -3.6 | S38: -1.41 | T38: 1.21 | U38: =P38-L38 -> 3.06 | V38: 77.82 | W38: 78.33 | X38: 77.64 | Y38: 76.83 | Z38: 85.31 | AA38: =W38-V38 -> 0.51 | AB38: -0.69 | AC38: -0.81 | AD38: =Z38-Y38 -> 8.48 | AE38: =Z38-V38 -> 7.49
A39: WZ2 | B39: 7.130833333 | C39: 15.49166667 | D39: 5.24 | E39: -454.3875 | F39: 8.825 | G39: 8.360833333 | H39: -10.25166667 | I39: -459.6275 | J39: =F39-E39 -> 463.2125 | K39: =F39-B39 -> 1.694166667 | L39: 2.34 | M39: -30.52 | N39: 2.18 | O39: -5952.46 | P39: -67.91 | Q39: -32.86 | R39: 32.7 | S39: -5954.64 | T39: 5884.55 | U39: =P39-L39 -> -70.25 | V39: 16.38 | W39: 59.47 | X39: 11.61 | Y39: 315.85 | Z39: 170.58 | AA39: 43.09 | AB39: -47.86 | AC39: 304.24 | AD39: =Z39-Y39 -> -145.27 | AE39: =Z39-V39 -> 154.2
A40: WZ3 | B40: 4.3975 | C40: 4.025 | D40: 3.466666667 | E40: 5.050833333 | F40: 5.895833333 | G40: -0.3725 | H40: -0.5583333333 | I40: 1.584166667 | J40: 0.845 | K40: 1.498333333 | L40: 2.49 | M40: 1.97 | N40: 1.41 | O40: 2.02 | P40: 1.85 | Q40: =M40-L40 -> -0.52 | R40: =N40-M40 -> -0.56 | S40: =O40-N40 -> 0.61 | T40: =P40-O40 -> -0.17 | U40: =P40-L40 -> -0.64 | V40: 8.61 | W40: 7.91 | X40: 8.14 | Y40: 8.53 | Z40: 10.89 | AA40: -0.7 | AB40: 0.23 | AC40: 0.39 | AD40: 2.36 | AE40: 2.28
A41: WZ4 | B41: 2.111666667 | C41: 1.4425 | D41: 1.0225 | E41: 4.07 | F41: 5.094166667 | G41: -0.6691666667 | H41: -0.42 | I41: 3.0475 | J41: 1.024166667 | K41: 2.9825 | L41: 1.44 | M41: 1.04 | N41: 0.64 | O41: 1.77 | P41: 2.37 | Q41: -0.4 | R41: -0.4 | S41: 1.13 | T41: 0.6 | U41: 0.93 | V41: 4.64 | W41: 2.63 | X41: 2.18 | Y41: 4.92 | Z41: 6.98 | AA41: -2.01 | AB41: -0.45 | AC41: 2.74 | AD41: 2.06 | AE41: 2.34
A42: WZ5 | B42: 5.83 | C42: 5.685 | D42: 4.689166667 | E42: 6.665 | F42: 7.361666667 | G42: -0.145 | H42: -0.9958333333 | I42: 1.975833333 | J42: 0.6966666667 | K42: 1.531666667 | L42: 3.23 | M42: 2.81 | N42: 1.85 | O42: 2.57 | P42: 2.09 | Q42: -0.42 | R42: -0.96 | S42: 0.72 | T42: -0.48 | U42: -1.14 | V42: 11.05 | W42: 10.74 | X42: 11.12 | Y42: 11.6 | Z42: 13.78 | AA42: -0.31 | AB42: 0.38 | AC42: 0.48 | AD42: 2.18 | AE42: 2.73
A43: WZ6 | B43: 31.06333333 | C43: 26.61083333 | D43: 20.15333333 | E43: 73.82 | F43: 103.495 | G43: -4.4525 | H43: -6.4575 | I43: 53.66666667 | J43: 29.675 | K43: 72.43166667 | L43: 6.67 | M43: 4.68 | N43: 7.69 | O43: 30.05 | P43: 24.07 | Q43: -1.99 | R43: 3.01 | S43: 22.36 | T43: -5.98 | U43: 17.4 | V43: 53.11 | W43: 70.17 | X43: 62.47 | Y43: 144.1 | Z43: 193.46 | AA43: 17.06 | AB43: -7.7 | AC43: 81.63 | AD43: 49.36 | AE43: 140.35
A44: WZ7 | B44: 0.009166666667 | C44: 0.01 | D44: 0.0175 | E44: 0.009166666667 | F44: 0.0125 | G44: 0.0008333333333 | H44: 0.0075 | I44: -0.008333333333 | J44: 0.003333333333 | K44: 0.003333333333 | L44: 0 | M44: 0 | N44: 0 | O44: 0 | P44: 0 | Q44: 0 | R44: 0 | S44: 0 | T44: 0 | U44: 0 | V44: 0.06 | W44: 0.05 | X44: 0.13 | Y44: 0.1 | Z44: 0.12 | AA44: -0.01 | AB44: 0.08 | AC44: -0.03 | AD44: 0.02 | AE44: 0.06

Sheet Tab_10 województwa
T1: Spis tablic'!A1 | U1: powrót do spisu tablic
A2: WOJEWÓDZTWA
A4: Tablica 1. WSKAŹNIKI BUDŻETOWE - zestawienie zbiorcze
A5: Wskaźnik | B5: średnia arytmetyczna | L5: wartości minimalne | V5: wartości maksymalne
B6: 2019 | C6: 2020 | D6: 2021 | E6: 2022 | F6: 2023 | G6: (3-2) | H6: (4-3) | I6: (5-4) | J6: (6-5) | K6: (6-2) | L6: 2019 | M6: 2020 | N6: 2021 | O6: 2022 | P6: 2023 | Q6: (13-12) | R6: (14-13) | S6: (15-14) | T6: (16-15) | U6: (16-12) | V6: 2019 | W6: 2020 | X6: 2021 | Y6: 2022 | Z6: 2023 | AA6: (23-22) | AB6: (24-23) | AC6: (25-24) | AD6: (26-25) | AE6: (26-22)
A7: 1 | B7: 2 | C7: 3 | D7: 4 | E7: 5 | F7: 6 | G7: 7 | H7: 8 | I7: 9 | J7: 10 | K7: 11 | L7: 12 | M7: 13 | N7: 14 | O7: 15 | P7: 16 | Q7: 17 | R7: 18 | S7: 19 | T7: 20 | U7: 21 | V7: 22 | W7: 23 | X7: 24 | Y7: 25 | Z7: 26 | AA7: 27 | AB7: 28 | AC7: 29 | AD7: 30 | AE7: 31
B8: %% | G8: pkt. proc. | L8: %% | Q8: pkt. proc. | V8: %% | AA8: pkt. proc.
A9: WB1 | B9: 77.72125 | C9: 78.7 | D9: 83.360625 | E9: 86.07125 | F9: 82.945625 | G9: =C9-B9 -> 0.97875 | H9: =D9-C9 -> 4.660625 | I9: =E9-D9 -> 2.710625 | J9: =F9-E9 -> -3.125625 | K9: =F9-B9 -> 5.224375 | L9: 50.75 | M9: 62.08 | N9: 70.17 | O9: 75.88 | P9: 70.14 | Q9: =M9-L9 -> 11.33 | R9: =N9-M9 -> 8.09 | S9: =O9-N9 -> 5.71 | T9: =P9-O9 -> -5.74 | U9: =P9-L9 -> 19.39 | V9: 93.35 | W9: 95.5 | X9: 93.17 | Y9: 95.91 | Z9: 95.11 | AA9: =W9-V9 -> 2.15 | AB9: =X9-W9 -> -2.33 | AC9: =Y9-X9 -> 2.74 | AD9: =Z9-Y9 -> -0.8 | AE9: =Z9-V9 -> 1.76
A10: WB2 | B10: 45.88875 | C10: 49.881875 | D10: 44.53875 | E10: 45.854375 | F10: 46.606875 | G10: 3.993125 | H10: -5.343125 | I10: 1.315625 | J10: =F10-E10 -> 0.7525 | K10: =F10-B10 -> 0.718125 | L10: 10.05 | M10: 13.33 | N10: 12.97 | O10: 10.49 | P10: 10.05 | Q10: 3.28 | R10: -0.36 | S10: -2.48 | T10: =P10-O10 -> -0.44 | U10: =P10-L10 -> 0 | V10: 70.04 | W10: 68.6 | X10: 66.69 | Y10: 65.05 | Z10: 69.17 | AA10: -1.44 | AB10: -1.91 | AC10: -1.64 | AD10: =Z10-Y10 -> 4.12 | AE10: =Z10-V10 -> -0.87
A11: WB3 | B11: 22.791875 | C11: 25.101875 | D11: 30.405 | E11: 26.283125 | F11: 29.029375 | G11: 2.31 | H11: 5.303125 | I11: -4.121875 | J11: 2.74625 | K11: 6.2375 | L11: 14.05 | M11: 16.36 | N11: 22.02 | O11: 17.51 | P11: 16.87 | Q11: 2.31 | R11: 5.66 | S11: -4.51 | T11: -0.64 | U11: 2.82 | V11: 29.19 | W11: 35.3 | X11: 37.71 | Y11: 36.61 | Z11: 40.04 | AA11: 6.11 | AB11: 2.41 | AC11: -1.1 | AD11: 3.43 | AE11: 10.85
A12: WB4 | B12: 38.915625 | C12: 36.959375 | D12: 35.76125 | E12: 33.866875 | F12: 39.445 | G12: -1.95625 | H12: -1.198125 | I12: -1.894375 | J12: 5.578125 | K12: 0.529375 | L12: 26.85 | M12: 22.77 | N12: 23.4 | O12: 25.18 | P12: 27.93 | Q12: -4.08 | R12: 0.63 | S12: 1.78 | T12: 2.75 | U12: 1.08 | V12: 63.72 | W12: 50.49 | X12: 46.43 | Y12: 47.01 | Z12: 59.07 | AA12: -13.23 | AB12: -4.06 | AC12: 0.58 | AD12: 12.06 | AE12: -4.65
A13: WB5 | B13: 20.268125 | C13: 19.441875 | D13: 20.063125 | E13: 19.466875 | F13: 19.121875 | G13: -0.82625 | H13: 0.62125 | I13: -0.59625 | J13: -0.345 | K13: -1.14625 | L13: 15.75 | M13: 14.78 | N13: 15.61 | O13: 14.55 | P13: 13.85 | Q13: -0.97 | R13: 0.83 | S13: -1.06 | T13: -0.7 | U13: -1.9 | V13: 24.94 | W13: 23.77 | X13: 24.48 | Y13: 24.69 | Z13: 24.21 | AA13: -1.17 | AB13: 0.71 | AC13: 0.21 | AD13: -0.48 | AE13: -0.73
A14: WB6 | B14: 18.144375 | C14: 20.351875 | D14: 25.8775 | E14: 22.839375 | F14: 24.2975 | G14: 2.2075 | H14: 5.525625 | I14: -3.038125 | J14: 1.458125 | K14: 6.153125 | L14: 10.43 | M14: 12.58 | N14: 17.63 | O14: 14.55 | P14: 12.92 | Q14: 2.15 | R14: 5.05 | S14: -3.08 | T14: -1.63 | U14: 2.49 | V14: 27.62 | W14: 28.3 | X14: 32.2 | Y14: 32.46 | Z14: 36.2 | AA14: 0.68 | AB14: 3.9 | AC14: 0.26 | AD14: 3.74 | AE14: 8.58
A15: WB7 | B15: 106.448125 | C15: 122.6875 | D15: 133.458125 | E15: 114.275625 | F15: 109.229375 | G15: 16.239375 | H15: 10.770625 | I15: -19.1825 | J15: -5.04625 | K15: 2.78125 | L15: 82 | M15: 90.8 | N15: 100.15 | O15: 87.5 | P15: 70.68 | Q15: 8.8 | R15: 9.35 | S15: -12.65 | T15: -16.82 | U15: -11.32 | V15: 142.36 | W15: 189.36 | X15: 170.62 | Y15: 177.81 | Z15: 147.23 | AA15: 47 | AB15: -18.74 | AC15: 7.19 | AD15: -30.58 | AE15: 4.87
A16: WB8 | B16: 8.9125 | C16: 14.573125 | D16: 20.635 | E16: 19.63875 | F16: 16.20375 | G16: 5.660625 | H16: 6.061875 | I16: -0.99625 | J16: -3.435 | K16: 7.29125 | L16: 1.72 | M16: 6 | N16: 8.49 | O16: 6.72 | P16: 2.01 | Q16: 4.28 | R16: 2.49 | S16: -1.77 | T16: -4.71 | U16: 0.29 | V16: 22.23 | W16: 30.92 | X16: 36.23 | Y16: 46.27 | Z16: 31.63 | AA16: 8.69 | AB16: 5.31 | AC16: 10.04 | AD16: -14.64 | AE16: 9.4
A17: WB9 | B17: 113.673125 | C17: 128.763125 | D17: 159.41625 | E17: 161.45875 | F17: 138.04125 | G17: 15.09 | H17: 30.653125 | I17: 2.0425 | J17: -23.4175 | K17: 24.368125 | L17: 87.42 | M17: 103.73 | N17: 113.6 | O17: 106.05 | P17: 86.17 | Q17: 16.31 | R17: 9.87 | S17: -7.55 | T17: -19.88 | U17: -1.25 | V17: 145.87 | W17: 177.26 | X17: 250.68 | Y17: 282.26 | Z17: 170.82 | AA17: 31.39 | AB17: 73.42 | AC17: 31.58 | AD17: -111.44 | AE17: 24.95
A18: WB10 | B18: 115.81375 | C18: 132.4475 | D18: 167.031875 | E18: 167.275 | F18: 142.408125 | G18: 16.63375 | H18: 34.584375 | I18: 0.243125 | J18: -24.866875 | K18: 26.594375 | L18: 84.69 | M18: 104.29 | N18: 115.9 | O18: 107.38 | P18: 85.54 | Q18: 19.6 | R18: 11.61 | S18: -8.52 | T18: -21.84 | U18: 0.85 | V18: 159.37 | W18: 186.3 | X18: 263.95 | Y18: 298.15 | Z18: 190.62 | AA18: 26.93 | AB18: 77.65 | AC18: 34.2 | AD18: -107.53 | AE18: 31.25
A19: WB11 | B19: 88.784375 | C19: 77.8925 | D19: 63.9 | E19: 63.7575 | F19: 74.259375 | G19: -10.891875 | H19: -13.9925 | I19: -0.1425 | J19: 10.501875 | K19: -14.525 | L19: 62.75 | M19: 53.68 | N19: 37.89 | O19: 33.54 | P19: 52.46 | Q19: -9.07 | R19: -15.79 | S19: -4.35 | T19: 18.92 | U19: -10.29 | V19: 118.07 | W19: 95.89 | X19: 86.28 | Y19: 93.12 | Z19: 116.9 | AA19: -22.18 | AB19: -9.61 | AC19: 6.84 | AD19: 23.78 | AE19: -1.17
A20: WB12 | B20: 31.799375 | C20: 34.06625 | D20: 40.3475 | E20: 34.63875 | F20: 37.3425 | G20: 2.266875 | H20: 6.28125 | I20: -5.70875 | J20: 2.70375 | K20: 5.543125 | L20: 22.05 | M20: 26.1 | N20: 29.75 | O20: 23.56 | P20: 22.39 | Q20: 4.05 | R20: 3.65 | S20: -6.19 | T20: -1.17 | U20: 0.34 | V20: 41.65 | W20: 48.46 | X20: 48.87 | Y20: 46.56 | Z20: 52.04 | AA20: 6.81 | AB20: 0.41 | AC20: -2.31 | AD20: 5.48 | AE20: 10.39
A22: Tablica 2. WSKAŹNIKI NA MIESZKAŃCA - zestawienie zbiorcze
A23: Wskaźnik | B23: średnia arytmetyczna | L23: wartości minimalne | V23: wartości maksymalne
B24: 2019 | C24: 2020 | D24: 2021 | E24: 2022 | F24: 2023 | G24: (3-2) | H24: (4-3) | I24: (5-4) | J24: (6-5) | K24: (6-2) | L24: 2019 | M24: 2020 | N24: 2021 | O24: 2022 | P24: 2023 | Q24: (13-12) | R24: (14-13) | S24: (15-14) | T24: (16-15) | U24: (16-12) | V24: 2019 | W24: 2020 | X24: 2021 | Y24: 2022 | Z24: 2023 | AA24: (23-22) | AB24: (24-23) | AC24: (25-24) | AD24: (26-25) | AE24: (26-22)
A25: 1 | B25: 2 | C25: 3 | D25: 4 | E25: 5 | F25: 6 | G25: 7 | H25: 8 | I25: 9 | J25: 10 | K25: 11 | L25: 12 | M25: 13 | N25: 14 | O25: 15 | P25: 16 | Q25: 17 | R25: 18 | S25: 19 | T25: 20 | U25: 21 | V25: 22 | W25: 23 | X25: 24 | Y25: 25 | Z25: 26 | AA25: 27 | AB25: 28 | AC25: 29 | AD25: 30 | AE25: 31
B26: zł | G26: %% | L26: zł | Q26: %% | V26: zł | AA26: %%
A27: WL1 | B27: 173.8625 | C27: 218.954375 | D27: 220.8225 | E27: 257.828125 | F27: 330.685 | G27: =C27/B27*100 -> 125.9353656 | H27: 100.8532029 | I27: 116.7580862 | J27: =F27/E27*100 -> 128.2579238 | K27: =F27/B27*100 -> 190.1991516 | L27: 57.54 | M27: 82.66 | N27: 86.17 | O27: 82.03 | P27: 102.18 | Q27: =M27/L27*100 -> 143.6565867 | R27: 104.2463102 | S27: 95.19554369 | T27: =P27/O27*100 -> 124.5641838 | U27: =P27/L27*100 -> 177.5808133 | V27: 266.97 | W27: 351.91 | X27: 346.4 | Y27: 377.57 | Z27: 493.25 | AA27: =W27/V27*100 -> 131.8163089 | AB27: 98.43425876 | AC27: 108.9982679 | AD27: =Z27/Y27*100 -> 130.6380274 | AE27: =Z27/V27*100 -> 184.7585871
A28: WL2 | B28: 88.2725 | C28: 110.19 | D28: 150.935 | E28: 147.070625 | F28: 205.655 | G28: 124.8293636 | H28: 136.9770397 | I28: 97.43970915 | J28: =F28/E28*100 -> 139.8341783 | K28: =F28/B28*100 -> 232.9774279 | L28: 52.5 | M28: 64.86 | N28: 102.92 | O28: 95.55 | P28: 122.2 | Q28: 123.5428571 | R28: 158.6802344 | S28: 92.83909833 | T28: =P28/O28*100 -> 127.8911565 | U28: =P28/L28*100 -> 232.7619048 | V28: 167.13 | W28: 158.62 | X28: 191.88 | Y28: 202.65 | Z28: 287.22 | AA28: 94.90815533 | AB28: 120.968352 | AC28: 105.6128831 | AD28: =Z28/Y28*100 -> 141.7320503 | AE28: =Z28/V28*100 -> 171.8542452
A29: WL3 | B29: 163.13875 | C29: 166.84375 | D29: 156.805625 | E29: 143.089375 | F29: 132.51375 | G29: 102.2710729 | H29: 93.98351751 | I29: 91.25270538 | J29: 92.60907737 | K29: 81.22763598 | L29: 99.82 | M29: 81.57 | N29: 62.83 | O29: 44.59 | P29: 17.05 | Q29: 81.71709076 | R29: 77.02586735 | S29: 70.96928219 | T29: 38.23727293 | U29: 17.08074534 | V29: 333.89 | W29: 328.86 | X29: 290.13 | Y29: 255.27 | Z29: 293.59 | AA29: 98.49351583 | AB29: 88.22295202 | AC29: 87.98469652 | AD29: 115.0115564 | AE29: 87.93015664
A30: WL4 | B30: 251.241875 | C30: 279.01375 | D30: 337.86875 | E30: 372.855 | F30: 494.83625 | G30: 111.05384 | H30: 121.0939425 | I30: 110.3549825 | J30: 132.7154658 | K30: 196.9561205 | L30: 153.69 | M30: 180.47 | N30: 192.08 | O30: 208.6 | P30: 271.03 | Q30: 117.4246861 | R30: 106.4332022 | S30: 108.6005831 | T30: 129.928092 | U30: 176.3484937 | V30: 548.61 | W30: 444.57 | X30: 505.41 | Y30: 657.92 | Z30: 934.91 | AA30: 81.03570843 | AB30: 113.6851339 | AC30: 130.1755011 | AD30: 142.1008633 | AE30: 170.4143198
A31: WL5 | B31: 228.309375 | C31: 256.95125 | D31: 312.299375 | E31: 353.67 | F31: 470.57 | G31: 112.5452032 | H31: 121.5403214 | I31: 113.2471046 | J31: 133.0534114 | K31: 206.1106777 | L31: 126.29 | M31: 159.73 | N31: 175.79 | O31: 192.61 | P31: 254.94 | Q31: 126.4787394 | R31: 110.0544669 | S31: 109.5682348 | T31: 132.3607289 | U31: 201.8687149 | V31: 540 | W31: 437.44 | X31: 489.55 | Y31: 647.56 | Z31: 919.22 | AA31: 81.00740741 | AB31: 111.9124909 | AC31: 132.2765805 | AD31: 141.951325 | AE31: 170.2259259
A33: Tablica 3. WSKAŹNIKI DLA ZOBOWIĄZAŃ WG TYTUŁÓW DŁUŻNYCH - zestawienie zbiorcze
A34: Wskaźnik | B34: średnia arytmetyczna | L34: wartości minimalne | V34: wartości maksymalne
B35: 2019 | C35: 2020 | D35: 2021 | E35: 2022 | F35: 2023 | G35: (3-2) | H35: (4-3) | I35: (5-4) | J35: (6-5) | K35: (6-2) | L35: 2019 | M35: 2020 | N35: 2021 | O35: 2022 | P35: 2023 | Q35: (13-12) | R35: (14-13) | S35: (15-14) | T35: (16-15) | U35: (16-12) | V35: 2019 | W35: 2020 | X35: 2021 | Y35: 2022 | Z35: 2023 | AA35: (23-22) | AB35: (24-23) | AC35: (25-24) | AD35: (26-25) | AE35: (26-22)
A36: 1 | B36: 2 | C36: 3 | D36: 4 | E36: 5 | F36: 6 | G36: 7 | H36: 8 | I36: 9 | J36: 10 | K36: 11 | L36: 12 | M36: 13 | N36: 14 | O36: 15 | P36: 16 | Q36: 17 | R36: 18 | S36: 19 | T36: 20 | U36: 21 | V36: 22 | W36: 23 | X36: 24 | Y36: 25 | Z36: 26 | AA36: 27 | AB36: 28 | AC36: 29 | AD36: 30 | AE36: 31
B37: %% | G37: pkt. proc. | L37: %% | Q37: pkt. proc. | V37: %% | AA37: pkt. proc.
A38: WZ1 | B38: 33.414375 | C38: 30.17875 | D38: 25.953125 | E38: 21.81625 | F38: 15.0775 | G38: =C38-B38 -> -3.235625 | H38: -4.225625 | I38: -4.136875 | J38: =F38-E38 -> -6.73875 | K38: =F38-B38 -> -18.336875 | L38: 17.95 | M38: 12.67 | N38: 9.73 | O38: 6.24 | P38: 1.96 | Q38: =M38-L38 -> -5.28 | R38: -2.94 | S38: -3.49 | T38: -4.28 | U38: =P38-L38 -> -15.99 | V38: 63.47 | W38: 66.04 | X38: 44.35 | Y38: 39.03 | Z38: 30.07 | AA38: =W38-V38 -> 2.57 | AB38: -21.69 | AC38: -5.32 | AD38: =Z38-Y38 -> -8.96 | AE38: =Z38-V38 -> -33.4
A39: WZ2 | B39: 2.093125 | C39: 1.641875 | D39: 1.105625 | E39: 1.070625 | F39: 0.736875 | G39: -0.45125 | H39: -0.53625 | I39: -0.035 | J39: =F39-E39 -> -0.33375 | K39: =F39-B39 -> -1.35625 | L39: 0.89 | M39: 0.61 | N39: 0.36 | O39: 0.29 | P39: 0.06 | Q39: -0.28 | R39: -0.25 | S39: -0.07 | T39: -0.23 | U39: =P39-L39 -> -0.83 | V39: 4.3 | W39: 3.44 | X39: 2.2 | Y39: 2.37 | Z39: 2.4 | AA39: -0.86 | AB39: -1.24 | AC39: 0.17 | AD39: =Z39-Y39 -> 0.03 | AE39: =Z39-V39 -> -1.9
A40: WZ3 | B40: 5.49625 | C40: 4.644375 | D40: 4.594375 | E40: 4.118125 | F40: 3.990625 | G40: -0.851875 | H40: -0.05 | I40: -0.47625 | J40: -0.1275 | K40: -1.505625 | L40: 1.51 | M40: 1.5 | N40: 1.6 | O40: 2.08 | P40: 1.57 | Q40: =M40-L40 -> -0.01 | R40: =N40-M40 -> 0.1 | S40: =O40-N40 -> 0.48 | T40: =P40-O40 -> -0.51 | U40: =P40-L40 -> 0.06 | V40: 12.62 | W40: 12.18 | X40: 12.73 | Y40: 9.14 | Z40: 13.78 | AA40: -0.44 | AB40: 0.55 | AC40: -3.59 | AD40: 4.64 | AE40: 1.16
A41: WZ4 | B41: 2.378125 | C41: 1.7475 | D41: 1.25125 | E41: 5.353125 | F41: 8.414375 | G41: -0.630625 | H41: -0.49625 | I41: 4.101875 | J41: 3.06125 | K41: 6.03625 | L41: 1.27 | M41: 0.69 | N41: 0.48 | O41: 2.66 | P41: 4.05 | Q41: -0.58 | R41: -0.21 | S41: 2.18 | T41: 1.39 | U41: 2.78 | V41: 3.65 | W41: 2.96 | X41: 2.16 | Y41: 8.65 | Z41: 20.9 | AA41: -0.69 | AB41: -0.8 | AC41: 6.49 | AD41: 12.25 | AE41: 17.25
A42: WZ5 | B42: 9.25625 | C42: 7.849375 | D42: 6.99625 | E42: 5.9675 | F42: 5.80875 | G42: -1.406875 | H42: -0.853125 | I42: -1.02875 | J42: -0.15875 | K42: -3.4475 | L42: 3.98 | M42: 3.13 | N42: 2.59 | O42: 2.9 | P42: 2.55 | Q42: -0.85 | R42: -0.54 | S42: 0.31 | T42: -0.35 | U42: -1.43 | V42: 26.12 | W42: 19.62 | X42: 17.38 | Y42: 13.7 | Z42: 19.47 | AA42: -6.5 | AB42: -2.24 | AC42: -3.68 | AD42: 5.77 | AE42: -6.65
A43: WZ6 | B43: 18.95875 | C43: 16.1725 | D43: 9.784375 | E43: 37.316875 | F43: 44.955 | G43: -2.78625 | H43: -6.388125 | I43: 27.5325 | J43: 7.638125 | K43: 25.99625 | L43: 6.67 | M43: 4.84 | N43: 1.89 | O43: 0 | P43: 0 | Q43: -1.83 | R43: -2.95 | S43: -1.89 | T43: 0 | U43: -6.67 | V43: 36.31 | W43: 49.63 | X43: 35.07 | Y43: 87.89 | Z43: 125.95 | AA43: 13.32 | AB43: -14.56 | AC43: 52.82 | AD43: 38.06 | AE43: 89.64
A44: WZ7 | B44: 0.020625 | C44: 0.021875 | D44: 0.02375 | E44: 0.01625 | F44: 0.018125 | G44: 0.00125 | H44: 0.001875 | I44: -0.0075 | J44: 0.001875 | K44: -0.0025 | L44: 0 | M44: 0 | N44: 0 | O44: 0 | P44: 0 | Q44: 0 | R44: 0 | S44: 0 | T44: 0 | U44: 0 | V44: 0.19 | W44: 0.21 | X44: 0.24 | Y44: 0.25 | Z44: 0.16 | AA44: 0.02 | AB44: 0.03 | AC44: 0.01 | AD44: -0.09 | AE44: -0.03

Sheet Tab_11 JST jednostkowo
K1: 4 | L1: 4 | M1: 4 | N1: 4 | O1: 4 | P1: 5 | Q1: 5 | R1: 5 | S1: 5 | T1: 5 | U1: 6 | V1: 6 | W1: 6 | X1: 6 | Y1: 6 | Z1: 7 | AA1: 7 | AB1: 7 | AC1: 7 | AD1: 7 | AE1: 8 | AF1: 8 | AG1: 8 | AH1: 8 | AI1: 8 | AJ1: 9 | AK1: 9 | AL1: 9 | AM1: 9 | AN1: 9 | AO1: 10 | AP1: 10 | AQ1: 10 | AR1: 10 | AS1: 10 | AT1: 11 | AU1: 11 | AV1: 11 | AW1: 11 | AX1: 11 | AY1: 12 | AZ1: 12 | BA1: 12 | BB1: 12 | BC1: 12 | BD1: 13 | BE1: 13 | BF1: 13 | BG1: 13 | BH1: 13 | BI1: 14 | BJ1: 14 | BK1: 14 | BL1: 14 | BM1: 14 | BN1: 15 | BO1: 15 | BP1: 15 | BQ1: 15 | BR1: 15 | BS1: 16 | BT1: 16 | BU1: 16 | BV1: 16 | BW1: 16 | BX1: 17 | BY1: 17 | BZ1: 17 | CA1: 17 | CB1: 17 | CC1: 18 | CD1: 18 | CE1: 18 | CF1: 18 | CG1: 18 | CH1: 19 | CI1: 19 | CJ1: 19 | CK1: 19 | CL1: 19 | CM1: 20 | CN1: 20 | CO1: 20 | CP1: 20 | CQ1: 20 | CR1: 21 | CS1: 21 | CT1: 21 | CU1: 21 | CV1: 21 | CW1: 22 | CX1: 22 | CY1: 22 | CZ1: 22 | DA1: 22 | DB1: 23 | DC1: 23 | DD1: 23 | DE1: 23 | DF1: 23 | DG1: 24 | DH1: 24 | DI1: 24 | DJ1: 24 | DK1: 24 | DL1: 25 | DM1: 25 | DN1: 25 | DO1: 25 | DP1: 25 | DQ1: 26 | DR1: 26 | DS1: 26 | DT1: 26 | DU1: 26 | DV1: 27 | DW1: 27 | DX1: 27 | DY1: 27 | DZ1: 27 | EA1: 28 | EB1: 28 | EC1: 28 | ED1: 28 | EE1: 28
P2: Db/Do | U2: Tb/Db | Z2: No/Db | AE2: Wm/Wo | AJ2: Ww/Wb | AO2: (No+Sm)/Do | AT2: (No+Dm)/Wm | AY2: ((Do+P) - (Wo+R)) / Do | BD2: (Pbzwr + (Do-Wb)) / (Wm+Rs) | BI2: (Pbzwr + (Do-Wb-Rs)) / Wm | BN2: Wm / (Pbzwr +(Do-Wb-Rs)) | BS2: ((Db-Dbe) - (Wb-Wbe-Wbd)+Sm) / (Db-Dbd) | BX2: Tb/Ludn | CC2: No/Ludn | CH2: Zo/Ludn | CM2: (Pbzwr+(Do-Wb))/ L | CR2: (Pbzwr +(Do-Wb-Rs))/ L | CW2: Zo/Do | DB2: Zo/No | DG2: (Rs+O)/Do | DL2: O/Zo | DQ2: (R+O)/(Db-Dbd) | DV2: O /Rs | EA2: Zw/Zo
A4: =+"WSKAŹNIKI DLA POSZCZEGÓLNYCH JEDNOSTEK W LATACH "&Rok-4&"-"&Rok -> WSKAŹNIKI DLA POSZCZEGÓLNYCH JEDNOSTEK W LATACH 2019-2023
K7: =+Parametry!$G$2 -> 2019 | L7: =+Parametry!$F$2 -> 2020 | M7: =+Parametry!$E$2 -> 2021 | N7: =+Parametry!$D$2 -> 2022 | O7: =+Parametry!$C$2 -> 2023 | P7: =+Parametry!$G$2 -> 2019 | Q7: =+Parametry!$F$2 -> 2020 | R7: =+Parametry!$E$2 -> 2021 | S7: =+Parametry!$D$2 -> 2022 | T7: =+Parametry!$C$2 -> 2023 | U7: =+Parametry!$G$2 -> 2019 | V7: =+Parametry!$F$2 -> 2020 | W7: =+Parametry!$E$2 -> 2021 | X7: =+Parametry!$D$2 -> 2022 | Y7: =+Parametry!$C$2 -> 2023 | Z7: =+Parametry!$G$2 -> 2019 | AA7: =+Parametry!$F$2 -> 2020 | AB7: =+Parametry!$E$2 -> 2021 | AC7: =+Parametry!$D$2 -> 2022 | AD7: =+Parametry!$C$2 -> 2023 | AE7: =+Parametry!$G$2 -> 2019 | AF7: =+Parametry!$F$2 -> 2020 | AG7: =+Parametry!$E$2 -> 2021 | AH7: =+Parametry!$D$2 -> 2022 | AI7: =+Parametry!$C$2 -> 2023 | AJ7: =+Parametry!$G$2 -> 2019 | AK7: =+Parametry!$F$2 -> 2020 | AL7: =+Parametry!$E$2 -> 2021 | AM7: =+Parametry!$D$2 -> 2022 | AN7: =+Parametry!$C$2 -> 2023 | AO7: =+Parametry!$G$2 -> 2019 | AP7: =+Parametry!$F$2 -> 2020 | AQ7: =+Parametry!$E$2 -> 2021 | AR7: =+Parametry!$D$2 -> 2022 | AS7: =+Parametry!$C$2 -> 2023 | AT7: =+Parametry!$G$2 -> 2019 | AU7: =+Parametry!$F$2 -> 2020 | AV7: =+Parametry!$E$2 -> 2021 | AW7: =+Parametry!$D$2 -> 2022 | AX7: =+Parametry!$C$2 -> 2023 | AY7: =+Parametry!$G$2 -> 2019 | AZ7: =+Parametry!$F$2 -> 2020 | BA7: =+Parametry!$E$2 -> 2021 | BB7: =+Parametry!$D$2 -> 2022 | BC7: =+Parametry!$C$2 -> 2023 | BD7: =+Parametry!$G$2 -> 2019 | BE7: =+Parametry!$F$2 -> 2020 | BF7: =+Parametry!$E$2 -> 2021 | BG7: =+Parametry!$D$2 -> 2022 | BH7: =+Parametry!$C$2 -> 2023 | BI7: =+Parametry!$G$2 -> 2019 | BJ7: =+Parametry!$F$2 -> 2020 | BK7: =+Parametry!$E$2 -> 2021 | BL7: =+Parametry!$D$2 -> 2022 | BM7: =+Parametry!$C$2 -> 2023 | BN7: =+Parametry!$G$2 -> 2019 | BO7: =+Parametry!$F$2 -> 2020 | BP7: =+Parametry!$E$2 -> 2021 | BQ7: =+Parametry!$D$2 -> 2022 | BR7: =+Parametry!$C$2 -> 2023 | BS7: =+Parametry!$G$2 -> 2019 | BT7: =+Parametry!$F$2 -> 2020 | BU7: =+Parametry!$E$2 -> 2021 | BV7: =+Parametry!$D$2 -> 2022 | BW7: =+Parametry!$C$2 -> 2023 | BX7: =+Parametry!$G$2 -> 2019 | BY7: =+Parametry!$F$2 -> 2020 | BZ7: =+Parametry!$E$2 -> 2021 | CA7: =+Parametry!$D$2 -> 2022 | CB7: =+Parametry!$C$2 -> 2023 | CC7: =+Parametry!$G$2 -> 2019 | CD7: =+Parametry!$F$2 -> 2020 | CE7: =+Parametry!$E$2 -> 2021 | CF7: =+Parametry!$D$2 -> 2022 | CG7: =+Parametry!$C$2 -> 2023 | CH7: =+Parametry!$G$2 -> 2019 | CI7: =+Parametry!$F$2 -> 2020 | CJ7: =+Parametry!$E$2 -> 2021 | CK7: =+Parametry!$D$2 -> 2022 | CL7: =+Parametry!$C$2 -> 2023 | CM7: =+Parametry!$G$2 -> 2019 | CN7: =+Parametry!$F$2 -> 2020 | CO7: =+Parametry!$E$2 -> 2021 | CP7: =+Parametry!$D$2 -> 2022 | CQ7: =+Parametry!$C$2 -> 2023 | CR7: =+Parametry!$G$2 -> 2019 | CS7: =+Parametry!$F$2 -> 2020 | CT7: =+Parametry!$E$2 -> 2021 | CU7: =+Parametry!$D$2 -> 2022 | CV7: =+Parametry!$C$2 -> 2023 | CW7: =+Parametry!$G$2 -> 2019 | CX7: =+Parametry!$F$2 -> 2020 | CY7: =+Parametry!$E$2 -> 2021 | CZ7: =+Parametry!$D$2 -> 2022 | DA7: =+Parametry!$C$2 -> 2023 | DB7: =+Parametry!$G$2 -> 2019 | DC7: =+Parametry!$F$2 -> 2020 | DD7: =+Parametry!$E$2 -> 2021 | DE7: =+Parametry!$D$2 -> 2022 | DF7: =+Parametry!$C$2 -> 2023 | DG7: =+Parametry!$G$2 -> 2019 | DH7: =+Parametry!$F$2 -> 2020 | DI7: =+Parametry!$E$2 -> 2021 | DJ7: =+Parametry!$D$2 -> 2022 | DK7: =+Parametry!$C$2 -> 2023 | DL7: =+Parametry!$G$2 -> 2019 | DM7: =+Parametry!$F$2 -> 2020 | DN7: =+Parametry!$E$2 -> 2021 | DO7: =+Parametry!$D$2 -> 2022 | DP7: =+Parametry!$C$2 -> 2023 | DQ7: =+Parametry!$G$2 -> 2019 | DR7: =+Parametry!$F$2 -> 2020 | DS7: =+Parametry!$E$2 -> 2021 | DT7: =+Parametry!$D$2 -> 2022 | DU7: =+Parametry!$C$2 -> 2023 | DV7: =+Parametry!$G$2 -> 2019 | DW7: =+Parametry!$F$2 -> 2020 | DX7: =+Parametry!$E$2 -> 2021 | DY7: =+Parametry!$D$2 -> 2022 | DZ7: =+Parametry!$C$2 -> 2023 | EA7: =+Parametry!$G$2 -> 2019 | EB7: =+Parametry!$F$2 -> 2020 | EC7: =+Parametry!$E$2 -> 2021 | ED7: =+Parametry!$D$2 -> 2022 | EE7: =+Parametry!$C$2 -> 2023
A8: WK | B8: PK | C8: GK | D8: GT | E8: Typ | F8: WKTYP | G8: TYPS | H8: KodGUS6 | I8: KODGUS | J8: NazwaJST | K8: Ludn[4] | L8: Ludn[3] | M8: Ludn[2] | N8: Ludn[1] | O8: Ludn[0] | P8: WB1[4] | Q8: WB1[3] | R8: WB1[2] | S8: WB1[1] | T8: WB1[0] | U8: WB2[4] | V8: WB2[3] | W8: WB2[2] | X8: WB2[1] | Y8: WB2[0] | Z8: WB3[4] | AA8: WB3[3] | AB8: WB3[2] | AC8: WB3[1] | AD8: WB3[0] | AE8: WB4[4] | AF8: WB4[3] | AG8: WB4[2] | AH8: WB4[1] | AI8: WB4[0] | AJ8: WB5[4] | AK8: WB5[3] | AL8: WB5[2] | AM8: WB5[1] | AN8: WB5[0] | AO8: WB6[4] | AP8: WB6[3] | AQ8: WB6[2] | AR8: WB6[1] | AS8: WB6[0] | AT8: WB7[4] | AU8: WB7[3] | AV8: WB7[2] | AW8: WB7[1] | AX8: WB7[0] | AY8: WB8[4] | AZ8: WB8[3] | BA8: WB8[2] | BB8: WB8[1] | BC8: WB8[0] | BD8: WB9[4] | BE8: WB9[3] | BF8: WB9[2] | BG8: WB9[1] | BH8: WB9[0] | BI8: WB10[4] | BJ8: WB10[3] | BK8: WB10[2] | BL8: WB10[1] | BM8: WB10[0] | BN8: WB11[4] | BO8: WB11[3] | BP8: WB11[2] | BQ8: WB11[1] | BR8: WB11[0] | BS8: WB12[4] | BT8: WB12[3] | BU8: WB12[2] | BV8: WB12[1] | BW8: WB12[0] | BX8: WL1[4] | BY8: WL1[3] | BZ8: WL1[2] | CA8: WL1[1] | CB8: WL1[0] | CC8: WL2[4] | CD8: WL2[3] | CE8: WL2[2] | CF8: WL2[1] | CG8: WL2[0] | CH8: WL3[4] | CI8: WL3[3] | CJ8: WL3[2] | CK8: WL3[1] | CL8: WL3[0] | CM8: WL4[4] | CN8: WL4[3] | CO8: WL4[2] | CP8: WL4[1] | CQ8: WL4[0] | CR8: WL5[4] | CS8: WL5[3] | CT8: WL5[2] | CU8: WL5[1] | CV8: WL5[0] | CW8: WZ1[4] | CX8: WZ1[3] | CY8: WZ1[2] | CZ8: WZ1[1] | DA8: WZ1[0] | DB8: WZ2[4] | DC8: WZ2[3] | DD8: WZ2[2] | DE8: WZ2[1] | DF8: WZ2[0] | DG8: WZ3[4] | DH8: WZ3[3] | DI8: WZ3[2] | DJ8: WZ3[1] | DK8: WZ3[0] | DL8: WZ4[4] | DM8: WZ4[3] | DN8: WZ4[2] | DO8: WZ4[1] | DP8: WZ4[0] | DQ8: WZ5[4] | DR8: WZ5[3] | DS8: WZ5[2] | DT8: WZ5[1] | DU8: WZ5[0] | DV8: WZ6[4] | DW8: WZ6[3] | DX8: WZ6[2] | DY8: WZ6[1] | DZ8: WZ6[0] | EA8: WZ7[4] | EB8: WZ7[3] | EC8: WZ7[2] | ED8: WZ7[1] | EE8: WZ7[0]
A9: 2 | B9: 1 | C9: 1 | D9: 1 | E9: G | F9: 02G101 | G9: G | H9: 020101 | I9: 201011 | J9: BOLESŁAWIEC | K9: 38852 | L9: 38717 | M9: 38280 | N9: 37355 | O9: 37160 | P9: 93.18 | Q9: 93.37 | R9: 91.73 | S9: 92.24 | T9: 84.02 | U9: 42.64 | V9: 44.89 | W9: 43.46 | X9: 39.65 | Y9: 32.69 | Z9: 5.02 | AA9: 2.93 | AB9: 9.98 | AC9: 8.71 | AD9: 9.01 | AE9: 6.1 | AF9: 2.97 | AG9: 13.61 | AH9: 15.04 | AI9: 26.92 | AJ9: 32.7 | AK9: 31.52 | AL9: 31.22 | AM9: 32.56 | AN9: 36.35 | AO9: 7.73 | AP9: 5.51 | AQ9: 14.26 | AR9: 11.19 | AS9: 11.23 | AT9: 199.82 | AU9: 337.18 | AV9: 133.9 | AW9: 105.97 | AX9: 83.64 | AY9: 0.55 | AZ9: 6.07 | BA9: 12.17 | BB9: 0 | BC9: 8.4 | BD9: 109.66 | BE9: 188.73 | BF9: 137.21 | BG9: 165.39 | BH9: 127.67 | BI9: 118.88 | BJ9: 319.66 | BK9: 147.27 | BL9: 173.54 | BM9: 129.82 | BN9: 84.12 | BO9: 31.28 | BP9: 67.9 | BQ9: 57.62 | BR9: 77.03 | BS9: 11.43 | BT9: 8.47 | BU9: 21.65 | BV9: 16.29 | BW9: 15.42 | BX9: 1947.46 | BY9: 2178.98 | BZ9: 2422.68 | CA9: 2325.34 | CB9: 1999.16 | CC9: 229.17 | CD9: 142.43 | CE9: 556.19 | CF9: 510.82 | CG9: 551.23 | CH9: 904.95 | CI9: 694.45 | CJ9: 853.93 | CK9: 1160.45 | CL9: 1007.16 | CM9: 604 | CN9: 674.98 | CO9: 1378.46 | CP9: 1763.14 | CQ9: 2820.52 | CR9: 335.04 | CS9: 461.79 | CT9: 1164.78 | CU9: 1644.95 | CV9: 2661.14 | CW9: 18.47 | CX9: 13.36 | CY9: 14.05 | CZ9: 18.25 | DA9: 13.84 | DB9: 3.95 | DC9: 4.88 | DD9: 1.54 | DE9: 2.27 | DF9: 1.83 | DG9: 6.1 | DH9: 4.48 | DI9: 3.71 | DJ9: 2.58 | DK9: 3.37 | DL9: 3.33 | DM9: 2.85 | DN9: 1.4 | DO9: 3.93 | DP9: 8.51 | DQ9: 9.01 | DR9: 6.92 | DS9: 5.53 | DT9: 3.77 | DU9: 4.7 | DV9: 11.22 | DW9: 9.27 | DX9: 5.6 | DY9: 38.63 | DZ9: 53.8 | EA9: 0 | EB9: 0 | EC9: 0 | ED9: 0 | EE9: 0
A10: 2 | B10: 1 | C10: 2 | D10: 2 | E10: G | F10: 02G201 | G10: G | H10: 020102 | I10: 201022 | J10: BOLESŁAWIEC | K10: 14641 | L10: 14778 | M10: 14999 | N10: 15181 | O10: 15214 | P10: 89.96 | Q10: 91.4 | R10: 98.23 | S10: 97.92 | T10: 88.38 | U10: 48.81 | V10: 50.16 | W10: 48.43 | X10: 47.96 | Y10: 39.19 | Z10: 17.28 | AA10: 19.64 | AB10: 20 | AC10: 19.01 | AD10: 20.24 | AE10: 29.71 | AF10: 18.43 | AG10: 13.81 | AH10: 10.7 | AI10: 18.84 | AJ10: 31.92 | AK10: 30.47 | AL10: 30.54 | AM10: 31.22 | AN10: 39.12 | AO10: 17.03 | AP10: 20.66 | AQ10: 20.55 | AR10: 19.77 | AS10: 18.81 | AT10: 81.37 | AU10: 159.96 | AV10: 170.11 | AW10: 217.8 | AX10: 180.37 | AY10: 2.66 | AZ10: 12.18 | BA10: 5.01 | BB10: 5.77 | BC10: 57.94 | BD10: 165 | BE10: 270.51 | BF10: 382.68 | BG10: 569.11 | BH10: 453.44 | BI10: 165.18 | BJ10: 271.35 | BK10: 384.42 | BL10: 570.73 | BM10: 454.15 | BN10: 60.54 | BO10: 36.85 | BP10: 26.01 | BQ10: 17.52 | BR10: 22.02 | BS10: 29.05 | BT10: 32.18 | BU10: 29.53 | BV10: 29.08 | BW10: 24.81 | BX10: 2159.75 | BY10: 2491.46 | BZ10: 2676.99 | CA10: 2779.28 | CB10: 2046.3 | CC10: 764.87 | CD10: 975.73 | CE10: 1105.69 | CF10: 1101.9 | CG10: 1056.84 | CH10: 15.44 | CI10: 10.86 | CJ10: 3.94 | CK10: 1.95 | CL10: 0 | CM10: 2560.13 | CN10: 2452.03 | CO10: 2728.07 | CP10: 3212.16 | CQ10: 4391.13 | CR10: 2555.66 | CS10: 2447.6 | CT10: 2723.7 | CU10: 3210.22 | CV10: 4389.19 | CW10: 0.31 | CX10: 0.2 | CY10: 0.07 | CZ10: 0.03 | DA10: 0 | DB10: 0.02 | DC10: 0.01 | DD10: 0 | DE10: 0 | DF10: 0 | DG10: 0.1 | DH10: 0.09 | DI10: 0.08 | DJ10: 0.03 | DK10: 0.03 | DL10: 2.09 | DM10: 3.01 | DN10: 4.19 | DO10: 3 | DP10: 0 | DQ10: 0.16 | DR10: 0.14 | DS10: 0.12 | DT10: 0.05 | DU10: 0.04 | DV10: 7.22 | DW10: 7.38 | DX10: 3.78 | DY10: 3 | DZ10: 0.18 | EA10: 0 | EB10: 0 | EC10: 0 | ED10: 0 | EE10: 0
A11: 2 | B11: 1 | C11: 3 | D11: 2 | E11: G | F11: 02G201 | G11: G | H11: 020103 | I11: 201032 | J11: GROMADKA | K11: 5355 | L11: 5337 | M11: 5290 | N11: 5052 | O11: 5034 | P11: 61.8 | Q11: 71.77 | R11: 77.11 | S11: 59.72 | T11: 86.02 | U11: 47.12 | V11: 46.78 | W11: 42.12 | X11: 38.84 | Y11: 31.46 | Z11: 10.94 | AA11: 13.17 | AB11: 18.11 | AC11: 11.77 | AD11: -4.93 | AE11: 23.52 | AF11: 18.93 | AG11: 35.25 | AH11: 33.79 | AI11: 26.8 | AJ11: 36.88 | AK11: 37.72 | AL11: 37.7 | AM11: 34.69 | AN11: 38.72 | AO11: 29.9 | AP11: 27.65 | AQ11: 22.1 | AR11: 38.93 | AS11: -0.32 | AT11: 265.68 | AU11: 258.94 | AV11: 107.22 | AW11: 175.87 | AX11: 29.48 | AY11: 14.41 | AZ11: 35.79 | BA11: 49.82 | BB11: 33.92 | BC11: 58.95 | BD11: 245.48 | BE11: 367.34 | BF11: 242.21 | BG11: 297.93 | BH11: 274.71 | BI11: 272.23 | BJ11: 397.36 | BK11: 244.93 | BL11: 301.25 | BM11: 278.37 | BN11: 36.73 | BO11: 25.17 | BP11: 40.83 | BQ11: 33.2 | BR11: 35.92 | BS11: 67.24 | BT11: 54.04 | BU11: 38.75 | BV11: 93.17 | BW11: -0.41 | BX11: 2404.37 | BY11: 2676.08 | BZ11: 2816.23 | CA11: 3070.57 | CB11: 2344.98 | CC11: 558.25 | CD11: 753.64 | CE11: 1211.21 | CF11: 930.12 | CG11: -367.4 | CH11: 308.59 | CI11: 179.03 | CJ11: 123.67 | CK11: 69.77 | CL11: 10.18 | CM11: 4060.78 | CN11: 4740.27 | CO11: 7357.4 | CP11: 10784.83 | CQ11: 8031.33 | CR11: 3803.87 | CS11: 4610.02 | CT11: 7300.45 | CU11: 10725.2 | CV11: 7971.48 | CW11: 3.74 | CX11: 2.25 | CY11: 1.43 | CZ11: 0.53 | DA11: 0.12 | DB11: 0.55 | DC11: 0.24 | DD11: 0.1 | DE11: 0.08 | DF11: -0.03 | DG11: 3.28 | DH11: 1.69 | DI11: 0.67 | DJ11: 0.5 | DK11: 0.73 | DL11: 4.59 | DM11: 2.66 | DN11: 1.17 | DO11: 8.77 | DP11: 34.07 | DQ11: 7.26 | DR11: 3.3 | DS11: 1.16 | DT11: 1.17 | DU11: 0.99 | DV11: 5.51 | DW11: 3.65 | DX11: 2.54 | DY11: 10.27 | DZ11: 5.8 | EA11: 0 | EB11: 0 | EC11: 0 | ED11: 0 | EE11: 0
A12: 2 | B12: 1 | C12: 4 | D12: 3 | E12: G | F12: 02G301 | G12: G | H12: 020104 | I12: 201043 | J12: NOWOGRODZIEC | K12: 15214 | L12: 15202 | M12: 15209 | N12: 14730 | O12: 14649 | P12: 81.75 | Q12: 89.73 | R12: 94.66 | S12: 99.09 | T12: 76.08 | U12: 54.01 | V12: 58.12 | W12: 54.33 | X12: 53.03 | Y12: 41.25 | Z12: 10 | AA12: 5.24 | AB12: 11.19 | AC12: 12.04 | AD12: 3.66 | AE12: 23.03 | AF12: 13.35 | AG12: 9.84 | AH12: 20.98 | AI12: 21.82 | AJ12: 37.57 | AK12: 36.64 | AL12: 39.5 | AM12: 38.67 | AN12: 44.97 | AO12: 18.16 | AP12: 5.24 | AQ12: 10.96 | AR12: 12.27 | AS12: 10.77 | AT12: 120 | AU12: 114.34 | AV12: 173.73 | AW12: 55.48 | AX12: 130.53 | AY12: 15.91 | AZ12: 16.5 | BA12: 19.95 | BB12: 12.36 | BC12: 15.11 | BD12: 146.04 | BE12: 206.52 | BF12: 270.41 | BG12: 120.28 | BH12: 168.08 | BI12: 149.39 | BJ12: 226 | BK12: 317.56 | BL12: 122.27 | BM12: 173.87 | BN12: 66.94 | BO12: 44.25 | BP12: 31.49 | BQ12: 81.79 | BR12: 57.51 | BS12: 32.51 | BT12: 9.27 | BU12: 16.76 | BV12: 18.62 | BW12: 16.59 | BX12: 2324.32 | BY12: 2577.05 | BZ12: 2664.97 | CA12: 3166.25 | CB12: 2215.85 | CC12: 430.39 | CD12: 232.31 | CE12: 548.83 | CF12: 718.68 | CG12: 196.88 | CH12: 1659.48 | CI12: 1543.1 | CJ12: 1411.79 | CK12: 1716.76 | CL12: 1603.96 | CM12: 1815.78 | CN12: 1581 | CO12: 1640.79 | CP12: 1841.29 | CQ12: 2635.01 | CR12: 1731.51 | CS12: 1462.67 | CT12: 1509.29 | CU12: 1704.99 | CV12: 2512.14 | CW12: 31.52 | CX12: 31.22 | CY12: 27.25 | CZ12: 28.49 | DA12: 22.71 | DB12: 3.86 | DC12: 6.64 | DD12: 2.57 | DE12: 2.39 | DF12: 8.15 | DG12: 2.47 | DH12: 3.09 | DI12: 2.92 | DJ12: 3.67 | DK12: 3.69 | DL12: 2.75 | DM12: 2.24 | DN12: 1.4 | DO12: 4.94 | DP12: 8.58 | DQ12: 4.41 | DR12: 5.47 | DS12: 4.52 | DT12: 5.6 | DU12: 5.65 | DV12: 54.2 | DW12: 29.23 | DX12: 15.07 | DY12: 62.16 | DZ12: 112.03 | EA12: 0.19 | EB12: 0.25 | EC12: 0.33 | ED12: 0.35 | EE12: 0.41
A13: 2 | B13: 1 | C13: 5 | D13: 2 | E13: G | F13: 02G201 | G13: G | H13: 020105 | I13: 201052 | J13: OSIECZNICA | K13: 7396 | L13: 7364 | M13: 7268 | N13: 7297 | O13: 7299 | P13: 94.63 | Q13: 95.72 | R13: 95.03 | S13: 98.73 | T13: 86.89 | U13: 50.79 | V13: 49.63 | W13: 55.8 | X13: 47.39 | Y13: 40.49 | Z13: 20.15 | AA13: 25.38 | AB13: 12.33 | AC13: 24.74 | AD13: 21.36 | AE13: 21.99 | AF13: 5.83 | AG13: 7.26 | AH13: 10.25 | AI13: 38.06 | AJ13: 38.81 | AK13: 37.35 | AL13: 37.43 | AM13: 38.12 | AN13: 47.47 | AO13: 19.37 | AP13: 25.1 | AQ13: 11.8 | AR13: 25.3 | AS13: 19.27 | AT13: 114.68 | AU13: 645.74 | AV13: 255.91 | AW13: 302.79 | AX13: 75.42 | AY13: 46.9 | AZ13: 64.65 | BA13: 79.96 | BB13: 83.88 | BC13: 73.01 | BD13: 283.38 | BE13: 1151.53 | BF13: 1326.28 | BG13: 1088.56 | BH13: 273.91 | BI13: 302.24 | BJ13: 1561.29 | BK13: 1326.71 | BL13: 1088.56 | BM13: 273.91 | BN13: 33.09 | BO13: 6.4 | BP13: 7.54 | BQ13: 9.19 | BR13: 36.51 | BS13: 28.54 | BT13: 35.97 | BU13: 17.69 | BV13: 35.61 | BW13: 25.6 | BX13: 2774.14 | BY13: 3058.42 | BZ13: 3198.55 | CA13: 3371.76 | CB13: 2551.36 | CC13: 1100.47 | CD13: 1563.95 | CE13: 706.73 | CF13: 1759.86 | CG13: 1345.66 | CH13: 146.88 | CI13: 36.53 | CJ13: 0 | CK13: 0 | CL13: 0 | CM13: 3843.18 | CN13: 4557.96 | CO13: 5216.81 | CP13: 6655.6 | CQ13: 8338.71 | CR13: 3716.73 | CS13: 4446.97 | CT13: 5216.67 | CU13: 6655.6 | CV13: 8338.71 | CW13: 2.54 | CX13: 0.57 | CY13: 0 | CZ13: 0 | DA13: 0 | DB13: 0.13 | DC13: 0.02 | DD13: 0 | DE13: 0 | DF13: 0 | DG13: 2.26 | DH13: 1.75 | DI13: 0.02 | DJ13: 0 | DK13: 0 | DL13: 2.67 | DM13: 4.75 | DN13: 0 | DO13: 0 | DP13: 0 | DQ13: 3.22 | DR13: 2.53 | DS13: 0.03 | DT13: 0 | DU13: 0 | DV13: 3.1 | DW13: 1.56 | DX13: 735.62 | DY13: 0 | DZ13: 0 | EA13: 0 | EB13: 0 | EC13: 0 | ED13: 0 | EE13: 0
A14: 2 | B14: 1 | C14: 6 | D14: 2 | E14: G | F14: 02G201 | G14: G | H14: 020106 | I14: 201062 | J14: WARTA BOLESŁAWIECKA | K14: 8650 | L14: 8634 | M14: 8528 | N14: 8407 | O14: 8392 | P14: 98.18 | Q14: 97.2 | R14: 97.15 | S14: 95.51 | T14: 87.31 | U14: 55.59 | V14: 57.5 | W14: 57.14 | X14: 55.73 | Y14: 48.76 | Z14: 9.43 | AA14: 7.89 | AB14: 8.41 | AC14: 7.19 | AD14: 7 | AE14: 9.19 | AF14: 10.38 | AG14: 6.85 | AH14: 13.37 | AI14: 18.37 | AJ14: 32.67 | AK14: 31.1 | AL14: 31.61 | AM14: 30.75 | AN14: 39.47 | AO14: 9.43 | AP14: 7.71 | AQ14: 8.18 | AR14: 7.09 | AS14: 6.22 | AT14: 122.97 | AU14: 101.06 | AV14: 168.44 | AW14: 83.02 | AX14: 102.95 | AY14: 25.58 | AZ14: 23.61 | BA14: 25.98 | BB14: 20.63 | BC14: 21.27 | BD14: 367.87 | BE14: 322.52 | BF14: 490.02 | BG14: 250.88 | BH14: 217 | BI14: 377.56 | BJ14: 327.77 | BK14: 497.13 | BL14: 250.88 | BM14: 217 | BN14: 26.49 | BO14: 30.51 | BP14: 20.12 | BQ14: 39.86 | BR14: 46.08 | BS14: 11.7 | BT14: 12.16 | BU14: 12.8 | BV14: 11.43 | BW14: 8.75 | BX14: 2602.63 | BY14: 2875.69 | BZ14: 3157.46 | CA14: 3504.38 | CB14: 2795.06 | CC14: 441.31 | CD14: 394.83 | CE14: 464.73 | CF14: 451.94 | CG14: 401.49 | CH14: 42.46 | CI14: 29.96 | CJ14: 0 | CK14: 0 | CL14: 6.23 | CM14: 1636.27 | CN14: 1760.71 | CO14: 1856.65 | CP14: 2258.72 | CQ14: 2602.43 | CR14: 1620.75 | CS14: 1748.12 | CT14: 1849.86 | CU14: 2258.72 | CV14: 2602.43 | CW14: 0.89 | CX14: 0.58 | CY14: 0 | CZ14: 0 | DA14: 0.09 | DB14: 0.1 | DC14: 0.08 | DD14: 0 | DE14: 0 | DF14: 0.02 | DG14: 0.35 | DH14: 0.26 | DI14: 0.13 | DJ14: 0 | DK14: 0 | DL14: 3.05 | DM14: 3.35 | DN14: 0 | DO14: 0 | DP14: 0 | DQ14: 0.55 | DR14: 0.42 | DS14: 0.21 | DT14: 0 | DU14: 0 | DV14: 8.35 | DW14: 7.96 | DX14: 13.01 | DY14: 0 | DZ14: 0 | EA14: 0 | EB14: 0.04 | EC14: 0 | ED14: 0 | EE14: 0.67
A15: 2 | B15: 2 | C15: 1 | D15: 1 | E15: G | F15: 02G102 | G15: G | H15: 020201 | I15: 202011 | J15: BIELAWA | K15: 29971 | L15: 29713 | M15: 29318 | N15: 28475 | O15: 28181 | P15: 85.43 | Q15: 86.48 | R15: 89.23 | S15: 90.28 | T15: 82.37 | U15: 54.54 | V15: 60.8 | W15: 60.42 | X15: 61.38 | Y15: 56.93 | Z15: 7.64 | AA15: 1.63 | AB15: 7.96 | AC15: 1.76 | AD15: 3.72 | AE15: 12.91 | AF15: 15.96 | AG15: 10.61 | AH15: 21.68 | AI15: 27.2 | AJ15: 25.9 | AK15: 26.72 | AL15: 28.35 | AM15: 27.74 | AN15: 34.01 | AO15: 9.37 | AP15: 4.71 | AQ15: 10.57 | AR15: 7.79 | AS15: 6.67 | AT15: 180.35 | AU15: 92.41 | AV15: 183.29 | AW15: 46.08 | AX15: 69.87 | AY15: 13.61 | AZ15: 10.7 | BA15: 16.39 | BB15: 4.06 | BC15: 4.18 | BD15: 181 | BE15: 157.47 | BF15: 239.17 | BG15: 101.77 | BH15: 77.5 | BI15: 195.2 | BJ15: 164.79 | BK15: 266.96 | BL15: 101.91 | BM15: 75.82 | BN15: 51.23 | BO15: 60.68 | BP15: 37.46 | BQ15: 98.13 | BR15: 131.89 | BS15: 15.87 | BT15: 7.68 | BU15: 17.61 | BV15: 13.34 | BW15: 10.38 | BX15: 2451.9 | BY15: 2763.46 | BZ15: 3040.02 | CA15: 3385.76 | CB15: 2957.44 | CC15: 343.56 | CD15: 73.91 | CE15: 400.23 | CF15: 96.99 | CG15: 193.44 | CH15: 1476.18 | CI15: 1392.45 | CJ15: 1305.72 | CK15: 1449.54 | CL15: 2040.08 | CM15: 1309.5 | CN15: 1507.22 | CO15: 1577.34 | CP15: 1642.62 | CQ15: 1556.06 | CR15: 1201.58 | CS15: 1399.06 | CT15: 1467.56 | CU15: 1528.3 | CV15: 1416.81 | CW15: 28.05 | CX15: 26.49 | CY15: 23.16 | CZ15: 23.72 | DA15: 32.34 | DB15: 4.3 | DC15: 18.84 | DD15: 3.26 | DE15: 14.95 | DF15: 10.55 | DG15: 2.88 | DH15: 2.77 | DI15: 2.34 | DJ15: 3.1 | DK15: 4.29 | DL15: 2.97 | DM15: 2.67 | DN15: 1.68 | DO15: 5.17 | DP15: 6.44 | DQ15: 4.82 | DR15: 4.93 | DS15: 3.87 | DT15: 5.35 | DU15: 6.7 | DV15: 40.66 | DW15: 34.4 | DX15: 20.01 | DY15: 65.54 | DZ15: 94.35 | EA15: 0.04 | EB15: 0 | EC15: 0 | ED15: 0 | EE15: 0
A16: 2 | B16: 2 | C16: 2 | D16: 1 | E16: G | F16: 02G102 | G16: G | H16: 020202 | I16: 202021 | J16: DZIERŻONIÓW | K16: 33239 | L16: 33075 | M16: 32647 | N16: 31256 | O16: 30822 | P16: 89.14 | Q16: 89.23 | R16: 88.17 | S16: 92.92 | T16: 82.83 | U16: 47.78 | V16: 50.21 | W16: 50.63 | X16: 48.02 | Y16: 46.04 | Z16: 8.06 | AA16: 8.86 | AB16: 13.35 | AC16: 7.36 | AD16: 6.2 | AE16: 16.92 | AF16: 12.83 | AG16: 13.71 | AH16: 18.54 | AI16: 26.97 | AJ16: 33.21 | AK16: 32.61 | AL16: 34.48 | AM16: 35.28 | AN16: 39.74 | AO16: 9.04 | AP16: 9.36 | AQ16: 13.56 | AR16: 10.16 | AS16: 6.76 | AT16: 108.1 | AU16: 156.14 | AV16: 194.39 | AW16: 71.07 | AX16: 77.72 | AY16: 6.31 | AZ16: 8.24 | BA16: 14.32 | BB16: 9.16 | BC16: 3.09 | BD16: 120.01 | BE16: 144.84 | BF16: 185.29 | BG16: 116.6 | BH16: 92.99 | BI16: 126.17 | BJ16: 163.81 | BK16: 217.94 | BL16: 120.75 | BM16: 91.91 | BN16: 79.26 | BO16: 61.04 | BP16: 45.88 | BQ16: 82.82 | BR16: 108.8 | BS16: 14.49 | BT16: 14.81 | BU16: 22.19 | BV16: 15.62 | BW16: 9.99 | BX16: 1939.93 | BY16: 2164.65 | BZ16: 2397.04 | CA16: 2456.52 | CB16: 2287.89 | CC16: 327.22 | CD16: 382.18 | CE16: 631.86 | CF16: 376.73 | CG16: 308.1 | CH16: 1820.18 | CI16: 1612.27 | CJ16: 1379.12 | CK16: 1448.27 | CL16: 1522.01 | CM16: 1193.53 | CN16: 1191.49 | CO16: 1670.5 | CP16: 1571.77 | CQ16: 1849.29 | CR16: 959.52 | CS16: 946.94 | CT16: 1420.87 | CU16: 1302.67 | CV16: 1582.28 | CW16: 39.96 | CX16: 33.37 | CY16: 25.68 | CZ16: 26.3 | DA16: 25.37 | DB16: 5.56 | DC16: 4.22 | DD16: 2.18 | DE16: 3.84 | DF16: 4.94 | DG16: 6.21 | DH16: 5.72 | DI16: 4.95 | DJ16: 6.27 | DK16: 6.19 | DL16: 2.68 | DM16: 1.98 | DN16: 1.17 | DO16: 5.25 | DP16: 6.86 | DQ16: 9.96 | DR16: 9.63 | DS16: 8.06 | DT16: 9.58 | DU16: 9.22 | DV16: 20.87 | DW16: 13.06 | DX16: 6.46 | DY16: 28.25 | DZ16: 39.13 | EA16: 0 | EB16: 0 | EC16: 0 | ED16: 0 | EE16: 0
A17: 2 | B17: 2 | C17: 3 | D17: 3 | E17: G | F17: 02G302 | G17: G | H17: 020203 | I17: 202033 | J17: PIESZYCE | K17: 9466 | L17: 9397 | M17: 9269 | N17: 9026 | O17: 8932 | P17: 87.11 | Q17: 90.71 | R17: 79.97 | S17: 81.56 | T17: 78.19 | U17: 58.19 | V17: 63.35 | W17: 62.27 | X17: 60.92 | Y17: 55.36 | Z17: 8.79 | AA17: 8.12 | AB17: 11.02 | AC17: 6.5 | AD17: 4.77 | AE17: 14.74 | AF17: 12.28 | AG17: 16.64 | AH17: 23.92 | AI17: 28.7 | AJ17: 30.99 | AK17: 29.29 | AL17: 32.19 | AM17: 29.47 | AN17: 41.27 | AO17: 10.15 | AP17: 11.96 | AQ17: 12.08 | AR17: 7.28 | AS17: 6.89 | AT17: 149.62 | AU17: 142.62 | AV17: 203.09 | AW17: 99.01 | AX17: 85.22 | AY17: 7.52 | AZ17: 9.01 | BA17: 22.32 | BB17: 17.51 | BC17: 15.81 | BD17: 128.67 | BE17: 161.44 | BF17: 215.11 | BG17: 167.71 | BH17: 141.61 | BI17: 137.95 | BJ17: 178.83 | BK17: 236.15 | BL17: 173.17 | BM17: 145.71 | BN17: 72.49 | BO17: 55.92 | BP17: 42.35 | BQ17: 57.75 | BR17: 68.63 | BS17: 19.01 | BT17: 20.72 | BU17: 22.94 | BV17: 14.49 | BW17: 11.04 | BX17: 2184.61 | BY17: 2487.81 | BZ17: 2700.55 | CA17: 3133.23 | CB17: 2297.65 | CC17: 330.1 | CD17: 318.71 | CE17: 478.1 | CF17: 334.12 | CG17: 198.09 | CH17: 1114.96 | CI17: 980.1 | CJ17: 1014.67 | CK17: 920.12 | CL17: 885.02 | CM17: 1008.14 | CN17: 1046.73 | CO17: 1959.96 | CP17: 2740.32 | CQ17: 2475.01 | CR17: 816.49 | CS17: 903.69 | CT17: 1819.17 | CU17: 2618.45 | CV17: 2318.27 | CW17: 25.87 | CX17: 22.64 | CY17: 18.71 | CZ17: 14.59 | DA17: 16.67 | DB17: 3.38 | DC17: 3.08 | DD17: 2.12 | DE17: 2.75 | DF17: 4.47 | DG17: 5.24 | DH17: 3.79 | DI17: 2.87 | DJ17: 2.95 | DK17: 4.21 | DL17: 3.08 | DM17: 2.13 | DN17: 1.46 | DO17: 6.97 | DP17: 7.56 | DQ17: 9.22 | DR17: 6.88 | DS17: 5.5 | DT17: 5.96 | DU17: 6.59 | DV17: 17.94 | DW17: 14.62 | DX17: 10.55 | DY17: 52.62 | DZ17: 42.68 | EA17: 0 | EB17: 0 | EC17: 0 | ED17: 0 | EE17: 0
A18: 2 | B18: 2 | C18: 4 | D18: 1 | E18: G | F18: 02G102 | G18: G | H18: 020204 | I18: 202041 | J18: PIŁAWA GÓRNA | K18: 6412 | L18: 6382 | M18: 6333 | N18: 6016 | O18: 5929 | P18: 85.91 | Q18: 80.05 | R18: 86.27 | S18: 91.84 | T18: 79.87 | U18: 58.41 | V18: 59.81 | W18: 61.76 | X18: 55.73 | Y18: 54.16 | Z18: 8.54 | AA18: 7.03 | AB18: 12.3 | AC18: 7.82 | AD18: -0.46 | AE18: 22.34 | AF18: 7.18 | AG18: 23.84 | AH18: 20.16 | AI18: 28.1 | AJ18: 32.66 | AK18: 33.03 | AL18: 36.54 | AM18: 35.93 | AN18: 46.27 | AO18: 8.29 | AP18: 7.6 | AQ18: 12 | AR18: 7.93 | AS18: 0.59 | AT18: 94.84 | AU18: 444.27 | AV18: 102.76 | AW18: 71.77 | AX18: 63.02 | AY18: 6.68 | AZ18: 24.25 | BA18: 24 | BB18: 14.97 | BC18: 8.69 | BD18: 115.83 | BE18: 428.37 | BF18: 193.42 | BG18: 164.47 | BH18: 106.62 | BI18: 117.02 | BJ18: 521.11 | BK18: 200.28 | BL18: 170.02 | BM18: 107.14 | BN18: 85.46 | BO18: 19.19 | BP18: 49.93 | BQ18: 58.82 | BR18: 93.33 | BS18: 14.69 | BT18: 13.89 | BU18: 21.91 | BV18: 13.23 | BW18: 0.75 | BX18: 2318.59 | BY18: 2480.84 | BZ18: 2707.23 | CA18: 2874 | CB18: 2261.67 | CC18: 339.17 | CD18: 291.5 | CE18: 539.16 | CF18: 403.51 | CG18: -19.14 | CH18: 773.19 | CI18: 692.57 | CJ18: 619.57 | CK18: 548.87 | CL18: 764.72 | CM18: 1300.33 | CN18: 1638.98 | CO18: 2498.6 | CP18: 2144.54 | CQ18: 1886.08 | CR18: 1221.92 | CS18: 1554.72 | CT18: 2410.17 | CU18: 2041.19 | CV18: 1756.54 | CW18: 16.73 | CX18: 13.37 | CY18: 12.19 | CZ18: 9.78 | DA18: 14.63 | DB18: 2.28 | DC18: 2.38 | DD18: 1.15 | DE18: 1.36 | DF18: -39.96 | DG18: 2.12 | DH18: 1.96 | DI18: 1.92 | DJ18: 2.43 | DK18: 3.4 | DL18: 2.52 | DM18: 2.46 | DN18: 1.51 | DO18: 5.99 | DP18: 6.27 | DQ18: 3.76 | DR18: 3.82 | DS18: 3.52 | DT18: 4.02 | DU18: 5.09 | DV18: 24.84 | DW18: 20.26 | DX18: 10.55 | DY18: 31.83 | DZ18: 37.03 | EA18: 0 | EB18: 0 | EC18: 0 | ED18: 0 | EE18: 0
A19: 2 | B19: 2 | C19: 5 | D19: 2 | E19: G | F19: 02G202 | G19: G | H19: 020205 | I19: 202052 | J19: DZIERŻONIÓW | K19: 9114 | L19: 9072 | M19: 8973 | N19: 9193 | O19: 9153 | P19: 89.53 | Q19: 86.91 | R19: 84.48 | S19: 94.18 | T19: 81.49 | U19: 58.08 | V19: 60.11 | W19: 59.77 | X19: 56.49 | Y19: 52.33 | Z19: 9.55 | AA19: 13.1 | AB19: 11.23 | AC19: 7.77 | AD19: 5.22 | AE19: 21.14 | AF19: 12.27 | AG19: 15.75 | AH19: 10.71 | AI19: 33.28 | AJ19: 37.66 | AK19: 34.52 | AL19: 37.78 | AM19: 36.35 | AN19: 50.73 | AO19: 9.75 | AP19: 12.33 | AQ19: 12.02 | AR19: 8.94 | AS19: 5.12 | AT19: 87.64 | AU19: 231.63 | AV19: 178.42 | AW19: 126.14 | AX19: 59.1 | AY19: 4.58 | AZ19: 12.76 | BA19: 24.35 | BB19: 25.24 | BC19: 12.5 | BD19: 96.57 | BE19: 183.21 | BF19: 236.33 | BG19: 316.14 | BH19: 121.84 | BI19: 96.26 | BJ19: 222.39 | BK19: 251.97 | BL19: 345.27 | BM19: 122.83 | BN19: 103.89 | BO19: 44.97 | BP19: 39.69 | BQ19: 28.96 | BR19: 81.41 | BS19: 16.96 | BT19: 21.91 | BU19: 21.7 | BV19: 16.21 | BW19: 7.13 | BX19: 2373.02 | BY19: 2752.09 | BZ19: 2954.09 | CA19: 3091.63 | CB19: 2392.38 | CC19: 390.08 | CD19: 599.68 | CE19: 554.98 | CF19: 425.27 | CG19: 238.69 | CH19: 1315.45 | CI19: 1059.52 | CJ19: 1155.47 | CK19: 1046.23 | CL19: 1160.06 | CM19: 1042.26 | CN19: 1499.62 | CO19: 2160.24 | CP19: 2171.23 | CQ19: 2752.93 | CR19: 953.38 | CS19: 1237.6 | CT19: 2066.18 | CU19: 2089.65 | CV19: 2654.6 | CW19: 28.83 | CX19: 20.11 | CY19: 19.75 | CZ19: 18.01 | DA19: 20.68 | DB19: 3.37 | DC19: 1.77 | DD19: 2.08 | DE19: 2.46 | DF19: 4.86 | DG19: 2.69 | DH19: 5.46 | DI19: 1.83 | DJ19: 2.47 | DK19: 3.18 | DL19: 2.59 | DM19: 2.41 | DN19: 1.13 | DO19: 5.92 | DP19: 6.92 | DQ19: 4.54 | DR19: 10.07 | DS19: 3.3 | DT19: 4.11 | DU19: 4.68 | DV19: 38.38 | DW19: 9.75 | DX19: 13.92 | DY19: 75.9 | DZ19: 81.59 | EA19: 0 | EB19: 0 | EC19: 0 | ED19: 0 | EE19: 0
A20: 2 | B20: 2 | C20: 6 | D20: 2 | E20: G | F20: 02G202 | G20: G | H20: 020206 | I20: 202062 | J20: ŁAGIEWNIKI | K20: 7443 | L20: 7430 | M20: 7413 | N20: 7214 | O20: 7161 | P20: 97.97 | Q20: 82.44 | R20: 83.74 | S20: 94 | T20: 84.9 | U20: 62.56 | V20: 64.08 | W20: 60.71 | X20: 57.44 | Y20: 56.04 | Z20: 12.01 | AA20: 11.38 | AB20: 14.95 | AC20: 7.23 | AD20: 12.17 | AE20: 5.2 | AF20: 9.16 | AG20: 11.76 | AH20: 25.32 | AI20: 36.12 | AJ20: 38.46 | AK20: 35.56 | AL20: 36.54 | AM20: 34.05 | AN20: 48.21 | AO20: 11.95 | AP20: 9.43 | AQ20: 12.7 | AR20: 7.18 | AS20: 10.42 | AT20: 291.79 | AU20: 365.9 | AV20: 303.1 | AW20: 43.29 | AX20: 60.29 | AY20: 14.35 | AZ20: 28.85 | BA20: 45.23 | BB20: 27.8 | BC20: 11.14 | BD20: 308.12 | BE20: 420.15 | BF20: 510.36 | BG20: 189.45 | BH20: 125.46 | BI20: 403.44 | BJ20: 491.78 | BK20: 576.35 | BL20: 194.04 | BM20: 126.43 | BN20: 24.79 | BO20: 20.33 | BP20: 17.35 | BQ20: 51.54 | BR20: 79.1 | BS20: 17.81 | BT20: 16.56 | BU20: 22.4 | BV20: 12.6 | BW20: 14.41 | BX20: 2743.47 | BY20: 3113.88 | BZ20: 3155.73 | CA20: 3378.11 | CB20: 2824.59 | CC20: 526.89 | CD20: 553.08 | CE20: 777.32 | CF20: 425.17 | CG20: 613.11 | CH20: 742.37 | CI20: 646.57 | CJ20: 553.28 | CK20: 473.78 | CL20: 381.83 | CM20: 950.77 | CN20: 2231.67 | CO20: 3491.42 | CP20: 3684.49 | CQ20: 3260.52 | CR20: 853.83 | CS20: 2134.56 | CT20: 3396.65 | CU20: 3589.73 | CV20: 3165.06 | CW20: 16.58 | CX20: 10.97 | CY20: 8.91 | CZ20: 7.57 | DA20: 6.43 | DB20: 1.41 | DC20: 1.17 | DD20: 0.71 | DE20: 1.11 | DF20: 0.62 | DG20: 2.66 | DH20: 1.89 | DI20: 1.64 | DJ20: 2.03 | DK20: 2.24 | DL20: 2.98 | DM20: 2.26 | DN20: 1.32 | DO20: 6.8 | DP20: 9.79 | DQ20: 3.91 | DR20: 3.51 | DS20: 2.85 | DT20: 3.45 | DU20: 3.1 | DV20: 22.85 | DW20: 15.03 | DX20: 7.68 | DY20: 34 | DZ20: 39.15 | EA20: 0 | EB20: 0 | EC20: 0 | ED20: 0 | EE20: 0
A21: 2 | B21: 2 | C21: 7 | D21: 3 | E21: G | F21: 02G302 | G21: G | H21: 020207 | I21: 202073 | J21: NIEMCZA | K21: 5473 | L21: 5450 | M21: 5387 | N21: 5136 | O21: 5077 | P21: 93.6 | Q21: 72.28 | R21: 83.42 | S21: 88.31 | T21: 75.53 | U21: 61.96 | V21: 65.21 | W21: 60.66 | X21: 55.8 | Y21: 55.21 | Z21: 8.32 | AA21: 3.13 | AB21: 6.57 | AC21: 8.71 | AD21: 4.46 | AE21: 15.86 | AF21: 16.42 | AG21: 17.73 | AH21: 23.17 | AI21: 38.69 | AJ21: 29.34 | AK21: 27.9 | AL21: 30.21 | AM21: 29.19 | AN21: 39.29 | AO21: 8.04 | AP21: 3.16 | AQ21: 7.19 | AR21: 8.34 | AS21: 3.74 | AT21: 87.73 | AU21: 218.04 | AV21: 131.32 | AW21: 79.72 | AX21: 61.12 | AY21: 1.6 | AZ21: 14.67 | BA21: 25.63 | BB21: 11.74 | BC21: 4.1 | BD21: 78.7 | BE21: 180.93 | BF21: 201.44 | BG21: 140.18 | BH21: 86.14 | BI21: 74.61 | BJ21: 201.56 | BK21: 211.95 | BL21: 148.26 | BM21: 85.69 | BN21: 134.04 | BO21: 49.61 | BP21: 47.18 | BQ21: 67.45 | BR21: 116.7 | BS21: 13.14 | BT21: 6.88 | BU21: 13.24 | BV21: 14.68 | BW21: 5.87 | BX21: 2600.37 | BY21: 2734.53 | BZ21: 2850.23 | CA21: 3460.84 | CB21: 2744.95 | CC21: 349.03 | CD21: 131.4 | CE21: 308.75 | CF21: 540.3 | CG21: 221.68 | CH21: 1444.83 | CI21: 1302.59 | CJ21: 1602.78 | CK21: 1337.46 | CL21: 1954.91 | CM21: 680.47 | CN21: 1811.27 | CO21: 2103.14 | CP21: 2875.35 | CQ21: 2665.89 | CR21: 540.96 | CS21: 1607.88 | CT21: 2005.07 | CU21: 2531.7 | CV21: 2568.91 | CW21: 32.22 | CX21: 22.45 | CY21: 28.46 | CZ21: 19.05 | DA21: 29.7 | DB21: 4.14 | DC21: 9.91 | DD21: 5.19 | DE21: 2.48 | DF21: 8.82 | DG21: 3.98 | DH21: 4.02 | DI21: 2.17 | DJ21: 6.39 | DK21: 3.11 | DL21: 2.7 | DM21: 2.27 | DN21: 1.49 | DO21: 7.85 | DP21: 5.5 | DQ21: 6.51 | DR21: 8.67 | DS21: 3.8 | DT21: 11.22 | DU21: 5.12 | DV21: 27.93 | DW21: 14.54 | DX21: 24.34 | DY21: 30.54 | DZ21: 110.88 | EA21: 0 | EB21: 0 | EC21: 0 | ED21: 0 | EE21: 0
A22: 2 | B22: 3 | C22: 1 | D22: 1 | E22: G | F22: 02G103 | G22: G | H22: 020301 | I22: 203011 | J22: GŁOGÓW | K22: 67317 | L22: 66627 | M22: 65757 | N22: 63240 | O22: 62533 | P22: 90.38 | Q22: 90.91 | R22: 92.33 | S22: 90.24 | T22: 77.48 | U22: 37.4 | V22: 40.46 | W22: 39.95 | X22: 33.15 | Y22: 32.25 | Z22: 8.53 | AA22: 7.9 | AB22: 9.34 | AC22: 2.33 | AD22: 2.33 | AE22: 23.45 | AF22: 12.85 | AG22: 15.17 | AH22: 16.39 | AI22: 24.27 | AJ22: 36.37 | AK22: 36.93 | AL22: 37.11 | AM22: 39.76 | AN22: 43.7 | AO22: 9.3 | AP22: 8.9 | AQ22: 13.79 | AR22: 3.09 | AS22: 5.91 | AT22: 68.44 | AU22: 131.8 | AV22: 108.9 | AW22: 68.68 | AX22: 100.34 | AY22: 2.71 | AZ22: 6.69 | BA22: 10.69 | BB22: 8.65 | BC22: 3.13 | BD22: 70.59 | BE22: 112.61 | BF22: 125.71 | BG22: 111.1 | BH22: 115.45 | BI22: 67.74 | BJ22: 117.1 | BK22: 130.89 | BL22: 113.33 | BM22: 117.52 | BN22: 147.61 | BO22: 85.4 | BP22: 76.4 | BQ22: 88.24 | BR22: 85.09 | BS22: 12.98 | BT22: 13.47 | BU22: 19.84 | BV22: 4.25 | BW22: 8.57 | BX22: 1863.91 | BY22: 2145.55 | BZ22: 2312.76 | CA22: 1862.85 | CB22: 1835.1 | CC22: 425.22 | CD22: 418.89 | CE22: 540.78 | CF22: 130.98 | CG22: 132.8 | CH22: 2654.8 | CI22: 2677.38 | CJ22: 2894.74 | CK22: 3182.12 | CL22: 3667.4 | CM22: 1081.47 | CN22: 1100.06 | CO22: 1417.43 | CP22: 1435.49 | CQ22: 2331.86 | CR22: 946.09 | CS22: 843.34 | CT22: 1228.33 | CU22: 1219.09 | CV22: 2093.03 | CW22: 48.15 | CX22: 45.9 | CY22: 46.16 | CZ22: 51.09 | DA22: 49.93 | DB22: 6.24 | DC22: 6.39 | DD22: 5.35 | DE22: 24.29 | DF22: 27.62 | DG22: 3.57 | DH22: 5.3 | DI22: 3.55 | DJ22: 6.35 | DK22: 6.49 | DL22: 2.32 | DM22: 1.96 | DN22: 1.15 | DO22: 5.64 | DP22: 6.49 | DQ22: 5.18 | DR22: 8.01 | DS22: 5.1 | DT22: 8.72 | DU22: 9.39 | DV22: 45.57 | DW22: 20.42 | DX22: 17.64 | DY22: 82.88 | DZ22: 99.64 | EA22: 0 | EB22: 0 | EC22: 0 | ED22: 0 | EE22: 0
A23: 2 | B23: 3 | C23: 2 | D23: 2 | E23: G | F23: 02G203 | G23: G | H23: 020302 | I23: 203022 | J23: GŁOGÓW | K23: 6767 | L23: 6793 | M23: 6905 | N23: 7101 | O23: 7153 | P23: 92.78 | Q23: 91.94 | R23: 87.76 | S23: 86.6 | T23: 70.47 | U23: 41.52 | V23: 45.23 | W23: 45.77 | X23: 44.16 | Y23: 36.06 | Z23: 13.28 | AA23: 8.81 | AB23: 12.43 | AC23: 6.09 | AD23: 0.58 | AE23: 17.3 | AF23: 17.95 | AG23: 21.81 | AH23: 24.27 | AI23: 38.44 | AJ23: 32.36 | AK23: 34.44 | AL23: 35.43 | AM23: 35.59 | AN23: 46.65 | AO23: 12.42 | AP23: 8.25 | AQ23: 11.06 | AR23: 5.96 | AS23: 2.01 | AT23: 116.13 | AU23: 88.14 | AV23: 108 | AW23: 71.67 | AX23: 68.41 | AY23: 11.7 | AZ23: 12.02 | BA23: 18.61 | BB23: 14.54 | BC23: 5.05 | BD23: 164.33 | BE23: 134.75 | BF23: 143.79 | BG23: 130.76 | BH23: 95.66 | BI23: 172.68 | BJ23: 138.97 | BK23: 147.61 | BL23: 133.14 | BM23: 95.41 | BN23: 57.91 | BO23: 71.96 | BP23: 67.74 | BQ23: 75.11 | BR23: 104.81 | BS23: 18.43 | BT23: 13.43 | BU23: 16.91 | BV23: 10.48 | BW23: 3.38 | BX23: 2307.24 | BY23: 2512.81 | BZ23: 2769.69 | CA23: 2644.26 | CB23: 1762.25 | CC23: 738.05 | CD23: 489.43 | CE23: 752.33 | CF23: 364.92 | CG23: 28.26 | CH23: 780.11 | CI23: 937.02 | CJ23: 1372.03 | CK23: 1602.96 | CL23: 1901.61 | CM23: 1871.08 | CN23: 1674.47 | CO23: 2310.56 | CP23: 2539.37 | CQ23: 3074.27 | CR23: 1740.3 | CS23: 1539.95 | CT23: 2181.48 | CU23: 2399.77 | CV23: 2895.14 | CW23: 13.03 | CX23: 15.51 | CY23: 19.9 | CZ23: 23.18 | DA23: 27.42 | DB23: 1.06 | DC23: 1.91 | DD23: 1.82 | DE23: 4.39 | DF23: 67.29 | DG23: 2.59 | DH23: 2.49 | DI23: 2.05 | DJ23: 3.12 | DK23: 4.21 | DL23: 3.1 | DM23: 1.73 | DN23: 0.9 | DO23: 4.74 | DP23: 5.94 | DQ23: 3.82 | DR23: 3.92 | DS23: 3.29 | DT23: 5.1 | DU23: 6.75 | DV23: 18.48 | DW23: 12.02 | DX23: 9.6 | DY23: 54.4 | DZ23: 63.04 | EA23: 0 | EB23: 0 | EC23: 0 | ED23: 0 | EE23: 0.01
A24: 2 | B24: 3 | C24: 3 | D24: 2 | E24: G | F24: 02G203 | G24: G | H24: 020303 | I24: 203032 | J24: JERZMANOWA | K24: 5091 | L24: 5269 | M24: 5439 | N24: 5697 | O24: 5796 | P24: 91.95 | Q24: 87.43 | R24: 95.46 | S24: 95.64 | T24: 85.98 | U24: 27.13 | V24: 28.53 | W24: 29.04 | X24: 25.75 | Y24: 18.61 | Z24: 19.06 | AA24: 18.36 | AB24: 21.1 | AC24: 13.02 | AD24: 4.52 | AE24: 29.33 | AF24: 31.43 | AG24: 12.63 | AH24: 23.24 | AI24: 24.51 | AJ24: 32.25 | AK24: 32.89 | AL24: 34.05 | AM24: 34.22 | AN24: 39.26 | AO24: 17.55 | AP24: 16.07 | AQ24: 20.15 | AR24: 12.46 | AS24: 3.89 | AT24: 82.81 | AU24: 87.45 | AV24: 226.67 | AW24: 66.7 | AX24: 67.18 | AY24: 4.86 | AZ24: 12.04 | BA24: 19.13 | BB24: 10.39 | BC24: 6.4 | BD24: 91.26 | BE24: 96.39 | BF24: 274.15 | BG24: 135.85 | BH24: 94.77 | BI24: 90.76 | BJ24: 96.26 | BK24: 310.58 | BL24: 141.22 | BM24: 94.2 | BN24: 110.18 | BO24: 103.89 | BP24: 32.2 | BQ24: 70.81 | BR24: 106.16 | BS24: 23.37 | BT24: 22.74 | BU24: 25.35 | BV24: 16.84 | BW24: 4.87 | BX24: 2563.85 | BY24: 2957.12 | BZ24: 3357.08 | CA24: 2889.89 | CB24: 1894.06 | CC24: 1801.09 | CD24: 1902.57 | CE24: 2438.78 | CF24: 1460.53 | CG24: 459.58 | CH24: 3627.81 | CI24: 4910.9 | CJ24: 4481.62 | CK24: 3839.19 | CL24: 4368.85 | CM24: 3060.23 | CN24: 3875.31 | CO24: 4370.37 | CP24: 4617.55 | CQ24: 3317.51 | CR24: 2881.31 | CS24: 3734.13 | CT24: 4094.59 | CU24: 4174.24 | CV24: 2972.45 | CW24: 35.29 | CX24: 41.43 | CY24: 37.01 | CZ24: 32.72 | DA24: 36.9 | DB24: 2.01 | DC24: 2.58 | DD24: 1.84 | DE24: 2.63 | DF24: 9.51 | DG24: 2.54 | DH24: 1.92 | DI24: 2.86 | DJ24: 5.79 | DK24: 5.4 | DL24: 2.28 | DM24: 1.75 | DN24: 1.58 | DO24: 6.14 | DP24: 6.75 | DQ24: 3.29 | DR24: 2.69 | DS24: 3.69 | DT24: 7.21 | DU24: 6.67 | DV24: 46.15 | DW24: 60.87 | DX24: 25.71 | DY24: 53.21 | DZ24: 85.41 | EA24: 0 | EB24: 0 | EC24: 0 | ED24: 0.1 | EE24: 0.09
A25: 2 | B25: 3 | C25: 4 | D25: 2 | E25: G | F25: 02G203 | G25: G | H25: 020304 | I25: 203042 | J25: KOTLA | K25: 4426 | L25: 4458 | M25: 4418 | N25: 4355 | O25: 4390 | P25: 89.01 | Q25: 83.67 | R25: 91.09 | S25: 91.39 | T25: 76.98 | U25: 58.24 | V25: 56.76 | W25: 55.05 | X25: 52.88 | Y25: 53.35 | Z25: 4.46 | AA25: 8.51 | AB25: 12.06 | AC25: 3.72 | AD25: 1.83 | AE25: 10.02 | AF25: 7.01 | AG25: 8.3 | AH25: 22.86 | AI25: 29.04 | AJ25: 38.37 | AK25: 37 | AL25: 35.6 | AM25: 31.62 | AN25: 35.91 | AO25: 3.99 | AP25: 8.79 | AQ25: 11.3 | AR25: 3.76 | AS25: 1.99 | AT25: 157.96 | AU25: 406.1 | AV25: 274.52 | AW25: 46.06 | AX25: 78.98 | AY25: 1.91 | AZ25: 17.11 | BA25: 26.39 | BB25: 6.54 | BC25: 5.74 | BD25: 89.73 | BE25: 317.41 | BF25: 362.89 | BG25: 124.03 | BH25: 84.54 | BI25: 78.68 | BJ25: 397.54 | BK25: 469.44 | BL25: 126.05 | BM25: 82.28 | BN25: 127.09 | BO25: 25.15 | BP25: 21.3 | BQ25: 79.33 | BR25: 121.54 | BS25: 4.61 | BT25: 16.58 | BU25: 18.63 | BV25: 5.08 | BW25: 4.6 | BX25: 2936.87 | BY25: 3142.48 | BZ25: 3435.15 | CA25: 3894.28 | CB25: 3877.82 | CC25: 225.01 | CD25: 471.1 | CE25: 752.31 | CF25: 273.85 | CG25: 132.77 | CH25: 1873.38 | CI25: 1719.11 | CJ25: 1533.48 | CK25: 1378.48 | CL25: 2080.11 | CM25: 999.64 | CN25: 1659.74 | CO25: 2531.7 | CP25: 2826.14 | CQ25: 2829.61 | CR25: 422.12 | CS25: 1518.91 | CT25: 2330.5 | CU25: 2648.96 | CV25: 2403.28 | CW25: 33.07 | CX25: 25.98 | CY25: 22.38 | CZ25: 17.11 | DA25: 22.03 | DB25: 8.33 | DC25: 3.65 | DD25: 2.04 | DE25: 5.03 | DF25: 15.67 | DG25: 11.22 | DH25: 2.75 | DI25: 3.28 | DJ25: 3.04 | DK25: 5.62 | DL25: 3.11 | DM25: 2.4 | DN25: 1.53 | DO25: 4.95 | DP25: 5.03 | DQ25: 19.17 | DR25: 4.96 | DS25: 5.23 | DT25: 5.01 | DU25: 9.88 | DV25: 10.09 | DW25: 29.3 | DX25: 11.7 | DY25: 38.48 | DZ25: 24.52 | EA25: 0 | EB25: 0 | EC25: 0 | ED25: 0 | EE25: 0
A26: 2 | B26: 3 | C26: 5 | D26: 2 | E26: G | F26: 02G203 | G26: G | H26: 020305 | I26: 203052 | J26: PĘCŁAW | K26: 2272 | L26: 2241 | M26: 2203 | N26: 2121 | O26: 2096 | P26: 98.1 | Q26: 91.18 | R26: 87.41 | S26: 76.16 | T26: 64.55 | U26: 67.77 | V26: 69.01 | W26: 68.13 | X26: 56.46 | Y26: 64.31 | Z26: 3.47 | AA26: 7.4 | AB26: 9.9 | AC26: 17.02 | AD26: 6.18 | AE26: 4.44 | AF26: 8.85 | AG26: 3.9 | AH26: 32.01 | AI26: 49.41 | AJ26: 36.48 | AK26: 34 | AL26: 36.45 | AM26: 32.59 | AN26: 40.82 | AO26: 4.62 | AP26: 8.92 | AQ26: 8.65 | AR26: 13.01 | AS26: 4.13 | AT26: 120.54 | AU26: 189.85 | AV26: 664.86 | AW26: 123.68 | AX26: 66.69 | AY26: 1.88 | AZ26: 6.04 | BA26: 22.23 | BB26: 19.95 | BC26: 0.05 | BD26: 129.22 | BE26: 158.37 | BF26: 510.32 | BG26: 163.86 | BH26: 100.09 | BI26: 142.77 | BJ26: 173.7 | BK26: 795.72 | BL26: 167.04 | BM26: 100.09 | BN26: 70.04 | BO26: 57.57 | BP26: 12.57 | BQ26: 59.86 | BR26: 99.91 | BS26: 9.17 | BT26: 15.85 | BU26: 17.18 | BV26: 24.84 | BW26: 10.25 | BX26: 3246.11 | BY26: 3606.75 | BZ26: 3680.58 | CA26: 4194.46 | CB26: 3780.21 | CC26: 166.42 | CD26: 386.64 | CE26: 534.73 | CF26: 1264.16 | CG26: 363.42 | CH26: 2135.54 | CI26: 2022.87 | CJ26: 1920.42 | CK26: 1850.11 | CL26: 1702.03 | CM26: 406.65 | CN26: 939.95 | CO26: 1708.67 | CP26: 4992.41 | CQ26: 5560.21 | CR26: 306.92 | CS26: 816.53 | CT26: 1571.32 | CU26: 4847.86 | CV26: 5390.06 | CW26: 43.74 | CX26: 35.29 | CY26: 31.07 | CZ26: 18.97 | DA26: 18.69 | DB26: 12.83 | DC26: 5.23 | DD26: 3.59 | DE26: 1.46 | DF26: 4.68 | DG26: 3.84 | DH26: 4.07 | DI26: 3.4 | DJ26: 2.9 | DK26: 3.65 | DL26: 4.1 | DM26: 5.43 | DN26: 3.79 | DO26: 7.46 | DP26: 9.52 | DQ26: 6.43 | DR26: 7.33 | DS26: 6.45 | DT26: 6.03 | DU26: 7.17 | DV26: 87.79 | DW26: 89 | DX26: 53 | DY26: 95.48 | DZ26: 95.19 | EA26: 0.87 | EB26: 0 | EC26: 0 | ED26: 0 | EE26: 0
A27: 2 | B27: 3 | C27: 6 | D27: 2 | E27: G | F27: 02G203 | G27: G | H27: 020306 | I27: 203062 | J27: ŻUKOWICE | K27: 3446 | L27: 3464 | M27: 3467 | N27: 3452 | O27: 3418 | P27: 87.35 | Q27: 81.6 | R27: 89.23 | S27: 85.82 | T27: 57.11 | U27: 48.12 | V27: 46.55 | W27: 44.6 | X27: 36.99 | Y27: 34.66 | Z27: 9.28 | AA27: 17.83 | AB27: 19.61 | AC27: 22.79 | AD27: 11.8 | AE27: 22.15 | AF27: 13.36 | AG27: 23.2 | AH27: 32.76 | AI27: 52.76 | AJ27: 36.13 | AK27: 37.06 | AL27: 36.33 | AM27: 33.77 | AN27: 38.25 | AO27: 8.55 | AP27: 15.78 | AQ27: 17.69 | AR27: 20.1 | AS27: 6.86 | AT27: 92.1 | AU27: 318.62 | AV27: 130.48 | AW27: 104.48 | AX27: 88.23 | AY27: 1.99 | AZ27: 21.17 | BA27: 26.39 | BB27: 19.46 | BC27: 7.12 | BD27: 100.84 | BE27: 256.96 | BF27: 208.39 | BG27: 156.9 | BH27: 112.02 | BI27: 100.9 | BJ27: 304.69 | BK27: 216.28 | BL27: 160.27 | BM27: 112.33 | BN27: 99.1 | BO27: 32.82 | BP27: 46.24 | BQ27: 62.39 | BR27: 89.02 | BS27: 14.03 | BT27: 27.22 | BU27: 28.1 | BV27: 31.02 | BW27: 14.41 | BX27: 2727.36 | BY27: 3057.96 | BZ27: 3359.67 | CA27: 3563.65 | CB27: 2912.48 | CC27: 526.19 | CD27: 1171.59 | CE27: 1476.78 | CF27: 2195.26 | CG27: 991.12 | CH27: 1490.49 | CI27: 1242.54 | CJ27: 1196.16 | CK27: 977.69 | CL27: 857.81 | CM27: 1596.75 | CN27: 2789.95 | CO27: 4089.09 | CP27: 6024.75 | CQ27: 9508.22 | CR27: 1475.72 | CS27: 2536.76 | CT27: 3955.81 | CU27: 5809.79 | CV27: 9296.11 | CW27: 22.97 | CX27: 15.43 | CY27: 14.17 | CZ27: 8.71 | DA27: 5.83 | DB27: 2.83 | DC27: 1.06 | DD27: 0.81 | DE27: 0.45 | DF27: 0.87 | DG27: 2.52 | DH27: 3.58 | DI27: 1.84 | DJ27: 2.51 | DK27: 1.86 | DL27: 2.86 | DM27: 2.82 | DN27: 1.82 | DO27: 6.79 | DP27: 7.2 | DQ27: 4.13 | DR27: 6.21 | DS27: 2.9 | DT27: 3.83 | DU27: 3.77 | DV27: 35.28 | DW27: 13.86 | DX27: 16.34 | DY27: 30.89 | DZ27: 29.11 | EA27: 0 | EB27: 0 | EC27: 0 | ED27: 0 | EE27: 0
A28: 2 | B28: 4 | C28: 1 | D28: 3 | E28: G | F28: 02G304 | G28: G | H28: 020401 | I28: 204013 | J28: GÓRA | K28: 19956 | L28: 19795 | M28: 19606 | N28: 18704 | O28: 18512 | P28: 94.66 | Q28: 91.06 | R28: 95.05 | S28: 91.54 | T28: 81.74 | U28: 60.56 | V28: 61.23 | W28: 59.66 | X28: 59.08 | Y28: 53.91 | Z28: 4.29 | AA28: 4.21 | AB28: 8.93 | AC28: 4.44 | AD28: 0.77 | AE28: 10.69 | AF28: 12.57 | AG28: 11.34 | AH28: 19.15 | AI28: 18.94 | AJ28: 36.65 | AK28: 38.33 | AL28: 39.5 | AM28: 38.39 | AN28: 45.37 | AO28: 5.8 | AP28: 5.1 | AQ28: 9.77 | AR28: 4.79 | AS28: 3.43 | AT28: 86.64 | AU28: 101.9 | AV28: 121.27 | AW28: 60.41 | AX28: 99.63 | AY28: 4.93 | AZ28: 4.38 | BA28: 6.81 | BB28: 3.76 | BC28: 3.73 | BD28: 76.31 | BE28: 101.55 | BF28: 108.88 | BG28: 66.74 | BH28: 101.54 | BI28: 67.12 | BJ28: 102.11 | BK28: 113.05 | BL28: 54.89 | BM28: 101.78 | BN28: 148.99 | BO28: 97.94 | BP28: 88.46 | BQ28: 182.19 | BR28: 98.25 | BS28: 9.79 | BT28: 9.14 | BU28: 16.2 | BV28: 8.19 | BW28: 5.77 | BX28: 2921.06 | BY28: 3080.73 | BZ28: 3231.88 | CA28: 3530.19 | CB28: 2809.3 | CC28: 206.84 | CD28: 212.07 | CE28: 483.53 | CF28: 265.22 | CG28: 39.92 | CH28: 2388.13 | CI28: 2382.94 | CJ28: 2415.88 | CK28: 2906.13 | CL28: 2961.51 | CM28: 585.38 | CN28: 959.72 | CO28: 1009.77 | CP28: 1224.23 | CQ28: 1421.01 | CR28: 370.95 | CS28: 707.77 | CT28: 713.58 | CU28: 742.46 | CV28: 1230 | CW28: 46.87 | CX28: 43.12 | CY28: 42.39 | CZ28: 44.53 | DA28: 46.45 | DB28: 11.55 | DC28: 11.24 | DD28: 5 | DE28: 10.96 | DF28: 74.19 | DG28: 5.47 | DH28: 5.67 | DI28: 5.89 | DJ28: 9.66 | DK28: 6.76 | DL28: 2.69 | DM28: 2.59 | DN28: 1.64 | DO28: 5.12 | DP28: 8.11 | DQ28: 9.34 | DR28: 10.2 | DS28: 9.67 | DT28: 17.08 | DU28: 10.52 | DV28: 29.95 | DW28: 24.46 | DX28: 13.41 | DY28: 30.9 | DZ28: 125.67 | EA28: 0 | EB28: 0 | EC28: 0.01 | ED28: 0.01 | EE28: 0.01
A29: 2 | B29: 4 | C29: 2 | D29: 2 | E29: G | F29: 02G204 | G29: G | H29: 020402 | I29: 204022 | J29: JEMIELNO | K29: 3019 | L29: 2971 | M29: 2959 | N29: 2757 | O29: 2739 | P29: 88.56 | Q29: 87.08 | R29: 86.89 | S29: 97.8 | T29: 84.77 | U29: 73.35 | V29: 73.74 | W29: 74.15 | X29: 64.96 | Y29: 70.63 | Z29: 6.59 | AA29: 8.83 | AB29: 5.14 | AC29: 14.68 | AD29: -2.16 | AE29: 9.62 | AF29: 8.66 | AG29: 11.28 | AH29: 5.31 | AI29: 20.43 | AJ29: 34.63 | AK29: 33.84 | AL29: 36.16 | AM29: 32.88 | AN29: 40.68 | AO29: 11.11 | AP29: 7.8 | AQ29: 4.75 | AR29: 14.52 | AS29: -1.82 | AT29: 196.17 | AU29: 273.84 | AV29: 167.7 | AW29: 353.8 | AX29: 60.25 | AY29: 11.21 | AZ29: 20.46 | BA29: 23.46 | BB29: 29.58 | BC29: 20.17 | BD29: 201.29 | BE29: 299.78 | BF29: 271.94 | BG29: 527.03 | BH29: 178.28 | BI29: 227.3 | BJ29: 371.87 | BK29: 323.78 | BL29: 732.15 | BM29: 190.69 | BN29: 43.99 | BO29: 26.89 | BP29: 30.88 | BQ29: 13.66 | BR29: 52.44 | BS29: 21.23 | BT29: 15.31 | BU29: 9.39 | BV29: 22.04 | BW29: -0.62 | BX29: 3566.41 | BY29: 3979.47 | BZ29: 4202 | CA29: 5227.62 | CB29: 4405.27 | CC29: 320.29 | CD29: 476.73 | CE29: 291.38 | CF29: 1181.48 | CG29: -134.91 | CH29: 1345.48 | CI29: 1198.92 | CJ29: 997.63 | CK29: 885.75 | CL29: 632.35 | CM29: 1223.37 | CN29: 1902.82 | CO29: 2419.77 | CP29: 3004.51 | CQ29: 3379.34 | CR29: 1099.16 | CS29: 1734.53 | CT29: 2213.62 | CU29: 2819.52 | CV29: 3120.12 | CW29: 24.51 | CX29: 19.35 | CY29: 15.3 | CZ29: 10.76 | DA29: 8.59 | DB29: 4.2 | DC29: 2.51 | DD29: 3.42 | DE29: 0.75 | DF29: -4.69 | DG29: 3.25 | DH29: 3.34 | DI29: 3.61 | DJ29: 3.14 | DK29: 4.47 | DL29: 4.04 | DM29: 3.23 | DN29: 2.91 | DO29: 8.32 | DP29: 10.98 | DQ29: 6.21 | DR29: 6.53 | DS29: 6.93 | DT29: 5.28 | DU29: 6.86 | DV29: 43.79 | DW29: 22.98 | DX29: 14.07 | DY29: 39.82 | DZ29: 26.8 | EA29: 0 | EB29: 0 | EC29: 0 | ED29: 0 | EE29: 0
A30: 2 | B30: 4 | C30: 3 | D30: 2 | E30: G | F30: 02G204 | G30: G | H30: 020403 | I30: 204032 | J30: NIECHLÓW | K30: 4911 | L30: 4829 | M30: 4799 | N30: 4566 | O30: 4522 | P30: 96.05 | Q30: 83.98 | R30: 86.99 | S30: 96.39 | T30: 84.61 | U30: 66.57 | V30: 68.03 | W30: 67.32 | X30: 61.89 | Y30: 64.26 | Z30: 4.67 | AA30: 5.54 | AB30: 11.99 | AC30: 11.54 | AD30: -6.37 | AE30: 15.68 | AF30: 12.83 | AG30: 15.26 | AH30: 14.96 | AI30: 19.69 | AJ30: 36.05 | AK30: 35.22 | AL30: 36.97 | AM30: 34.3 | AN30: 40.49 | AO30: 4.67 | AP30: 4.79 | AQ30: 10.77 | AR30: 11.41 | AS30: -4.63 | AT30: 49.55 | AU30: 177.09 | AV30: 170.09 | AW30: 98.15 | AX30: 45.29 | AY30: 5.47 | AZ30: 15.01 | BA30: 24.85 | BB30: 23.95 | BC30: 13.61 | BD30: 91.05 | BE30: 161.73 | BF30: 264.86 | BG30: 248.45 | BH30: 157.84 | BI30: 89.76 | BJ30: 173.61 | BK30: 280.32 | BL30: 259.59 | BM30: 161.69 | BN30: 111.41 | BO30: 57.6 | BP30: 35.67 | BQ30: 38.52 | BR30: 61.85 | BS30: 7.77 | BT30: 10.1 | BU30: 20.57 | BV30: 17.7 | BW30: -5.92 | BX30: 3067.2 | BY30: 3347.71 | BZ30: 3727.29 | CA30: 4294.01 | CB30: 3484.74 | CC30: 215.25 | CD30: 272.77 | CE30: 663.99 | CF30: 800.29 | CG30: -345.5 | CH30: 609.95 | CI30: 1006.42 | CJ30: 930.4 | CK30: 896.85 | CL30: 811.59 | CM30: 850.72 | CN30: 1319.06 | CO30: 2541.55 | CP30: 2884.49 | CQ30: 2380.9 | CR30: 733.14 | CS30: 1187.47 | CT30: 2459.24 | CU30: 2803.46 | CV30: 2286.92 | CW30: 12.72 | CX30: 17.18 | CY30: 14.62 | CZ30: 12.46 | DA30: 12.66 | DB30: 2.83 | DC30: 3.69 | DD30: 1.4 | DE30: 1.12 | DF30: -2.35 | DG30: 2.68 | DH30: 2.63 | DI30: 1.55 | DJ30: 1.89 | DK30: 2.63 | DL30: 1.8 | DM30: 2.25 | DN30: 1.74 | DO30: 6.12 | DP30: 9.15 | DQ30: 4.47 | DR30: 5.12 | DS30: 2.89 | DT30: 3.11 | DU30: 4.1 | DV30: 9.34 | DW30: 17.24 | DX30: 19.7 | DY30: 67.68 | DZ30: 79 | EA30: 0 | EB30: 0 | EC30: 0 | ED30: 0 | EE30: 0
A31: 2 | B31: 4 | C31: 4 | D31: 3 | E31: G | F31: 02G304 | G31: G | H31: 020404 | I31: 204043 | J31: WĄSOSZ | K31: 7161 | L31: 7103 | M31: 6998 | N31: 6815 | O31: 6785 | P31: 98.75 | Q31: 91.82 | R31: 80.3 | S31: 82.15 | T31: 74.98 | U31: 63.63 | V31: 62.49 | W31: 60.04 | X31: 54.09 | Y31: 47.99 | Z31: 9.31 | AA31: 5.74 | AB31: 11.75 | AC31: 9.76 | AD31: 3.39 | AE31: 3.84 | AF31: 11.01 | AG31: 19.8 | AH31: 31.11 | AI31: 29.3 | AJ31: 37.92 | AK31: 36.8 | AL31: 40.02 | AM31: 37.61 | AN31: 47.74 | AO31: 9.74 | AP31: 5.46 | AQ31: 9.91 | AR31: 8.44 | AS31: 2.89 | AT31: 291.75 | AU31: 125.57 | AV31: 166.56 | AW31: 77.27 | AX31: 91.81 | AY31: 4.51 | AZ31: 6.08 | BA31: 14.74 | BB31: 5.86 | BC31: 1.53 | BD31: 175.93 | BE31: 145.43 | BF31: 175.66 | BG31: 111.67 | BH31: 104.7 | BI31: 225.92 | BJ31: 156.75 | BK31: 184.29 | BL31: 112.26 | BM31: 105.08 | BN31: 44.26 | BO31: 63.8 | BP31: 54.26 | BQ31: 89.08 | BR31: 95.16 | BS31: 16.91 | BT31: 9.51 | BU31: 17.64 | BV31: 16.35 | BW31: 5.11 | BX31: 3069.38 | BY31: 3272.52 | BZ31: 3568.11 | CA31: 3708.06 | CB31: 2754.89 | CC31: 449.02 | CD31: 300.36 | CE31: 698 | CF31: 669.18 | CG31: 194.76 | CH31: 1623.62 | CI31: 1484.74 | CJ31: 1359.45 | CK31: 1399.68 | CL31: 1219.42 | CM31: 510.17 | CN31: 1109.6 | CO31: 2533.41 | CP31: 3279.27 | CQ31: 2601.29 | CR31: 395.06 | CS31: 957.46 | CT31: 2385.84 | CU31: 3136.25 | CV31: 2414.85 | CW31: 33.24 | CX31: 26.03 | CY31: 18.37 | CZ31: 16.77 | DA31: 15.93 | DB31: 3.62 | DC31: 4.94 | DD31: 1.95 | DE31: 2.09 | DF31: 6.26 | DG31: 3.5 | DH31: 3.5 | DI31: 2.48 | DJ31: 2.45 | DK31: 3.61 | DL31: 3.44 | DM31: 3.2 | DN31: 2.66 | DO31: 4.38 | DP31: 7.34 | DQ31: 5.44 | DR31: 5.89 | DS31: 4.62 | DT31: 4.54 | DU31: 5.81 | DV31: 48.46 | DW31: 31.24 | DX31: 24.51 | DY31: 42.82 | DZ31: 48.03 | EA31: 0 | EB31: 0 | EC31: 0 | ED31: 0 | EE31: 0
A32: 2 | B32: 5 | C32: 1 | D32: 1 | E32: G | F32: 02G105 | G32: G | H32: 020501 | I32: 205011 | J32: JAWOR | K32: 22890 | L32: 22615 | M32: 22301 | N32: 21077 | O32: 20713 | P32: 87.83 | Q32: 84.23 | R32: 84.95 | S32: 84.84 | T32: 85.97 | U32: 46.79 | V32: 44.06 | W32: 42.65 | X32: 38.53 | Y32: 31.66 | Z32: 4.3 | AA32: 8.82 | AB32: 14.25 | AC32: 6.29 | AD32: 8.55 | AE32: 17.25 | AF32: 31.49 | AG32: 21.35 | AH32: 23.33 | AI32: 34.06 | AJ32: 39.47 | AK32: 37.61 | AL32: 37.99 | AM32: 37.86 | AN32: 44.51 | AO32: 6.07 | AP32: 8.07 | AQ32: 12.83 | AR32: 6.04 | AS32: 10.03 | AT32: 91.06 | AU32: 65.7 | AV32: 137.32 | AW32: 84.71 | AX32: 52.65 | AY32: 9.14 | AZ32: 6.31 | BA32: 12.7 | BB32: 13.44 | BC32: 6.1 | BD32: 104.08 | BE32: 81.37 | BF32: 153.34 | BG32: 126.36 | BH32: 84.1 | BI32: 104.83 | BJ32: 79.94 | BK32: 159.52 | BL32: 128.7 | BM32: 83.16 | BN32: 95.4 | BO32: 125.09 | BP32: 62.69 | BQ32: 77.7 | BR32: 120.25 | BS32: 9.76 | BT32: 13.18 | BU32: 20.49 | BV32: 9.28 | BW32: 13.34 | BX32: 1799.25 | BY32: 2010 | BZ32: 2207.66 | CA32: 2092.66 | CB32: 1702.14 | CC32: 165.5 | CD32: 402.19 | CE32: 737.5 | CF32: 341.91 | CG32: 459.83 | CH32: 1048.25 | CI32: 1635.36 | CJ32: 1575.76 | CK32: 1948.75 | CL32: 2757.56 | CM32: 945.11 | CN32: 1675.14 | CO32: 2061.52 | CP32: 2131.3 | CQ32: 2260.68 | CR32: 804.18 | CS32: 1528.61 | CT32: 1921.89 | CU32: 1993.76 | CV32: 2111.59 | CW32: 23.94 | CX32: 30.2 | CY32: 25.86 | CZ32: 30.44 | DA32: 44.1 | DB32: 6.33 | DC32: 4.07 | DD32: 2.14 | DE32: 5.7 | DF32: 6 | DG32: 3.86 | DH32: 3.24 | DI32: 2.71 | DJ32: 3.7 | DK32: 5.19 | DL32: 2.68 | DM32: 1.77 | DN32: 1.63 | DO32: 5.1 | DP32: 6.36 | DQ32: 6.1 | DR32: 5.41 | DS32: 4.28 | DT32: 5.86 | DU32: 6.91 | DV32: 19.92 | DW32: 19.74 | DX32: 18.43 | DY32: 72.22 | DZ32: 117.6 | EA32: 0.29 | EB32: 0 | EC32: 0 | ED32: 0.19 | EE32: 2.55
A33: 2 | B33: 5 | C33: 2 | D33: 3 | E33: G | F33: 02G305 | G33: G | H33: 020502 | I33: 205023 | J33: BOLKÓW | K33: 10458 | L33: 10363 | M33: 10223 | N33: 9705 | O33: 9605 | P33: 78.02 | Q33: 90.26 | R33: 86.53 | S33: 95.03 | T33: 98.42 | U33: 65.92 | V33: 61.76 | W33: 60.68 | X33: 59.49 | Y33: 50.58 | Z33: 6.63 | AA33: 9.12 | AB33: 6.79 | AC33: 4.41 | AD33: 9.58 | AE33: 29.53 | AF33: 3.72 | AG33: 9.37 | AH33: 6.99 | AI33: 19.17 | AJ33: 39.25 | AK33: 38.14 | AL33: 39.78 | AM33: 36.25 | AN33: 47.28 | AO33: 5.79 | AP33: 8.93 | AQ33: 7.16 | AR33: 7.84 | AS33: 10.63 | AT33: 88.96 | AU33: 567.3 | AV33: 231.97 | AW33: 134.22 | AX33: 52.2 | AY33: 2.21 | AZ33: 12.05 | BA33: 21.97 | BB33: 24.6 | BC33: 18.56 | BD33: 83.09 | BE33: 136.44 | BF33: 265.17 | BG33: 327.68 | BH33: 162.08 | BI33: 79.41 | BJ33: 268.9 | BK33: 326.72 | BL33: 415.64 | BM33: 171.39 | BN33: 125.92 | BO33: 37.19 | BP33: 30.61 | BQ33: 24.06 | BR33: 58.35 | BS33: 11.26 | BT33: 9.53 | BU33: 11.76 | BV33: 11.2 | BW33: 12.74 | BX33: 2734.35 | BY33: 3213.85 | BZ33: 3357.33 | CA33: 3827.32 | CB33: 2959.23 | CC33: 275.06 | CD33: 474.71 | CE33: 375.73 | CF33: 283.82 | CG33: 560.61 | CH33: 1383.65 | CI33: 1118.34 | CJ33: 1130.56 | CK33: 1218.35 | CL33: 1251.23 | CM33: 1641.44 | CN33: 1155.24 | CO33: 1941.32 | CP33: 2100.41 | CQ33: 2337.47 | CR33: 1288.7 | CS33: 491.25 | CT33: 1742.59 | CU33: 1921.78 | CV33: 2149.44 | CW33: 26.02 | CX33: 19.4 | CY33: 17.68 | CZ33: 18 | DA33: 21.05 | DB33: 5.03 | DC33: 2.36 | DD33: 3.01 | DE33: 4.29 | DF33: 2.23 | DG33: 7.3 | DH33: 11.96 | DI33: 3.29 | DJ33: 3.63 | DK33: 4.65 | DL33: 2.55 | DM33: 2.29 | DN33: 1.05 | DO33: 5.49 | DP33: 7.07 | DQ33: 14.11 | DR33: 20.21 | DS33: 5.36 | DT33: 5.64 | DU33: 5.51 | DV33: 10.01 | DW33: 3.86 | DX33: 5.97 | DY33: 37.44 | DZ33: 47.04 | EA33: 0 | EB33: 0 | EC33: 0 | ED33: 0 | EE33: 0
A34: 2 | B34: 5 | C34: 3 | D34: 2 | E34: G | F34: 02G205 | G34: G | H34: 020503 | I34: 205032 | J34: MĘCINKA | K34: 4995 | L34: 5006 | M34: 5014 | N34: 5126 | O34: 5188 | P34: 85.48 | Q34: 77.29 | R34: 78.61 | S34: 88.53 | T34: 84.1 | U34: 49.06 | V34: 51.54 | W34: 50.02 | X34: 47.43 | Y34: 38.73 | Z34: 8.91 | AA34: 6.2 | AB34: 7.99 | AC34: 9.1 | AD34: 2.54 | AE34: 17.87 | AF34: 8.27 | AG34: 16.66 | AH34: 32.75 | AI34: 39.39 | AJ34: 38.85 | AK34: 35.37 | AL34: 36.32 | AM34: 34.49 | AN34: 42.05 | AO34: 9.95 | AP34: 5.55 | AQ34: 10.62 | AR34: 8.9 | AS34: 3.67 | AT34: 130.72 | AU34: 420.62 | AV34: 191.38 | AW34: 49.83 | AX34: 33.86 | AY34: 3.36 | AZ34: 25.29 | BA34: 32.57 | BB34: 18.79 | BC34: 2.27 | BD34: 104.13 | BE34: 313.79 | BF34: 277.06 | BG34: 118.29 | BH34: 68.12 | BI34: 106.1 | BJ34: 417.4 | BK34: 325.24 | BL34: 119.77 | BM34: 65.76 | BN34: 94.25 | BO34: 23.96 | BP34: 30.75 | BQ34: 83.5 | BR34: 152.08 | BS34: 16.42 | BT34: 11.88 | BU34: 19.82 | BV34: 14.98 | BW34: 4.33 | BX34: 2604.92 | BY34: 2802.81 | BZ34: 2999.49 | CA34: 3336.92 | CB34: 2296.08 | CC34: 473.2 | CD34: 337 | CE34: 479.2 | CF34: 640.21 | CG34: 150.62 | CH34: 1361.44 | CI34: 1455.14 | CJ34: 1152.66 | CK34: 1753.69 | CL34: 2900.25 | CM34: 1615.76 | CN34: 2142.96 | CO34: 3888.02 | CP34: 3982.63 | CQ34: 2747.42 | CR34: 1116.06 | CS34: 1920.03 | CT34: 3587.86 | CU34: 3730.97 | CV34: 2469.29 | CW34: 21.92 | CX34: 20.68 | CY34: 15.11 | CZ34: 22.06 | DA34: 41.14 | DB34: 2.88 | DC34: 4.32 | DD34: 2.41 | DE34: 2.74 | DF34: 19.26 | DG34: 8.83 | DH34: 3.69 | DI34: 4.28 | DJ34: 3.76 | DK34: 6.45 | DL34: 3.58 | DM34: 2.51 | DN34: 2.29 | DO34: 2.68 | DP34: 6.08 | DQ34: 14.53 | DR34: 7.16 | DS34: 7.84 | DT34: 6.27 | DU34: 8.94 | DV34: 9.74 | DW34: 16.36 | DX34: 8.78 | DY34: 18.67 | DZ34: 63.37 | EA34: 0 | EB34: 0 | EC34: 0 | ED34: 0 | EE34: 0
A35: 2 | B35: 5 | C35: 4 | D35: 2 | E35: G | F35: 02G205 | G35: G | H35: 020504 | I35: 205042 | J35: MŚCIWOJÓW | K35: 4065 | L35: 4041 | M35: 4033 | N35: 4009 | O35: 3970 | P35: 85.28 | Q35: 78.46 | R35: 85.67 | S35: 88.23 | T35: 67.89 | U35: 54.1 | V35: 56.19 | W35: 57.76 | X35: 50.24 | Y35: 44.44 | Z35: 4.75 | AA35: 9.74 | AB35: 10.62 | AC35: 14.2 | AD35: 6.35 | AE35: 13.33 | AF35: 11.32 | AG35: 21.18 | AH35: 17.45 | AI35: 49.11 | AJ35: 39.12 | AK35: 36.42 | AL35: 37.94 | AM35: 33.6 | AN35: 42.19 | AO35: 6.38 | AP35: 15.61 | AQ35: 9.14 | AR35: 12.71 | AS35: 4.35 | AT35: 150.32 | AU35: 322.75 | AV35: 113.91 | AW35: 151.89 | AX35: 59.36 | AY35: 10.56 | AZ35: 24.83 | BA35: 23.7 | BB35: 22.52 | BC35: 4.16 | BD35: 88.68 | BE35: 296.92 | BF35: 194.54 | BG35: 221 | BH35: 89.86 | BI35: 78.62 | BJ35: 376.14 | BK35: 215.36 | BL35: 242.43 | BM35: 89.42 | BN35: 127.2 | BO35: 26.59 | BP35: 46.43 | BQ35: 41.25 | BR35: 111.83 | BS35: 11.58 | BT35: 31.63 | BU35: 16.57 | BV35: 21.72 | BW35: 8.13 | BX35: 2105.65 | BY35: 2572.16 | BZ35: 2847.83 | CA35: 3515.6 | CB35: 2605.53 | CC35: 185.04 | CD35: 445.97 | CE35: 523.64 | CF35: 993.96 | CG35: 372.35 | CH35: 1271.54 | CI35: 1092.74 | CJ35: 840.34 | CK35: 588.43 | CL35: 1296.74 | CM35: 954.87 | CN35: 2196.23 | CO35: 2810.07 | CP35: 3301.45 | CQ35: 4965.25 | CR35: 448.28 | CS35: 1984.03 | CT35: 2549.43 | CU35: 3076.67 | CV35: 4738.26 | CW35: 27.86 | CX35: 18.73 | CY35: 14.6 | CZ35: 7.42 | DA35: 15.02 | DB35: 6.87 | DC35: 2.45 | DD35: 1.6 | DE35: 0.59 | DF35: 3.48 | DG35: 11.72 | DH35: 4.18 | DI35: 4.83 | DJ35: 3.33 | DK35: 3.2 | DL35: 2.23 | DM35: 2.88 | DN35: 2.05 | DO35: 6.68 | DP35: 3.8 | DQ35: 21.29 | DR35: 8.42 | DS35: 8.59 | DT35: 5.77 | DU35: 5.52 | DV35: 5.59 | DW35: 14.85 | DX35: 6.62 | DY35: 17.5 | DZ35: 21.72 | EA35: 0 | EB35: 2.37 | EC35: 3.8 | ED35: 0 | EE35: 0
A36: 2 | B36: 5 | C36: 5 | D36: 2 | E36: G | F36: 02G205 | G36: G | H36: 020505 | I36: 205052 | J36: PASZOWICE | K36: 3976 | L36: 3998 | M36: 4026 | N36: 4139 | O36: 4152 | P36: 88.47 | Q36: 84.38 | R36: 82.34 | S36: 95.98 | T36: 69.26 | U36: 56.49 | V36: 57.63 | W36: 60.02 | X36: 51.32 | Y36: 50.08 | Z36: 9.85 | AA36: 6.34 | AB36: 2.61 | AC36: 13.21 | AD36: 5.37 | AE36: 6.1 | AF36: 27.94 | AG36: 9.24 | AH36: 21.58 | AI36: 36.18 | AJ36: 40.96 | AK36: 38.82 | AL36: 39.82 | AM36: 37.85 | AN36: 49.12 | AO36: 8.84 | AP36: 5.82 | AQ36: 2.47 | AR36: 12.72 | AS36: 4.13 | AT36: 390.62 | AU36: 68.44 | AV36: 242.75 | AW36: 72.85 | AX36: 92.78 | AY36: 17.49 | AZ36: 19.27 | BA36: 24.22 | BB36: 29.11 | BC36: 15.61 | BD36: 353.25 | BE36: 113.74 | BF36: 274.03 | BG36: 190.53 | BH36: 134.96 | BI36: 437.41 | BJ36: 114.47 | BK36: 396.78 | BL36: 196.19 | BM36: 142.03 | BN36: 22.86 | BO36: 87.36 | BP36: 25.2 | BQ36: 50.97 | BR36: 70.41 | BS36: 14.27 | BT36: 9.39 | BU36: 6.08 | BV36: 19.12 | BW36: 6.85 | BX36: 2587.77 | BY36: 2787.35 | BZ36: 2957.65 | CA36: 3369.39 | CB36: 2667.25 | CC36: 451.39 | CD36: 306.67 | CE36: 128.83 | CF36: 867.07 | CG36: 286.17 | CH36: 411.94 | CI36: 1167.55 | CJ36: 814.95 | CK36: 1177.85 | CL36: 596.41 | CM36: 1263.53 | CN36: 2102.84 | CO36: 2282.28 | CP36: 3173.62 | CQ36: 4635.47 | CR36: 1174.31 | CS36: 2010.36 | CT36: 1937.8 | CU36: 3075.57 | CV36: 4057.72 | CW36: 7.96 | CX36: 20.37 | CY36: 13.62 | CZ36: 17.22 | DA36: 7.76 | DB36: 0.91 | DC36: 3.81 | DD36: 6.33 | DE36: 1.36 | DF36: 2.08 | DG36: 1.98 | DH36: 1.82 | DI36: 6.02 | DJ36: 2.13 | DK36: 8.31 | DL36: 3.22 | DM36: 1.03 | DN36: 1.92 | DO36: 4.04 | DP36: 10.23 | DQ36: 3.22 | DR36: 3.27 | DS36: 10.84 | DT36: 3.24 | DU36: 13.63 | DV36: 14.88 | DW36: 12.98 | DX36: 4.54 | DY36: 48.53 | DZ36: 10.56 | EA36: 0 | EB36: 0 | EC36: 0 | ED36: 0 | EE36: 0
A37: 2 | B37: 5 | C37: 6 | D37: 2 | E37: G | F37: 02G205 | G37: G | H37: 020506 | I37: 205062 | J37: WĄDROŻE WIELKIE | K37: 3931 | L37: 3914 | M37: 3860 | N37: 3788 | O37: 3735 | P37: 91.38 | Q37: 92.99 | R37: 91.92 | S37: 92.61 | T37: 83.88 | U37: 55.41 | V37: 56.59 | W37: 55.29 | X37: 51.58 | Y37: 46.02 | Z37: 5.83 | AA37: 9.08 | AB37: 11.95 | AC37: 10.83 | AD37: 2.31 | AE37: 18.12 | AF37: 4.48 | AG37: 10.89 | AH37: 13.39 | AI37: 23.65 | AJ37: 39.92 | AK37: 37.92 | AL37: 38.31 | AM37: 35.7 | AN37: 42.87 | AO37: 5.49 | AP37: 8.82 | AQ37: 13.26 | AR37: 10.86 | AS37: 2 | AT37: 73.26 | AU37: 390.2 | AV37: 192.69 | AW37: 136.4 | AX37: 71.15 | AY37: 1.07 | AZ37: 12.73 | BA37: 18.45 | BB37: 18.35 | BC37: 9.63 | BD37: 84.36 | BE37: 28.73 | BF37: 253.37 | BG37: 223.27 | BH37: 134.89 | BI37: 82.52 | BJ37: -931.39 | BK37: 286.51 | BL37: 243.76 | BM37: 137.94 | BN37: 121.18 | BO37: -10.74 | BP37: 34.9 | BQ37: 41.02 | BR37: 72.5 | BS37: 8.61 | BT37: 14.07 | BU37: 20.98 | BV37: 17 | BW37: 2.79 | BX37: 2959.09 | BY37: 3246.94 | BZ37: 3545.61 | CA37: 3959.31 | CB37: 3105.94 | CC37: 311.38 | CD37: 521.11 | CE37: 766.32 | CF37: 831.01 | CG37: 155.9 | CH37: 3274.11 | CI37: 3302.13 | CJ37: 3199.2 | CK37: 3084.1 | CL37: 2949.46 | CM37: 1048.72 | CN37: 1016.32 | CO37: 2126.72 | CP37: 2754.99 | CQ37: 2994.88 | CR37: 918.48 | CS37: -2276.23 | CT37: 1977.59 | CU37: 2579.08 | CV37: 2816.48 | CW37: 56.02 | CX37: 53.52 | CY37: 45.86 | CZ37: 37.21 | DA37: 36.66 | DB37: 10.51 | DC37: 6.34 | DD37: 4.17 | DE37: 3.71 | DF37: 18.92 | DG37: 3.99 | DH37: 54.51 | DI37: 2.67 | DJ37: 4.34 | DK37: 5.21 | DL37: 3.14 | DM37: 2.14 | DN37: 1.16 | DO37: 5.96 | DP37: 8.16 | DQ37: 6.21 | DR37: 85.83 | DS37: 4.17 | DT37: 6.81 | DU37: 7.23 | DV37: 78.99 | DW37: 2.15 | DX37: 24.95 | DY37: 104.55 | DZ37: 134.88 | EA37: 0 | EB37: 0 | EC37: 0 | ED37: 0 | EE37: 0
A38: 2 | B38: 6 | C38: 1 | D38: 1 | E38: G | F38: 02G106 | G38: G | H38: 020601 | I38: 206011 | J38: KARPACZ | K38: 4593 | L38: 4541 | M38: 4434 | N38: 4333 | O38: 4278 | P38: 83.08 | Q38: 96.37 | R38: 85.34 | S38: 98.52 | T38: 96.79 | U38: 24.22 | V38: 27.24 | W38: 26.68 | X38: 28.2 | Y38: 21.19 | Z38: 9.29 | AA38: 10.45 | AB38: 22.86 | AC38: 19.76 | AD38: 16.83 | AE38: 24.45 | AF38: 15.42 | AG38: 15.68 | AH38: 15.29 | AI38: 26.84 | AJ38: 30.73 | AK38: 31.85 | AL38: 30.71 | AM38: 28.25 | AN38: 33.03 | AO38: 8.37 | AP38: 11.06 | AQ38: 19.97 | AR38: 20.33 | AS38: 16.56 | AT38: 101.06 | AU38: 87.02 | AV38: 279.01 | AW38: 146.79 | AX38: 66.02 | AY38: 0.07 | AZ38: 0.78 | BA38: 11.42 | BB38: 11.65 | BC38: 3.29 | BD38: 100.57 | BE38: 81.71 | BF38: 207.95 | BG38: 143.67 | BH38: 84.9 | BI38: 100.71 | BJ38: 80.23 | BK38: 247.18 | BL38: 181.64 | BM38: 80.9 | BN38: 99.29 | BO38: 124.65 | BP38: 40.46 | BQ38: 55.05 | BR38: 123.61 | BS38: 11.44 | BT38: 13.3 | BU38: 27.03 | BV38: 25.6 | BW38: 18.72 | BX38: 2002.31 | BY38: 2228 | BZ38: 2798.81 | CA38: 3696.21 | CB38: 2632.94 | CC38: 768.46 | CD38: 854.58 | CE38: 2397.67 | CF38: 2589.59 | CG38: 2090.79 | CH38: 4068.91 | CI38: 4253.77 | CJ38: 3552.29 | CK38: 1993.49 | CL38: 2173.91 | CM38: 3039.68 | CN38: 1179.71 | CO38: 4267.55 | CP38: 5097.45 | CQ38: 4072.6 | CR38: 2443.97 | CS38: 1071.42 | CT38: 3720.58 | CU38: 3447.32 | CV38: 3067.46 | CW38: 40.89 | CX38: 50.13 | CY38: 28.9 | CZ38: 14.98 | DA38: 16.93 | DB38: 5.29 | DC38: 4.98 | DD38: 1.48 | DE38: 0.77 | DF38: 1.04 | DG38: 6.88 | DH38: 2.11 | DI38: 4.88 | DJ38: 13.73 | DK38: 8.62 | DL38: 2.2 | DM38: 1.66 | DN38: 1.5 | DO38: 8.84 | DP38: 4.68 | DQ38: 9.4 | DR38: 2.57 | DS38: 6.78 | DT38: 17.45 | DU38: 9.74 | DV38: 15 | DW38: 65.11 | DX38: 9.73 | DY38: 10.68 | DZ38: 10.13 | EA38: 0 | EB38: 0 | EC38: 0.01 | ED38: 0.44 | EE38: 0
A39: 2 | B39: 6 | C39: 2 | D39: 1 | E39: G | F39: 02G106 | G39: G | H39: 020602 | I39: 206021 | J39: KOWARY | K39: 10869 | L39: 10741 | M39: 10565 | N39: 10003 | O39: 9806 | P39: 96.45 | Q39: 90.24 | R39: 87.37 | S39: 93.12 | T39: 73.67 | U39: 53.55 | V39: 55.41 | W39: 53.32 | X39: 52.09 | Y39: 51.45 | Z39: 5.98 | AA39: 4.81 | AB39: 9.72 | AC39: 4.76 | AD39: -5.94 | AE39: 11.79 | AF39: 6.92 | AG39: 5.8 | AH39: 14.95 | AI39: 28.49 | AJ39: 34.93 | AK39: 33.09 | AL39: 33.42 | AM39: 33.08 | AN39: 36.66 | AO39: 7.56 | AP39: 6.93 | AQ39: 17.45 | AR39: 6.75 | AS39: -0.97 | AT39: 76.84 | AU39: 220.64 | AV39: 435.21 | AW39: 72.57 | AX39: 70.58 | AY39: 5.01 | AZ39: 10.53 | BA39: 19.11 | BB39: 14.79 | BC39: 3.63 | BD39: 142.91 | BE39: 229.18 | BF39: 267.99 | BG39: 196.8 | BH39: 112.02 | BI39: 151.59 | BJ39: 271.38 | BK39: 499.67 | BL39: 196.8 | BM39: 112.02 | BN39: 65.97 | BO39: 36.85 | BP39: 20.01 | BQ39: 50.81 | BR39: 89.27 | BS39: 11.12 | BT39: 11.5 | BU39: 29.05 | BV39: 11.81 | BW39: 0.84 | BX39: 2106.55 | BY39: 2402.99 | BZ39: 2658.07 | CA39: 2863.19 | CB39: 2638.28 | CC39: 235.06 | CD39: 208.43 | CE39: 484.72 | CF39: 261.72 | CG39: -304.75 | CH39: 714.54 | CI39: 880.12 | CJ39: 472.63 | CK39: 486.04 | CL39: 424.87 | CM39: 849.83 | CN39: 933.73 | CO39: 1765.87 | CP39: 1811.52 | CQ39: 2425.08 | CR39: 749.73 | CS39: 833.41 | CT39: 1383.91 | CU39: 1811.52 | CV39: 2425.08 | CW39: 17.52 | CX39: 18.31 | CY39: 8.28 | CZ39: 8.23 | DA39: 6.1 | DB39: 3.04 | DC39: 4.22 | DD39: 0.98 | DE39: 1.86 | DF39: -1.39 | DG39: 2.97 | DH39: 2.4 | DI39: 6.83 | DJ39: 0.21 | DK39: 0.24 | DL39: 2.92 | DM39: 1.73 | DN39: 1.65 | DO39: 2.5 | DP39: 3.93 | DQ39: 4.58 | DR39: 4.11 | DS39: 11.56 | DT39: 0.33 | DU39: 0.44 | DV39: 20.85 | DW39: 15.19 | DX39: 2.04 | DY39: 0 | DZ39: 0 | EA39: 6.68 | EB39: 4.95 | EC39: 8.25 | ED39: 10.6 | EE39: 1.31
A40: 2 | B40: 6 | C40: 3 | D40: 1 | E40: G | F40: 02G106 | G40: G | H40: 020603 | I40: 206031 | J40: PIECHOWICE | K40: 6194 | L40: 6121 | M40: 6037 | N40: 5834 | O40: 5774 | P40: 97.07 | Q40: 93.35 | R40: 88.92 | S40: 97.69 | T40: 78.69 | U40: 37.39 | V40: 40.26 | W40: 38.14 | X40: 37.86 | Y40: 32.94 | Z40: 7.69 | AA40: 9.49 | AB40: 9.86 | AC40: 9.57 | AD40: 7.57 | AE40: 14.85 | AF40: 10.58 | AG40: 13.91 | AH40: 19.62 | AI40: 35.5 | AJ40: 33.15 | AK40: 33.01 | AL40: 34.27 | AM40: 32.21 | AN40: 36.6 | AO40: 8.15 | AP40: 9.1 | AQ40: 13 | AR40: 11.11 | AS40: 10.92 | AT40: 66.54 | AU40: 155.13 | AV40: 153.24 | AW40: 54.04 | AX40: 68.14 | AY40: 9.69 | AZ40: 10.74 | BA40: 16.11 | BB40: 13.08 | BC40: 6.46 | BD40: 149.62 | BE40: 188.32 | BF40: 221.77 | BG40: 128.08 | BH40: 93.14 | BI40: 159.59 | BJ40: 212.74 | BK40: 224.4 | BL40: 128.08 | BM40: 92.96 | BN40: 62.66 | BO40: 47.01 | BP40: 44.56 | BQ40: 78.07 | BR40: 107.57 | BS40: 11.71 | BT40: 11.7 | BU40: 20.41 | BV40: 16.19 | BW40: 17.08 | BX40: 1655.89 | BY40: 1971.83 | BZ40: 2040.77 | CA40: 2395.39 | CB40: 2016.25 | CC40: 340.59 | CD40: 464.72 | CE40: 527.32 | CF40: 605.25 | CG40: 463.53 | CH40: 198.55 | CI40: 55.9 | CJ40: 0 | CK40: 455.09 | CL40: 1098.15 | CM40: 1280.79 | CN40: 1260.95 | CO40: 1765.73 | CP40: 1789.15 | CQ40: 2977.84 | CR40: 1137.51 | CS40: 1115.97 | CT40: 1748.92 | CU40: 1789.15 | CV40: 2894.31 | CW40: 4.35 | CX40: 1.07 | CY40: 0 | CZ40: 7.03 | DA40: 14.12 | DB40: 0.58 | DC40: 0.12 | DD40: 0 | DE40: 0.75 | DF40: 2.37 | DG40: 3.32 | DH40: 2.83 | DI40: 0.31 | DJ40: 0.04 | DK40: 1.39 | DL40: 4.12 | DM40: 6.25 | DN40: 0 | DO40: 0.53 | DP40: 2.21 | DQ40: 4.74 | DR40: 4.46 | DS40: 0.48 | DT40: 0.06 | DU40: 2.17 | DV40: 5.71 | DW40: 2.41 | DX40: 9.66 | DY40: 0 | DZ40: 29.06 | EA40: 0.03 | EB40: 0.03 | EC40: 0 | ED40: 0 | EE40: 0
A41: 2 | B41: 6 | C41: 4 | D41: 1 | E41: G | F41: 02G106 | G41: G | H41: 020604 | I41: 206041 | J41: SZKLARSKA PORĘBA | K41: 6557 | L41: 6587 | M41: 6584 | N41: 5817 | O41: 5832 | P41: 91.12 | Q41: 82.06 | R41: 77.43 | S41: 86.07 | T41: 82.97 | U41: 27.74 | V41: 28.19 | W41: 25.54 | X41: 36.05 | Y41: 35.21 | Z41: 4.15 | AA41: 3.86 | AB41: 17.09 | AC41: 8.89 | AD41: 0.16 | AE41: 20.11 | AF41: 27.25 | AG41: 9.16 | AH41: 24.16 | AI41: 22.06 | AJ41: 31.8 | AK41: 29.89 | AL41: 31.89 | AM41: 26.4 | AN41: 29.29 | AO41: 10.29 | AP41: 7.57 | AQ41: 20.59 | AR41: 15.13 | AS41: 2.48 | AT41: 57.59 | AU41: 71.44 | AV41: 553.25 | AW41: 86.39 | AX41: 73.22 | AY41: 5.21 | AZ41: 3.17 | BA41: 29.29 | BB41: 16.27 | BC41: 7.16 | BD41: 84.01 | BE41: 75 | BF41: 429.97 | BG41: 154.35 | BH41: 127.57 | BI41: 81.92 | BJ41: 70.78 | BK41: 552.61 | BL41: 165.1 | BM41: 130.53 | BN41: 122.07 | BO41: 141.28 | BP41: 18.1 | BQ41: 60.57 | BR41: 76.61 | BS41: 13.8 | BT41: 11.4 | BU41: 32.5 | BV41: 25.28 | BW41: 4.02 | BX41: 1741.02 | BY41: 1725.16 | BZ41: 1919.89 | CA41: 4101.97 | CB41: 3927.13 | CC41: 260.31 | CD41: 236.38 | CE41: 1284.91 | CF41: 1011.74 | CG41: 17.63 | CH41: 1836.89 | CI41: 2368.5 | CJ41: 2134.85 | CK41: 1763.1 | CL41: 1420.01 | CM41: 1438.59 | CN41: 1932.04 | CO41: 3705.61 | CP41: 6106.61 | CQ41: 4452.2 | CR41: 1240.33 | CS41: 1560.1 | CT41: 3472.09 | CU41: 5453.35 | CV41: 4113.6 | CW41: 26.67 | CX41: 31.76 | CY41: 21.99 | CZ41: 13.34 | DA41: 10.56 | DB41: 7.06 | DC41: 10.02 | DD41: 1.66 | DE41: 1.74 | DF41: 80.53 | DG41: 3.41 | DH41: 5.6 | DI41: 2.73 | DJ41: 6 | DK41: 3.23 | DL41: 1.98 | DM41: 1.94 | DN41: 1.5 | DO41: 7.95 | DP41: 6.77 | DQ41: 4.6 | DR41: 8.55 | DS41: 4.28 | DT41: 10.05 | DU41: 5.28 | DV41: 18.37 | DW41: 12.34 | DX41: 13.67 | DY41: 21.47 | DZ41: 28.41 | EA41: 0.01 | EB41: 0.05 | EC41: 0 | ED41: 0 | EE41: 0
A42: 2 | B42: 6 | C42: 5 | D42: 2 | E42: G | F42: 02G206 | G42: G | H42: 020605 | I42: 206052 | J42: JANOWICE WIELKIE | K42: 4302 | L42: 4275 | M42: 4251 | N42: 4102 | O42: 4071 | P42: 97.81 | Q42: 92.59 | R42: 83.53 | S42: 94.3 | T42: 89.04 | U42: 56.55 | V42: 56.5 | W42: 56.96 | X42: 55.22 | Y42: 53.45 | Z42: 7.56 | AA42: 6.92 | AB42: 8.08 | AC42: 6.71 | AD42: 3.56 | AE42: 3.91 | AF42: 1.97 | AG42: 12.64 | AH42: 13.52 | AI42: 19.09 | AJ42: 33.53 | AK42: 33.63 | AL42: 37.37 | AM42: 33.48 | AN42: 48.19 | AO42: 9.4 | AP42: 6.86 | AQ42: 7.74 | AR42: 7.63 | AS42: 4.57 | AT42: 260.38 | AU42: 796.24 | AV42: 208.88 | AW42: 87.41 | AX42: 69.75 | AY42: 0.78 | AZ42: 7.61 | BA42: 14.97 | BB42: 9.1 | BC42: 2.14 | BD42: 107.88 | BE42: 217.41 | BF42: 201.11 | BG42: 156.64 | BH42: 109.27 | BI42: 121.26 | BJ42: 551.88 | BK42: 234.69 | BL42: 166.15 | BM42: 110.56 | BN42: 82.47 | BO42: 18.12 | BP42: 42.61 | BQ42: 60.19 | BR42: 90.45 | BS42: 13.78 | BT42: 10.9 | BU42: 13.01 | BV42: 12.61 | BW42: 6.23 | BX42: 2510.18 | BY42: 2661.82 | BZ42: 2911.2 | CA42: 3760.57 | CB42: 2845.85 | CC42: 335.79 | CD42: 326.2 | CE42: 412.79 | CF42: 456.75 | CG42: 189.36 | CH42: 1086.32 | CI42: 836.49 | CJ42: 615.38 | CK42: 470.99 | CL42: 306.56 | CM42: 486.52 | CN42: 738.98 | CO42: 1821.71 | CP42: 1817.67 | CQ42: 1507.1 | CR42: 202.7 | CS42: 487.4 | CT42: 1595.89 | CU42: 1650.92 | CV42: 1339.08 | CW42: 23.94 | CX42: 16.44 | CY42: 10.06 | CZ42: 6.52 | DA42: 5.13 | DB42: 3.24 | DC42: 2.56 | DD42: 1.49 | DE42: 1.03 | DF42: 1.62 | DG42: 7.14 | DH42: 5.43 | DI42: 3.95 | DJ42: 2.88 | DK42: 3.38 | DL42: 3.7 | DM42: 2.94 | DN42: 2.54 | DO42: 8.83 | DP42: 11.1 | DQ42: 10.46 | DR42: 8.62 | DS42: 6.73 | DT42: 4.74 | DU42: 4.54 | DV42: 14.15 | DW42: 9.76 | DX42: 6.91 | DY42: 24.93 | DZ42: 20.25 | EA42: 0.47 | EB42: 0 | EC42: 0 | ED42: 0 | EE42: 0
A43: 2 | B43: 6 | C43: 6 | D43: 2 | E43: G | F43: 02G206 | G43: G | H43: 020606 | I43: 206062 | J43: JEŻÓW SUDECKI | K43: 7438 | L43: 7477 | M43: 7584 | N43: 7813 | O43: 7847 | P43: 95.98 | Q43: 94.76 | R43: 92.62 | S43: 95.09 | T43: 79.34 | U43: 47.26 | V43: 49.7 | W43: 47.16 | X43: 44.64 | Y43: 39.95 | Z43: 22.97 | AA43: 17.84 | AB43: 23.83 | AC43: 17.19 | AD43: 9.85 | AE43: 14.29 | AF43: 14.26 | AG43: 22.52 | AH43: 17 | AI43: 38.57 | AJ43: 28.47 | AK43: 29.44 | AL43: 30.17 | AM43: 29.44 | AN43: 36.41 | AO43: 22.27 | AP43: 17.61 | AQ43: 23.61 | AR43: 19.28 | AS43: 8.31 | AT43: 211.47 | AU43: 171.08 | AV43: 143.65 | AW43: 131.73 | AX43: 63.4 | AY43: 10.74 | AZ43: 16.3 | BA43: 19.7 | BB43: 21.94 | BC43: 4.83 | BD43: 148.54 | BE43: 193.92 | BF43: 188.2 | BG43: 216.51 | BH43: 110.7 | BI43: 173.42 | BJ43: 219.36 | BK43: 199.38 | BL43: 236.78 | BM43: 110.76 | BN43: 57.66 | BO43: 45.59 | BP43: 50.16 | BQ43: 42.23 | BR43: 90.29 | BS43: 33.66 | BT43: 27.32 | BU43: 35.73 | BV43: 28.81 | BW43: 12.44 | BX43: 2181.47 | BY43: 2479.71 | BZ43: 2635.28 | CA43: 2532.35 | CB43: 1931.53 | CC43: 1060.12 | CD43: 890.29 | CE43: 1331.85 | CF43: 974.96 | CG43: 476.42 | CH43: 511.59 | CI43: 368.7 | CJ43: 206.73 | CK43: 14.72 | CL43: 0 | CM43: 1331.93 | CN43: 1680.17 | CO43: 2623.08 | CP43: 2446.08 | CQ43: 3045.76 | CR43: 1028.03 | CS43: 1495.55 | CT43: 2466.31 | CU43: 2278.6 | CV43: 3031.11 | CW43: 10.64 | CX43: 7 | CY43: 3.43 | CZ43: 0.25 | DA43: 0 | DB43: 0.48 | DC43: 0.41 | DD43: 0.16 | DE43: 0.02 | DF43: 0 | DG43: 6.65 | DH43: 3.64 | DI43: 2.67 | DJ43: 2.87 | DK43: 0.24 | DL43: 3.08 | DM43: 1.88 | DN43: 1.98 | DO43: 26.22 | DP43: 0 | DQ43: 10.01 | DR43: 5.68 | DS43: 4.01 | DT43: 4.32 | DU43: 0.35 | DV43: 5.19 | DW43: 3.76 | DX43: 2.62 | DY43: 2.3 | DZ43: 1.62 | EA43: 0 | EB43: 0 | EC43: 0 | ED43: 0 | EE43: 0
A44: 2 | B44: 6 | C44: 7 | D44: 2 | E44: G | F44: 02G206 | G44: G | H44: 020607 | I44: 206072 | J44: MYSŁAKOWICE | K44: 10160 | L44: 10142 | M44: 10081 | N44: 9801 | O44: 9722 | P44: 86.16 | Q44: 94.46 | R44: 90.83 | S44: 93.26 | T44: 60.95 | U44: 50.84 | V44: 53.32 | W44: 51.45 | X44: 52.91 | Y44: 44.72 | Z44: 7.18 | AA44: 4.86 | AB44: 6.98 | AC44: 3.53 | AD44: 0.8 | AE44: 23.16 | AF44: 4.32 | AG44: 10.9 | AH44: 24.26 | AI44: 54.97 | AJ44: 33.77 | AK44: 33.52 | AL44: 34.48 | AM44: 32.63 | AN44: 40.05 | AO44: 7.09 | AP44: 4.98 | AQ44: 7.75 | AR44: 6.24 | AS44: 2.01 | AT44: 83.09 | AU44: 249.63 | AV44: 150.1 | AW44: 34.8 | AX44: 53.57 | AY44: 6.37 | AZ44: 10.58 | BA44: 13.27 | BB44: 7.41 | BC44: 0.07 | BD44: 77.17 | BE44: 269.69 | BF44: 213.1 | BG44: 72.66 | BH44: 60.07 | BI44: 75.13 | BJ44: 360.78 | BK44: 228.47 | BL44: 70.86 | BM44: 59.29 | BN44: 133.11 | BO44: 27.72 | BP44: 43.77 | BQ44: 141.12 | BR44: 168.66 | BS44: 11.61 | BT44: 7.58 | BU44: 12.84 | BV44: 10.07 | BW44: 4.18 | BX44: 2289 | BY44: 2611.92 | BZ44: 2715.24 | CA44: 3184.68 | CB44: 2317.7 | CC44: 323.14 | CD44: 238.17 | CE44: 368.45 | CF44: 212.26 | CG44: 41.21 | CH44: 931.83 | CI44: 820.55 | CJ44: 743.97 | CK44: 1663.1 | CL44: 4114.38 | CM44: 1059.07 | CN44: 871.99 | CO44: 1453.06 | CP44: 1440.44 | CQ44: 3844.42 | CR44: 946.27 | CS44: 759.05 | CT44: 1371.52 | CU44: 1318 | CV44: 3720.99 | CW44: 17.83 | CX44: 15.82 | CY44: 12.8 | CZ44: 25.77 | DA44: 48.38 | DB44: 2.88 | DC44: 3.45 | DD44: 2.02 | DE44: 7.84 | DF44: 99.84 | DG44: 2.48 | DH44: 2.71 | DI44: 1.63 | DJ44: 2.47 | DK44: 4.39 | DL44: 1.8 | DM44: 3.33 | DN44: 1.8 | DO44: 2.22 | DP44: 6.07 | DQ44: 4.21 | DR44: 4.36 | DS44: 2.58 | DT44: 4.1 | DU44: 8.53 | DV44: 14.86 | DW44: 24.21 | DX44: 16.41 | DY44: 30.09 | DZ44: 202.2 | EA44: 0 | EB44: 0 | EC44: 0 | ED44: 0 | EE44: 0
A45: 2 | B45: 6 | C45: 8 | D45: 2 | E45: G | F45: 02G206 | G45: G | H45: 020608 | I45: 206082 | J45: PODGÓRZYN | K45: 8260 | L45: 8262 | M45: 8238 | N45: 8145 | O45: 8128 | P45: 88.36 | Q45: 87.34 | R45: 83.14 | S45: 90.12 | T45: 82.43 | U45: 47.88 | V45: 48.03 | W45: 47.28 | X45: 47.51 | Y45: 41.56 | Z45: 1.85 | AA45: 9.06 | AB45: 7.99 | AC45: 6.17 | AD45: -0.45 | AE45: 23.5 | AF45: 9.5 | AG45: 12.98 | AH45: 21.79 | AI45: 34.58 | AJ45: 34.89 | AK45: 35.12 | AL45: 36.96 | AM45: 33.82 | AN45: 41.84 | AO45: 4.86 | AP45: 12.18 | AQ45: 14.44 | AR45: 9.29 | AS45: 0.6 | AT45: 49.81 | AU45: 246.77 | AV45: 206.04 | AW45: 65.52 | AX45: 39.28 | AY45: 1.61 | AZ45: 11.32 | BA45: 32.24 | BB45: 18.88 | BC45: 20.57 | BD45: 24.38 | BE45: 211.14 | BF45: 254.42 | BG45: 172.72 | BH45: 77.96 | BI45: -146.08 | BJ45: 238.79 | BK45: 279.04 | BL45: 180.14 | BM45: 76.67 | BN45: -68.46 | BO45: 41.88 | BP45: 35.84 | BQ45: 55.51 | BR45: 130.44 | BS45: 7.45 | BT45: 20.46 | BU45: 25.2 | BV45: 14.32 | BW45: 1.74 | BX45: 2165.48 | BY45: 2448.75 | BZ45: 2624.71 | CA45: 3169.28 | CB45: 2532.78 | CC45: 83.71 | CD45: 461.78 | CE45: 443.66 | CF45: 411.73 | CG45: -27.69 | CH45: 3042.98 | CI45: 2904.87 | CJ45: 3749.48 | CK45: 3528.33 | CL45: 5782.48 | CM45: 1082.07 | CN45: 1283 | CO45: 2246.44 | CP45: 3319.72 | CQ45: 2671.58 | CR45: -1992.24 | CS45: 1161.97 | CT45: 2125.05 | CU45: 3141.7 | CV45: 2480.89 | CW45: 59.45 | CX45: 49.76 | CY45: 56.15 | CZ45: 47.67 | DA45: 78.21 | DB45: 36.35 | DC45: 6.29 | DD45: 8.45 | DE45: 8.57 | DF45: -208.8 | DG45: 63.1 | DH45: 3.44 | DI45: 2.7 | DJ45: 5.28 | DK45: 6.75 | DL45: 5.1 | DM45: 2.75 | DN45: 1.58 | DO45: 6.04 | DP45: 5.33 | DQ45: 105.59 | DR45: 5.82 | DS45: 4.58 | DT45: 8.77 | DU45: 9.68 | DV45: 5.05 | DW45: 66.07 | DX45: 48.78 | DY45: 119.64 | DZ45: 161.5 | EA45: 0 | EB45: 0 | EC45: 0 | ED45: 0 | EE45: 0
A46: 2 | B46: 6 | C46: 9 | D46: 2 | E46: G | F46: 02G206 | G46: G | H46: 020609 | I46: 206092 | J46: STARA KAMIENICA | K46: 5266 | L46: 5242 | M46: 5230 | N46: 5297 | O46: 5286 | P46: 94.99 | Q46: 93.25 | R46: 86.22 | S46: 94.74 | T46: 74.2 | U46: 54.42 | V46: 54.74 | W46: 54.36 | X46: 56.85 | Y46: 52.66 | Z46: 3.76 | AA46: 6.15 | AB46: 7.42 | AC46: 7.35 | AD46: 6.67 | AE46: 7.26 | AF46: 9.08 | AG46: 4.88 | AH46: 16.92 | AI46: 25.95 | AJ46: 38.05 | AK46: 37 | AL46: 40.59 | AM46: 35.4 | AN46: 43.95 | AO46: 3.66 | AP46: 5.87 | AQ46: 7.19 | AR46: 7.04 | AS46: 5.94 | AT46: 119.98 | AU46: 142.79 | AV46: 492.71 | AW46: 68.38 | AX46: 126.69 | AY46: 1.19 | AZ46: 4.7 | BA46: 16.47 | BB46: 5.92 | BC46: 9.93 | BD46: 106.58 | BE46: 86.41 | BF46: 302.75 | BG46: 126.72 | BH46: 137.89 | BI46: 109.23 | BJ46: 75.45 | BK46: 502.17 | BL46: 131.45 | BM46: 140.92 | BN46: 91.55 | BO46: 132.54 | BP46: 19.91 | BQ46: 76.07 | BR46: 70.96 | BS46: 3.52 | BT46: 9.42 | BU46: 12.15 | BV46: 10.83 | BW46: 5.97 | BX46: 2605.06 | BY46: 2913.97 | BZ46: 3132.66 | CA46: 4053.18 | CB46: 3237.35 | CC46: 179.82 | CD46: 327.41 | CE46: 427.29 | CF46: 523.83 | CG46: 410.35 | CH46: 3286.38 | CI46: 3320.61 | CJ46: 3062.04 | CK46: 2804.89 | CL46: 2650.3 | CM46: 538.3 | CN46: 778.83 | CO46: 1643.19 | CP46: 2006.49 | CQ46: 2994.22 | CR46: 393.71 | CS46: 376.55 | CT46: 1374.05 | CU46: 1768.44 | CV46: 2833.8 | CW46: 65.22 | CX46: 58.17 | CY46: 45.82 | CZ46: 37.27 | DA46: 31.99 | DB46: 18.28 | DC46: 10.14 | DD46: 7.17 | DE46: 5.35 | DF46: 6.46 | DG46: 5.55 | DH46: 8.76 | DI46: 5.38 | DJ46: 5.91 | DK46: 4.78 | DL46: 4.1 | DM46: 2.95 | DN46: 2.96 | DO46: 7.37 | DP46: 8.89 | DQ46: 8.85 | DR46: 14.27 | DS46: 9.21 | DT46: 9.92 | DU46: 8.33 | DV46: 93.28 | DW46: 24.32 | DX46: 33.7 | DY46: 86.8 | DZ46: 146.87 | EA46: 0 | EB46: 0 | EC46: 0.1 | ED46: 0 | EE46: 0
A47: 2 | B47: 7 | C47: 1 | D47: 1 | E47: G | F47: 02G107 | G47: G | H47: 020701 | I47: 207011 | J47: KAMIENNA GÓRA | K47: 19010 | L47: 18728 | M47: 18425 | N47: 17555 | O47: 17243 | P47: 85.62 | Q47: 84.99 | R47: 82.67 | S47: 88.29 | T47: 74.99 | U47: 51.89 | V47: 53.88 | W47: 54.21 | X47: 53.09 | Y47: 50.96 | Z47: 1.27 | AA47: 2.24 | AB47: 4.34 | AC47: -2.51 | AD47: -4.29 | AE47: 26.77 | AF47: 21.15 | AG47: 14.77 | AH47: 14.46 | AI47: 17.1 | AJ47: 38.37 | AK47: 34.83 | AL47: 38.17 | AM47: 38.47 | AN47: 46.76 | AO47: 2.71 | AP47: 3.79 | AQ47: 10.88 | AR47: -0.63 | AS47: 0.15 | AT47: 50.06 | AU47: 75.88 | AV47: 152.63 | AW47: 62.1 | AX47: 135.05 | AY47: 1.01 | AZ47: 3.91 | BA47: 14.79 | BB47: 7.22 | BC47: 16.57 | BD47: 43.98 | BE47: 73.61 | BF47: 162.35 | BG47: 139.68 | BH47: 162.61 | BI47: 32.42 | BJ47: 71.25 | BK47: 168.4 | BL47: 147.2 | BM47: 171.03 | BN47: 308.45 | BO47: 140.35 | BP47: 59.38 | BQ47: 67.94 | BR47: 58.47 | BS47: 4.27 | BT47: 6.84 | BU47: 18.9 | BV47: -0.93 | BW47: 0.63 | BX47: 2150.33 | BY47: 2370.45 | BZ47: 2636.31 | CA47: 2856.19 | CB47: 2482.06 | CC47: 52.48 | CD47: 98.38 | CE47: 211 | CF47: -134.91 | CG47: -209.1 | CH47: 2044.66 | CI47: 2458.64 | CJ47: 2778.18 | CK47: 2781.04 | CL47: 3036 | CM47: 793.62 | CN47: 925.27 | CO47: 1435.79 | CP47: 1549.28 | CQ47: 1932.79 | CR47: 484.9 | CS47: 822.23 | CT47: 1357.47 | CU47: 1372.51 | CV47: 1791.95 | CW47: 42.24 | CX47: 47.49 | CY47: 47.23 | CZ47: 45.63 | DA47: 46.75 | DB47: 38.96 | DC47: 24.99 | DD47: 13.17 | DE47: -20.61 | DF47: -14.52 | DG47: 7.12 | DH47: 3.11 | DI47: 2.03 | DJ47: 5.46 | DK47: 5.87 | DL47: 1.75 | DM47: 2.37 | DN47: 1.48 | DO47: 5.61 | DP47: 7.92 | DQ47: 11.67 | DR47: 5.39 | DS47: 3.51 | DT47: 8.89 | DU47: 9.54 | DV47: 11.56 | DW47: 56.45 | DX47: 52.39 | DY47: 88.33 | DZ47: 170.79 | EA47: 3.13 | EB47: 0.7 | EC47: 0.39 | ED47: 1.92 | EE47: 2.23
A48: 2 | B48: 7 | C48: 2 | D48: 2 | E48: G | F48: 02G207 | G48: G | H48: 020702 | I48: 207022 | J48: KAMIENNA GÓRA | K48: 9019 | L48: 9018 | M48: 8933 | N48: 8857 | O48: 8862 | P48: 98.67 | Q48: 89.66 | R48: 80.81 | S48: 88.39 | T48: 86.68 | U48: 61.98 | V48: 60.11 | W48: 58.09 | X48: 56.99 | Y48: 53.2 | Z48: 15.89 | AA48: 8.24 | AB48: 10.97 | AC48: 9.37 | AD48: 5.14 | AE48: 17.48 | AF48: 12.97 | AG48: 18.14 | AH48: 19.13 | AI48: 23.3 | AJ48: 36.83 | AK48: 36.65 | AL48: 38.12 | AM48: 36.88 | AN48: 46.72 | AO48: 16.39 | AP48: 10.01 | AQ48: 11.83 | AR48: 11.12 | AS48: 5.82 | AT48: 96.7 | AU48: 144.57 | AV48: 176.02 | AW48: 105.01 | AX48: 71.17 | AY48: 3.66 | AZ48: 5.81 | BA48: 17.67 | BB48: 17.23 | BC48: 14.15 | BD48: 89.18 | BE48: 122.33 | BF48: 185.07 | BG48: 158.73 | BH48: 140.51 | BI48: 84.08 | BJ48: 131.35 | BK48: 194.53 | BL48: 171.62 | BM48: 143.8 | BN48: 118.93 | BO48: 76.14 | BP48: 51.41 | BQ48: 58.27 | BR48: 69.54 | BS48: 14.67 | BT48: 17.19 | BU48: 20.74 | BV48: 16.62 | BW48: 7.1 | BX48: 3136.86 | BY48: 3042.69 | BZ48: 3276.97 | CA48: 3733.11 | CB48: 2917.86 | CC48: 804.15 | CD48: 416.89 | CE48: 618.74 | CF48: 614.03 | CG48: 282.03 | CH48: 785.23 | CI48: 616.69 | CJ48: 680.72 | CK48: 649.24 | CL48: 723.63 | CM48: 1183.52 | CN48: 1188.81 | CO48: 2288.56 | CP48: 2718.22 | CQ48: 2400.41 | CR48: 758.38 | CS48: 909.3 | CT48: 2164.81 | CU48: 2409.93 | CV48: 2272.05 | CW48: 15.31 | CX48: 10.92 | CY48: 9.75 | CZ48: 8.76 | DA48: 11.44 | DB48: 0.98 | DC48: 1.48 | DD48: 1.1 | DE48: 1.06 | DF48: 2.57 | DG48: 8.59 | DH48: 5.16 | DI48: 1.89 | DJ48: 4.52 | DK48: 2.69 | DL48: 1.97 | DM48: 1.96 | DN48: 1.21 | DO48: 4.14 | DP48: 5.78 | DQ48: 13.45 | DR48: 8.67 | DS48: 3.32 | DT48: 7.64 | DU48: 3.72 | DV48: 3.65 | DW48: 4.32 | DX48: 6.65 | DY48: 8.72 | DZ48: 32.59 | EA48: 0 | EB48: 0 | EC48: 0 | ED48: 0 | EE48: 0
A49: 2 | B49: 7 | C49: 3 | D49: 3 | E49: G | F49: 02G307 | G49: G | H49: 020703 | I49: 207033 | J49: LUBAWKA | K49: 10901 | L49: 10802 | M49: 10694 | N49: 10265 | O49: 10186 | P49: 98.77 | Q49: 94.81 | R49: 89.54 | S49: 98.62 | T49: 92.19 | U49: 66.47 | V49: 65.97 | W49: 62.81 | X49: 63.97 | Y49: 56.02 | Z49: 14.38 | AA49: 9.67 | AB49: 13.32 | AC49: 5.44 | AD49: 1.16 | AE49: 10.12 | AF49: 9.37 | AG49: 10.22 | AH49: 3.29 | AI49: 3.63 | AJ49: 38.17 | AK49: 36.28 | AL49: 37.7 | AM49: 34.44 | AN49: 45.37 | AO49: 14.75 | AP49: 9.71 | AQ49: 14.47 | AR49: 6.05 | AS49: 3.15 | AT49: 162.1 | AU49: 162.11 | AV49: 253.24 | AW49: 213.04 | AX49: 258.77 | AY49: 10.41 | AZ49: 14.6 | BA49: 24.02 | BB49: 24.54 | BC49: 32.09 | BD49: 162.29 | BE49: 243.3 | BF49: 309.26 | BG49: 537.13 | BH49: 723.25 | BI49: 203.48 | BJ49: 258.53 | BK49: 368.22 | BL49: 874.68 | BM49: 1035.37 | BN49: 49.15 | BO49: 38.68 | BP49: 27.16 | BQ49: 11.43 | BR49: 9.66 | BS49: 15.17 | BT49: 13.99 | BU49: 24.16 | BV49: 9.54 | BW49: 5.12 | BX49: 2711.96 | BY49: 2861.14 | BZ49: 2998.49 | CA49: 3597.92 | CB49: 2567.53 | CC49: 586.86 | CD49: 419.21 | CE49: 635.93 | CF49: 306.16 | CG49: 53.09 | CH49: 1078.33 | CI49: 1071.17 | CJ49: 966.71 | CK49: 866.71 | CL49: 781.8 | CM49: 1060.73 | CN49: 1090.02 | CO49: 1868.09 | CP49: 1719.65 | CQ49: 1851.24 | CR49: 800.59 | CS49: 1046.97 | CT49: 1735.3 | CU49: 1580.15 | CV49: 1765.82 | CW49: 26.1 | CX49: 23.42 | CY49: 18.13 | CZ49: 15.2 | DA49: 15.73 | DB49: 1.84 | DC49: 2.56 | DD49: 1.52 | DE49: 2.83 | DF49: 14.73 | DG49: 7.11 | DH49: 1.44 | DI49: 2.76 | DJ49: 3.31 | DK49: 3.09 | DL49: 3.11 | DM49: 2.13 | DN49: 1.47 | DO49: 5.71 | DP49: 8.72 | DQ49: 10.94 | DR49: 2.37 | DS49: 4.41 | DT49: 5.36 | DU49: 4 | DV49: 12.9 | DW49: 53.01 | DX49: 10.69 | DY49: 35.46 | DZ49: 79.78 | EA49: 0 | EB49: 0 | EC49: 0.09 | ED49: 0 | EE49: 0
A50: 2 | B50: 7 | C50: 4 | D50: 2 | E50: G | F50: 02G207 | G50: G | H50: 020704 | I50: 207042 | J50: MARCISZÓW | K50: 4499 | L50: 4507 | M50: 4464 | N50: 4308 | O50: 4259 | P50: 99.68 | Q50: 95.53 | R50: 84.69 | S50: 98.17 | T50: 93.44 | U50: 67.91 | V50: 66.12 | W50: 67.58 | X50: 61.76 | Y50: 65.53 | Z50: 16.13 | AA50: 9.51 | AB50: 6.03 | AC50: 5.79 | AD50: 7.41 | AE50: 2.33 | AF50: 7.36 | AG50: 11.72 | AH50: 11.28 | AI50: 19.69 | AJ50: 42.37 | AK50: 40.11 | AL50: 42.03 | AM50: 35.45 | AN50: 49.6 | AO50: 16.21 | AP50: 10.8 | AQ50: 6.03 | AR50: 6.41 | AS50: 7.3 | AT50: 821.75 | AU50: 197.29 | AV50: 193.2 | AW50: 63.9 | AX50: 63.55 | AY50: 11.11 | AZ50: 11.74 | BA50: 21.96 | BB50: 15.8 | BC50: 17.07 | BD50: 181.05 | BE50: 195.04 | BF50: 211.38 | BG50: 183.49 | BH50: 127.45 | BI50: 657.06 | BJ50: 270.91 | BK50: 253.47 | BL50: 205.28 | BM50: 132.67 | BN50: 15.22 | BO50: 36.91 | BP50: 39.45 | BQ50: 48.71 | BR50: 75.37 | BS50: 12.08 | BT50: 16.82 | BU50: 10.47 | BV50: 10.05 | BW50: 9.7 | BX50: 3295.86 | BY50: 3236.11 | BZ50: 3353.33 | CA50: 4105.84 | CB50: 3545.49 | CC50: 782.62 | CD50: 465.49 | CE50: 299.45 | CF50: 384.76 | CG50: 400.82 | CH50: 1550.65 | CI50: 1266.98 | CJ50: 1381.21 | CK50: 1455.7 | CL50: 1825.91 | CM50: 1208.47 | CN50: 1234.29 | CO50: 1803.72 | CP50: 1841.68 | CQ50: 1862.9 | CR50: 638.09 | CS50: 953.38 | CT50: 1569.72 | CU50: 1634.02 | CV50: 1629.37 | CW50: 31.85 | CX50: 24.73 | CY50: 23.57 | CZ50: 21.49 | DA50: 31.54 | DB50: 1.98 | DC50: 2.72 | DD50: 4.61 | DE50: 3.78 | DF50: 4.56 | DG50: 12.67 | DH50: 5.94 | DI50: 4.23 | DJ50: 4.33 | DK50: 5.77 | DL50: 3.01 | DM50: 1.86 | DN50: 0.99 | DO50: 5.87 | DP50: 5.52 | DQ50: 20.04 | DR50: 9.25 | DS50: 7.34 | DT50: 6.8 | DU50: 7.54 | DV50: 8.19 | DW50: 8.37 | DX50: 5.83 | DY50: 41.13 | DZ50: 43.15 | EA50: 0 | EB50: 0 | EC50: 0 | ED50: 0 | EE50: 0
A51: 2 | B51: 8 | C51: 1 | D51: 1 | E51: G | F51: 02G108 | G51: G | H51: 020801 | I51: 208011 | J51: DUSZNIKI-ZDRÓJ | K51: 4584 | L51: 4476 | M51: 4369 | N51: 4124 | O51: 4051 | P51: 87 | Q51: 73.61 | R51: 83.29 | S51: 42.9 | T51: 83.22 | U51: 42.14 | V51: 44.63 | W51: 45.92 | X51: 47.1 | Y51: 45.55 | Z51: 2.62 | AA51: -1.31 | AB51: 7.18 | AC51: -4.17 | AD51: -0.65 | AE51: 15.11 | AF51: 17.56 | AG51: 7.19 | AH51: 8.44 | AI51: 35.86 | AJ51: 38.73 | AK51: 39.29 | AL51: 41.27 | AM51: 31.51 | AN51: 39.09 | AO51: 8.8 | AP51: 9.93 | AQ51: 8.67 | AR51: 52.13 | AS51: 0.86 | AT51: 101.38 | AU51: 159.97 | AV51: 379.09 | AW51: 1343.31 | AX51: 34.67 | AY51: 1.67 | AZ51: 6.08 | BA51: 19.51 | BB51: 8.06 | BC51: 59.95 | BD51: 71.47 | BE51: 114.47 | BF51: 238.81 | BG51: 360.21 | BH51: 228.01 | BI51: 59.37 | BJ51: 121.3 | BK51: 376.4 | BL51: 1201.21 | BM51: 228.01 | BN51: 168.44 | BO51: 82.44 | BP51: 26.57 | BQ51: 8.32 | BR51: 43.86 | BS51: 12.53 | BT51: 18.57 | BU51: 14.27 | BV51: 186.05 | BW51: 1.16 | BX51: 2085.35 | BY51: 2345.78 | BZ51: 2784.83 | CA51: 4075.12 | CB51: 3896.52 | CC51: 129.72 | CD51: -68.97 | CE51: 435.67 | CF51: -360.85 | CG51: -55.26 | CH51: 3238.81 | CI51: 2683.2 | CJ51: 2532.85 | CK51: 0 | CL51: 0 | CM51: 872.67 | CN51: 1912.04 | CO51: 2073.08 | CP51: 12656.33 | CQ51: 10976.74 | CR51: 509.08 | CS51: 1376.13 | CT51: 1640.95 | CU51: 9973.01 | CV51: 10976.74 | CW51: 56.94 | CX51: 37.58 | CY51: 34.78 | CZ51: 0 | DA51: 0 | DB51: 24.97 | DC51: -38.9 | DD51: 5.81 | DE51: 0 | DF51: 0 | DG51: 7.93 | DH51: 8.43 | DI51: 6.52 | DJ51: 13.78 | DK51: 0 | DL51: 2.7 | DM51: 2.45 | DN51: 1.68 | DO51: 0 | DP51: 0 | DQ51: 12.02 | DR51: 15.66 | DS51: 10.72 | DT51: 49.08 | DU51: 0 | DV51: 24.07 | DW51: 12.26 | DX51: 9.82 | DY51: 3.58 | DZ51: 0 | EA51: 0 | EB51: 0 | EC51: 0 | ED51: 0 | EE51: 0
A52: 2 | B52: 8 | C52: 2 | D52: 1 | E52: G | F52: 02G108 | G52: G | H52: 020802 | I52: 208021 | J52: KŁODZKO | K52: 26845 | L52: 26574 | M52: 26172 | N52: 25239 | O52: 24933 | P52: 91.55 | Q52: 88.74 | R52: 87.56 | S52: 93.65 | T52: 80.09 | U52: 48.28 | V52: 52.19 | W52: 50.97 | X52: 48.13 | Y52: 46.11 | Z52: 9.8 | AA52: 5.81 | AB52: 7.44 | AC52: 4.09 | AD52: 0.5 | AE52: 14.5 | AF52: 13.38 | AG52: 14.94 | AH52: 11.55 | AI52: 35.86 | AJ52: 36.22 | AK52: 36.02 | AL52: 35.96 | AM52: 36.35 | AN52: 41.01 | AO52: 10.3 | AP52: 7.13 | AQ52: 9.19 | AR52: 5.43 | AS52: 2.29 | AT52: 124.36 | AU52: 127.2 | AV52: 133.17 | AW52: 86.85 | AX52: 45.6 | AY52: 6.48 | AZ52: 12.9 | BA52: 19.43 | BB52: 20.09 | BC52: 3.62 | BD52: 101.94 | BE52: 132 | BF52: 179.47 | BG52: 199.12 | BH52: 80.47 | BI52: 102.66 | BJ52: 142.02 | BK52: 195.07 | BL52: 229.11 | BM52: 78.83 | BN52: 97.41 | BO52: 70.41 | BP52: 51.26 | BQ52: 43.65 | BR52: 126.85 | BS52: 15.92 | BT52: 11.87 | BU52: 15.18 | BV52: 8.56 | BW52: 3.49 | BX52: 2004.47 | BY52: 2306.78 | BZ52: 2509.7 | CA52: 2523.6 | CB52: 2269.27 | CC52: 406.68 | CD52: 256.76 | CE52: 366.55 | CF52: 214.58 | CG52: 24.56 | CH52: 1029.12 | CI52: 1181.96 | CJ52: 1343.84 | CK52: 1440.79 | CL52: 1996.93 | CM52: 889.83 | CN52: 1114.48 | CO52: 1718.5 | CP52: 1703 | CQ52: 2387.21 | CR52: 652.06 | CS52: 913.11 | CT52: 1561.43 | CU52: 1504.32 | CV52: 2158.02 | CW52: 22.69 | CX52: 23.73 | CY52: 23.9 | CZ52: 25.73 | DA52: 32.5 | DB52: 2.53 | DC52: 4.6 | DD52: 3.67 | DE52: 6.71 | DF52: 81.3 | DG52: 5.67 | DH52: 4.29 | DI52: 3 | DJ52: 4.86 | DK52: 5.35 | DL52: 1.9 | DM52: 1.05 | DN52: 0.88 | DO52: 5.08 | DP52: 5 | DQ52: 8.7 | DR52: 7.21 | DS52: 4.8 | DT52: 7.17 | DU52: 7.89 | DV52: 8.21 | DW52: 6.18 | DX52: 7.51 | DY52: 36.86 | DZ52: 43.53 | EA52: 0 | EB52: 0 | EC52: 0 | ED52: 0 | EE52: 0
A53: 2 | B53: 8 | C53: 3 | D53: 1 | E53: G | F53: 02G108 | G53: G | H53: 020803 | I53: 208031 | J53: KUDOWA-ZDRÓJ | K53: 9892 | L53: 9852 | M53: 9693 | N53: 9449 | O53: 9324 | P53: 84.74 | Q53: 84.82 | R53: 84.58 | S53: 84.43 | T53: 75.26 | U53: 48.46 | V53: 54.2 | W53: 52.1 | X53: 50.28 | Y53: 48.37 | Z53: 3.28 | AA53: 3.91 | AB53: 9.64 | AC53: 7.31 | AD53: 5.01 | AE53: 16.7 | AF53: 16.18 | AG53: 19.3 | AH53: 16.82 | AI53: 28.42 | AJ53: 36.19 | AK53: 34.94 | AL53: 36.58 | AM53: 33.78 | AN53: 39.67 | AO53: 5.44 | AP53: 6.61 | AQ53: 12.52 | AR53: 13.15 | AS53: 9.51 | AT53: 109.79 | AU53: 117.59 | AV53: 128.98 | AW53: 137.32 | AX53: 100.46 | AY53: 2.82 | AZ53: 5.94 | BA53: 11.52 | BB53: 12.91 | BC53: 7.72 | BD53: 78.38 | BE53: 104.78 | BF53: 128.11 | BG53: 159.56 | BH53: 127.57 | BI53: 69.09 | BJ53: 106.13 | BK53: 134.91 | BL53: 175.04 | BM53: 131.06 | BN53: 144.74 | BO53: 94.23 | BP53: 74.13 | BQ53: 57.13 | BR53: 76.3 | BS53: 8.59 | BT53: 11.42 | BU53: 20.74 | BV53: 21.77 | BW53: 15.45 | BX53: 2210.94 | BY53: 2641.52 | BZ53: 2780.06 | CA53: 3138.1 | CB53: 2862.06 | CC53: 149.58 | CD53: 190.64 | CE53: 514.16 | CF53: 456.15 | CG53: 296.52 | CH53: 2132.22 | CI53: 2234.94 | CJ53: 2285.62 | CK53: 2129.34 | CL53: 1891.3 | CM53: 991.12 | CN53: 1215.37 | CO53: 1834.33 | CP53: 2352.57 | CQ53: 3207.25 | CR53: 611.06 | CS53: 959.18 | CT53: 1555.57 | CU53: 2048.46 | CV53: 2924.58 | CW53: 39.6 | CX53: 38.9 | CY53: 36.23 | CZ53: 28.8 | DA53: 24.05 | DB53: 14.25 | DC53: 11.72 | DD53: 4.45 | DE53: 4.67 | DF53: 6.38 | DG53: 8.15 | DH53: 5.25 | DI53: 4.93 | DJ53: 5.92 | DK53: 5.7 | DL53: 2.75 | DM53: 2.02 | DN53: 1.42 | DO53: 6.26 | DP53: 8.75 | DQ53: 12.93 | DR53: 9.14 | DS53: 7.98 | DT53: 9.99 | DU53: 9.13 | DV53: 15.41 | DW53: 17.64 | DX53: 11.63 | DY53: 43.85 | DZ53: 58.53 | EA53: 0.06 | EB53: 0 | EC53: 0.06 | ED53: 0 | EE53: 0.85
A54: 2 | B54: 8 | C54: 4 | D54: 1 | E54: G | F54: 02G108 | G54: G | H54: 020804 | I54: 208041 | J54: NOWA RUDA | K54: 22067 | L54: 21752 | M54: 21386 | N54: 20831 | O54: 20543 | P54: 90.06 | Q54: 88.49 | R54: 83.98 | S54: 89.78 | T54: 84.65 | U54: 49.53 | V54: 51.69 | W54: 50.96 | X54: 53.75 | Y54: 44.76 | Z54: 3.38 | AA54: 1.35 | AB54: 2.41 | AC54: -5.35 | AD54: -5.28 | AE54: 15.41 | AF54: 15.61 | AG54: 9.97 | AH54: 8.21 | AI54: 17.62 | AJ54: 27.48 | AK54: 27.45 | AL54: 28.07 | AM54: 25.77 | AN54: 32.63 | AO54: 5.81 | AP54: 3.52 | AQ54: 5.72 | AR54: 0.11 | AS54: -0.34 | AT54: 81.9 | AU54: 78.72 | AV54: 198.74 | AW54: 64.02 | AX54: 57.05 | AY54: 2.38 | AZ54: 2.08 | BA54: 11.85 | BB54: 7.4 | BC54: 0.8 | BD54: 79.45 | BE54: 77.21 | BF54: 167.57 | BG54: 146.9 | BH54: 87.06 | BI54: 75.15 | BJ54: 72.64 | BK54: 188.21 | BL54: 162.68 | BM54: 85.08 | BN54: 133.06 | BO54: 137.67 | BP54: 53.13 | BQ54: 61.47 | BR54: 117.54 | BS54: 8.49 | BT54: 7.47 | BU54: 9.96 | BV54: 0.25 | BW54: -0.47 | BX54: 1947.06 | BY54: 2130.01 | BZ54: 2320.48 | CA54: 2840.7 | CB54: 2026.73 | CC54: 132.88 | CD54: 55.67 | CE54: 109.62 | CF54: -282.89 | CG54: -239.16 | CH54: 1834.05 | CI54: 2045.13 | CJ54: 2131.44 | CK54: 2196.31 | CL54: 2335.06 | CM54: 664.7 | CN54: 697.07 | CO54: 1076.99 | CP54: 978.46 | CQ54: 1024.17 | CR54: 519.91 | CS54: 546.1 | CT54: 926.6 | CU54: 810.75 | CV54: 867.74 | CW54: 42.02 | CX54: 43.91 | CY54: 39.31 | CZ54: 37.31 | DA54: 43.65 | DB54: 13.8 | DC54: 36.73 | DD54: 19.44 | DE54: -7.76 | DF54: -9.76 | DG54: 4.68 | DH54: 4.42 | DI54: 3.51 | DJ54: 4.97 | DK54: 6.51 | DL54: 3.23 | DM54: 2.68 | DN54: 1.86 | DO54: 5.68 | DP54: 8.21 | DQ54: 7.29 | DR54: 7.27 | DS54: 5.85 | DT54: 8.57 | DU54: 9.25 | DV54: 40.93 | DW54: 36.29 | DX54: 26.43 | DY54: 74.44 | DZ54: 122.57 | EA54: 0 | EB54: 1.7 | EC54: 2 | ED54: 3.76 | EE54: 6.34
A55: 2 | B55: 8 | C55: 5 | D55: 1 | E55: G | F55: 02G108 | G55: G | H55: 020805 | I55: 208051 | J55: POLANICA-ZDRÓJ | K55: 6324 | L55: 6275 | M55: 6167 | N55: 6064 | O55: 5994 | P55: 93.93 | Q55: 73.4 | R55: 77.5 | S55: 72.27 | T55: 66.22 | U55: 37.3 | V55: 41.16 | W55: 40.45 | X55: 37.08 | Y55: 35.64 | Z55: 10.5 | AA55: 7.41 | AB55: 10.15 | AC55: 8.69 | AD55: 7.07 | AE55: 12.73 | AF55: 24.71 | AG55: 33.63 | AH55: 31.48 | AI55: 59.31 | AJ55: 31.1 | AK55: 29.49 | AL55: 29.92 | AM55: 27.4 | AN55: 31.5 | AO55: 14.13 | AP55: 12.59 | AQ55: 14.67 | AR55: 13.9 | AS55: 7.89 | AT55: 129.9 | AU55: 143.63 | AV55: 86.04 | AW55: 112.19 | AX55: 42.89 | AY55: 5.25 | AZ55: 10.42 | BA55: 5.18 | BB55: 7.64 | BC55: 4.57 | BD55: 129.9 | BE55: 139.54 | BF55: 113.12 | BG55: 125.45 | BH55: 50.95 | BI55: 137.12 | BJ55: 145.64 | BK55: 113.31 | BL55: 125.64 | BM55: 50.82 | BN55: 72.93 | BO55: 68.66 | BP55: 88.26 | BQ55: 79.59 | BR55: 196.79 | BS55: 20.1 | BT55: 23.11 | BU55: 26.89 | BV55: 26.8 | BW55: 14.25 | BX55: 1886.16 | BY55: 2214.42 | BZ55: 2413.23 | CA55: 2553.55 | CB55: 2426.71 | CC55: 531.21 | CD55: 398.94 | CE55: 605.59 | CF55: 598.23 | CG55: 481.57 | CH55: 335.88 | CI55: 127.76 | CJ55: 59.29 | CK55: 67.48 | CL55: 5220.74 | CM55: 1065.03 | CN55: 2633.5 | CO55: 3117.11 | CP55: 3651.24 | CQ55: 4710.08 | CR55: 905.48 | CS55: 2381.35 | CT55: 3078.14 | CU55: 3629.88 | CV55: 4685.74 | CW55: 6.24 | CX55: 1.74 | CY55: 0.77 | CZ55: 0.71 | DA55: 50.77 | DB55: 0.63 | DC55: 0.32 | DD55: 0.1 | DE55: 0.11 | DF55: 10.84 | DG55: 3.21 | DH55: 3.57 | DI55: 0.55 | DJ55: 0.3 | DK55: 1.11 | DL55: 3.96 | DM55: 7.35 | DN55: 5.81 | DO55: 10.46 | DP55: 1.71 | DQ55: 4.58 | DR55: 7.01 | DS55: 0.99 | DT55: 0.57 | DU55: 2.04 | DV55: 8.34 | DW55: 3.73 | DX55: 8.83 | DY55: 33.03 | DZ55: 366.84 | EA55: 0 | EB55: 0 | EC55: 1.09 | ED55: 0 | EE55: 1.09
A56: 2 | B56: 8 | C56: 6 | D56: 3 | E56: G | F56: 02G308 | G56: G | H56: 020806 | I56: 208063 | J56: BYSTRZYCA KŁODZKA | K56: 18925 | L56: 18729 | M56: 18492 | N56: 17582 | O56: 17366 | P56: 94.23 | Q56: 87.1 | R56: 85.66 | S56: 91.56 | T56: 87.36 | U56: 58.47 | V56: 60.83 | W56: 60 | X56: 61.64 | Y56: 56.09 | Z56: 8.06 | AA56: 10.04 | AB56: 11.86 | AC56: 5.16 | AD56: 4.36 | AE56: 19.3 | AF56: 11.46 | AG56: 16.89 | AH56: 13.48 | AI56: 27.13 | AJ56: 29.17 | AK56: 26.38 | AL56: 27.98 | AM56: 25.45 | AN56: 32.82 | AO56: 8.67 | AP56: 8.99 | AQ56: 11.01 | AR56: 7.4 | AS56: 5.74 | AT56: 64.48 | AU56: 213.45 | AV56: 159.68 | AW56: 97.3 | AX56: 52.86 | AY56: 2.24 | AZ56: 12.89 | BA56: 10.39 | BB56: 7.45 | BC56: 9.63 | BD56: 60.38 | BE56: 160.82 | BF56: 138.85 | BG56: 148.21 | BH56: 74.68 | BI56: 52.93 | BJ56: 189.76 | BK56: 167.74 | BL56: 155.18 | BM56: 72.88 | BN56: 188.94 | BO56: 52.7 | BP56: 59.62 | BQ56: 64.44 | BR56: 137.21 | BS56: 12.55 | BT56: 14.76 | BU56: 17.84 | BV56: 12.81 | BW56: 7.87 | BX56: 2668.82 | BY56: 2984.46 | BZ56: 3185.98 | CA56: 3940.69 | CB56: 3058.32 | CC56: 367.87 | CD56: 492.65 | CE56: 629.94 | CF56: 329.68 | CG56: 237.55 | CH56: 1723.03 | CI56: 1682.75 | CJ56: 997.13 | CK56: 912.18 | CL56: 1913.91 | CM56: 720.06 | CN56: 1355.94 | CO56: 2302.6 | CP56: 1602.67 | CQ56: 1553.36 | CR56: 531.33 | CS56: 1084.06 | CT56: 1595.41 | CU56: 1466.11 | CV56: 1415.1 | CW56: 35.57 | CX56: 29.87 | CY56: 16.08 | CZ56: 13.06 | DA56: 30.67 | DB56: 4.68 | DC56: 3.42 | DD56: 1.58 | DE56: 2.77 | DF56: 8.06 | DG56: 4.5 | DH56: 5.33 | DI56: 11.65 | DJ56: 2.75 | DK56: 3.17 | DL56: 1.69 | DM56: 1.7 | DN56: 1.54 | DO56: 6.11 | DP56: 3.13 | DQ56: 6.65 | DR56: 8.94 | DS56: 18.99 | DT56: 4.61 | DU56: 4.36 | DV56: 15.39 | DW56: 10.5 | DX56: 2.17 | DY56: 40.81 | DZ56: 43.32 | EA56: 0 | EB56: 0 | EC56: 0 | ED56: 0 | EE56: 0
A57: 2 | B57: 8 | C57: 7 | D57: 2 | E57: G | F57: 02G208 | G57: G | H57: 020807 | I57: 208072 | J57: KŁODZKO | K57: 17142 | L57: 17079 | M57: 16931 | N57: 16587 | O57: 16479 | P57: 90.01 | Q57: 85.07 | R57: 83.29 | S57: 90.54 | T57: 81.7 | U57: 60.56 | V57: 64.14 | W57: 60.2 | X57: 61.12 | Y57: 51.28 | Z57: 5.2 | AA57: 3.19 | AB57: 5.6 | AC57: 4.54 | AD57: -1.3 | AE57: 15.5 | AF57: 15.61 | AG57: 13.14 | AH57: 22.45 | AI57: 22.22 | AJ57: 36.44 | AK57: 34.98 | AL57: 36.16 | AM57: 34.71 | AN57: 41.68 | AO57: 5.39 | AP57: 4.05 | AQ57: 5.78 | AR57: 4.94 | AS57: 0.64 | AT57: 93.67 | AU57: 115.79 | AV57: 179.71 | AW57: 54.24 | AX57: 72.95 | AY57: 3.21 | AZ57: 10.87 | BA57: 15.52 | BB57: 3.57 | BC57: 1 | BD57: 75.65 | BE57: 97.04 | BF57: 200.46 | BG57: 102.97 | BH57: 71.21 | BI57: 65.74 | BJ57: 95.92 | BK57: 230.47 | BL57: 103.34 | BM57: 64.09 | BN57: 152.12 | BO57: 104.25 | BP57: 43.39 | BQ57: 96.77 | BR57: 156.03 | BS57: 8.78 | BT57: 7.11 | BU57: 10.22 | BV57: 8.77 | BW57: 0.51 | BX57: 2574.74 | BY57: 3057.82 | BZ57: 3213.25 | CA57: 3662.63 | CB57: 2653.99 | CC57: 220.9 | CD57: 151.97 | CE57: 298.85 | CF57: 272.14 | CG57: -67.27 | CH57: 2179.92 | CI57: 2501.79 | CJ57: 2302.59 | CK57: 2305.03 | CL57: 2545.68 | CM57: 786.9 | CN57: 1141.02 | CO57: 1984.07 | CP57: 1916.46 | CQ57: 1330.01 | CR57: 486.07 | CS57: 819.24 | CT57: 1756.34 | CU57: 1710.86 | CV57: 959.67 | CW57: 46.15 | CX57: 44.64 | CY57: 35.93 | CZ57: 34.83 | DA57: 40.18 | DB57: 9.87 | DC57: 16.46 | DD57: 7.7 | DE57: 8.47 | DF57: -37.84 | DG57: 7.48 | DH57: 6.37 | DI57: 4.01 | DJ57: 5.11 | DK57: 8.42 | DL57: 2.42 | DM57: 1.41 | DN57: 1.28 | DO57: 5.75 | DP57: 6.41 | DQ57: 12.35 | DR57: 11.87 | DS57: 7.02 | DT57: 8.86 | DU57: 12.32 | DV57: 17.51 | DW57: 10.94 | DX57: 12.92 | DY57: 64.44 | DZ57: 44.09 | EA57: 0 | EB57: 0 | EC57: 0.04 | ED57: 0 | EE57: 0
A58: 2 | B58: 8 | C58: 8 | D58: 3 | E58: G | F58: 02G308 | G58: G | H58: 020808 | I58: 208083 | J58: LĄDEK-ZDRÓJ | K58: 8233 | L58: 8171 | M58: 8033 | N58: 7622 | O58: 7551 | P58: 59.45 | Q58: 78.07 | R58: 72.65 | S58: 80.73 | T58: 81.45 | U58: 53.01 | V58: 56.05 | W58: 56.55 | X58: 55.54 | Y58: 51 | Z58: 3.1 | AA58: 2.42 | AB58: 0.8 | AC58: 6.01 | AD58: -2.35 | AE58: 41.34 | AF58: 20.1 | AG58: 16.49 | AH58: 15.22 | AI58: 36.85 | AJ58: 33.74 | AK58: 32.05 | AL58: 33.31 | AM58: 29.71 | AN58: 36.95 | AO58: 9.38 | AP58: 14.22 | AQ58: 8.71 | AR58: 13.36 | AS58: 6.65 | AT58: 104.42 | AU58: 124.3 | AV58: 196.23 | AW58: 177.17 | AX58: 34.21 | AY58: 3.87 | AZ58: 9.11 | BA58: 26.35 | BB58: 29.39 | BC58: 5.94 | BD58: 97.37 | BE58: 116.44 | BF58: 191.69 | BG58: 246.45 | BH58: 103 | BI58: 97.16 | BJ58: 121.05 | BK58: 221.46 | BL58: 291.16 | BM58: 103.32 | BN58: 102.92 | BO58: 82.61 | BP58: 45.15 | BQ58: 34.35 | BR58: 96.79 | BS58: 22.86 | BT58: 26.85 | BU58: 17.92 | BV58: 25.52 | BW58: 10.64 | BX58: 2286.39 | BY58: 2611.12 | BZ58: 2766.21 | CA58: 3565.51 | CB58: 2866.47 | CC58: 133.52 | CD58: 112.56 | CE58: 38.98 | CF58: 386.08 | CG58: -132.22 | CH58: 2208.99 | CI58: 2208.62 | CJ58: 2545.33 | CK58: 2619.6 | CL58: 2594.97 | CM58: 3095.71 | CN58: 1704.38 | CO58: 2434 | CP58: 3482.93 | CQ58: 3815.56 | CR58: 2861.53 | CS58: 1384.14 | CT58: 2122.8 | CU58: 3152.44 | CV58: 3467.88 | CW58: 30.45 | CX58: 37.01 | CY58: 37.8 | CZ58: 32.95 | DA58: 37.6 | DB58: 16.54 | DC58: 19.62 | DD58: 65.3 | DE58: 6.79 | DF58: -19.63 | DG58: 4.08 | DH58: 6.05 | DI58: 5.04 | DJ58: 5.89 | DK58: 7.4 | DL58: 2.78 | DM58: 1.83 | DN58: 1.11 | DO58: 5.27 | DP58: 6.29 | DQ58: 9.83 | DR58: 11.64 | DS58: 10.03 | DT58: 11.41 | DU58: 11.55 | DV58: 26.25 | DW58: 12.64 | DX58: 9.11 | DY58: 41.74 | DZ58: 46.93 | EA58: 0 | EB58: 0 | EC58: 0 | ED58: 0 | EE58: 0
A59: 2 | B59: 8 | C59: 9 | D59: 2 | E59: G | F59: 02G208 | G59: G | H59: 020809 | I59: 208092 | J59: LEWIN KŁODZKI | K59: 1940 | L59: 1930 | M59: 1928 | N59: 1960 | O59: 1962 | P59: 62.74 | Q59: 70.57 | R59: 67.46 | S59: 82.92 | T59: 42.01 | U59: 58.89 | V59: 60.59 | W59: 63.01 | X59: 49.65 | Y59: 52.19 | Z59: 6.29 | AA59: 7.91 | AB59: 14.32 | AC59: 20.49 | AD59: 22.33 | AE59: 37.4 | AF59: 35.27 | AG59: 28.14 | AH59: 35.65 | AI59: 69.06 | AJ59: 43.14 | AK59: 40.04 | AL59: 41.92 | AM59: 38.68 | AN59: 47.8 | AO59: 9.29 | AP59: 8.29 | AQ59: 12.09 | AR59: 20.01 | AS59: 11.55 | AT59: 117.32 | AU59: 98.87 | AV59: 186.49 | AW59: 93.26 | AX59: 92.5 | AY59: 6.37 | AZ59: 8.94 | BA59: 24.48 | BB59: 19.18 | BC59: 3.86 | BD59: 115.15 | BE59: 107.78 | BF59: 197.49 | BG59: 149.5 | BH59: 105.24 | BI59: 118.14 | BJ59: 108.46 | BK59: 208.19 | BL59: 152.51 | BM59: 105.3 | BN59: 84.65 | BO59: 92.2 | BP59: 48.03 | BQ59: 65.57 | BR59: 94.96 | BS59: 20.67 | BT59: 17.52 | BU59: 27.62 | BV59: 32.76 | BW59: 31.75 | BX59: 2855.08 | BY59: 3279.89 | BZ59: 3946.74 | CA59: 3856.4 | CB59: 3834.65 | CC59: 305.11 | CD59: 428.2 | CE59: 897.22 | CF59: 1591.08 | CG59: 1640.34 | CH59: 632.79 | CI59: 860.25 | CJ59: 619.02 | CK59: 400.52 | CL59: 236.25 | CM59: 3741.76 | CN59: 3180.38 | CO59: 4605 | CP59: 5427.36 | CQ59: 13578.15 | CR59: 3206.2 | CS59: 2946.16 | CT59: 4374.44 | CU59: 5218.97 | CV59: 13414.28 | CW59: 8.19 | CX59: 11.21 | CY59: 6.67 | CZ59: 4.28 | DA59: 1.35 | DB59: 2.07 | DC59: 2.01 | DD59: 0.69 | DE59: 0.25 | DF59: 0.14 | DG59: 7.24 | DH59: 3.4 | DI59: 2.68 | DJ59: 2.55 | DK59: 1.07 | DL59: 3.75 | DM59: 3.09 | DN59: 3.02 | DO59: 7.72 | DP59: 10.15 | DQ59: 15.86 | DR59: 7.12 | DS59: 6.11 | DT59: 4.21 | DU59: 2.97 | DV59: 4.43 | DW59: 11.35 | DX59: 8.1 | DY59: 14.83 | DZ59: 14.64 | EA59: 1.43 | EB59: 1.34 | EC59: 0 | ED59: 0 | EE59: 0
